Workbook

Sheet Application
C3: Energy Services ● eebiz@snopud.com ● www.snopud.com
C5: Application
AG6: =IF(BonusActive,"Bonus Active!","") -> 
C7: For Rebates in Commercial & Industrial Facilities (Non-Lighting) | AG7: =IF(BonusActive,BonusText,"") -> 
D10: Facility Information | AS10: *Indicates required field
D12: Facility / Business Name*: | Q12: Facility Address*: | AG12: City/Town*: | AP12: State | AR12: Zip Code*:
AP13: WA
D15: Facility Type* | H15: Premise Type* | S15: Account Number(s): | Z15: PUD Meter(s): | AE15: Est. kWh/yr: | AH15: Approx. Ft2: | AM15: Multi-tenant: | AP15: A/C*: | AR15: Heat Source*:
D16: 1 | H16: [Select Premise Type]
D18: Hours of Occupancy (Main)*: | L18: M | M18: - | N18: F | O18: Hours of Occupancy (Alt 1): | Y18: - | AA18: Hours of Occupancy (Alt 2): | AK18: - | AM18: Holidays/Yr*: | AP18: 24/7: | AR18: Occupied Hours/Year: | AW18: 24/7 Flag
D20: 9 | E20: : | F20: 0 | G20: AM | H20: - | I20: 5 | J20: : | K20: 0 | M20: PM | Q20: : | T20: - | V20: : | AC20: : | AF20: - | AH20: : | AR20: =IF($AW$20=TRUE,8760-24*$AM$20, ROUND(SUM($BB$78:$BH$78)/7*365-$AM$20*$BI$84,-1)) -> 2090 | AW20: FALSE
D23: Project Information
P25: Est. Start Date: | T25: Est. End Date: | Z25: Installer*: | AE25: Project Cost: | AL25: Est. PUD Incentive: | AQ25: Est. Annual Savings ($):
AE26: =IF(PA_CostTotal=0,"",PA_CostTotal) ->  | AL26: =IF(PA_RebateTotal=0,"",PA_RebateTotal) ->  | AQ26: =IF(EstAnnualCostSavings=0,"",EstAnnualCostSavings) -> 
D28: Looking for a Contractor? Check out who's worked in our programs recently: HVAC Contractors | Compressed Air | Insulation | Windows | Mechanical |
D29: Assignment of Funds?
D30: The customer may choose to assign their incentive funds to their contractor in order to reduce the amount owed on the final invoice. Will this project include an Assignment of Funds? | AR30: Yes | AS30: No
D32: Project Development Incentive (PDI)
D33: In addition to the incentive for energy efficiency upgrades, PUD is now offering a supplemental project development incentive to offset administrative costs associated with participating in our programs. A project development incentive will be paid to the company that is primarily responsible for filling out this workbook, assembling the required documents and submitting the complete application packet. The incentive will vary based on the selected measures. Current development incentive rates can be viewed on the rebates overview. Minimum of $50 per project, no maximum cap. | AP33: Est. Project Development Incentive
AP34: =IF(PA_CostTotal=0,"",PDI) -> 
AP35: PDI Recipient
AP36: Contractor
D39: Customer Information
D41: Customer Business Name (as it appears on IRS W-9)* | U41: Payment Address (check if same as above)* | AK41: =IF(AW42=TRUE," City/Town"," City/Town*") -> City/Town* | AP41: =IF(AW42=TRUE,"State","State*") -> State* | AR41: =IF(AW42=TRUE," Zip Code"," Zip Code*") -> Zip Code* | AW41: Payment Address Flag
AW42: FALSE
D43: Primary Contact*: | O43: Title: | Z43: Phone*: | AF43: Mobile: | AN43: E-Mail*:
D45: Site Contact (If different from above): | O45: Title: | Z45: Phone: | AF45: Mobile: | AN45: E-Mail:
D49: Contractor Information
D51: Contractor Business Name (as it appears on IRS W-9)*: | U51: Mailing Address: | AK51: =IF(AW52=TRUE," City/Town:"," City/Town*:") -> City/Town*: | AP51: =IF(AW52=TRUE,"State","State*:") -> State*: | AR51: =IF(AW52=TRUE," Zip Code:"," Zip Code*:") -> Zip Code*: | AW51: Payment Address Flag
AW52: FALSE
D53: Primary Contact*: | O53: Title: | Z53: Phone*: | AF53: Mobile: | AN53: E-Mail*:
D57: Application Signature
D59: Applicant Name | R59: Applicant Title | AE59: Applicant Signature | AR59: Date
D61: Pre-Approval Acknowledgement
F62: By signing above, I acknowledge that all equipment and scope must be reviewed and approved by PUD before any purchases occur. I understand that any equipment purchased or installed prior to PUD approval will not qualify for incentives unless stated otherwise by PUD program staff.
D65: If you have any questions filling out this application, please contact:
D66: EEBIZ@snopud.com
D67: or Mail: Energy Efficiency Engineering, Snohomish County PUD, P.O. Box 1107, Everett WA 98206-1107
D68: Questions: Call (425) 783-1012
AS69: =Version -> Version July 2024 - Effective Date July 1st, 2024
AW73: Drop Down List | BB73: Su | BC73: M | BD73: T | BE73: W | BF73: Th | BG73: F | BH73: Sa | BI73: Su | BJ73: M | BK73: T | BL73: W | BM73: Th | BN73: F | BO73: Sa
AW74: Hours | AX74: Quarters | AY74: AMPM | AZ74: DaysofWeek | BA74: Primary? | BB74: =IF($L$18=BB$73,"SP", IF($N$18=BB$73,"EP", IF($N$18="",0, IF(OR(BA74="SP",BA74="MP"),"MP",0 )))) -> 0 | BC74: SP | BD74: MP | BE74: MP | BF74: MP | BG74: EP | BH74: 0 | BI74: 0 | BJ74: SP | BK74: MP | BL74: MP | BM74: MP | BN74: EP | BO74: 0
AW75: 1 | AX75: 0 | AY75: AM | AZ75: M | BA75: Secondary? | BB75: =IF($X$18=BB$73,"SS", IF($Z$18=BB$73,"ES", IF($Z$18="",0, IF(OR(BA75="SS",BA75="MS"),"MS",0 )))) -> 0 | BC75: 0 | BD75: 0 | BE75: 0 | BF75: 0 | BG75: 0 | BH75: 0 | BI75: 0 | BJ75: 0 | BK75: 0 | BL75: 0 | BM75: =IF($V$18=BM$73,"SS", IF($Z$18=BM$73,"ES", IF($Z$18="",0, IF(OR(BL75="SS",BL75="MS"),"MS",0 )))) -> 0 | BN75: =IF($V$18=BN$73,"SS", IF($Z$18=BN$73,"ES", IF($Z$18="",0, IF(OR(BM75="SS",BM75="MS"),"MS",0 )))) -> 0 | BO75: =IF($X$18=BO$73,"SS", IF($Z$18=BO$73,"ES", IF($Z$18="",0, IF(OR(BN75="SS",BN75="MS"),"MS",0 )))) -> 0
AW76: 2 | AX76: 15 | AY76: PM | AZ76: T | BA76: Tertiary? | BB76: =IF($AJ$18=BB$73,"ST", IF($AL$18=BB$73,"ET", IF($Z$18="",0, IF(OR(BA76="SS",BA76="MS"),"MS",0 )))) -> 0 | BC76: 0 | BD76: 0 | BE76: 0 | BF76: 0 | BG76: 0 | BH76: 0 | BI76: 0 | BJ76: 0 | BK76: 0 | BL76: 0 | BM76: 0 | BN76: 0 | BO76: 0
AW77: 3 | AX77: 30 | AZ77: W
B78: Drop Down List | AW78: 4 | AX78: 45 | AZ78: Th | BA78: Burn Hours | BB78: =SUM(BB88:BB111) -> 0 | BC78: 8 | BD78: 8 | BE78: 8 | BF78: 8 | BG78: 8 | BH78: 0 | BI78: Primary Hours | BK78: Secondary Hours | BM78: Tertiary Hours | BP78: WeeklyPeakHours
B79: HeatSourceType | I79: Commercial | J79: Industrial | Z79: PUDStaff | AF79: AccountMgrs | AO79: City | AS79: YesNo | AW79: 5 | AZ79: F | BA79: P. Start Hr | BB79: =IF(OR(RIGHT(BB$74,1)="P",RIGHT(BI$74,1)="P"),$BJ$81, 0) -> 0 | BC79: 9 | BD79: 9 | BE79: 9 | BF79: 9 | BG79: 9 | BH79: 0 | BI79: =IF(AND(D20=12),0+F20*1/60,D20+F20*1/60) -> 9 | BJ79: =G20 -> AM | BK79: =IF(P20=12,0+R20*1/60,P20+R20*1/60) -> 0 | BL79: =S20 -> 0 | BM79: =IF(AB20=12,0+AD20*1/60,AB20+AD20*1/60) -> 0 | BN79: =AE20 -> 0 | BP79: =SUM(BC95:BF96,BC105:BF106) -> 0
B80: Electric | I80: Large Office >50K SQ FT | J80: Transportation, Equipment | Z80: Allison Grinczel | AF80: Tom Hovde | AO80: Arlington | AS80: Yes | AW80: 6 | AZ80: Sa | BA80: P. End Hr | BB80: =IF(OR(RIGHT(BB$74,1)="P",RIGHT(BI$74,1)="P"),$BJ$82, 0) -> 0 | BC80: 17 | BD80: 17 | BE80: 17 | BF80: 17 | BG80: 17 | BH80: 0 | BI80: =IF(AND(I20=12,BJ80="AM"),K20*1/60,I20+K20*1/60) -> 5 | BJ80: =M20 -> PM | BK80: =IF(AND(U20=12,BL80="AM"),W20*1/60,U20+W20*1/60) -> 0 | BL80: =Y20 -> 0 | BM80: =IF(AND(AG20=12,BN80="AM"),AI20*1/60,AG20+AI20*1/60) -> 0 | BN80: =AK20 -> 0
B81: Gas | I81: Medium Office 5K-50K SQ FT | J81: Metal Fabrication | Z81: John Petosa | AF81: Doug O'Donnell | AO81: Camano Island | AS81: No | AW81: 7 | AZ81: Su | BA81: P. Burn Hrs | BB81: =BB80-BB79 -> 0 | BC81: =BC80-BC79 -> 8 | BD81: 8 | BE81: 8 | BF81: 8 | BG81: 8 | BH81: 0 | BI81: =BI79 -> 9 | BJ81: =IF(AND($BI$79=12,$BJ$79="AM"),0, IF($BJ$79="AM",$BI$79, IF(AND($BI$79=12,$BJ$79="PM"),12, IF($BJ$79="PM",$BI$79+12 )))) -> 9 | BK81: =BK79 -> 0 | BL81: =IF(AND($BK$79=12,$BL$79="AM"),0, IF($BL$79="AM",$BK$79, IF(AND($BK$79=12,$BL$79="PM"),12, IF($BL$79="PM",$BK$79+12 )))) -> FALSE | BM81: =BM79 -> 0 | BN81: =IF(AND($BM$79=12,$BN$79="AM"),0, IF($BN$79="AM",$BM$79, IF(AND($BM$79=12,$BN$79="PM"),12, IF($BN$79="PM",$BM$79+12 )))) -> FALSE
B82: Oil | I82: Small Office <5K SQ FT | J82: Misc Manufacturing | Z82: Rick Rosenkilde | AF82: Shelley Pattison | AO82: Bothell | AW82: 8 | BA82: S. Start Hr | BB82: =IF(OR(RIGHT(BB$75,1)="S",RIGHT(BI$75,1)="S"),$BL$81, 0) -> 0 | BC82: 0 | BD82: 0 | BE82: 0 | BF82: 0 | BG82: 0 | BH82: 0 | BI82: =IF(AND(BJ79="AM",BJ80="PM",BI80<>12),BI80+12, IF(AND(BJ79="AM",BJ80="AM",BI80<=BI79),BI80+24, IF(AND(BJ79="PM",BJ80="AM"),BI80+12, IF(AND(BJ79="PM",BJ80="PM",BI80<=BI79),BI80+24,$BI$80)))) -> 17 | BJ82: =BI84+BJ81 -> 17 | BK82: =IF(AND(BL79="AM",BL80="PM",BK80<>12),BK80+12, IF(AND(BL79="AM",BL80="AM",BK80<=BK79),BK80+24, IF(AND(BL79="PM",BL80="AM"),BK80+12, IF(AND(BL79="PM",BL80="PM",BK80<=BK79),BK80+24,$BK$80)))) -> 0 | BL82: =BK84+BL81 -> 0 | BM82: =IF(AND(BN79="AM",BN80="PM",BM80<>12),BM80+12, IF(AND(BN79="AM",BN80="AM",BM80<=BM79),BM80+24, IF(AND(BN79="PM",BN80="AM"),BM80+12, IF(AND(BN79="PM",BN80="PM",BM80<=BM79),BM80+24,$BK$80)))) -> 0 | BN82: =BM84+BN81 -> 0
B83: Propane | I83: Extra Large Retail >100K SQ FT | J83: Foundries | Z83: Rob Marks | AF83: Chuck Peterson | AO83: Brier | AW83: 9 | BA83: S. End Hr | BB83: =IF(OR(RIGHT(BB$75,1)="S",RIGHT(BI$75,1)="S"),$BL$82, 0) -> 0 | BC83: 0 | BD83: 0 | BE83: 0 | BF83: 0 | BG83: 0 | BH83: 0
B84: Heat Pump - Electric | I84: Large Retail >50K - 100K SQ FT | J84: Indoor Agriculture | Z84: Shayne Moore | AF84: John Petosa | AO84: Darrington | AW84: 10 | BA84: S. Burn Hrs | BB84: =BB83-BB82 -> 0 | BC84: =BC83-BC82 -> 0 | BD84: 0 | BE84: 0 | BF84: 0 | BG84: 0 | BH84: 0 | BI84: =BI82-BI81 -> 8 | BJ84: hours/day | BK84: =BK82-BK81 -> 0 | BL84: hours/day | BM84: =BM82-BM81 -> 0 | BN84: hours/day
B85: Heat Pump - Gas | I85: Medium Retail 5K- 50K SQ FT | J85: Refinery | Z85: Sinh Tran | AF85: Laura Zorick | AO85: Edmonds | AW85: 11 | BA85: T. Start Hr | BB85: =IF(OR(RIGHT(BB$76,1)="T",RIGHT(BI$76,1)="T"),$BN81, 0) -> 0 | BC85: 0 | BD85: 0 | BE85: 0 | BF85: 0 | BG85: 0 | BH85: 0
B86: VRF | I86: Small Retail <5K | J86: Water and Wastewater | AO86: Everett | AW86: 12 | BA86: T. End Hr | BB86: 0 | BC86: 0 | BD86: 0 | BE86: 0 | BF86: 0 | BG86: 0 | BH86: 0
B87: None | I87: K-12 | J87: Data Center | AO87: Gold Bar | BA87: T. Burn Hrs | BB87: =BB86-BB85 -> 0 | BC87: 0 | BD87: 0 | BE87: 0 | BF87: 0 | BG87: 0 | BH87: 0
I88: University | J88: Data Closet | AO88: Granite Falls | BA88: 0 | BB88: =IF($AW$20=TRUE,1, IF(AND(BB$79<=$BA88,(BB$79+BB$81)>=($BA88+1)),1+N("Primary"), IF(AND(BH$79>$BA88,(BH$79+BH$81)>=($BA88+1+24)),1+N("Primary"), IF(AND(BB$82<=$BA88,(BB$82+BB$84)>=($BA88+1)),1+N("Secondary"), IF(AND(BH$82>$BA88,(BH$82+BH$84)>=($BA88+1+24)),1+N("Secondary"), IF(AND(BB$85<=$BA88,(BB$85+BB$87)>=($BA88+1)),1+N("Tertiary"), IF(AND(BH$85>$BA88,(BH$85+BH$87)>=($BA88+1+24)),1+N("Tertiary"), IF(AND(ROUNDDOWN(BB$79,0)=$BA88,BB$81>0),1-(BB$79-ROUNDDOWN(BB$79,0))+IF(ROUNDDOWN(BH$80,0)-24=$BA88,(BH$80-ROUNDDOWN(BH$80,0)),0)+N("Primary"), IF(AND(ROUNDDOWN(BB$82,0)=$BA88,BB$84>0),1-(BB$82-ROUNDDOWN(BB$82,0))+IF(ROUNDDOWN(BH$83,0)-24=$BA88,(BH$83-ROUNDDOWN(BH$83,0)),0)+N("Secondary"), IF(AND(ROUNDDOWN(BB$85,0)=$BA88,BB$87>0),1-(BB$85-ROUNDDOWN(BB$85,0))+IF(ROUNDDOWN(BH$86,0)-24=$BA88,(BH$86-ROUNDDOWN(BH$86,0)),0)+N("Tertiary"), IF(AND(ROUNDDOWN(BB$80,0)=$BA88,BB$81>0),(BB$80-ROUNDDOWN(BB$80,0))+N("Primary"), IF(AND(ROUNDDOWN(BB$83,0)=$BA88,BB$84>0),(BB$83-ROUNDDOWN(BB$83,0))+N("Secondary"), IF(AND(ROUNDDOWN(BB$86,0)=$BA88,BB$87>0),(BB$86-ROUNDDOWN(BB$86,0))+N("Tertiary"), 0))))))))))))) -> 0 | BC88: =IF($AW$20=TRUE,1, IF(AND(BC$79<=$BA88,(BC$79+BC$81)>=($BA88+1)),1+N("Primary"), IF(AND(BB$79>$BA88,(BB$79+BB$81)>=($BA88+1+24)),1+N("Primary"), IF(AND(BC$82<=$BA88,(BC$82+BC$84)>=($BA88+1)),1+N("Secondary"), IF(AND(BB$82>$BA88,(BB$82+BB$84)>=($BA88+1+24)),1+N("Secondary"), IF(AND(BC$85<=$BA88,(BC$85+BC$87)>=($BA88+1)),1+N("Tertiary"), IF(AND(BB$85>$BA88,(BB$85+BB$87)>=($BA88+1+24)),1+N("Tertiary"), IF(AND(ROUNDDOWN(BC$79,0)=$BA88,BC$81>0),1-(BC$79-ROUNDDOWN(BC$79,0))+IF(ROUNDDOWN(BB$80,0)-24=$BA88,(BB$80-ROUNDDOWN(BB$80,0)),0)+N("Primary"), IF(AND(ROUNDDOWN(BC$82,0)=$BA88,BC$84>0),1-(BC$82-ROUNDDOWN(BC$82,0))+IF(ROUNDDOWN(BB$83,0)-24=$BA88,(BB$83-ROUNDDOWN(BB$83,0)),0)+N("Secondary"), IF(AND(ROUNDDOWN(BC$85,0)=$BA88,BC$87>0),1-(BC$85-ROUNDDOWN(BC$85,0))+IF(ROUNDDOWN(BB$86,0)-24=$BA88,(BB$86-ROUNDDOWN(BB$86,0)),0)+N("Tertiary"), IF(AND(ROUNDDOWN(BC$80,0)=$BA88,BC$81>0),(BC$80-ROUNDDOWN(BC$80,0))+N("Primary"), IF(AND(ROUNDDOWN(BC$83,0)=$BA88,BC$84>0),(BC$83-ROUNDDOWN(BC$83,0))+N("Secondary"), IF(AND(ROUNDDOWN(BC$86,0)=$BA88,BC$87>0),(BC$86-ROUNDDOWN(BC$86,0))+N("Tertiary"), 0))))))))))))) -> 0 | BD88: 0 | BE88: 0 | BF88: 0 | BG88: 0 | BH88: 0
I89: Warehouse | J89: Cold Storage | Z89: Customer Role | AO89: Index | BA89: 1 | BB89: 0 | BC89: 0 | BD89: 0 | BE89: 0 | BF89: 0 | BG89: 0 | BH89: 0
I90: Supermarket => 5K SQ FT | J90: Chemical | Z90: Owner | AO90: Lake Stevens | BA90: 2 | BB90: 0 | BC90: 0 | BD90: 0 | BE90: 0 | BF90: 0 | BG90: 0 | BH90: 0
I91: MiniMart < 5K SQ FT | J91: Wood - Lumber | Z91: Facility Manager | AO91: Lynnwood | BA91: 3 | BB91: 0 | BC91: 0 | BD91: 0 | BE91: 0 | BF91: 0 | BG91: 0 | BH91: 0
I92: Restaurant | J92: Wood - Panel | Z92: Property Manager | AO92: Marysville | BA92: 4 | BB92: 0 | BC92: 0 | BD92: 0 | BE92: 0 | BF92: 0 | BG92: 0 | BH92: 0
I93: Multifamily | J93: Wood - Other | Z93: Tenant | AO93: Mill Creek | BA93: 5 | BB93: 0 | BC93: 0 | BD93: 0 | BE93: 0 | BF93: 0 | BG93: 0 | BH93: 0
I94: Lodging | J94: Paper | Z94: Customer Rep | AO94: Monroe | BA94: 6 | BB94: 0 | BC94: 0 | BD94: 0 | BE94: 0 | BF94: 0 | BG94: 0 | BH94: 0
I95: Hospital | J95: Other | AO95: Mountlake Terrace | BA95: 7 | BB95: 0 | BC95: 0 | BD95: 0 | BE95: 0 | BF95: 0 | BG95: 0 | BH95: 0
I96: Outpatient Care | AF96: Spec Sheets | AG96: FALSE | AO96: Mukilteo | BA96: 8 | BB96: 0 | BC96: 0 | BD96: 0 | BE96: 0 | BF96: 0 | BG96: 0 | BH96: 0
I97: Residential Care | AF97: Project Bid | AG97: FALSE | AO97: Silvana | BA97: 9 | BB97: 0 | BC97: 1 | BD97: 1 | BE97: 1 | BF97: 1 | BG97: 1 | BH97: 0
I98: Assembly | AF98: Customer W9 | AG98: FALSE | AO98: Snohomish | BA98: 10 | BB98: 0 | BC98: =IF($AW$20=TRUE,1, IF(AND(BC$79<=$BA98,(BC$79+BC$81)>=($BA98+1)),1+N("Primary"), IF(AND(BB$79>$BA98,(BB$79+BB$81)>=($BA98+1+24)),1+N("Primary"), IF(AND(BC$82<=$BA98,(BC$82+BC$84)>=($BA98+1)),1+N("Secondary"), IF(AND(BB$82>$BA98,(BB$82+BB$84)>=($BA98+1+24)),1+N("Secondary"), IF(AND(BC$85<=$BA98,(BC$85+BC$87)>=($BA98+1)),1+N("Tertiary"), IF(AND(BB$85>$BA98,(BB$85+BB$87)>=($BA98+1+24)),1+N("Tertiary"), IF(AND(ROUNDDOWN(BC$79,0)=$BA98,BC$81>0),1-(BC$79-ROUNDDOWN(BC$79,0))+IF(ROUNDDOWN(BB$80,0)-24=$BA98,(BB$80-ROUNDDOWN(BB$80,0)),0)+N("Primary"), IF(AND(ROUNDDOWN(BC$82,0)=$BA98,BC$84>0),1-(BC$82-ROUNDDOWN(BC$82,0))+IF(ROUNDDOWN(BB$83,0)-24=$BA98,(BB$83-ROUNDDOWN(BB$83,0)),0)+N("Secondary"), IF(AND(ROUNDDOWN(BC$85,0)=$BA98,BC$87>0),1-(BC$85-ROUNDDOWN(BC$85,0))+IF(ROUNDDOWN(BB$86,0)-24=$BA98,(BB$86-ROUNDDOWN(BB$86,0)),0)+N("Tertiary"), IF(AND(ROUNDDOWN(BC$80,0)=$BA98,BC$81>0),(BC$80-ROUNDDOWN(BC$80,0))+N("Primary"), IF(AND(ROUNDDOWN(BC$83,0)=$BA98,BC$84>0),(BC$83-ROUNDDOWN(BC$83,0))+N("Secondary"), IF(AND(ROUNDDOWN(BC$86,0)=$BA98,BC$87>0),(BC$86-ROUNDDOWN(BC$86,0))+N("Tertiary"), 0))))))))))))) -> 1 | BD98: 1 | BE98: 1 | BF98: 1 | BG98: 1 | BH98: 0
I99: Other | AF99: Contractor W9 | AG99: FALSE | AO99: Stanwood | BA99: 11 | BB99: 0 | BC99: 1 | BD99: 1 | BE99: 1 | BF99: 1 | BG99: 1 | BH99: 0
AO100: Sultan | BA100: 12 | BB100: 0 | BC100: 1 | BD100: 1 | BE100: 1 | BF100: 1 | BG100: 1 | BH100: 0
AO101: Woodinville | BA101: 13 | BB101: 0 | BC101: 1 | BD101: 1 | BE101: 1 | BF101: 1 | BG101: 1 | BH101: 0
AO102: Woodway | BA102: 14 | BB102: 0 | BC102: 1 | BD102: 1 | BE102: 1 | BF102: 1 | BG102: 1 | BH102: 0
BA103: 15 | BB103: 0 | BC103: 1 | BD103: 1 | BE103: 1 | BF103: 1 | BG103: 1 | BH103: 0
BA104: 16 | BB104: 0 | BC104: 1 | BD104: 1 | BE104: 1 | BF104: 1 | BG104: 1 | BH104: 0
BA105: 17 | BB105: 0 | BC105: 0 | BD105: 0 | BE105: 0 | BF105: 0 | BG105: 0 | BH105: 0
BA106: 18 | BB106: 0 | BC106: 0 | BD106: 0 | BE106: 0 | BF106: 0 | BG106: 0 | BH106: 0
BA107: 19 | BB107: 0 | BC107: 0 | BD107: 0 | BE107: 0 | BF107: 0 | BG107: 0 | BH107: 0
BA108: 20 | BB108: 0 | BC108: =IF($AW$20=TRUE,1, IF(AND(BC$79<=$BA108,(BC$79+BC$81)>=($BA108+1)),1+N("Primary"), IF(AND(BB$79>$BA108,(BB$79+BB$81)>=($BA108+1+24)),1+N("Primary"), IF(AND(BC$82<=$BA108,(BC$82+BC$84)>=($BA108+1)),1+N("Secondary"), IF(AND(BB$82>$BA108,(BB$82+BB$84)>=($BA108+1+24)),1+N("Secondary"), IF(AND(BC$85<=$BA108,(BC$85+BC$87)>=($BA108+1)),1+N("Tertiary"), IF(AND(BB$85>$BA108,(BB$85+BB$87)>=($BA108+1+24)),1+N("Tertiary"), IF(AND(ROUNDDOWN(BC$79,0)=$BA108,BC$81>0),1-(BC$79-ROUNDDOWN(BC$79,0))+IF(ROUNDDOWN(BB$80,0)-24=$BA108,(BB$80-ROUNDDOWN(BB$80,0)),0)+N("Primary"), IF(AND(ROUNDDOWN(BC$82,0)=$BA108,BC$84>0),1-(BC$82-ROUNDDOWN(BC$82,0))+IF(ROUNDDOWN(BB$83,0)-24=$BA108,(BB$83-ROUNDDOWN(BB$83,0)),0)+N("Secondary"), IF(AND(ROUNDDOWN(BC$85,0)=$BA108,BC$87>0),1-(BC$85-ROUNDDOWN(BC$85,0))+IF(ROUNDDOWN(BB$86,0)-24=$BA108,(BB$86-ROUNDDOWN(BB$86,0)),0)+N("Tertiary"), IF(AND(ROUNDDOWN(BC$80,0)=$BA108,BC$81>0),(BC$80-ROUNDDOWN(BC$80,0))+N("Primary"), IF(AND(ROUNDDOWN(BC$83,0)=$BA108,BC$84>0),(BC$83-ROUNDDOWN(BC$83,0))+N("Secondary"), IF(AND(ROUNDDOWN(BC$86,0)=$BA108,BC$87>0),(BC$86-ROUNDDOWN(BC$86,0))+N("Tertiary"), 0))))))))))))) -> 0 | BD108: 0 | BE108: 0 | BF108: 0 | BG108: 0 | BH108: 0
BA109: 21 | BB109: 0 | BC109: 0 | BD109: 0 | BE109: 0 | BF109: 0 | BG109: 0 | BH109: 0
BA110: 22 | BB110: 0 | BC110: 0 | BD110: 0 | BE110: 0 | BF110: 0 | BG110: 0 | BH110: 0
BA111: 23 | BB111: 0 | BC111: 0 | BD111: 0 | BE111: 0 | BF111: 0 | BG111: 0 | BH111: 0

Sheet Rebates Overview
C3: =BannerText -> Energy Services ● eebiz@snopud.com ● www.snopud.com
C5: Rebates Overview
C6: =Version -> Version July 2024 - Effective Date July 1st, 2024
C8: HVAC (Heating, Ventilation and Air Conditioning)
C9: Name | G9: Rebate | I9: PDI | J9: Description
C10: Air-Source Heat Pump Retrofit (Ducted) | G10: =HPRebatesPerTon*WithBonusMeasures -> 700 | I10: =PDI_Rate_HP -> 200 | J10: Replacing existing zonal or forced-air electric resistance heating system with a ducted heat pump.
C11: Ductless Heat Pump Retrofit (mini & multi-split) | G11: =DHPRebatePerTon*WithBonusMeasures -> 1000 | I11: =PDI_Rate_DHP -> 200 | J11: Replacing existing zonal or forced-air electric resistance heating system with a mini or multi-split heat pump.
C12: Packaged Terminal Heat Pump (PTHP) | G12: =PTHPRebate -> 600 | I12: =PDI_Rate_PTHP -> 25 | J12: Replacing existing packaged terminal AC unit or zonal electric-resistance heat as the primary heating source.
C13: Variable Refrigerant Flow Systems (VRF) | G13: =VRFSRebate*WithBonusMeasures -> 1000 | I13: =PDI_Rate_VRF -> 1000 | J13: Replacing existing zonal or forced-air electric resistance heating system with a VRF system.
C14: Connected Thermostat | G14: =ConnectedTStatRebate*WithBonusMeasures -> 200 | I14: =PDI_Rate_Tstats -> 25 | J14: Replacing existing not-web-enabled thermostat with a qualified web-enabled thermostat.
C15: Variable Frequency Drive on Air Handling Unit Fan | G15: =300*WithBonusMeasures -> 300 | I15: =PDI_Rate_VFD -> 25 | J15: Adding a VFD to existing AHU fixed-speed fan for variable-speed operation.
C16: Variable Frequency Drives for Pumps | G16: =180*WithBonusMeasures -> 180 | I16: =PDI_Rate_VFDPump -> 15 | J16: Adding a VFD on a pump between 3 and 100 HP for varying its speed to meet the conditions of the system.
C17: Advanced Rooftop Unit Controls (ARC) | G17: ="ARC - "&DOLLAR(ARCincentive,0)&" Per Ton ARC Lite - "&DOLLAR(ARCLiteincentive,0)&" Per Ton" -> ARC - $250 Per Ton ARC Lite - $150 Per Ton | I17: =PDI_Rate_ARC_Full -> 50 | J17: Replacing standard controls of an existing, single-zone HVAC unit with advanced controls.
D18: • Heat Pump (HP) Retrofit − $1,725 per ton
D19: Replacing the existing zonal or forced-air electric resistance heating system with a HP.
D20: • Ductless Heat Pump (DHP) Retrofit − $1,875 per ton
D21: Replacing the existing zonal or forced-air electric resistance heating system with a DHP.
D22: • PTHP - Packaged Terminal Heat Pumps − $900 per Unit for Retrofits, $150 per unit for New Construction.
D23: Replacing the existing PTAC or zonal electric-resistance heat as the primary heating source, or installing in a new construction.
D24: • Variable Refrigerant Flow (VRF) Systems − $1,500 per ton
D25: Replacing the existing zonal or forced-air electric resistance heating system with a VRF system.
D26: • Connected Thermostats − $300 per thermostat
D27: Replacing the existing not-web-enabled thermostat with a qualified web-enabled thermostat.
D28: • Variable Frequency Drives (VFDs) on Air Handling Unit (AHU) Fans − $450 per horsepower
D29: Adding a VFD to the existing AHU single-speed fan for multi-speed operation.
D30: • Advanced Rooftop-Unit Controls (ARC) − $750 - $6,750 per unit
D31: Replacing the standard control of the existing, single-zone HVAC unit with an advanced control.
C33: Compressed Air
C34: Name | G34: Rebate | I34: PDI | J34: Description
C35: Compressed Air Equipment | G35: Measure Dependent (Click Here to View) | I35: =PDI_Rate_CA -> 0.025 | J35: Rebates available for upgrading compressors (up to 75HP), air dryers, zero loss drains, low pressure filters, adding storage and reducing overall system pressure.
C37: Building Envelope (Electrically heated facilities only)
C38: Name | G38: Rebate | I38: PDI | J38: Description
C39: Windows | G39: =DOLLAR(WithBonusMeasures*6,2)&" to "&DOLLAR(WithBonusMeasures*9,2)&" per SqFt of Window" -> $6.00 to $9.00 per SqFt of Window | I39: =PDI_Rate_Windows -> 0.25 | J39: Replacing single-pane windows with storm windows, or double-paned metal-frame windows with new windows with U-value of 0.30 or less. For electrically heated facilities only.
C42: Secondary Windows | G42: =WithBonusMeasures*3 -> 3 | I42: =PDI_Rate_SWindow -> 0.5 | J42: Attaching secondary windows, sometimes referred to window inserts, secondary glazing systems, or window retrofit panels, to the existing windows from the interior.
C43: Insulation | G43: =DOLLAR(WithBonusMeasures*0.5,2)&" to "&DOLLAR(WithBonusMeasures*2.5,2)&" per SqFt of Insulation" -> $0.50 to $2.50 per SqFt of Insulation | I43: =PDI_Rate_Insulation -> 0.25 | J43: Adding insulation to the existing wall, floor, and attic/roof. For electrically heated facilities only.
D46: • Windows − $9 to $13.5 per square foot
D47: Replacing the single-pane, single-pane windows with storms, or double-paned metal-frame windows with new windows with U-value of 0.30 or less. For electrically heated facilities only.
D49: • Insulation − $0.75 to $3.75 per square foot
D50: Adding insulation to the existing wall, floor, and attic/roof. For electrically heated facilities only.
C52: Refrigeration
C53: Name | G53: Rebate | I53: PDI | J53: Description
C54: Electronically Commutated Motors (ECMs) and Permanent Magnetic Synchronous Motors (PMSMs) | G54: =DOLLAR(55*WithBonusMeasures,2)&" per motor (display cases) "&DOLLAR(140*WithBonusMeasures,2)&" per motor (walk-in)" -> $55.00 per motor (display cases) $140.00 per motor (walk-in) | I54: =PDI_Rate_ECM -> 50 | J54: Replacing existing shaded pole evaporator fan motors in refrigerated reach-in cases, walk-in coolers and walk-in freezers with ECMs or PMSMs.
C55: Anti-Sweat Heater Controls (ASH) | G55: =40*WithBonusMeasures -> 40 | I55: =PDI_Rate_ASH -> 1 | J55: Upgrading uncontrolled ASH with automated ASH controls based on sensing humidity with settings that reduce the ASH run time by at least 50%. New construction eligible.
C56: Refrigerated Display Case Door Retrofit | G56: =DOLLAR(WithBonusMeasures*100,0)&" to "&DOLLAR(WithBonusMeasures*300,0)&" per LnFt" -> $100 to $300 per LnFt | I56: =PDI_Rate_CaseDoor -> 5 | J56: Retrofitting doors to existing open refrigerated display cases. This saves energy by reducing infiltration of warm air into the case.
C57: Strip Curtains for Walk-in Coolers and Freezers | G57: =9*WithBonusMeasures -> 9 | I57: =PDI_Rate_StripCurtains -> 1 | J57: Adding new strip curtains or plastic swinging doors on qualifying walk-in cooler and freezer doorways.
C58: Floating Pressure Controls | G58: =DOLLAR(WithBonusMeasures*10,0)&" to "&DOLLAR(WithBonusMeasures*20,0)&" per MBH" -> $10 to $20 per MBH | I58: =PDI_Rate_Floating -> 1 | J58: This measure is available for retrofit and for commercial facility only. It applies to multiplex refrigeration systems (i.e. compressors operating in parallel) only.
D59: • Electronically Commutated Motors (ECMs) − $82.5 per motor for display case; $210 per motor for Walk-In Cooler/Freezer
D60: Replacing the existing shaded pole evaporator fan motors in refrigerated reach-in cases, walk-in coolers and walk-in freezers with ECMs.
D62: • Anti-Sweat Heater (ASH) Controls − $60 per linear foot of case
D63: Upgrading the uncontrolled ASH to automated ASH based on sensing humidity with settings that reduce the ASH run time by at least 50%. New construction is eligible.
D65: • Strip Curtains for Walk-In Coolers and Freezers − $13.5 per square foot of doorway
D66: Adding new strip curtains or plastic swinging doors on qualifying walk-in cooler and freezer doorways.
C68: Commercial Kitchens
C69: Name | G69: Rebate | I69: PDI | J69: Description
C70: Demand Controlled Kitchen Ventilation | G70: =DOLLAR(200*WithBonusMeasures,0)&" per fan HP (One Sensor); "&DOLLAR(400*WithBonusMeasures,0)&" per fan HP (2+ Sensors)" -> $200 per fan HP (One Sensor); $400 per fan HP (2+ Sensors) | I70: =PDI_Rate_DCKV -> 1000 | J70: Adding the demand-controlled kitchen ventilation (DCKV) system to reduces kitchen hood and make-up air fan speed during times of low activity or demand.
C71: Commercial Kitchen and Food Service Equipment | G71: Measure Dependent | I71: N/A | J71: Regional Program with PSE offering point-of-sale rebates for many commercial kitchen equipment at the local suppliers. Visit www.pse.com/commercialkitchens for details | O71: Ended 4/22
D72: • Demand Controlled Kitchen Ventilation − $300 per fan HP for One Control Sensor; $600 for Multiple Control Sensors
D73: Adding the demand-controlled kitchen ventilation (DCKV) system to reduces kitchen hood and make-up air fan speed during times of low activity or demand.
D75: • Commercial Kitchen and Food Services Equipment − Regional Program. Please visit www.pse.com/commercialkitchens
D76: Offering point-of-sale rebates for many commercial kitchen equipment at the local suppliers.
C78: Water Heating
C79: Name | G79: Rebate | I79: PDI | J79: Description
C80: Heat Pump Water Heaters | G80: $300 per Tier 1 Unit; $600 per Tier 2&3 Unit | I80: =PDI_Rate_HPWH -> 100 | J80: Replacing existing electric storage water heater with a qualified HPWH. Contact us for the qualified product list. | O80: ≤120 Midstream, >120 Custom
C81: Commercial Clothes Washers | G81: =DOLLAR(25*WithBonusMeasures,2)&" to "&DOLLAR(125*WithBonusMeasures,2)&" per Washer" -> $25.00 to $125.00 per Washer | I81: =PDI_Rate_Washers -> 50 | J81: Installing Energy Star v2.2 or higher clothes washers. New construction eligible.
D82: • Heat Pump Water Heaters − $450 per Tier 1 Unit; $900 per Tier 2 and Tier 3 Unit
D83: Replacing the existing electric storage water heater with a qualified HPWH. Contact us for the qualified product list.
D84: • Commercial Clothes Washers − $37.5 - $187.5 per washer
D85: Installing Energy Star v2.2 or higher clothes washers. New construction is eligible.
D86: • Pool Pumps − $75 to $1,200 per Pump
D87: Adding a VFD to control the pump with variable-speed operation.
C89: Engines
C90: Name | G90: Rebate | I90: PDI | J90: Description
C91: Generator Block Heaters | G91: =DOLLAR(200*WithBonusMeasures,0)&" per Heater (<3kW); "&DOLLAR(1500*WithBonusMeasures,0)&" per Heater (≥3kW)" -> $200 per Heater (<3kW); $1,500 per Heater (≥3kW) | I91: =PDI_Rate_GenHeaters -> 100 | J91: Replacing the existing thermosiphon, electric-resistance heater with a forced-circulation heater. New installation is eligible.
C92: Vehicle Engine Block Heater Controls | G92: =200*WithBonusMeasures -> 200 | I92: =PDI_Rate_EngHeaters -> 50 | J92: Replacing the single uncontrolled outlet with a hard-wired, thermostatically-controlled outlet. New installation is eligible.
D93: • Generator Block Heaters − $300 per heater less than 3 kW; $2,250 per heater 3 kW and greater
D94: Replacing the existing thermosiphon, electric-resistance heater with a forced-circulation heater. New installation is eligible.
D95: • Vehicle Engine Block Heater Controls − $300 per unit
D96: Replacing the single uncontrolled outlet with a hard-wired, thermostatically-controlled outlet. New installation is eligible.
C98: Industrial
C99: Name | G99: Rebate | I99: PDI | J99: Description
C100: High Frequency Battery Charger Upgrade | G100: =0.25*WithBonusMeasures -> 0.25 | I100: =PDI_Rate_Battery -> 0.025 | J100: Replacing the existing, transformer-based batter charger with a high frequency, inverter-based battery charger, which requires far less standby power and improves the AC to DC conversion efficiency. This rebate does not apply to small, household-type chargers for products such as cell phones, toothbrushes or power tools.
C101: Welder Upgrade | G101: =0.25*WithBonusMeasures -> 0.25 | I101: =PDI_Rate_Welder -> 0.025 | J101: Replacing the existing, transformer-based welder with an inverter-based welder, which requires far less standby power and the power used during the welding process.
C102: Water System Leak Abatement | G102: =0.25*WithBonusMeasures -> 0.25 | I102: =PDI_Rate_WaterLeak -> 0.025 | J102: Conducting audits, detecting and repairing non-surfacing leaks in accordance with the American Water Works Association's methodology.
D103: • High Frequency Battery Charger Upgrade − 38¢ per kWh savings
D104: Replacing the existing, transformer-based batter charger with a high frequency, inverter-based battery charger, which requires far less standby power and improves the AC to DC conversion efficiency. This rebate does not apply to small, household-type chargers for products such as cell phones, toothbrushes or power tools.
D107: • Welder Upgrade − 38¢ per kWh savings
D108: Replacing the existing, transformer-based welder with an inverter-based welder, which requires far less standby power and the power used during the welding process.
D110: • Water System Leak Abatement − 38¢ per kWh savings
D111: Conducting audits, detecting and repairing non-surfacing leaks in accordance with the American Water Works Association's methodology.

Sheet Tracking Sheet (hidden)
C2: 1 | D2: 2 | E2: 3 | F2: 4 | G2: 5 | H2: 6 | I2: 7 | J2: 8 | K2: 9 | L2: 10 | M2: 11 | N2: 12 | O2: 13 | P2: 14 | Q2: 15 | R2: 16 | S2: 17 | T2: 18 | U2: 19 | V2: 20 | W2: 21 | X2: 22 | Y2: 23 | Z2: 24 | AA2: 25 | AB2: 26 | AC2: 27 | AD2: 28 | AE2: 29 | AF2: 30 | AG2: 31 | AH2: 32 | AI2: 33 | AJ2: 34 | AK2: 35 | AL2: 36 | AM2: 37 | AN2: 38 | AO2: 39 | AP2: 40 | AQ2: 41 | AR2: 42
C3: =BannerText -> Energy Services ● eebiz@snopud.com ● www.snopud.com
M4: Energy Efficiency Project Tracking Sheet
C5: CUSTOMER INFO | X5: CONTRACTOR INFO
C7: Business Name (from W-9): | Q7: Mng'd Acct: | T7: Vendor # | X7: Business Name (from W-9): | AO7: Vendor #
C8: =App_CustName -> 0 | Q8: 2 | X8: =IF(App_Installer="Self-Install",App_Installer,TAcompany) -> 0 | AV8: 0
C9: Primary Contact: | L9: Phone: | Q9: Email: | X9: Primary Contact: | AG9: Phone: | AL9: Email:
C10: =App_CustPriName -> 0 | L10: =App_CustPriPhone -> 0 | Q10: =App_CustPriEmail -> 0 | X10: =TAcontact -> 0 | AG10: =TAphone -> 0 | AL10: =TAemail -> 0
C11: Secondary Contact | L11: Phone | Q11: Email | X11: Secondary Contact | AG11: Phone | AL11: Email
C13: Mailing Address: | O13: City: | S13: State: | U13: Zip: | X13: Mailing Address: | AJ13: City: | AN13: State: | AP13: Zip:
C14: =IF(App_SameAddressFlag,App_FacAdd,App_CustAdd) -> 0 | O14: =IF(App_SameAddressFlag,App_FacCity,App_CustCity) -> 0 | S14: =IF(App_SameAddressFlag,"WA",App_CustState) -> 0 | U14: =IF(App_SameAddressFlag,App_FacZip,App_CustZip) -> 0 | X14: =TAaddress -> 0 | AJ14: =TAcity -> 0 | AN14: =TAstate -> 0 | AP14: =TAzip -> 0
C16: =IF(PAFacilityName=0,"Facility Info",PAFacilityName) -> Facility Info
C18: Facility Address: | Q18: Commercia/Industrial: | W18: Premise Type: | AC18: Multi-Tenant: | AF18: Sq Footage: | AI18: Cooling: | AL18: Heating Type: | AO18: Total Facility kWh:
C19: =IF(App_FacAdd="","",App_FacAdd&" "&App_FacCity&", WA "&App_FacZip) ->  | Q19: =IF(App_PremCategory=1,"Commercial","Industrial") -> Commercial | W19: =App_PremType -> [Select Premise Type] | AC19: =App_MultiTen -> 0 | AF19: =App_SqFt -> 0 | AI19: =App_AC -> 0 | AL19: =App_HeatSource -> 0 | AO19: =SUM(S21:U24) -> 0
C20: Account # | G20: Meter # | K20: Premise | O20: Installation | S20: Annual kWh | V20: Peak KW | X20: Notes
C26: Project Info
C28: Program Name: | I28: Project Name: | R28: =40-LEN(I29)&" Characters Remaining" -> 40 Characters Remaining | S28: Assigned Staff: | X28: Assigned Date | AA28: Commit. Date | AD28: Exp. Pay Date | AG28: Active Promo Code | AM28: Promo Exp | AP28: SharePoint ID
C29: Rebates
C30: Authorization
C31: Authorization Approved By | F31: Authorization Date | I31: Authorization Expiration | L31: Project Expiration | O31: Project Cost | R31: Base Incentive | U31: Bonus Incentive | X31: Admin Incentive | AA31: Total Incentive | AD31: Cust. kWh/yr Savings | AG31: Incen. kWh/yr Savings | AJ31: Non-Incen. Savings | AM31: kW Reduction | AP31: Peak kW Reduction
O32: =PA_CostTotal -> 0 | R32: =PA_RebateTotal -> 0 | U32: =0 -> 0 | X32: =PDI -> 0 | AA32: =IFERROR(SUM(AuthBaseIncentive,AuthBonusIncentive,AuthAdminIncentive),0) -> 0 | AD32: =PA_SavingsTotal -> 0 | AG32: =PA_SavingsTotal -> 0 | AJ32: =IF(AuthCustSavings="",0,AuthCustSavings-AuthIncentedSavings) -> 0 | AM32: =PA_WinterPeak -> 0 | AP32: =PA_PUDWinterPeak -> 0
C33: Project Completion
C34: Inspection Date | F34: Payment App. Req. Date | I34: Payment Approved By | L34: Payment Approval Date | O34: Final Project Cost | R34: Base Incentive | U34: Bonus Incentive | X34: Admin Incentive | AA34: Total Incentive | AD34: Cust. kWh/yr Savings | AG34: Incen. kWh/yr Savings | AJ34: Non-Incen. Savings | AM34: kW Reduction | AP34: Peak kW Reduction
C35: =VerificationDate -> 00:00:00 | O35: =IF(VerificationDate="","",PA_CostTotal) ->  | R35: =IF(VerificationDate="","",PA_RebateBase) ->  | U35: =IF(VerificationDate="","",PA_RebateBonus) ->  | X35: =IF(VerificationDate="","",PDI) ->  | AA35: =IFERROR(SUM(FinalBaseIncentive,FinalBonusIncentive,FinalAdminIncentive),0) -> 0 | AD35: =IF(VerificationDate="","",PA_SavingsTotal) ->  | AG35: =IF(VerificationDate="","",PA_SavingsTotal) ->  | AJ35: =IF(FinalCustSavings="","",FinalCustSavings-FinalIncentedSavings) ->  | AM35: =IF(VerificationDate="","",PA_WinterPeak) ->  | AP35: =IF(VerificationDate="","",PA_PUDWinterPeak) -> 
C36: Notes | Q36: Additional Info->: | R36: Disable Bonus | U36: Project $/kWh | X36: Baseline Adjusted? | AA36: Baseline as % of total kWh | AD36: kWh/yr Reduction % | AG36: Cust. $/yr Savings | AJ36: Incentive As % of Cost | AM36: Cost Type | AP36: Cancel Date
R37: No | U37: =IF(SUM(FinalIncentedSavings)>0,FinalTotalIncentive/FinalIncentedSavings, IF(SUM(AuthIncentedSavings)>0,AuthTotalIncentive/AuthIncentedSavings, "")) ->  | X37: No | AG37: =IFERROR(IF(FinalCustSavings<>"",FinalCustSavings*0.09,AuthCustSavings*0.09),0) -> 0 | AJ37: =IFERROR(IncentiveAmount/TotalCost,"") -> 
AR38: =Version -> Version July 2024 - Effective Date July 1st, 2024

Sheet Participation Agreement (hidden)
C3: =BannerText -> Energy Services ● eebiz@snopud.com ● www.snopud.com
X5: PUD Staff
X6: =AssignedStaff -> 0
S7: Project Name
S8: =ProjectName -> 0
C9: Customer & Facility
C10: Customer's Business Name: | N10: Facility Name: | S10: Facility Address (Project Site Address):
C11: =CustW9Name -> 0 | N11: =App_FacName -> 0 | S11: =FacAddressFull -> 
D12: Energy Efficiency Project(s)1 | L12: Estimated Annual Energy Savings | O12: Project Cost | Q12: Energy Efficiency Incentive(s) | S12: Project Development Incentive2
D13: =IFERROR(INDEX(TableforPA,MATCH(1,RebatesSummary[Helper Column],0),2),"") ->  | L13: =IFERROR(INDEX(RebatesSummary[kWh Savings],MATCH($D13,RebatesSummary[Rebate Name],0)),"") ->  | O13: =IFERROR(INDEX(RebatesSummary[Project Cost],MATCH($D13,RebatesSummary[Rebate Name],0)),"") ->  | Q13: =IFERROR(INDEX(RebatesSummary[Base Rebate],MATCH($D13,RebatesSummary[Rebate Name],0)),"") ->  | S13: =IFERROR(INDEX(RebatesSummary[Base PDI],MATCH($D13,RebatesSummary[Rebate Name],0)),"") -> 
D14: =IFERROR(INDEX(TableforPA,MATCH(2,RebatesSummary[Helper Column],0),2),"") ->  | L14: =IFERROR(INDEX(RebatesSummary[kWh Savings],MATCH($D14,RebatesSummary[Rebate Name],0)),"") ->  | O14: =IFERROR(INDEX(RebatesSummary[Project Cost],MATCH($D14,RebatesSummary[Rebate Name],0)),"") ->  | Q14: =IFERROR(INDEX(RebatesSummary[Base Rebate],MATCH($D14,RebatesSummary[Rebate Name],0)),"") ->  | S14: =IFERROR(INDEX(RebatesSummary[Base PDI],MATCH($D14,RebatesSummary[Rebate Name],0)),"") -> 
D15: =IFERROR(INDEX(TableforPA,MATCH(3,RebatesSummary[Helper Column],0),2),"") ->  | L15: =IFERROR(INDEX(RebatesSummary[kWh Savings],MATCH($D15,RebatesSummary[Rebate Name],0)),"") ->  | O15: =IFERROR(INDEX(RebatesSummary[Project Cost],MATCH($D15,RebatesSummary[Rebate Name],0)),"") ->  | Q15: =IFERROR(INDEX(RebatesSummary[Base Rebate],MATCH($D15,RebatesSummary[Rebate Name],0)),"") ->  | S15: =IFERROR(INDEX(RebatesSummary[Base PDI],MATCH($D15,RebatesSummary[Rebate Name],0)),"") -> 
D16: =IFERROR(INDEX(TableforPA,MATCH(4,RebatesSummary[Helper Column],0),2),"") ->  | L16: =IFERROR(INDEX(RebatesSummary[kWh Savings],MATCH($D16,RebatesSummary[Rebate Name],0)),"") ->  | O16: =IFERROR(INDEX(RebatesSummary[Project Cost],MATCH($D16,RebatesSummary[Rebate Name],0)),"") ->  | Q16: =IFERROR(INDEX(RebatesSummary[Base Rebate],MATCH($D16,RebatesSummary[Rebate Name],0)),"") ->  | S16: =IFERROR(INDEX(RebatesSummary[Base PDI],MATCH($D16,RebatesSummary[Rebate Name],0)),"") -> 
D17: =IFERROR(INDEX(TableforPA,MATCH(5,RebatesSummary[Helper Column],0),2),"") ->  | L17: =IFERROR(INDEX(RebatesSummary[kWh Savings],MATCH($D17,RebatesSummary[Rebate Name],0)),"") ->  | O17: =IFERROR(INDEX(RebatesSummary[Project Cost],MATCH($D17,RebatesSummary[Rebate Name],0)),"") ->  | Q17: =IFERROR(INDEX(RebatesSummary[Base Rebate],MATCH($D17,RebatesSummary[Rebate Name],0)),"") ->  | S17: =IFERROR(INDEX(RebatesSummary[Base PDI],MATCH($D17,RebatesSummary[Rebate Name],0)),"") -> 
K18: Total: | L18: =SUM(AuthorizedMeasures) -> 0 | O18: =SUM(O13:P17) -> 0 | Q18: =SUM(Q13:R17) -> 0 | S18: =SUM(S13:T17) -> 0
P19: Additional incentive if project is completed by December 1, 2023: | Q19: =SUM(RebatesSummary[Bonus Rebate]) -> 0 | S19: =SUM(RebatesSummary[Bonus PDI]) -> 0 | V19: PUD Approval
D20: 1.) Please See attached worksheet(s) for details. | P20: =IF(O18=Q20,"Total (Capped at 100% of Project Cost): ","Total: ") -> Total (Capped at 100% of Project Cost): | Q20: =IF(PA_RebateBase=0,0,MIN(SUM(PA_RebateBase,Q19),PA_CostTotal)) -> 0 | S20: =IF(S18=0,0,SUM(S18,S19)) -> 0
D21: ="2.) The Project Development Incentive is paid to the company primarily responsible for filling out this workbook, assembling the required documents and submitting the complete application packet. The Project Development shall be paid to: " & IF(App_PDIRecipient<>"Customer",ContractorW9Name,CustW9Name) -> 2.) The Project Development Incentive is paid to the company primarily responsible for filling out this workbook, assembling the required documents and submitting the complete application packet. The Project Development shall be paid to: 0
C22: Project Verification
C23: Snohomish PUD will verify the scope of this project has been installed as Authorized. Additional measure and verification of the pre and post energy savings may be required for this project.
C26: Terms & Conditions
C44: Project Payment (Please select one option below.)
E46: Customer Receives Energy Efficiency Incentive Payment (Rebates) | AG46: Payment To Customer
E47: Customer Assigns Energy Efficiency Incentive Payment (Rebates) to: | P47: =IF(LEN(ContractorW9Name)>1,ContractorW9Name,"") ->  | AG47: 1
C53: By signing below, I certify that I have read, understand, and agree to the terms and conditions above.
F56: Authorized Signature | L56: Print Name | Q56: Date | T56: Title
AA58: ='Input Tables'!L19 -> Version July 2024 - Effective Date July 1st, 2024
D62: verificationType
D63: (Please select Verification Type)
D64: ="Snohomish PUD will verify the scope of this project has been installed as Authorized. On-site progress and/or post installation verification may be required." &IF(BonusActive," Final Invoices and all other post-installation documents must be submitted to the PUD by the deadline above in order to recieve the additional incentive(s).","") -> Snohomish PUD will verify the scope of this project has been installed as Authorized. On-site progress and/or post installation verification may be required.
D65: Snohomish PUD will verify the scope of this project has been installed as Authorized. Additional measure and verification of the pre and post energy savings may be required for this project.
AE74: Sign Back Exp: | AF74: =AuthExpDate -> 00:00:00
AE76: Proj Exp: | AF76: =ProjExpDate -> 00:00:00
AF78: Incentive Amount
AE79: col. 0 | AF79: col. 1 | AG79: col. 2 | AH79: col. 28 | AI79: col. 29 | AJ79: col. 30 | AK79: col. 31 | AL79: col. 32 | AM79: col. 33
AD80: Helper Column | AE80: Sheet Name | AF80: ID | AG80: Rebate Name | AH80: kWh Savings | AI80: Project Cost | AJ80: Rebate Amount | AK80: Peak kW | AL80: PUD Winter Peak kW | AM80: Base PDI | AN80: Bonus PDI | AO80: Base Rebate | AP80: Bonus Rebate
AD81: =SUM($AF$81:AF81) -> 0 | AE81: HP Retrofit | AF81: =IF(OR(INDIRECT("'"&RebatesSummary[[#This Row],[Sheet Name]]&"'!RebateAmount")="",INDIRECT("'"&RebatesSummary[[#This Row],[Sheet Name]]&"'!RebateAmount")="Cost?"),0,1) -> 0 | AG81: Heat Pump Retrofit | AH81: =IFERROR(SUM(INDIRECT("'"&RebatesSummary[[#This Row],[Sheet Name]]&"'!kWhSavings")),0) -> 0 | AI81: =SUM(INDIRECT("'"&RebatesSummary[[#This Row],[Sheet Name]]&"'!Cost")) -> 0 | AJ81: =IF(OR(INDIRECT("'"&RebatesSummary[[#This Row],[Sheet Name]]&"'!RebateAmount")="",INDIRECT("'"&RebatesSummary[[#This Row],[Sheet Name]]&"'!RebateAmount")="Cost?"),0, INDIRECT("'"&RebatesSummary[[#This Row],[Sheet Name]]&"'!RebateAmount")) -> 0 | AK81: =IFERROR(SUM(INDIRECT("'"&RebatesSummary[[#This Row],[Sheet Name]]&"'!kWSavings")),0) -> 0 | AL81: =IFERROR(SUM(INDIRECT("'"&RebatesSummary[[#This Row],[Sheet Name]]&"'!kWSavingsPeak")),0) -> 0 | AM81: =IF(INDIRECT("'"&RebatesSummary[[#This Row],[Sheet Name]]&"'!PDIamount")="",0,INDIRECT("'"&RebatesSummary[[#This Row],[Sheet Name]]&"'!PDIamount")/WithBonusPDI) -> 0 | AN81: =IFERROR(RebatesSummary[[#This Row],[Base PDI]]*IF(BonusActive,BonusAmountPDI,0),"") -> 0 | AO81: =IF(OR(INDIRECT("'"&RebatesSummary[[#This Row],[Sheet Name]]&"'!BaseRebate")=0,RebatesSummary[[#This Row],[Rebate Amount]]=0),0, MIN(INDIRECT("'"&RebatesSummary[[#This Row],[Sheet Name]]&"'!BaseRebate"),RebatesSummary[[#This Row],[Rebate Amount]])) -> 0 | AP81: =MAX(0,RebatesSummary[[#This Row],[Rebate Amount]]-RebatesSummary[[#This Row],[Base Rebate]]) -> 0
AD82: =SUM($AF$81:AF82) -> 0 | AE82: DHP Retrofit | AF82: =IF(OR(INDIRECT("'"&RebatesSummary[[#This Row],[Sheet Name]]&"'!RebateAmount")="",INDIRECT("'"&RebatesSummary[[#This Row],[Sheet Name]]&"'!RebateAmount")="Cost?"),0,1) -> 0 | AG82: Ductless Heat Pump Retrofit | AH82: =IFERROR(SUM(INDIRECT("'"&RebatesSummary[[#This Row],[Sheet Name]]&"'!kWhSavings")),0) -> 0 | AI82: =SUM(INDIRECT("'"&RebatesSummary[[#This Row],[Sheet Name]]&"'!Cost")) -> 0 | AJ82: =IF(OR(INDIRECT("'"&RebatesSummary[[#This Row],[Sheet Name]]&"'!RebateAmount")="",INDIRECT("'"&RebatesSummary[[#This Row],[Sheet Name]]&"'!RebateAmount")="Cost?"),0, INDIRECT("'"&RebatesSummary[[#This Row],[Sheet Name]]&"'!RebateAmount")) -> 0 | AK82: =IFERROR(SUM(INDIRECT("'"&RebatesSummary[[#This Row],[Sheet Name]]&"'!kWSavings")),0) -> 0 | AL82: =IFERROR(SUM(INDIRECT("'"&RebatesSummary[[#This Row],[Sheet Name]]&"'!kWSavingsPeak")),0) -> 0 | AM82: =IF(INDIRECT("'"&RebatesSummary[[#This Row],[Sheet Name]]&"'!PDIamount")="",0,INDIRECT("'"&RebatesSummary[[#This Row],[Sheet Name]]&"'!PDIamount")/WithBonusPDI) -> 0 | AN82: =IFERROR(RebatesSummary[[#This Row],[Base PDI]]*IF(BonusActive,BonusAmountPDI,0),"") -> 0 | AO82: =IF(OR(INDIRECT("'"&RebatesSummary[[#This Row],[Sheet Name]]&"'!BaseRebate")=0,RebatesSummary[[#This Row],[Rebate Amount]]=0),0, MIN(INDIRECT("'"&RebatesSummary[[#This Row],[Sheet Name]]&"'!BaseRebate"),RebatesSummary[[#This Row],[Rebate Amount]])) -> 0 | AP82: =MAX(0,RebatesSummary[[#This Row],[Rebate Amount]]-RebatesSummary[[#This Row],[Base Rebate]]) -> 0
AD83: =SUM($AF$81:AF83) -> 0 | AE83: PTHP | AF83: =IF(OR(INDIRECT("'"&RebatesSummary[[#This Row],[Sheet Name]]&"'!RebateAmount")="",INDIRECT("'"&RebatesSummary[[#This Row],[Sheet Name]]&"'!RebateAmount")="Cost?"),0,1) -> 0 | AG83: PTHP - Packaged Terminal Heat Pumps | AH83: =IFERROR(SUM(INDIRECT("'"&RebatesSummary[[#This Row],[Sheet Name]]&"'!kWhSavings")),0) -> 0 | AI83: =SUM(INDIRECT("'"&RebatesSummary[[#This Row],[Sheet Name]]&"'!Cost")) -> 0 | AJ83: =IF(OR(INDIRECT("'"&RebatesSummary[[#This Row],[Sheet Name]]&"'!RebateAmount")="",INDIRECT("'"&RebatesSummary[[#This Row],[Sheet Name]]&"'!RebateAmount")="Cost?"),0, INDIRECT("'"&RebatesSummary[[#This Row],[Sheet Name]]&"'!RebateAmount")) -> 0 | AK83: =IFERROR(SUM(INDIRECT("'"&RebatesSummary[[#This Row],[Sheet Name]]&"'!kWSavings")),0) -> 0 | AL83: =IFERROR(SUM(INDIRECT("'"&RebatesSummary[[#This Row],[Sheet Name]]&"'!kWSavingsPeak")),0) -> 0 | AM83: =IF(INDIRECT("'"&RebatesSummary[[#This Row],[Sheet Name]]&"'!PDIamount")="",0,INDIRECT("'"&RebatesSummary[[#This Row],[Sheet Name]]&"'!PDIamount")/WithBonusPDI) -> 0 | AN83: =IFERROR(RebatesSummary[[#This Row],[Base PDI]]*IF(BonusActive,BonusAmountPDI,0),"") -> 0 | AO83: =IF(OR(INDIRECT("'"&RebatesSummary[[#This Row],[Sheet Name]]&"'!BaseRebate")=0,RebatesSummary[[#This Row],[Rebate Amount]]=0),0, MIN(INDIRECT("'"&RebatesSummary[[#This Row],[Sheet Name]]&"'!BaseRebate"),RebatesSummary[[#This Row],[Rebate Amount]])) -> 0 | AP83: =MAX(0,RebatesSummary[[#This Row],[Rebate Amount]]-RebatesSummary[[#This Row],[Base Rebate]]) -> 0
AD84: =SUM($AF$81:AF84) -> 0 | AE84: VRF Retrofit | AF84: =IF(OR(INDIRECT("'"&RebatesSummary[[#This Row],[Sheet Name]]&"'!RebateAmount")="",INDIRECT("'"&RebatesSummary[[#This Row],[Sheet Name]]&"'!RebateAmount")="Cost?"),0,1) -> 0 | AG84: VRF System Retrofit | AH84: =IFERROR(SUM(INDIRECT("'"&RebatesSummary[[#This Row],[Sheet Name]]&"'!kWhSavings")),0) -> 0 | AI84: =SUM(INDIRECT("'"&RebatesSummary[[#This Row],[Sheet Name]]&"'!Cost")) -> 0 | AJ84: =IF(OR(INDIRECT("'"&RebatesSummary[[#This Row],[Sheet Name]]&"'!RebateAmount")="",INDIRECT("'"&RebatesSummary[[#This Row],[Sheet Name]]&"'!RebateAmount")="Cost?"),0, INDIRECT("'"&RebatesSummary[[#This Row],[Sheet Name]]&"'!RebateAmount")) -> 0 | AK84: =IFERROR(SUM(INDIRECT("'"&RebatesSummary[[#This Row],[Sheet Name]]&"'!kWSavings")),0) -> 0 | AL84: =IFERROR(SUM(INDIRECT("'"&RebatesSummary[[#This Row],[Sheet Name]]&"'!kWSavingsPeak")),0) -> 0 | AM84: =IF(INDIRECT("'"&RebatesSummary[[#This Row],[Sheet Name]]&"'!PDIamount")="",0,INDIRECT("'"&RebatesSummary[[#This Row],[Sheet Name]]&"'!PDIamount")/WithBonusPDI) -> 0 | AN84: =IFERROR(RebatesSummary[[#This Row],[Base PDI]]*IF(BonusActive,BonusAmountPDI,0),"") -> 0 | AO84: =IF(OR(INDIRECT("'"&RebatesSummary[[#This Row],[Sheet Name]]&"'!BaseRebate")=0,RebatesSummary[[#This Row],[Rebate Amount]]=0),0, MIN(INDIRECT("'"&RebatesSummary[[#This Row],[Sheet Name]]&"'!BaseRebate"),RebatesSummary[[#This Row],[Rebate Amount]])) -> 0 | AP84: =MAX(0,RebatesSummary[[#This Row],[Rebate Amount]]-RebatesSummary[[#This Row],[Base Rebate]]) -> 0
AD85: =SUM($AF$81:AF85) -> 0 | AE85: Connected Thermostats | AF85: =IF(OR(INDIRECT("'"&RebatesSummary[[#This Row],[Sheet Name]]&"'!RebateAmount")="",INDIRECT("'"&RebatesSummary[[#This Row],[Sheet Name]]&"'!RebateAmount")="Cost?"),0,1) -> 0 | AG85: Connected Thermostats | AH85: =IFERROR(SUM(INDIRECT("'"&RebatesSummary[[#This Row],[Sheet Name]]&"'!kWhSavings")),0) -> 0 | AI85: =SUM(INDIRECT("'"&RebatesSummary[[#This Row],[Sheet Name]]&"'!Cost")) -> 0 | AJ85: =IF(OR(INDIRECT("'"&RebatesSummary[[#This Row],[Sheet Name]]&"'!RebateAmount")="",INDIRECT("'"&RebatesSummary[[#This Row],[Sheet Name]]&"'!RebateAmount")="Cost?"),0, INDIRECT("'"&RebatesSummary[[#This Row],[Sheet Name]]&"'!RebateAmount")) -> 0 | AK85: =IFERROR(SUM(INDIRECT("'"&RebatesSummary[[#This Row],[Sheet Name]]&"'!kWSavings")),0) -> 0 | AL85: =IFERROR(SUM(INDIRECT("'"&RebatesSummary[[#This Row],[Sheet Name]]&"'!kWSavingsPeak")),0) -> 0 | AM85: =IF(INDIRECT("'"&RebatesSummary[[#This Row],[Sheet Name]]&"'!PDIamount")="",0,INDIRECT("'"&RebatesSummary[[#This Row],[Sheet Name]]&"'!PDIamount")/WithBonusPDI) -> 0 | AN85: =IFERROR(RebatesSummary[[#This Row],[Base PDI]]*IF(BonusActive,BonusAmountPDI,0),"") -> 0 | AO85: =IF(OR(INDIRECT("'"&RebatesSummary[[#This Row],[Sheet Name]]&"'!BaseRebate")=0,RebatesSummary[[#This Row],[Rebate Amount]]=0),0, MIN(INDIRECT("'"&RebatesSummary[[#This Row],[Sheet Name]]&"'!BaseRebate"),RebatesSummary[[#This Row],[Rebate Amount]])) -> 0 | AP85: =MAX(0,RebatesSummary[[#This Row],[Rebate Amount]]-RebatesSummary[[#This Row],[Base Rebate]]) -> 0
AD86: =SUM($AF$81:AF86) -> 0 | AE86: AHU VFD | AF86: =IF(OR(INDIRECT("'"&RebatesSummary[[#This Row],[Sheet Name]]&"'!RebateAmount")="",INDIRECT("'"&RebatesSummary[[#This Row],[Sheet Name]]&"'!RebateAmount")="Cost?"),0,1) -> 0 | AG86: Variable Frequency Drive - AHU | AH86: =IFERROR(SUM(INDIRECT("'"&RebatesSummary[[#This Row],[Sheet Name]]&"'!kWhSavings")),0) -> 0 | AI86: =SUM(INDIRECT("'"&RebatesSummary[[#This Row],[Sheet Name]]&"'!Cost")) -> 0 | AJ86: =IF(OR(INDIRECT("'"&RebatesSummary[[#This Row],[Sheet Name]]&"'!RebateAmount")="",INDIRECT("'"&RebatesSummary[[#This Row],[Sheet Name]]&"'!RebateAmount")="Cost?"),0, INDIRECT("'"&RebatesSummary[[#This Row],[Sheet Name]]&"'!RebateAmount")) -> 0 | AK86: =IFERROR(SUM(INDIRECT("'"&RebatesSummary[[#This Row],[Sheet Name]]&"'!kWSavings")),0) -> 0 | AL86: =IFERROR(SUM(INDIRECT("'"&RebatesSummary[[#This Row],[Sheet Name]]&"'!kWSavingsPeak")),0) -> 0 | AM86: =IF(INDIRECT("'"&RebatesSummary[[#This Row],[Sheet Name]]&"'!PDIamount")="",0,INDIRECT("'"&RebatesSummary[[#This Row],[Sheet Name]]&"'!PDIamount")/WithBonusPDI) -> 0 | AN86: =IFERROR(RebatesSummary[[#This Row],[Base PDI]]*IF(BonusActive,BonusAmountPDI,0),"") -> 0 | AO86: =IF(OR(INDIRECT("'"&RebatesSummary[[#This Row],[Sheet Name]]&"'!BaseRebate")=0,RebatesSummary[[#This Row],[Rebate Amount]]=0),0, MIN(INDIRECT("'"&RebatesSummary[[#This Row],[Sheet Name]]&"'!BaseRebate"),RebatesSummary[[#This Row],[Rebate Amount]])) -> 0 | AP86: =MAX(0,RebatesSummary[[#This Row],[Rebate Amount]]-RebatesSummary[[#This Row],[Base Rebate]]) -> 0
AD87: =SUM($AF$81:AF87) -> 0 | AE87: Pump VFD | AF87: =IF(OR(INDIRECT("'"&RebatesSummary[[#This Row],[Sheet Name]]&"'!RebateAmount")="",INDIRECT("'"&RebatesSummary[[#This Row],[Sheet Name]]&"'!RebateAmount")="Cost?"),0,1) -> 0 | AG87: Variable Frequency Drive - Pumps | AH87: =IFERROR(SUM(INDIRECT("'"&RebatesSummary[[#This Row],[Sheet Name]]&"'!kWhSavings")),0) -> 0 | AI87: =SUM(INDIRECT("'"&RebatesSummary[[#This Row],[Sheet Name]]&"'!Cost")) -> 0 | AJ87: =IF(OR(INDIRECT("'"&RebatesSummary[[#This Row],[Sheet Name]]&"'!RebateAmount")="",INDIRECT("'"&RebatesSummary[[#This Row],[Sheet Name]]&"'!RebateAmount")="Cost?"),0, INDIRECT("'"&RebatesSummary[[#This Row],[Sheet Name]]&"'!RebateAmount")) -> 0 | AK87: =IFERROR(SUM(INDIRECT("'"&RebatesSummary[[#This Row],[Sheet Name]]&"'!kWSavings")),0) -> 0 | AL87: =IFERROR(SUM(INDIRECT("'"&RebatesSummary[[#This Row],[Sheet Name]]&"'!kWSavingsPeak")),0) -> 0 | AM87: =IF(INDIRECT("'"&RebatesSummary[[#This Row],[Sheet Name]]&"'!PDIamount")="",0,INDIRECT("'"&RebatesSummary[[#This Row],[Sheet Name]]&"'!PDIamount")/WithBonusPDI) -> 0 | AN87: =IFERROR(RebatesSummary[[#This Row],[Base PDI]]*IF(BonusActive,BonusAmountPDI,0),"") -> 0 | AO87: =IF(OR(INDIRECT("'"&RebatesSummary[[#This Row],[Sheet Name]]&"'!BaseRebate")=0,RebatesSummary[[#This Row],[Rebate Amount]]=0),0, MIN(INDIRECT("'"&RebatesSummary[[#This Row],[Sheet Name]]&"'!BaseRebate"),RebatesSummary[[#This Row],[Rebate Amount]])) -> 0 | AP87: =MAX(0,RebatesSummary[[#This Row],[Rebate Amount]]-RebatesSummary[[#This Row],[Base Rebate]]) -> 0
AD88: =SUM($AF$81:AF88) -> 0 | AE88: ARC | AF88: =IF(OR(INDIRECT("'"&RebatesSummary[[#This Row],[Sheet Name]]&"'!RebateAmount")="",INDIRECT("'"&RebatesSummary[[#This Row],[Sheet Name]]&"'!RebateAmount")="Cost?"),0,1) -> 0 | AG88: Advanced Rooftop Controls | AH88: =IFERROR(SUM(INDIRECT("'"&RebatesSummary[[#This Row],[Sheet Name]]&"'!kWhSavings")),0) -> 0 | AI88: =SUM(INDIRECT("'"&RebatesSummary[[#This Row],[Sheet Name]]&"'!Cost")) -> 0 | AJ88: =IF(OR(INDIRECT("'"&RebatesSummary[[#This Row],[Sheet Name]]&"'!RebateAmount")="",INDIRECT("'"&RebatesSummary[[#This Row],[Sheet Name]]&"'!RebateAmount")="Cost?"),0, INDIRECT("'"&RebatesSummary[[#This Row],[Sheet Name]]&"'!RebateAmount")) -> 0 | AK88: =IFERROR(SUM(INDIRECT("'"&RebatesSummary[[#This Row],[Sheet Name]]&"'!kWSavings")),0) -> 0 | AL88: =IFERROR(SUM(INDIRECT("'"&RebatesSummary[[#This Row],[Sheet Name]]&"'!kWSavingsPeak")),0) -> 0 | AM88: =IF(INDIRECT("'"&RebatesSummary[[#This Row],[Sheet Name]]&"'!PDIamount")="",0,INDIRECT("'"&RebatesSummary[[#This Row],[Sheet Name]]&"'!PDIamount")/WithBonusPDI) -> 0 | AN88: =IFERROR(RebatesSummary[[#This Row],[Base PDI]]*IF(BonusActive,BonusAmountPDI,0),"") -> 0 | AO88: =IF(OR(INDIRECT("'"&RebatesSummary[[#This Row],[Sheet Name]]&"'!BaseRebate")=0,RebatesSummary[[#This Row],[Rebate Amount]]=0),0, MIN(INDIRECT("'"&RebatesSummary[[#This Row],[Sheet Name]]&"'!BaseRebate"),RebatesSummary[[#This Row],[Rebate Amount]])) -> 0 | AP88: =MAX(0,RebatesSummary[[#This Row],[Rebate Amount]]-RebatesSummary[[#This Row],[Base Rebate]]) -> 0
AD89: =SUM($AF$81:AF89) -> 0 | AE89: Compressed Air | AF89: =IF(OR(INDIRECT("'"&RebatesSummary[[#This Row],[Sheet Name]]&"'!RebateAmount")="",INDIRECT("'"&RebatesSummary[[#This Row],[Sheet Name]]&"'!RebateAmount")="Cost?"),0,1) -> 0 | AG89: Compressed Air Equipment | AH89: =IFERROR(SUM(INDIRECT("'"&RebatesSummary[[#This Row],[Sheet Name]]&"'!kWhSavings")),0) -> 0 | AI89: =SUM(INDIRECT("'"&RebatesSummary[[#This Row],[Sheet Name]]&"'!Cost")) -> 0 | AJ89: =IF(OR(INDIRECT("'"&RebatesSummary[[#This Row],[Sheet Name]]&"'!RebateAmount")="",INDIRECT("'"&RebatesSummary[[#This Row],[Sheet Name]]&"'!RebateAmount")="Cost?"),0, INDIRECT("'"&RebatesSummary[[#This Row],[Sheet Name]]&"'!RebateAmount")) -> 0 | AK89: =IFERROR(SUM(INDIRECT("'"&RebatesSummary[[#This Row],[Sheet Name]]&"'!kWSavings")),0) -> 0 | AL89: =IFERROR(SUM(INDIRECT("'"&RebatesSummary[[#This Row],[Sheet Name]]&"'!kWSavingsPeak")),0) -> 0 | AM89: =IF(INDIRECT("'"&RebatesSummary[[#This Row],[Sheet Name]]&"'!PDIamount")="",0,INDIRECT("'"&RebatesSummary[[#This Row],[Sheet Name]]&"'!PDIamount")/WithBonusPDI) -> 0 | AN89: =IFERROR(RebatesSummary[[#This Row],[Base PDI]]*IF(BonusActive,BonusAmountPDI,0),"") -> 0 | AO89: =IF(OR(INDIRECT("'"&RebatesSummary[[#This Row],[Sheet Name]]&"'!BaseRebate")=0,RebatesSummary[[#This Row],[Rebate Amount]]=0),0, MIN(INDIRECT("'"&RebatesSummary[[#This Row],[Sheet Name]]&"'!BaseRebate"),RebatesSummary[[#This Row],[Rebate Amount]])) -> 0 | AP89: =MAX(0,RebatesSummary[[#This Row],[Rebate Amount]]-RebatesSummary[[#This Row],[Base Rebate]]) -> 0
AD90: =SUM($AF$81:AF90) -> 0 | AE90: Windows | AF90: =IF(OR(INDIRECT("'"&RebatesSummary[[#This Row],[Sheet Name]]&"'!RebateAmount")="",INDIRECT("'"&RebatesSummary[[#This Row],[Sheet Name]]&"'!RebateAmount")="Cost?"),0,1) -> 0 | AG90: Windows for C&I Facilities | AH90: =IFERROR(SUM(INDIRECT("'"&RebatesSummary[[#This Row],[Sheet Name]]&"'!kWhSavings")),0) -> 0 | AI90: =SUM(INDIRECT("'"&RebatesSummary[[#This Row],[Sheet Name]]&"'!Cost")) -> 0 | AJ90: =IF(OR(INDIRECT("'"&RebatesSummary[[#This Row],[Sheet Name]]&"'!RebateAmount")="",INDIRECT("'"&RebatesSummary[[#This Row],[Sheet Name]]&"'!RebateAmount")="Cost?"),0, INDIRECT("'"&RebatesSummary[[#This Row],[Sheet Name]]&"'!RebateAmount")) -> 0 | AK90: =IFERROR(SUM(INDIRECT("'"&RebatesSummary[[#This Row],[Sheet Name]]&"'!kWSavings")),0) -> 0 | AL90: =IFERROR(SUM(INDIRECT("'"&RebatesSummary[[#This Row],[Sheet Name]]&"'!kWSavingsPeak")),0) -> 0 | AM90: =IF(INDIRECT("'"&RebatesSummary[[#This Row],[Sheet Name]]&"'!PDIamount")="",0,INDIRECT("'"&RebatesSummary[[#This Row],[Sheet Name]]&"'!PDIamount")/WithBonusPDI) -> 0 | AN90: =IFERROR(RebatesSummary[[#This Row],[Base PDI]]*IF(BonusActive,BonusAmountPDI,0),"") -> 0 | AO90: =IF(OR(INDIRECT("'"&RebatesSummary[[#This Row],[Sheet Name]]&"'!BaseRebate")=0,RebatesSummary[[#This Row],[Rebate Amount]]=0),0, MIN(INDIRECT("'"&RebatesSummary[[#This Row],[Sheet Name]]&"'!BaseRebate"),RebatesSummary[[#This Row],[Rebate Amount]])) -> 0 | AP90: =MAX(0,RebatesSummary[[#This Row],[Rebate Amount]]-RebatesSummary[[#This Row],[Base Rebate]]) -> 0
AD91: =SUM($AF$81:AF91) -> 0 | AE91: Secondary Windows | AF91: =IF(OR(INDIRECT("'"&RebatesSummary[[#This Row],[Sheet Name]]&"'!RebateAmount")="",INDIRECT("'"&RebatesSummary[[#This Row],[Sheet Name]]&"'!RebateAmount")="Cost?"),0,1) -> 0 | AG91: ='Rebates Overview'!C42 -> Secondary Windows | AH91: =IFERROR(SUM(INDIRECT("'"&RebatesSummary[[#This Row],[Sheet Name]]&"'!kWhSavings")),0) -> 0 | AI91: =SUM(INDIRECT("'"&RebatesSummary[[#This Row],[Sheet Name]]&"'!Cost")) -> 0 | AJ91: =IF(OR(INDIRECT("'"&RebatesSummary[[#This Row],[Sheet Name]]&"'!RebateAmount")="",INDIRECT("'"&RebatesSummary[[#This Row],[Sheet Name]]&"'!RebateAmount")="Cost?"),0, INDIRECT("'"&RebatesSummary[[#This Row],[Sheet Name]]&"'!RebateAmount")) -> 0 | AK91: =IFERROR(SUM(INDIRECT("'"&RebatesSummary[[#This Row],[Sheet Name]]&"'!kWSavings")),0) -> 0 | AL91: =IFERROR(SUM(INDIRECT("'"&RebatesSummary[[#This Row],[Sheet Name]]&"'!kWSavingsPeak")),0) -> 0 | AM91: =IF(INDIRECT("'"&RebatesSummary[[#This Row],[Sheet Name]]&"'!PDIamount")="",0,INDIRECT("'"&RebatesSummary[[#This Row],[Sheet Name]]&"'!PDIamount")/WithBonusPDI) -> 0 | AN91: =IFERROR(RebatesSummary[[#This Row],[Base PDI]]*IF(BonusActive,BonusAmountPDI,0),"") -> 0 | AO91: =IF(OR(INDIRECT("'"&RebatesSummary[[#This Row],[Sheet Name]]&"'!BaseRebate")=0,RebatesSummary[[#This Row],[Rebate Amount]]=0),0, MIN(INDIRECT("'"&RebatesSummary[[#This Row],[Sheet Name]]&"'!BaseRebate"),RebatesSummary[[#This Row],[Rebate Amount]])) -> 0 | AP91: =MAX(0,RebatesSummary[[#This Row],[Rebate Amount]]-RebatesSummary[[#This Row],[Base Rebate]]) -> 0
AD92: =SUM($AF$81:AF92) -> 0 | AE92: Windows L Rise MF | AF92: =IF(OR(INDIRECT("'"&RebatesSummary[[#This Row],[Sheet Name]]&"'!RebateAmount")="",INDIRECT("'"&RebatesSummary[[#This Row],[Sheet Name]]&"'!RebateAmount")="Cost?"),0,1) -> 0 | AG92: Windows for Low-Rise Multifamily | AH92: =IFERROR(SUM(INDIRECT("'"&RebatesSummary[[#This Row],[Sheet Name]]&"'!kWhSavings")),0) -> 0 | AI92: =SUM(INDIRECT("'"&RebatesSummary[[#This Row],[Sheet Name]]&"'!Cost")) -> 0 | AJ92: =IF(OR(INDIRECT("'"&RebatesSummary[[#This Row],[Sheet Name]]&"'!RebateAmount")="",INDIRECT("'"&RebatesSummary[[#This Row],[Sheet Name]]&"'!RebateAmount")="Cost?"),0, INDIRECT("'"&RebatesSummary[[#This Row],[Sheet Name]]&"'!RebateAmount")) -> 0 | AK92: =IFERROR(SUM(INDIRECT("'"&RebatesSummary[[#This Row],[Sheet Name]]&"'!kWSavings")),0) -> 0 | AL92: =IFERROR(SUM(INDIRECT("'"&RebatesSummary[[#This Row],[Sheet Name]]&"'!kWSavingsPeak")),0) -> 0 | AM92: =IF(INDIRECT("'"&RebatesSummary[[#This Row],[Sheet Name]]&"'!PDIamount")="",0,INDIRECT("'"&RebatesSummary[[#This Row],[Sheet Name]]&"'!PDIamount")/WithBonusPDI) -> 0 | AN92: =IFERROR(RebatesSummary[[#This Row],[Base PDI]]*IF(BonusActive,BonusAmountPDI,0),"") -> 0 | AO92: =IF(OR(INDIRECT("'"&RebatesSummary[[#This Row],[Sheet Name]]&"'!BaseRebate")=0,RebatesSummary[[#This Row],[Rebate Amount]]=0),0, MIN(INDIRECT("'"&RebatesSummary[[#This Row],[Sheet Name]]&"'!BaseRebate"),RebatesSummary[[#This Row],[Rebate Amount]])) -> 0 | AP92: =MAX(0,RebatesSummary[[#This Row],[Rebate Amount]]-RebatesSummary[[#This Row],[Base Rebate]]) -> 0
AD93: =SUM($AF$81:AF93) -> 0 | AE93: Windows M&H Rise MF | AF93: =IF(OR(INDIRECT("'"&RebatesSummary[[#This Row],[Sheet Name]]&"'!RebateAmount")="",INDIRECT("'"&RebatesSummary[[#This Row],[Sheet Name]]&"'!RebateAmount")="Cost?"),0,1) -> 0 | AG93: Windows for Mid and High-Rise Multifamily | AH93: =IFERROR(SUM(INDIRECT("'"&RebatesSummary[[#This Row],[Sheet Name]]&"'!kWhSavings")),0) -> 0 | AI93: =SUM(INDIRECT("'"&RebatesSummary[[#This Row],[Sheet Name]]&"'!Cost")) -> 0 | AJ93: =IF(OR(INDIRECT("'"&RebatesSummary[[#This Row],[Sheet Name]]&"'!RebateAmount")="",INDIRECT("'"&RebatesSummary[[#This Row],[Sheet Name]]&"'!RebateAmount")="Cost?"),0, INDIRECT("'"&RebatesSummary[[#This Row],[Sheet Name]]&"'!RebateAmount")) -> 0 | AK93: =IFERROR(SUM(INDIRECT("'"&RebatesSummary[[#This Row],[Sheet Name]]&"'!kWSavings")),0) -> 0 | AL93: =IFERROR(SUM(INDIRECT("'"&RebatesSummary[[#This Row],[Sheet Name]]&"'!kWSavingsPeak")),0) -> 0 | AM93: =IF(INDIRECT("'"&RebatesSummary[[#This Row],[Sheet Name]]&"'!PDIamount")="",0,INDIRECT("'"&RebatesSummary[[#This Row],[Sheet Name]]&"'!PDIamount")/WithBonusPDI) -> 0 | AN93: =IFERROR(RebatesSummary[[#This Row],[Base PDI]]*IF(BonusActive,BonusAmountPDI,0),"") -> 0 | AO93: =IF(OR(INDIRECT("'"&RebatesSummary[[#This Row],[Sheet Name]]&"'!BaseRebate")=0,RebatesSummary[[#This Row],[Rebate Amount]]=0),0, MIN(INDIRECT("'"&RebatesSummary[[#This Row],[Sheet Name]]&"'!BaseRebate"),RebatesSummary[[#This Row],[Rebate Amount]])) -> 0 | AP93: =MAX(0,RebatesSummary[[#This Row],[Rebate Amount]]-RebatesSummary[[#This Row],[Base Rebate]]) -> 0
AD94: =SUM($AF$81:AF94) -> 0 | AE94: Insulation | AF94: =IF(OR(INDIRECT("'"&RebatesSummary[[#This Row],[Sheet Name]]&"'!RebateAmount")="",INDIRECT("'"&RebatesSummary[[#This Row],[Sheet Name]]&"'!RebateAmount")="Cost?"),0,1) -> 0 | AG94: Insulation for C&I Facilities | AH94: =IFERROR(SUM(INDIRECT("'"&RebatesSummary[[#This Row],[Sheet Name]]&"'!kWhSavings")),0) -> 0 | AI94: =SUM(INDIRECT("'"&RebatesSummary[[#This Row],[Sheet Name]]&"'!Cost")) -> 0 | AJ94: =IF(OR(INDIRECT("'"&RebatesSummary[[#This Row],[Sheet Name]]&"'!RebateAmount")="",INDIRECT("'"&RebatesSummary[[#This Row],[Sheet Name]]&"'!RebateAmount")="Cost?"),0, INDIRECT("'"&RebatesSummary[[#This Row],[Sheet Name]]&"'!RebateAmount")) -> 0 | AK94: =IFERROR(SUM(INDIRECT("'"&RebatesSummary[[#This Row],[Sheet Name]]&"'!kWSavings")),0) -> 0 | AL94: =IFERROR(SUM(INDIRECT("'"&RebatesSummary[[#This Row],[Sheet Name]]&"'!kWSavingsPeak")),0) -> 0 | AM94: =IF(INDIRECT("'"&RebatesSummary[[#This Row],[Sheet Name]]&"'!PDIamount")="",0,INDIRECT("'"&RebatesSummary[[#This Row],[Sheet Name]]&"'!PDIamount")/WithBonusPDI) -> 0 | AN94: =IFERROR(RebatesSummary[[#This Row],[Base PDI]]*IF(BonusActive,BonusAmountPDI,0),"") -> 0 | AO94: =IF(OR(INDIRECT("'"&RebatesSummary[[#This Row],[Sheet Name]]&"'!BaseRebate")=0,RebatesSummary[[#This Row],[Rebate Amount]]=0),0, MIN(INDIRECT("'"&RebatesSummary[[#This Row],[Sheet Name]]&"'!BaseRebate"),RebatesSummary[[#This Row],[Rebate Amount]])) -> 0 | AP94: =MAX(0,RebatesSummary[[#This Row],[Rebate Amount]]-RebatesSummary[[#This Row],[Base Rebate]]) -> 0
AD95: =SUM($AF$81:AF95) -> 0 | AE95: Insulation L Rise MF | AF95: =IF(OR(INDIRECT("'"&RebatesSummary[[#This Row],[Sheet Name]]&"'!RebateAmount")="",INDIRECT("'"&RebatesSummary[[#This Row],[Sheet Name]]&"'!RebateAmount")="Cost?"),0,1) -> 0 | AG95: Insulation for Low-Rise Multifamily | AH95: =IFERROR(SUM(INDIRECT("'"&RebatesSummary[[#This Row],[Sheet Name]]&"'!kWhSavings")),0) -> 0 | AI95: =SUM(INDIRECT("'"&RebatesSummary[[#This Row],[Sheet Name]]&"'!Cost")) -> 0 | AJ95: =IF(OR(INDIRECT("'"&RebatesSummary[[#This Row],[Sheet Name]]&"'!RebateAmount")="",INDIRECT("'"&RebatesSummary[[#This Row],[Sheet Name]]&"'!RebateAmount")="Cost?"),0, INDIRECT("'"&RebatesSummary[[#This Row],[Sheet Name]]&"'!RebateAmount")) -> 0 | AK95: =IFERROR(SUM(INDIRECT("'"&RebatesSummary[[#This Row],[Sheet Name]]&"'!kWSavings")),0) -> 0 | AL95: =IFERROR(SUM(INDIRECT("'"&RebatesSummary[[#This Row],[Sheet Name]]&"'!kWSavingsPeak")),0) -> 0 | AM95: =IF(INDIRECT("'"&RebatesSummary[[#This Row],[Sheet Name]]&"'!PDIamount")="",0,INDIRECT("'"&RebatesSummary[[#This Row],[Sheet Name]]&"'!PDIamount")/WithBonusPDI) -> 0 | AN95: =IFERROR(RebatesSummary[[#This Row],[Base PDI]]*IF(BonusActive,BonusAmountPDI,0),"") -> 0 | AO95: =IF(OR(INDIRECT("'"&RebatesSummary[[#This Row],[Sheet Name]]&"'!BaseRebate")=0,RebatesSummary[[#This Row],[Rebate Amount]]=0),0, MIN(INDIRECT("'"&RebatesSummary[[#This Row],[Sheet Name]]&"'!BaseRebate"),RebatesSummary[[#This Row],[Rebate Amount]])) -> 0 | AP95: =MAX(0,RebatesSummary[[#This Row],[Rebate Amount]]-RebatesSummary[[#This Row],[Base Rebate]]) -> 0
AD96: =SUM($AF$81:AF96) -> 0 | AE96: Insulation M&H Rise MF | AF96: =IF(OR(INDIRECT("'"&RebatesSummary[[#This Row],[Sheet Name]]&"'!RebateAmount")="",INDIRECT("'"&RebatesSummary[[#This Row],[Sheet Name]]&"'!RebateAmount")="Cost?"),0,1) -> 0 | AG96: Insulation for Mid and High-Rise Multifamily | AH96: =IFERROR(SUM(INDIRECT("'"&RebatesSummary[[#This Row],[Sheet Name]]&"'!kWhSavings")),0) -> 0 | AI96: =SUM(INDIRECT("'"&RebatesSummary[[#This Row],[Sheet Name]]&"'!Cost")) -> 0 | AJ96: =IF(OR(INDIRECT("'"&RebatesSummary[[#This Row],[Sheet Name]]&"'!RebateAmount")="",INDIRECT("'"&RebatesSummary[[#This Row],[Sheet Name]]&"'!RebateAmount")="Cost?"),0, INDIRECT("'"&RebatesSummary[[#This Row],[Sheet Name]]&"'!RebateAmount")) -> 0 | AK96: =IFERROR(SUM(INDIRECT("'"&RebatesSummary[[#This Row],[Sheet Name]]&"'!kWSavings")),0) -> 0 | AL96: =IFERROR(SUM(INDIRECT("'"&RebatesSummary[[#This Row],[Sheet Name]]&"'!kWSavingsPeak")),0) -> 0 | AM96: =IF(INDIRECT("'"&RebatesSummary[[#This Row],[Sheet Name]]&"'!PDIamount")="",0,INDIRECT("'"&RebatesSummary[[#This Row],[Sheet Name]]&"'!PDIamount")/WithBonusPDI) -> 0 | AN96: =IFERROR(RebatesSummary[[#This Row],[Base PDI]]*IF(BonusActive,BonusAmountPDI,0),"") -> 0 | AO96: =IF(OR(INDIRECT("'"&RebatesSummary[[#This Row],[Sheet Name]]&"'!BaseRebate")=0,RebatesSummary[[#This Row],[Rebate Amount]]=0),0, MIN(INDIRECT("'"&RebatesSummary[[#This Row],[Sheet Name]]&"'!BaseRebate"),RebatesSummary[[#This Row],[Rebate Amount]])) -> 0 | AP96: =MAX(0,RebatesSummary[[#This Row],[Rebate Amount]]-RebatesSummary[[#This Row],[Base Rebate]]) -> 0
AD97: =SUM($AF$81:AF97) -> 0 | AE97: ECM | AF97: =IF(OR(INDIRECT("'"&RebatesSummary[[#This Row],[Sheet Name]]&"'!RebateAmount")="",INDIRECT("'"&RebatesSummary[[#This Row],[Sheet Name]]&"'!RebateAmount")="Cost?"),0,1) -> 0 | AG97: Electronically Commutated Motors (ECM) | AH97: =IFERROR(SUM(INDIRECT("'"&RebatesSummary[[#This Row],[Sheet Name]]&"'!kWhSavings")),0) -> 0 | AI97: =SUM(INDIRECT("'"&RebatesSummary[[#This Row],[Sheet Name]]&"'!Cost")) -> 0 | AJ97: =IF(OR(INDIRECT("'"&RebatesSummary[[#This Row],[Sheet Name]]&"'!RebateAmount")="",INDIRECT("'"&RebatesSummary[[#This Row],[Sheet Name]]&"'!RebateAmount")="Cost?"),0, INDIRECT("'"&RebatesSummary[[#This Row],[Sheet Name]]&"'!RebateAmount")) -> 0 | AK97: =IFERROR(SUM(INDIRECT("'"&RebatesSummary[[#This Row],[Sheet Name]]&"'!kWSavings")),0) -> 0 | AL97: =IFERROR(SUM(INDIRECT("'"&RebatesSummary[[#This Row],[Sheet Name]]&"'!kWSavingsPeak")),0) -> 0 | AM97: =IF(INDIRECT("'"&RebatesSummary[[#This Row],[Sheet Name]]&"'!PDIamount")="",0,INDIRECT("'"&RebatesSummary[[#This Row],[Sheet Name]]&"'!PDIamount")/WithBonusPDI) -> 0 | AN97: =IFERROR(RebatesSummary[[#This Row],[Base PDI]]*IF(BonusActive,BonusAmountPDI,0),"") -> 0 | AO97: =IF(OR(INDIRECT("'"&RebatesSummary[[#This Row],[Sheet Name]]&"'!BaseRebate")=0,RebatesSummary[[#This Row],[Rebate Amount]]=0),0, MIN(INDIRECT("'"&RebatesSummary[[#This Row],[Sheet Name]]&"'!BaseRebate"),RebatesSummary[[#This Row],[Rebate Amount]])) -> 0 | AP97: =MAX(0,RebatesSummary[[#This Row],[Rebate Amount]]-RebatesSummary[[#This Row],[Base Rebate]]) -> 0
AD98: =SUM($AF$81:AF98) -> 0 | AE98: ASH Controls | AF98: =IF(OR(INDIRECT("'"&RebatesSummary[[#This Row],[Sheet Name]]&"'!RebateAmount")="",INDIRECT("'"&RebatesSummary[[#This Row],[Sheet Name]]&"'!RebateAmount")="Cost?"),0,1) -> 0 | AG98: Anti-Sweat Heater Controls | AH98: =IFERROR(SUM(INDIRECT("'"&RebatesSummary[[#This Row],[Sheet Name]]&"'!kWhSavings")),0) -> 0 | AI98: =SUM(INDIRECT("'"&RebatesSummary[[#This Row],[Sheet Name]]&"'!Cost")) -> 0 | AJ98: =IF(OR(INDIRECT("'"&RebatesSummary[[#This Row],[Sheet Name]]&"'!RebateAmount")="",INDIRECT("'"&RebatesSummary[[#This Row],[Sheet Name]]&"'!RebateAmount")="Cost?"),0, INDIRECT("'"&RebatesSummary[[#This Row],[Sheet Name]]&"'!RebateAmount")) -> 0 | AK98: =IFERROR(SUM(INDIRECT("'"&RebatesSummary[[#This Row],[Sheet Name]]&"'!kWSavings")),0) -> 0 | AL98: =IFERROR(SUM(INDIRECT("'"&RebatesSummary[[#This Row],[Sheet Name]]&"'!kWSavingsPeak")),0) -> 0 | AM98: =IF(INDIRECT("'"&RebatesSummary[[#This Row],[Sheet Name]]&"'!PDIamount")="",0,INDIRECT("'"&RebatesSummary[[#This Row],[Sheet Name]]&"'!PDIamount")/WithBonusPDI) -> 0 | AN98: =IFERROR(RebatesSummary[[#This Row],[Base PDI]]*IF(BonusActive,BonusAmountPDI,0),"") -> 0 | AO98: =IF(OR(INDIRECT("'"&RebatesSummary[[#This Row],[Sheet Name]]&"'!BaseRebate")=0,RebatesSummary[[#This Row],[Rebate Amount]]=0),0, MIN(INDIRECT("'"&RebatesSummary[[#This Row],[Sheet Name]]&"'!BaseRebate"),RebatesSummary[[#This Row],[Rebate Amount]])) -> 0 | AP98: =MAX(0,RebatesSummary[[#This Row],[Rebate Amount]]-RebatesSummary[[#This Row],[Base Rebate]]) -> 0
AD99: =SUM($AF$81:AF99) -> 0 | AE99: Case Doors | AF99: =IF(OR(INDIRECT("'"&RebatesSummary[[#This Row],[Sheet Name]]&"'!RebateAmount")="",INDIRECT("'"&RebatesSummary[[#This Row],[Sheet Name]]&"'!RebateAmount")="Cost?"),0,1) -> 0 | AG99: Refrigerated Display Case Door Retrofit | AH99: =IFERROR(SUM(INDIRECT("'"&RebatesSummary[[#This Row],[Sheet Name]]&"'!kWhSavings")),0) -> 0 | AI99: =SUM(INDIRECT("'"&RebatesSummary[[#This Row],[Sheet Name]]&"'!Cost")) -> 0 | AJ99: =IF(OR(INDIRECT("'"&RebatesSummary[[#This Row],[Sheet Name]]&"'!RebateAmount")="",INDIRECT("'"&RebatesSummary[[#This Row],[Sheet Name]]&"'!RebateAmount")="Cost?"),0, INDIRECT("'"&RebatesSummary[[#This Row],[Sheet Name]]&"'!RebateAmount")) -> 0 | AK99: =IFERROR(SUM(INDIRECT("'"&RebatesSummary[[#This Row],[Sheet Name]]&"'!kWSavings")),0) -> 0 | AL99: =IFERROR(SUM(INDIRECT("'"&RebatesSummary[[#This Row],[Sheet Name]]&"'!kWSavingsPeak")),0) -> 0 | AM99: =IF(INDIRECT("'"&RebatesSummary[[#This Row],[Sheet Name]]&"'!PDIamount")="",0,INDIRECT("'"&RebatesSummary[[#This Row],[Sheet Name]]&"'!PDIamount")/WithBonusPDI) -> 0 | AN99: =IFERROR(RebatesSummary[[#This Row],[Base PDI]]*IF(BonusActive,BonusAmountPDI,0),"") -> 0 | AO99: =IF(OR(INDIRECT("'"&RebatesSummary[[#This Row],[Sheet Name]]&"'!BaseRebate")=0,RebatesSummary[[#This Row],[Rebate Amount]]=0),0, MIN(INDIRECT("'"&RebatesSummary[[#This Row],[Sheet Name]]&"'!BaseRebate"),RebatesSummary[[#This Row],[Rebate Amount]])) -> 0 | AP99: =MAX(0,RebatesSummary[[#This Row],[Rebate Amount]]-RebatesSummary[[#This Row],[Base Rebate]]) -> 0
AD100: =SUM($AF$81:AF100) -> 0 | AE100: Strip Curtains | AF100: =IF(OR(INDIRECT("'"&RebatesSummary[[#This Row],[Sheet Name]]&"'!RebateAmount")="",INDIRECT("'"&RebatesSummary[[#This Row],[Sheet Name]]&"'!RebateAmount")="Cost?"),0,1) -> 0 | AG100: Strip Curtains | AH100: =IFERROR(SUM(INDIRECT("'"&RebatesSummary[[#This Row],[Sheet Name]]&"'!kWhSavings")),0) -> 0 | AI100: =SUM(INDIRECT("'"&RebatesSummary[[#This Row],[Sheet Name]]&"'!Cost")) -> 0 | AJ100: =IF(OR(INDIRECT("'"&RebatesSummary[[#This Row],[Sheet Name]]&"'!RebateAmount")="",INDIRECT("'"&RebatesSummary[[#This Row],[Sheet Name]]&"'!RebateAmount")="Cost?"),0, INDIRECT("'"&RebatesSummary[[#This Row],[Sheet Name]]&"'!RebateAmount")) -> 0 | AK100: =IFERROR(SUM(INDIRECT("'"&RebatesSummary[[#This Row],[Sheet Name]]&"'!kWSavings")),0) -> 0 | AL100: =IFERROR(SUM(INDIRECT("'"&RebatesSummary[[#This Row],[Sheet Name]]&"'!kWSavingsPeak")),0) -> 0 | AM100: =IF(INDIRECT("'"&RebatesSummary[[#This Row],[Sheet Name]]&"'!PDIamount")="",0,INDIRECT("'"&RebatesSummary[[#This Row],[Sheet Name]]&"'!PDIamount")/WithBonusPDI) -> 0 | AN100: =IFERROR(RebatesSummary[[#This Row],[Base PDI]]*IF(BonusActive,BonusAmountPDI,0),"") -> 0 | AO100: =IF(OR(INDIRECT("'"&RebatesSummary[[#This Row],[Sheet Name]]&"'!BaseRebate")=0,RebatesSummary[[#This Row],[Rebate Amount]]=0),0, MIN(INDIRECT("'"&RebatesSummary[[#This Row],[Sheet Name]]&"'!BaseRebate"),RebatesSummary[[#This Row],[Rebate Amount]])) -> 0 | AP100: =MAX(0,RebatesSummary[[#This Row],[Rebate Amount]]-RebatesSummary[[#This Row],[Base Rebate]]) -> 0
AD101: =SUM($AF$81:AF101) -> 0 | AE101: Pressure Controls | AF101: =IF(OR(INDIRECT("'"&RebatesSummary[[#This Row],[Sheet Name]]&"'!RebateAmount")="",INDIRECT("'"&RebatesSummary[[#This Row],[Sheet Name]]&"'!RebateAmount")="Cost?"),0,1) -> 0 | AG101: Refrigeration Floating Pressure Controls | AH101: =IFERROR(SUM(INDIRECT("'"&RebatesSummary[[#This Row],[Sheet Name]]&"'!kWhSavings")),0) -> 0 | AI101: =SUM(INDIRECT("'"&RebatesSummary[[#This Row],[Sheet Name]]&"'!Cost")) -> 0 | AJ101: =IF(OR(INDIRECT("'"&RebatesSummary[[#This Row],[Sheet Name]]&"'!RebateAmount")="",INDIRECT("'"&RebatesSummary[[#This Row],[Sheet Name]]&"'!RebateAmount")="Cost?"),0, INDIRECT("'"&RebatesSummary[[#This Row],[Sheet Name]]&"'!RebateAmount")) -> 0 | AK101: =IFERROR(SUM(INDIRECT("'"&RebatesSummary[[#This Row],[Sheet Name]]&"'!kWSavings")),0) -> 0 | AL101: =IFERROR(SUM(INDIRECT("'"&RebatesSummary[[#This Row],[Sheet Name]]&"'!kWSavingsPeak")),0) -> 0 | AM101: =IF(INDIRECT("'"&RebatesSummary[[#This Row],[Sheet Name]]&"'!PDIamount")="",0,INDIRECT("'"&RebatesSummary[[#This Row],[Sheet Name]]&"'!PDIamount")/WithBonusPDI) -> 0 | AN101: =IFERROR(RebatesSummary[[#This Row],[Base PDI]]*IF(BonusActive,BonusAmountPDI,0),"") -> 0 | AO101: =IF(OR(INDIRECT("'"&RebatesSummary[[#This Row],[Sheet Name]]&"'!BaseRebate")=0,RebatesSummary[[#This Row],[Rebate Amount]]=0),0, MIN(INDIRECT("'"&RebatesSummary[[#This Row],[Sheet Name]]&"'!BaseRebate"),RebatesSummary[[#This Row],[Rebate Amount]])) -> 0 | AP101: =MAX(0,RebatesSummary[[#This Row],[Rebate Amount]]-RebatesSummary[[#This Row],[Base Rebate]]) -> 0
AD102: =SUM($AF$81:AF102) -> 0 | AE102: DC Kitchen Ventilation | AF102: =IF(OR(INDIRECT("'"&RebatesSummary[[#This Row],[Sheet Name]]&"'!RebateAmount")="",INDIRECT("'"&RebatesSummary[[#This Row],[Sheet Name]]&"'!RebateAmount")="Cost?"),0,1) -> 0 | AG102: Demand Controlled Kitchen Ventilation | AH102: =IFERROR(SUM(INDIRECT("'"&RebatesSummary[[#This Row],[Sheet Name]]&"'!kWhSavings")),0) -> 0 | AI102: =SUM(INDIRECT("'"&RebatesSummary[[#This Row],[Sheet Name]]&"'!Cost")) -> 0 | AJ102: =IF(OR(INDIRECT("'"&RebatesSummary[[#This Row],[Sheet Name]]&"'!RebateAmount")="",INDIRECT("'"&RebatesSummary[[#This Row],[Sheet Name]]&"'!RebateAmount")="Cost?"),0, INDIRECT("'"&RebatesSummary[[#This Row],[Sheet Name]]&"'!RebateAmount")) -> 0 | AK102: =IFERROR(SUM(INDIRECT("'"&RebatesSummary[[#This Row],[Sheet Name]]&"'!kWSavings")),0) -> 0 | AL102: =IFERROR(SUM(INDIRECT("'"&RebatesSummary[[#This Row],[Sheet Name]]&"'!kWSavingsPeak")),0) -> 0 | AM102: =IF(INDIRECT("'"&RebatesSummary[[#This Row],[Sheet Name]]&"'!PDIamount")="",0,INDIRECT("'"&RebatesSummary[[#This Row],[Sheet Name]]&"'!PDIamount")/WithBonusPDI) -> 0 | AN102: =IFERROR(RebatesSummary[[#This Row],[Base PDI]]*IF(BonusActive,BonusAmountPDI,0),"") -> 0 | AO102: =IF(OR(INDIRECT("'"&RebatesSummary[[#This Row],[Sheet Name]]&"'!BaseRebate")=0,RebatesSummary[[#This Row],[Rebate Amount]]=0),0, MIN(INDIRECT("'"&RebatesSummary[[#This Row],[Sheet Name]]&"'!BaseRebate"),RebatesSummary[[#This Row],[Rebate Amount]])) -> 0 | AP102: =MAX(0,RebatesSummary[[#This Row],[Rebate Amount]]-RebatesSummary[[#This Row],[Base Rebate]]) -> 0
AD103: =SUM($AF$81:AF103) -> 0 | AE103: Commercial Clothes Washers | AF103: =IF(OR(INDIRECT("'"&RebatesSummary[[#This Row],[Sheet Name]]&"'!RebateAmount")="",INDIRECT("'"&RebatesSummary[[#This Row],[Sheet Name]]&"'!RebateAmount")="Cost?"),0,1) -> 0 | AG103: Commercial Clothes Washers | AH103: =IFERROR(SUM(INDIRECT("'"&RebatesSummary[[#This Row],[Sheet Name]]&"'!kWhSavings")),0) -> 0 | AI103: =SUM(INDIRECT("'"&RebatesSummary[[#This Row],[Sheet Name]]&"'!Cost")) -> 0 | AJ103: =IF(OR(INDIRECT("'"&RebatesSummary[[#This Row],[Sheet Name]]&"'!RebateAmount")="",INDIRECT("'"&RebatesSummary[[#This Row],[Sheet Name]]&"'!RebateAmount")="Cost?"),0, INDIRECT("'"&RebatesSummary[[#This Row],[Sheet Name]]&"'!RebateAmount")) -> 0 | AK103: =IFERROR(SUM(INDIRECT("'"&RebatesSummary[[#This Row],[Sheet Name]]&"'!kWSavings")),0) -> 0 | AL103: =IFERROR(SUM(INDIRECT("'"&RebatesSummary[[#This Row],[Sheet Name]]&"'!kWSavingsPeak")),0) -> 0 | AM103: =IF(INDIRECT("'"&RebatesSummary[[#This Row],[Sheet Name]]&"'!PDIamount")="",0,INDIRECT("'"&RebatesSummary[[#This Row],[Sheet Name]]&"'!PDIamount")/WithBonusPDI) -> 0 | AN103: =IFERROR(RebatesSummary[[#This Row],[Base PDI]]*IF(BonusActive,BonusAmountPDI,0),"") -> 0 | AO103: =IF(OR(INDIRECT("'"&RebatesSummary[[#This Row],[Sheet Name]]&"'!BaseRebate")=0,RebatesSummary[[#This Row],[Rebate Amount]]=0),0, MIN(INDIRECT("'"&RebatesSummary[[#This Row],[Sheet Name]]&"'!BaseRebate"),RebatesSummary[[#This Row],[Rebate Amount]])) -> 0 | AP103: =MAX(0,RebatesSummary[[#This Row],[Rebate Amount]]-RebatesSummary[[#This Row],[Base Rebate]]) -> 0
AD104: =SUM($AF$81:AF104) -> 0 | AE104: Generator Block Heaters | AF104: =IF(OR(INDIRECT("'"&RebatesSummary[[#This Row],[Sheet Name]]&"'!RebateAmount")="",INDIRECT("'"&RebatesSummary[[#This Row],[Sheet Name]]&"'!RebateAmount")="Cost?"),0,1) -> 0 | AG104: Generator Block Heaters | AH104: =IFERROR(SUM(INDIRECT("'"&RebatesSummary[[#This Row],[Sheet Name]]&"'!kWhSavings")),0) -> 0 | AI104: =SUM(INDIRECT("'"&RebatesSummary[[#This Row],[Sheet Name]]&"'!Cost")) -> 0 | AJ104: =IF(OR(INDIRECT("'"&RebatesSummary[[#This Row],[Sheet Name]]&"'!RebateAmount")="",INDIRECT("'"&RebatesSummary[[#This Row],[Sheet Name]]&"'!RebateAmount")="Cost?"),0, INDIRECT("'"&RebatesSummary[[#This Row],[Sheet Name]]&"'!RebateAmount")) -> 0 | AK104: =IFERROR(SUM(INDIRECT("'"&RebatesSummary[[#This Row],[Sheet Name]]&"'!kWSavings")),0) -> 0 | AL104: =IFERROR(SUM(INDIRECT("'"&RebatesSummary[[#This Row],[Sheet Name]]&"'!kWSavingsPeak")),0) -> 0 | AM104: =IF(INDIRECT("'"&RebatesSummary[[#This Row],[Sheet Name]]&"'!PDIamount")="",0,INDIRECT("'"&RebatesSummary[[#This Row],[Sheet Name]]&"'!PDIamount")/WithBonusPDI) -> 0 | AN104: =IFERROR(RebatesSummary[[#This Row],[Base PDI]]*IF(BonusActive,BonusAmountPDI,0),"") -> 0 | AO104: =IF(OR(INDIRECT("'"&RebatesSummary[[#This Row],[Sheet Name]]&"'!BaseRebate")=0,RebatesSummary[[#This Row],[Rebate Amount]]=0),0, MIN(INDIRECT("'"&RebatesSummary[[#This Row],[Sheet Name]]&"'!BaseRebate"),RebatesSummary[[#This Row],[Rebate Amount]])) -> 0 | AP104: =MAX(0,RebatesSummary[[#This Row],[Rebate Amount]]-RebatesSummary[[#This Row],[Base Rebate]]) -> 0
AD105: =SUM($AF$81:AF105) -> 0 | AE105: Vehicle Engine Heater Controls | AF105: =IF(OR(INDIRECT("'"&RebatesSummary[[#This Row],[Sheet Name]]&"'!RebateAmount")="",INDIRECT("'"&RebatesSummary[[#This Row],[Sheet Name]]&"'!RebateAmount")="Cost?"),0,1) -> 0 | AG105: Vehicle Engine Block Heater Controls | AH105: =IFERROR(SUM(INDIRECT("'"&RebatesSummary[[#This Row],[Sheet Name]]&"'!kWhSavings")),0) -> 0 | AI105: =SUM(INDIRECT("'"&RebatesSummary[[#This Row],[Sheet Name]]&"'!Cost")) -> 0 | AJ105: =IF(OR(INDIRECT("'"&RebatesSummary[[#This Row],[Sheet Name]]&"'!RebateAmount")="",INDIRECT("'"&RebatesSummary[[#This Row],[Sheet Name]]&"'!RebateAmount")="Cost?"),0, INDIRECT("'"&RebatesSummary[[#This Row],[Sheet Name]]&"'!RebateAmount")) -> 0 | AK105: =IFERROR(SUM(INDIRECT("'"&RebatesSummary[[#This Row],[Sheet Name]]&"'!kWSavings")),0) -> 0 | AL105: =IFERROR(SUM(INDIRECT("'"&RebatesSummary[[#This Row],[Sheet Name]]&"'!kWSavingsPeak")),0) -> 0 | AM105: =IF(INDIRECT("'"&RebatesSummary[[#This Row],[Sheet Name]]&"'!PDIamount")="",0,INDIRECT("'"&RebatesSummary[[#This Row],[Sheet Name]]&"'!PDIamount")/WithBonusPDI) -> 0 | AN105: =IFERROR(RebatesSummary[[#This Row],[Base PDI]]*IF(BonusActive,BonusAmountPDI,0),"") -> 0 | AO105: =IF(OR(INDIRECT("'"&RebatesSummary[[#This Row],[Sheet Name]]&"'!BaseRebate")=0,RebatesSummary[[#This Row],[Rebate Amount]]=0),0, MIN(INDIRECT("'"&RebatesSummary[[#This Row],[Sheet Name]]&"'!BaseRebate"),RebatesSummary[[#This Row],[Rebate Amount]])) -> 0 | AP105: =MAX(0,RebatesSummary[[#This Row],[Rebate Amount]]-RebatesSummary[[#This Row],[Base Rebate]]) -> 0
AD106: =SUM($AF$81:AF106) -> 0 | AE106: Battery Charger Upgrade | AF106: =IF(OR(INDIRECT("'"&RebatesSummary[[#This Row],[Sheet Name]]&"'!RebateAmount")="",INDIRECT("'"&RebatesSummary[[#This Row],[Sheet Name]]&"'!RebateAmount")="Cost?"),0,1) -> 0 | AG106: High Frequency Battery Charger Upgrade | AH106: =IFERROR(SUM(INDIRECT("'"&RebatesSummary[[#This Row],[Sheet Name]]&"'!kWhSavings")),0) -> 0 | AI106: =SUM(INDIRECT("'"&RebatesSummary[[#This Row],[Sheet Name]]&"'!Cost")) -> 0 | AJ106: =IF(OR(INDIRECT("'"&RebatesSummary[[#This Row],[Sheet Name]]&"'!RebateAmount")="",INDIRECT("'"&RebatesSummary[[#This Row],[Sheet Name]]&"'!RebateAmount")="Cost?"),0, INDIRECT("'"&RebatesSummary[[#This Row],[Sheet Name]]&"'!RebateAmount")) -> 0 | AK106: =IFERROR(SUM(INDIRECT("'"&RebatesSummary[[#This Row],[Sheet Name]]&"'!kWSavings")),0) -> 0 | AL106: =IFERROR(SUM(INDIRECT("'"&RebatesSummary[[#This Row],[Sheet Name]]&"'!kWSavingsPeak")),0) -> 0 | AM106: =IF(INDIRECT("'"&RebatesSummary[[#This Row],[Sheet Name]]&"'!PDIamount")="",0,INDIRECT("'"&RebatesSummary[[#This Row],[Sheet Name]]&"'!PDIamount")/WithBonusPDI) -> 0 | AN106: =IFERROR(RebatesSummary[[#This Row],[Base PDI]]*IF(BonusActive,BonusAmountPDI,0),"") -> 0 | AO106: =IF(OR(INDIRECT("'"&RebatesSummary[[#This Row],[Sheet Name]]&"'!BaseRebate")=0,RebatesSummary[[#This Row],[Rebate Amount]]=0),0, MIN(INDIRECT("'"&RebatesSummary[[#This Row],[Sheet Name]]&"'!BaseRebate"),RebatesSummary[[#This Row],[Rebate Amount]])) -> 0 | AP106: =MAX(0,RebatesSummary[[#This Row],[Rebate Amount]]-RebatesSummary[[#This Row],[Base Rebate]]) -> 0
AD107: =SUM($AF$81:AF107) -> 0 | AE107: Welder Upgrade | AF107: =IF(OR(INDIRECT("'"&RebatesSummary[[#This Row],[Sheet Name]]&"'!RebateAmount")="",INDIRECT("'"&RebatesSummary[[#This Row],[Sheet Name]]&"'!RebateAmount")="Cost?"),0,1) -> 0 | AG107: Welder Upgrade | AH107: =IFERROR(SUM(INDIRECT("'"&RebatesSummary[[#This Row],[Sheet Name]]&"'!kWhSavings")),0) -> 0 | AI107: =SUM(INDIRECT("'"&RebatesSummary[[#This Row],[Sheet Name]]&"'!Cost")) -> 0 | AJ107: =IF(OR(INDIRECT("'"&RebatesSummary[[#This Row],[Sheet Name]]&"'!RebateAmount")="",INDIRECT("'"&RebatesSummary[[#This Row],[Sheet Name]]&"'!RebateAmount")="Cost?"),0, INDIRECT("'"&RebatesSummary[[#This Row],[Sheet Name]]&"'!RebateAmount")) -> 0 | AK107: =IFERROR(SUM(INDIRECT("'"&RebatesSummary[[#This Row],[Sheet Name]]&"'!kWSavings")),0) -> 0 | AL107: =IFERROR(SUM(INDIRECT("'"&RebatesSummary[[#This Row],[Sheet Name]]&"'!kWSavingsPeak")),0) -> 0 | AM107: =IF(INDIRECT("'"&RebatesSummary[[#This Row],[Sheet Name]]&"'!PDIamount")="",0,INDIRECT("'"&RebatesSummary[[#This Row],[Sheet Name]]&"'!PDIamount")/WithBonusPDI) -> 0 | AN107: =IFERROR(RebatesSummary[[#This Row],[Base PDI]]*IF(BonusActive,BonusAmountPDI,0),"") -> 0 | AO107: =IF(OR(INDIRECT("'"&RebatesSummary[[#This Row],[Sheet Name]]&"'!BaseRebate")=0,RebatesSummary[[#This Row],[Rebate Amount]]=0),0, MIN(INDIRECT("'"&RebatesSummary[[#This Row],[Sheet Name]]&"'!BaseRebate"),RebatesSummary[[#This Row],[Rebate Amount]])) -> 0 | AP107: =MAX(0,RebatesSummary[[#This Row],[Rebate Amount]]-RebatesSummary[[#This Row],[Base Rebate]]) -> 0
AD108: =SUM($AF$81:AF108) -> 0 | AE108: Water Leak Abatement | AF108: =IF(OR(INDIRECT("'"&RebatesSummary[[#This Row],[Sheet Name]]&"'!RebateAmount")="",INDIRECT("'"&RebatesSummary[[#This Row],[Sheet Name]]&"'!RebateAmount")="Cost?"),0,1) -> 0 | AG108: Water System Leak Abatement | AH108: =IFERROR(SUM(INDIRECT("'"&RebatesSummary[[#This Row],[Sheet Name]]&"'!kWhSavings")),0) -> 0 | AI108: =SUM(INDIRECT("'"&RebatesSummary[[#This Row],[Sheet Name]]&"'!Cost")) -> 0 | AJ108: =IF(OR(INDIRECT("'"&RebatesSummary[[#This Row],[Sheet Name]]&"'!RebateAmount")="",INDIRECT("'"&RebatesSummary[[#This Row],[Sheet Name]]&"'!RebateAmount")="Cost?"),0, INDIRECT("'"&RebatesSummary[[#This Row],[Sheet Name]]&"'!RebateAmount")) -> 0 | AK108: =IFERROR(SUM(INDIRECT("'"&RebatesSummary[[#This Row],[Sheet Name]]&"'!kWSavings")),0) -> 0 | AL108: =IFERROR(SUM(INDIRECT("'"&RebatesSummary[[#This Row],[Sheet Name]]&"'!kWSavingsPeak")),0) -> 0 | AM108: =IF(INDIRECT("'"&RebatesSummary[[#This Row],[Sheet Name]]&"'!PDIamount")="",0,INDIRECT("'"&RebatesSummary[[#This Row],[Sheet Name]]&"'!PDIamount")/WithBonusPDI) -> 0 | AN108: =IFERROR(RebatesSummary[[#This Row],[Base PDI]]*IF(BonusActive,BonusAmountPDI,0),"") -> 0 | AO108: =IF(OR(INDIRECT("'"&RebatesSummary[[#This Row],[Sheet Name]]&"'!BaseRebate")=0,RebatesSummary[[#This Row],[Rebate Amount]]=0),0, MIN(INDIRECT("'"&RebatesSummary[[#This Row],[Sheet Name]]&"'!BaseRebate"),RebatesSummary[[#This Row],[Rebate Amount]])) -> 0 | AP108: =MAX(0,RebatesSummary[[#This Row],[Rebate Amount]]-RebatesSummary[[#This Row],[Base Rebate]]) -> 0
AK109: =SUM(RebatesSummary[Peak kW]) -> 0 | AL109: =SUM(RebatesSummary[PUD Winter Peak kW]) -> 0 | AM109: =SUM(RebatesSummary[Base PDI]) -> 0 | AO109: =SUM(RebatesSummary[Base Rebate]) -> 0 | AP109: =SUM(RebatesSummary[Bonus Rebate]) -> 0
AE110: Sheets to Print
AE111: =IFERROR(_xlfn._xlws.FILTER(RebatesSummary[Sheet Name],Col.1.ID=1),"") -> 

Sheet Note (hidden)
B2: Version | C2: Change
B3: VAug2020 | C3: Lift the 70% Cap. Add an option on Payment Request form. Higher rebates for HP Retrofits and Upgrades. Higher rebates for DHP Retrofits and Upgrades.
B4: VDec21 | C4: Removed Bonus. Removed PTHP for New Construction.
B5: VFeb23 | C5: Added bonus for Lake Stevens. +50% to measures and +25% PDI to all projects completed by 12/1/2023
B6: vFeb24 | C6: New Measures -VFD's for Pumps -Secondary Windows -Refrigerated Case Doors -Floating Point Pressure Controls
B7: vFeb24 | C7: Expired Measures -Commercial Clothes Washers -Battery Charger -Welder Upgrades
B8: vFeb24 | C8: HP Retrofit -Base Incentive revised to $700/ton
B9: vFeb24 | C9: DHP Retrofit -Base Incentive revised to $1000/ton -kWh Savings revised to 2,458.96 kWh/ton/yr
B10: vFeb24 | C10: PTHP -Base incentive of Residential Care Applications revised to $100
B11: vFeb24 | C11: VRF Retrofit -kWh savings revised to 4,222.33 kWh/ton/yr
B12: vFeb24 | C12: Connected Thermostats -kWh savings for Electric Heated buildings revised to 905.91 -kWh savings for Gas Heated buildings revised to 280.65
B13: vFeb24 | C13: Advanced Rooftop Control -ARC incentive revised to $250/ton -ARC Lite incentive revised to $150/ton
B14: vFeb24 | C14: Windows -kWh Savings for Electric Zonal or Forced Air Funace Revised to 23.50 -kWh Savings for Air-source Heat Pump Revised to 22.14
B15: vFeb24 | C15: Windows MF Low Rise -kWh Savings for Single Pane to 0.30 revised to 23.87 -kWh Savings for Single Pane to 0.22 revised to 26.50 -kWh Savings for Double Pane to 0.30 revised to 12.86 -kWh Savings for Double Pane to 0.22 revised to 15.48
B16: vFeb24 | C16: Insulation -kWh Savings table for all Occupancy/Retrofit Types updated
B17: vFeb24 | C17: Insulation MF Low Rise -kWh Savings table for all Retrofit Types updated
B18: vFeb24 | C18: Insulation MF Mid/High Rise -kWh Savings table for all Retrofit Types updated

Sheet Input Tables (hidden)
G2: PDI Rates | K2: Pay Letter Contact Info
B3: Segment | C3: OccupancyType | D3: BusinessType | E3: HeatingType | H3: PDI | K3: PUDStaff | L3: Title | M3: Phone | N3: Email | P3: Pay Letter Opportunities
B4: Agriculture | C4: Multifamily Low Rise | D4: Dry Goods Retail | E4: Electric | G4: Heat Pump Retrofit | H4: =WithBonusPDI*200 -> 200 | I4: Unit | K4: Aaron Stewart | L4: Energy Efficiency Program Consultant | M4: 4257831726 | N4: apstewart@snopud.com | P4: Advanced Rooftop Controls
B5: Assembly | C5: Multifamily Mid and High Rise | D5: Grocery | E5: Gas | G5: Ductless Heat Pump Retrofit | H5: =WithBonusPDI*200 -> 200 | I5: Unit | K5: Allison Grinczel | L5: Energy Management Engineer | M5: 4257838275 | N5: aagrinczel@snopud.com | P5: Building Controls
B6: Government & W/WWT | C6: Airport Operations | D6: Restaurant | E6: Propane | G6: PTHP- Packaged Terminal Heat Pumps | H6: =WithBonusPDI*25 -> 25 | I6: Unit | K6: Ed Walstad | L6: Energy Efficiency Program Consultant | M6: 4257838158 | N6: edwalstad@snopud.com | P6: Commercial Kitchen Equipment
B7: Grocery | C7: Animal Hospital | D7: Warehouse | E7: Heat Pump | G7: Variable Refrigerant Flow Systems (VRF) | H7: =WithBonusPDI*1000 -> 1000 | I7: system | K7: Rick Rosenkilde | L7: Energy Management Engineer | M7: 4257831743 | N7: rrrosenkilde@snopud.com | P7: Compressed Air
B8: Healthcare | C8: Bank | D8: Hospital | E8: VRF | G8: Connected Thermostats | H8: =WithBonusPDI*25 -> 25 | I8: ea. | K8: Rob Marks | L8: Senior Energy Management Engineer | M8: 4257838169 | N8: rlmarks@snopud.com | P8: Connected Thermostats
B9: Cannabis | C9: Agricultural | D9: Office | E9: Oil | G9: Variable Frequency Drive on AHU Fan | H9: =WithBonusPDI*25 -> 25 | I9: HP | K9: Orion Eaton | L9: Energy Management Engineer | M9: 4257258845 | N9: OJEaton@SNOPUD.com | P9: Demand Control Kitchen Ventilation
B10: Hospitality | C10: Casino | D10: Hotel/Motel | E10: None | G10: Variable Frequency Drive for Pump | H10: =WithBonusPDI*15 -> 15 | I10: HP | K10: Ian Tachibana | L10: Energy Management Engineer | M10: 4255507670 | N10: IPTachibana@Snopud.com | P10: Engine Block Heaters
B11: Infrastructure | C11: Church | D11: Other Health | G11: ARC-Lite | H11: =WithBonusPDI*25 -> 25 | I11: ton | K11: Emily Kubiak | L11: Energy Management Engineer | M11: 4257831700 | N11: eakubiak@snopud.com | P11: Heat Pumps (including ductless)
B12: Manufacturing / Warehouse | C12: Church School | D12: School | G12: ARC-Full | H12: =WithBonusPDI*50 -> 50 | I12: ton | K12: Shayne Moore | L12: Energy Management Engineer | M12: 4252970168 | N12: samoore@snopud.com | P12: Insulation & Windows (electrically heated facility only)
B13: Multifamily | C13: Clinic | D13: University | G13: Compressed Air System | H13: =WithBonusPDI*0.025 -> 0.025 | I13: kWh | N13: YesNo | P13: Lighting
B14: Office | C14: Communication | D14: Other | G14: Windows (C&I) | H14: =WithBonusPDI*0.25 -> 0.25 | I14: sqft | N14: Yes | P14: Lighting Controls
B15: Other Commercial | C15: Conference Center | G15: Secondary Windows | H15: =WithBonusPDI*0.5 -> 0.5 | I15: sqft | N15: No | P15: Refrigeration
B16: Retail | C16: Data Center | E16: ElectricHeat | G16: Windows (Low Rise MF) | H16: 0.25 | I16: sqft | P16: Variable Speed Drive
B17: School | C17: Daycare | E17: Electric Furnace | G17: Windows (Mid & High Rise MF) | H17: 0.25 | I17: sqft | P17: Ventilation & Air Conditioning
C18: District Facility | E18: Zonal (Baseboard, Wall Unit) | G18: Insulation (C&I) | H18: 0.25 | I18: sqft | K18: Workbook Type | L18: R | P18: Water Heating
C19: Federal Government | E19: Ductless Heat Pump | G19: Insulation (Low Rise MF) | H19: 0.25 | I19: sqft | K19: Version | L19: Version July 2024 - Effective Date July 1st, 2024
C20: FPD | E20: Heat Pump with Electric Furnace | G20: Insulation (Mid & High Rise MF) | H20: 0.25 | I20: sqft | K20: PDI to Cust | L20: =IF(App_PDIRecipient="Customer",TRUE,FALSE) -> FALSE
C21: Hospital | G21: Electronically Commutated Motors (ECMs) | H21: =WithBonusPDI*50 -> 50 | I21: ea. | K21: AsBuilt Flag
C22: Hotel and Motel | G22: Anti-Sweat Heater (ASH) Controls | H22: =WithBonusPDI*1 -> 1 | I22: LnFt | K22: Loading Bar Mode | L22: 1
C23: Industrial and Manufacturing | G23: Refrigeration Case Door Retrofit | H23: =WithBonusPDI*5 -> 5 | I23: LnFt | K23: Edit Mode | L23: FALSE
C24: Library | G24: Strip Curtains Walk-in Coolers and Freezers | H24: =WithBonusPDI*1 -> 1 | I24: sqft | K24: Macros Enabled
C25: Local Government | G25: Floating Head and Suction Pressure Controls | H25: =WithBonusPDI*1 -> 1 | I25: MBH | K25: Stuff Enabled | L25: TRUE
C26: Medical and Dental | G26: Demand Control Kitchen Ventilation | H26: =WithBonusPDI*1000 -> 1000 | I26: system | K26: Import File Path
C27: Nursing and Retirement Homes | G27: Heat Pump Water Heaters | H27: =WithBonusPDI*100 -> 100 | I27: ea.
C28: Office | G28: Commercial Clothes Washers | H28: =WithBonusPDI*50 -> 50 | I28: ea.
C29: Recreational | G29: Pool Pumps | H29: =WithBonusPDI*100 -> 100 | I29: ea.
C30: Research Lab | G30: Generator Block Heaters | H30: =WithBonusPDI*100 -> 100 | I30: ea. | K30: AsBuilt File Paths
C31: Restaurant and Tavern | G31: Vehicle Engine Block Heaters | H31: =WithBonusPDI*50 -> 50 | I31: ea. | K31: Signed Agreement
C32: Retail Trade and Services | G32: High Frequency Battery Charger Upgrade | H32: =WithBonusPDI*0.025 -> 0.025 | I32: kWh | K32: Final Invoice
C33: School | G33: Welder Upgrade | H33: =WithBonusPDI*0.025 -> 0.025 | I33: kWh | K33: AsBuilt Specs
C34: Senior Center | G34: Water System Leak Upgrade | H34: =WithBonusPDI*0.025 -> 0.025 | I34: kWh | K34: Final Pics
C35: Transportation | K35: Misc 1
C36: Warehouse | K36: Misc 2
C37: Water and Wastewater
C38: Wholesale and Retail Food | K38: Bonus | L38: with Bonus | M38: Bonus Active
C39: Other Commercial | J39: Measures | K39: 0.5 | L39: =IF(BonusActive,1+BonusAmountMeasures,1) -> 1 | N39: +50% to all measures completed in Lake Stevens by 12/1/2023
C40: Other Industrial | J40: PDI | K40: 0.25 | L40: =IF(BonusActive,1+BonusAmountPDI,1) -> 1
B42: Import Ranges | K42: External Links
B43: APPLICATION | K43: Link | L43: Description | M43: Sheet(s)
B44: Range Name | C44: Address if Name Not found | K44: https://www.snopud.com/contractor-network/directory/category/heating/ | L44: PUD Contractors - HVAC Page | M44: Application
B45: App_FacName | K45: https://www.snopud.com/contractor-network/directory/category/air-compressor/ | L45: PUD Contractors - Compressed Air Page | M45: Application
B46: App_FacAdd | K46: https://www.snopud.com/contractor-network/directory/category/insulation/ | L46: PUD Contractors - Insulation Page | M46: Application
B47: App_FacCity | G47: Compatibale Import Versions | H47: Default Rate | I47: Active Rate | K47: https://www.snopud.com/contractor-network/directory/category/window/ | L47: PUD Contractors - Windows Page | M47: Application
B48: App_FacZip | G48: Version December 2021 - Effective Date December 1st 2021 | H48: 2021 | I48: 2023 | K48: https://www.snopud.com/contractor-network/directory/category/mechanical/ | L48: PUD Contractors - Mechanical Page | M48: Application
B49: App_PremType | G49: Version June 2022 - Effective Date June 1st 2022 | H49: 2022 | K49: https://www.irs.gov/pub/irs-pdf/fw9.pdf | L49: IRS W9 Form | M49: Application
B50: App_PremCategory | G50: Version Sept 2022 - Effective Date September 1st 2022 | H50: 2022 | K50: https://www.snopud.com/save-energy/business/rebates/all/ | L50: PUD C&I Rebates Page | M50: Application
B51: App_PUDAcct | G51: Version February 2023 - Effective Date February 1st, 2023 | H51: 2023 | K51: https://www.bpa.gov/-/media/Aep/energy-efficiency/document-library/DHP-QPL.xlsm | L51: BPA DHP QPL | M51: DHP Retrofit
B52: App_PUDMeter | G52: Version April 2023 - Effective Date April 1st, 2023 | H52: 2023 | K52: https://www.bpa.gov/-/media/Aep/energy-efficiency/document-library/connected-thermostat-qualified-products-list.pdf | L52: BPA Connected T-Stat QPL | M52: Connected Thermostats
B53: App_EstkWh | G53: Version June 2023 - Effective Date June 1st, 2023 | H53: 2023 | K53: https://www.bpa.gov/-/media/Aep/energy-efficiency/document-library/advanced-rooftop-unit-control-qualified-products-list.pdf | L53: BPA ARC QPL | M53: ARC
B54: App_SqFt | G54: Version July 2023 - Effective Date July 1st, 2023 | H54: 2023 | K54: https://www.snopud.com/wp-content/uploads/2021/08/WxSpecs_418.pdf | L54: PUD Weatherization Specs | M54: Windows L Rise MF, Insulation L Rise MF
B55: App_MultiTen | G55: Version Sept 2023 - Effective Date September 1st, 2023 | H55: 2023 | K55: https://www.snopud.com/save-energy/residential/rebates/heating/ | L55: PUD Residential Heating Page | M55: Windows L Rise MF, Windows M&H Rise MF, Insulation L Rise MF, Insulation M&H Rise MF
B56: App_AC | G56: Version Dec 2023 - Effective Date December 1st, 2023 | H56: 2023 | K56: https://www.snopud.com/save-energy/residential/rebates/weatherization/ | L56: PUD Residential Wx Page | M56: Windows L Rise MF, Windows M&H Rise MF, Insulation L Rise MF, Insulation M&H Rise MF
B57: App_HeatSource | G57: Version Feb 2024 - Effective Date February 1st, 2024 | H57: 2023 | K57: https://www.bpa.gov/-/media/Aep/energy-efficiency/document-library/refrigeration-controls-calculator-v10.xlsx | L57: BPA Refrigeration Controls Workbook | M57: Pressure Controls
B58: App_Occ1Start | G58: Version April 2024 - Effective Date April 1st, 2024 | H58: 2023 | K58: https://www.bpa.gov/-/media/Aep/energy-efficiency/document-library/Battery-Charger-Calculator-v20.xlsx | L58: BPA Charger Workbook | M58: Battery Charger Upgrade
B59: App_Occ1End | G59: Version May 2024 - Effective Date May 1st, 2024 | H59: 2023 | K59: https://www.bpa.gov/-/media/Aep/energy-efficiency/document-library/Welder-Upgrade-Calculator-v11.xlsx | L59: BPA Welder Workbook | M59: Welder Upgrade
B60: App_Occ2Start | G60: Version June 2024 - Effective Date June 1st, 2024 | H60: 2023 | K60: https://www.bpa.gov/-/media/Aep/energy-efficiency/document-library/leak-abatement-tool-v25.xlsm | L60: BPA Water Leak Workbook | M60: Water Leak Abatement
B61: App_Occ2End | G61: =Version -> Version July 2024 - Effective Date July 1st, 2024 | H61: 2023
B62: App_Occ3Start
B63: App_Occ3End
B64: App_Occ1StartHr
B65: App_Occ1StartMin
B66: App_Occ1StartAMPM
B67: App_Occ1EndHr
B68: App_Occ1EndMin
B69: App_Occ1EndAMPM
B70: App_Occ2StartHr
B71: App_Occ2StartMin
B72: App_Occ2StartAMPM
B73: App_Occ2EndHr
B74: App_Occ2EndMin
B75: App_Occ2EndAMPM
B76: App_Occ3StartHr
B77: App_Occ3StartMin
B78: App_Occ3StartAMPM
B79: App_Occ3EndHr
B80: App_Occ3EndMin
B81: App_Occ3EndAMPM
B82: App_DaysClosed
B83: App_247Flag
B84: App_CustName
B85: App_CustAdd
B86: App_CustCity
B87: App_CustState
B88: App_CustZip
B89: App_SameAddressFlag
B90: App_CustPriName
B91: App_CustPriTitle
B92: App_CustPriPhone
B93: App_CustPriFax
B94: App_CustPriEmail
B95: App_CustSecName
B96: App_CustSecTitle
B97: App_CustSecPhone
B98: App_CustSecFax
B99: App_CustSecEmail
B100: App_EstStart
B101: App_EstEnd
B102: App_Installer
B103: TAcompany
B104: TAaddress
B105: TAcity
B106: TAstate
B107: TAzip
B108: TAcontact
B109: TAtitle
B110: TAphone
B111: TAmobile
B112: TAemail
B113: App_PDIRecipient
B114: App_AppName
B115: App_AppTitle
B116: App_AppSig
B117: App_AppDate
B119: Participation Agreement
B120: ProjectVerification | C120: C23
B121: PACustChoice
B123: Tracking Sheet
B124: ManagedAcct
B125: CustVendor
B126: ContVendor
B127: ProjectName
B128: AssignedStaff
B129: AssignedDate
B130: CommitDate
B131: ExpPayDate
B132: SharePointID
B133: AuthBy
B134: AuthDate
B135: AuthExpDate
B136: ProjExpDate
B137: PayAuthBy
B138: PayAuthDate
B140: Tracking Sheet - Authorized
B141: AuthProjCost
B142: AuthBaseIncentive
B143: AuthBonusIncentive
B144: AuthAdminIncentive
B145: AuthCustSavings
B146: AuthIncentedSavings
B147: AuthNonIncented
B148: AuthkWRed
B149: AuthPeakkWRed
B150: Verification Report
B151: VerificationDate | C151: R8
B152: VR_Findings | C152: C26
B153: VR_Recommendations | C153: C47
B154: VerificationRepInitials | C154: P52
B155: VerificationRepDate | C155: S52
B157: Payment Request
B158: PayReqDate | C158: C14
B159: PayReqDate2 | C159: C62
B161: Rebate Sheets - Simple
B162: Sheet Name | C162: Extra Ranges | D162: Address if Not Found
B163: HP Retrofit
B164: DHP Retrofit
B165: PTHP | C165: BuildingTypeInput | D165: C24
B166: VRF Retrofit
B167: Connected Thermostats
B168: AHU VFD
B169: Pump VFD
B170: ARC
B171: Windows
B172: Secondary Windows
B173: Windows L Rise MF
B174: Windows M&H Rise MF
B175: Insulation | C175: OccupancyType | D175: D20
B176: Insulation L Rise MF
B177: Insulation M&H Rise MF
B178: ECM
B179: ASH Controls
B180: Case Doors
B181: Pressure Controls
B182: Strip Curtains
B183: DC Kitchen Ventilation
B184: Commercial Clothes Washers
B185: Generator Block Heaters
B186: Vehicle Engine Heater Controls
B187: Battery Charger Upgrade | C187: Req_1,Req_2,Req_3,Req_4,Req_5 | D187: D16,D18,D20,D22,D24
B188: Welder Upgrade | C188: Req_1,Req_2 | D188: D16,D18
B189: Water Leak Abatement | C189: Req_1,Req_2 | D189: D16,D18
B191: Rebate Sheets Custom Import
B192: ARC
B193: Compressed Air
B195: Rebate Sheets Custom Import
B196: CA_ExistingCompressor | C196: C13
B197: CA_ExistingHP | C197: E13
B198: CA_ProposedCompressor | C198: F13
B199: CA_ProposedHP | C199: H13
B200: CA_HrsPerYr | C200: I13
B201: CA_ExistingDryer | C201: C19
B202: CA_ProposedDryer | C202: E19
B203: CA_ProposedDryerCFM | C203: G19
B204: CA_SystemType | C204: C24
B205: CA_SystemHP | C205: E24
B206: CA_ExistingStorage | C206: F24
B207: CA_AddedStorage | C207: G24
B208: CA_SystemTotalSCFM | C208: H24
B209: CA_ZeroLossDrains | C209: C29:H32
... 9 more rows

Sheet HP Retrofit (hidden)
C3: =BannerText -> Energy Services ● eebiz@snopud.com ● www.snopud.com
C5: Rebate Application | M5: PUD Staff:
M6: =IF(AssignedStaff="","",AssignedStaff) -> 
C7: Heat Pump Retrofit (Electric Heat to Heat Pump) | L7: Project Name:
L8: =IF(ProjectName="","",ProjectName) -> 
C9: • | D9: =HPRebate -> 700
C11: Pre-Installation Conditions | J11: Post-Installation Conditions
C12: • Space is conditioned by zonal or forced-air, electric-resistance heat as the primary heating source. No other heating sources are eligible. | J12: • Be an air-to-air heat pump system
J13: • Have an AHRI certificate of product rating;
C14: • Cannot be used to retrofit packaged terminal air conditioning (PTAC) units | J14: • Meet BPA's efficiency specifications for both heating and cooling per the table below.
C29: Rebates and Savings | Q29: FALSE
C30: Make & Model | G30: Unit Cooling Btu/h | H30: Number of Units | I30: Cooling Btu/h | J30: Rounded Tonnage | K30: kWh/yr Savings per Ton | L30: Rebate per Ton | M30: Estimated kWh/yr Savings | N30: =IF(Q29=TRUE,"Rebate with BONUS*","Rebate*") -> Rebate* | Q30: Peak kW Reduction (per Ton) | R30: Total Peak kW Reduction | S30: % PUD Winter Peak kW Reduction | T30: Total PUD Winter Peak kW Reduction
I31: =IF(OR(G31="",H31=""),"",G31*H31) ->  | J31: =IF(I31="","",ROUND((I31/12000),0)) ->  | K31: =IF(SUM(J31)=0,"",(HPRetrofitSavingsPerTon-HPMidstreamSavingsPerTon)) ->  | L31: =IF(SUM(J31)=0,"",N31/J31) ->  | M31: =IF(SUM(J31)=0,"",K31*J31) ->  | N31: =IF(SUM(J31)<=0,"",MAX(((HPRebatesPerTon*J31)-(H31*HPMidstreamRebatePerUnit))*WithBonusMeasures,0)) ->  | Q31: 0.21 | R31: =IF(J31="","",J31*Q31) ->  | S31: 1 | T31: =IF(R31="","",R31*S31) -> 
I32: =IF(OR(G32="",H32=""),"",G32*H32) ->  | J32: =IF(I32="","",ROUND((I32/12000),0)) ->  | K32: =IF(SUM(J32)=0,"",(HPRetrofitSavingsPerTon-HPMidstreamSavingsPerTon)) ->  | L32: =IF(SUM(J32)=0,"",N32/J32) ->  | M32: =IF(SUM(J32)=0,"",K32*J32) ->  | N32: =IF(SUM(J32)<=0,"",MAX(((HPRebatesPerTon*J32)-(H32*HPMidstreamRebatePerUnit))*WithBonusMeasures,0)) ->  | Q32: 0.21 | R32: =IF(J32="","",J32*Q32) ->  | S32: 1 | T32: =IF(R32="","",R32*S32) -> 
K33: =IF(SUM(J33)=0,"",(HPRetrofitSavingsPerTon-HPMidstreamSavingsPerTon)) ->  | N33: =IF(SUM(J33)<=0,"",MAX(((HPRebatesPerTon*J33)-(H33*HPMidstreamRebatePerUnit))*WithBonusMeasures,0)) ->  | Q33: 0.21 | R33: =IF(J33="","",J33*Q33) ->  | S33: 1 | T33: =IF(R33="","",R33*S33) -> 
K34: =IF(SUM(J34)=0,"",(HPRetrofitSavingsPerTon-HPMidstreamSavingsPerTon)) ->  | N34: =IF(SUM(J34)<=0,"",MAX(((HPRebatesPerTon*J34)-(H34*HPMidstreamRebatePerUnit))*WithBonusMeasures,0)) ->  | Q34: 0.21 | R34: =IF(J34="","",J34*Q34) ->  | S34: 1 | T34: =IF(R34="","",R34*S34) -> 
G35: Total: | H35: =IF(SUM(H31:H34)=0,"",SUM(H31:H34)) ->  | I35: =IF(SUM(I31:I34)=0,"",SUM(I31:I34)) ->  | J35: =IF(SUM(J31:J34)=0,"",SUM(J31:J34)) ->  | L35: =IF(Q29=TRUE,"w/ Bonus:","") ->  | M35: =IF(SUM(M31:M34)=0,"",SUM(M31:M34)) ->  | N35: =IF(SUM(N31:N34)=0,"", IF(Cost=0,"Cost?", MIN(Cost,SUM(N31:N34)))) ->  | Q35: Total: | R35: =SUM(R31:R34) -> 0 | T35: =SUM(T31:T34) -> 0
C36: Total Installed Cost: | M36: Project Development Incentive: | N36: =IF(OR(H35="",Cost=0),"",MAX(50,H35*PDI_Rate_HP)) -> 
N37: *Total Rebate is capped at approved project cost. | Q37: Base Rebate
Q38: =IFERROR(SUM(N31:N34)/WithBonusMeasures,0) -> 0
C39: Eligibility, Documentation Requirements & Process Flow
C41: • For existing and new non-residential facilities located in the Snohomish PUD service territory. | S41: Midstream kWh/ton Savings (use MAX for HP Category) | T41: 368
C42: • Complete and submit this Rebate Application, AHRI Certificate of new equipment, quote and W9 Form to eebiz@snopud.com. | S42: Midstream Rebates per Unit (use MAX for HP Category) | T42: 550
C43: • PUD to verify and send Customer the Participation Agreement for signature. PUD pre-approval is required. | S43: Retrofit Savings Per Ton | T43: 4010.57
C44: • Installation may start upon the receipt of signed Participation Agreement back from Customer. | S44: Base Incentive per Ton (BPA) | T44: 700
C45: • PUD to verify installation upon completion and collect invoice, which must show installed cost and new equipment purchase date.
C46: • PUD to process the Rebates Payment and send check to Customer (or Alternate Payee).
E51: BPA's Heat Pump Specification - Air Source, Split and Packaged
E52: Equipment Cooling Capacity (Btu/h) | G52: Mode | H52: Sub-Category or Rating Condition | L52: Efficiency Requirement
E53: < 65,000 | G53: Cooling | H53: Split System and Single Package | L53: 15.0 SEER or 14.3 SEER2
G54: Heating | H54: Split System and Single Package | L54: 8.5 HSPF or 7.2 HSPF2
E55: ≥ 65,000 and < 135,000 | G55: Cooling | H55: Split System and Single Package | L55: 12.4 IEER
G56: Heating | H56: 47°F db/43°F wb Outdoor Air | L56: 3.4 COP
H57: 17°F db/15°F wb Outdoor Air | L57: 2.3 COP
E58: ≥ 135,000 | G58: Cooling | H58: Split System and Single Package | L58: 11.6 IEER
G59: Heating | H59: 47°F db/43°F wb Outdoor Air | L59: 3.3 COP
H60: 17°F db/15°F wb Outdoor Air | L60: 2.25 COP

Sheet DHP Retrofit (hidden)
C3: =BannerText -> Energy Services ● eebiz@snopud.com ● www.snopud.com
C5: Rebate Application | L5: PUD Staff:
L6: =IF(AssignedStaff="","",AssignedStaff) -> 
C7: Ductless Heat Pump Retrofit (Electric Heat to Heat Pump) | K7: Project Name:
K8: =IF(ProjectName="","",ProjectName) -> 
C9: • | D9: =DHPRebate -> 1000
C11: Pre-Installation Conditions | I11: Post-Installation Conditions
C12: • Space is conditioned by zonal or forced-air, electric-resistance heat as the primary heating source. No other heating sources are eligible. | I12: • The installed DHP must be listed on the DHP Qualified Products List (QPL)
I13: • The efficiency requirements apply to both single and multi-head systems.
C14: • Cannot be used to retrofit packaged terminal air conditioning (PTAC) units | I14: • The outdoor condenser must meet BPH's efficiency requirements per the table below.
C21: Rebates and Savings | P21: FALSE
C22: Make & Model | F22: Cooling Btu/h | G22: Number of Units | H22: Total Cooling Btu/h | I22: Rounded Total Tonnage | J22: kWh/yr Savings per Ton | K22: Rebate per Ton | L22: Estimated Total kWh/yr Savings | M22: =IF(P21=TRUE,"Total Rebate with BONUS*","Total Rebate*") -> Total Rebate* | P22: Peak kW Reduction (per Ton) | Q22: Total Peak kW Reduction | R22: % PUD Winter Peak kW Reduction | S22: Total PUD Winter Peak kW Reduction
H23: =IF(SUM(G23)<=0,"",F23*G23) ->  | I23: =IF(SUM(H23)<=0,"",ROUND((H23/12000),0)) ->  | J23: =IF(SUM(I23)<=0,"",(DHPRetrofitSavingsPerTon-DHPMidstreamSavingsPerTon)) ->  | K23: =IF(SUM(I23)<=0,"",M23/I23) ->  | L23: =IF(SUM(I23)<=0,"",J23*I23) ->  | M23: =IF(SUM(I23)<=0,"",MAX(((DHPRebatePerTon*I23)-(G23*DHPMidstreamRebatePerUnit))*WithBonusMeasures,0)) ->  | P23: 0.21 | Q23: =IF(I23="","",I23*P23) ->  | R23: 1 | S23: =IF(Q23="","",Q23*R23) -> 
H24: =IF(SUM(G24)<=0,"",F24*G24) ->  | I24: =IF(SUM(H24)<=0,"",ROUND((H24/12000),0)) ->  | J24: =IF(SUM(I24)<=0,"",(DHPRetrofitSavingsPerTon-DHPMidstreamSavingsPerTon)) ->  | K24: =IF(SUM(I24)<=0,"",M24/I24) ->  | L24: =IF(SUM(I24)<=0,"",J24*I24) ->  | M24: =IF(SUM(I24)<=0,"",MAX(((DHPRebatePerTon*I24)-(G24*DHPMidstreamRebatePerUnit))*WithBonusMeasures,0)) ->  | P24: 0.21 | Q24: =IF(I24="","",I24*P24) ->  | R24: 1 | S24: =IF(Q24="","",Q24*R24) -> 
J25: =IF(SUM(I25)<=0,"",(DHPRetrofitSavingsPerTon-DHPMidstreamSavingsPerTon)) ->  | M25: =IF(SUM(I25)<=0,"",MAX(((DHPRebatePerTon*I25)-(G25*DHPMidstreamRebatePerUnit))*WithBonusMeasures,0)) ->  | P25: 0.21 | Q25: =IF(I25="","",I25*P25) ->  | R25: 1 | S25: =IF(Q25="","",Q25*R25) -> 
J26: =IF(SUM(I26)<=0,"",(DHPRetrofitSavingsPerTon-DHPMidstreamSavingsPerTon)) ->  | M26: =IF(SUM(I26)<=0,"",MAX(((DHPRebatePerTon*I26)-(G26*DHPMidstreamRebatePerUnit))*WithBonusMeasures,0)) ->  | P26: 0.21 | Q26: =IF(I26="","",I26*P26) ->  | R26: 1 | S26: =IF(Q26="","",Q26*R26) -> 
F27: Total: | G27: =IF(SUM(G23:G26)=0,"",SUM(G23:G26)) ->  | H27: =IF(SUM(H23:H26)=0,"",SUM(H23:H26)) ->  | I27: =IF(SUM(I23:I26)=0,"",SUM(I23:I26)) ->  | K27: =IF(P21=TRUE,"w/ Bonus:","") ->  | L27: =IF(SUM(L23:L26)=0,"",SUM(L23:L26)) ->  | M27: =IF(SUM(M23:M26)=0,"", IF(Cost=0,"Cost?",MIN(Cost,SUM(M23:M26)))) ->  | P27: Total: | Q27: =SUM(Q23:Q26) -> 0 | S27: =SUM(S23:S26) -> 0
C28: Total Installed Cost: | L28: Project Development Incentive: | M28: =IF(OR(G27="",Cost=0),"",MAX(50,G27*PDI_Rate_DHP)) ->  | P28: Base Rebate
M29: *Total Rebate is capped at approved project cost. | P29: =IFERROR(SUM(M23:M26)/WithBonusMeasures,0) -> 0
C31: Eligibility, Documentation Requirements & Process Flow
C33: • For existing and new non-residential facilities located in the Snohomish PUD service territory. | R33: Midstream kWh/ton Savings (use MAX for DHP Category) | S33: 524
C34: • Complete and submit this Rebate Application, AHRI Certificate of new equipment, quote and W9 Form to eebiz@snopud.com. | R34: Midstream Rebates per Unit (use MAX for DHP Category) | S34: 650
C35: • PUD to verify and send Customer the Participation Agreement for signature. PUD pre-approval is required. | R35: Retrofit Savings per Ton | S35: 2458.96
C36: • Installation may start upon the receipt of signed Participation Agreement back from Customer. | R36: Base Incentive per Ton (BPA) | S36: 1000
C37: • PUD to verify installation upon completion and collect invoice, which must show installed cost and new equipment purchase date.
C38: • PUD to process the Rebates Payment and send check to Customer (or Alternate Payee).
F42: Indoor Unit Type | H42: Efficiency Requirement | K42: BPA QPL
F43: Non-Ducted | H43: 11.0 HSPF or 10.4 HSPF2 | K43: DHP-QPL Hyperlink
F44: Ducted or Mixed | H44: 10.0 HSPF or 9.4 HSPF2

Sheet PTHP (hidden)
C3: =BannerText -> Energy Services ● eebiz@snopud.com ● www.snopud.com
C5: Rebate Application | M5: PUD Staff:
M6: =IF(AssignedStaff="","",AssignedStaff) -> 
C7: PTHP - Packaged Terminal Heat Pumps | L7: Project Name:
L8: =IF(ProjectName="","",ProjectName) -> 
C9: • | D9: =DOLLAR(PTHPRebate,0)&" per unit For Lodging; $100 per unit for Residential Care" -> $600 per unit For Lodging; $100 per unit for Residential Care
C12: Requirements and Specifications | J12: Pre-Installation Conditions
C13: • This measure applies to retrofits only. | J13: • The space is conditioned by a PTAC or zonal electric-resistance heat as the primary heating source. No other heating sources are eligible.
D14: • This measure is eligible to be installed either in:
E15: • A lodging building type which, for the purposes of this measure, includes: hotel, motel, bed and breakfast, boarding/rooming house, apartment hotel, dormitory, and shelter or;
J16: Post-Installation Conditions
J17: • The installed PTHP must have an AHRI certificate of product rating. All AHRI certified PTHPs qualify for this incentive regardless of the rated COP.
E18: • In a residential care building type which, for the purposes of this measure, includes: nursing home, retirement home, and assisted living.
D21: • No other building types are allowed.
C23: Building Type:
G24: =IF(AND(C24="",COUNTIF(I28:J31,"Building Type?")>0),"Make sure Building Type is selected before proceeding further.","") -> 
C26: Rebates and Savings
C27: Make & Model | H27: Number of Units | I27: kWh Savings per Unit | K27: Rebates per Unit | M27: Total kWh/yr Savings | N27: =IF(Q26=TRUE,"Total Rebate with BONUS*","Total Rebate*") -> Total Rebate* | Q27: Peak kW Reduction (per Ton) | R27: Total Peak kW Reduction | S27: % PUD Winter Peak kW Reduction | T27: Total PUD Winter Peak kW Reduction
I28: =IF(H28="","",IF($C$24="","Building Type?",VLOOKUP($C$24,PTHPTable,2,FALSE))) ->  | K28: =IF(OR(BuildingTypeInput="",H28=""),"",VLOOKUP(BuildingTypeInput,PTHPTable,4,FALSE)) ->  | M28: =IF(K28="","",H28*I28) ->  | N28: =IF(K28="","",H28*K28) ->  | Q28: =IFERROR(IF(H28="","",VLOOKUP($C$24,PTHPTable,3,FALSE)),"") ->  | R28: =IFERROR(IF(H28="","",H28*Q28),"") ->  | S28: 1 | T28: =IF(R28="","",R28*S28) -> 
I29: =IF(H29="","",IF($C$24="","Building Type?",VLOOKUP($C$24,PTHPTable,2,FALSE))) ->  | K29: =IF(OR(BuildingTypeInput="",H29=""),"",VLOOKUP(BuildingTypeInput,PTHPTable,4,FALSE)) ->  | M29: =IF(K29="","",H29*I29) ->  | N29: =IF(K29="","",H29*K29) ->  | Q29: =IFERROR(IF(H29="","",VLOOKUP($C$24,PTHPTable,3,FALSE)),"") ->  | R29: =IFERROR(IF(H29="","",H29*Q29),"") ->  | S29: 1 | T29: =IF(R29="","",R29*S29) -> 
I30: =IF(H30="","",IF($C$24="","Building Type?",VLOOKUP($C$24,PTHPTable,2,FALSE))) ->  | K30: =IF(OR(BuildingTypeInput="",H30=""),"",VLOOKUP(BuildingTypeInput,PTHPTable,4,FALSE)) ->  | M30: =IF(K30="","",H30*I30) ->  | N30: =IF(K30="","",H30*K30) ->  | Q30: =IFERROR(IF(H30="","",VLOOKUP($C$24,PTHPTable,3,FALSE)),"") ->  | R30: =IFERROR(IF(H30="","",H30*Q30),"") ->  | S30: 1 | T30: =IF(R30="","",R30*S30) -> 
I31: =IF(H31="","",IF($C$24="","Building Type?",VLOOKUP($C$24,PTHPTable,2,FALSE))) ->  | K31: =IF(OR(BuildingTypeInput="",H31=""),"",VLOOKUP(BuildingTypeInput,PTHPTable,4,FALSE)) ->  | M31: =IF(K31="","",H31*I31) ->  | N31: =IF(K31="","",H31*K31) ->  | Q31: =IFERROR(IF(H31="","",VLOOKUP($C$24,PTHPTable,3,FALSE)),"") ->  | R31: =IFERROR(IF(H31="","",H31*Q31),"") ->  | S31: 1 | T31: =IF(R31="","",R31*S31) -> 
G32: Total: | H32: =IF(SUM(H28:H31)=0,"",SUM(H28:H31)) ->  | L32: =IF(Q26=TRUE,"w/ Bonus:","") ->  | M32: =IF(SUM(M28:M31)=0,"",SUM(M28:M31)) ->  | N32: =IF(SUM(N28:N31)=0,"", IF(Cost=0,"Cost?",MIN(Cost,SUM(N28:N31)))) ->  | Q32: Total: | R32: =SUM(R28:R31) -> 0 | T32: =SUM(T28:T31) -> 0
C33: Total Installed Cost | M33: Project Development Incentive: | N33: =IF(OR(H32="",Cost=0),"",MAX(50,H32*PDI_Rate_PTHP)) -> 
N34: *Total Rebate is capped at approved project cost. | Q34: Base Rebate
Q35: =IFERROR(SUM(N28:N31)/WithBonusMeasures,0) -> 0 | S35: PTHP Rebate | T35: =MAX(T39:T40) -> 600
C36: Eligibility, Documentation Requirements & Process Flow
C38: • For existing and new non-residential facilities located in the Snohomish PUD service territory. | Q38: OccupancyType | R38: kWh Saving/Unit | S38: kW Reduction/Unit | T38: Rebates/Unit
C39: • Complete and submit this Rebate Application, AHRI Certificate of new equipment, quote and W9 Form to eebiz@snopud.com. | Q39: Lodging - Retrofits | R39: 938 | S39: 0.46 | T39: 600
C40: • PUD to verify and send Customer the Participation Agreement for signature. PUD pre-approval is required. | Q40: Residential Care - Retrofits | R40: 1863 | S40: 0.46 | T40: 100
C41: • Installation may start upon the receipt of signed Participation Agreement back from Customer.
C42: • PUD to verify installation upon completion and collect invoice, which must show installed cost and new equipment purchase date.
C43: • PUD to process the Rebates Payment and send check to Customer (or Alternate Payee).

Sheet VRF Retrofit (hidden)
C3: =BannerText -> Energy Services ● eebiz@snopud.com ● www.snopud.com
C5: Rebate Application | M5: PUD Staff:
M6: =IF(AssignedStaff="","",AssignedStaff) -> 
C7: Variable Refrigeration Flow System Retrofit (Electric Heat to VRF) | L7: Project Name:
L8: =IF(ProjectName="","",ProjectName) -> 
C9: • | D9: =VRFSRebate -> 1000
C11: Pre-Installation Conditions | I11: Post-Installation Conditions
C12: • This measure applies to retrofits only. | I12: • Have an AHRI certificate of product rating;
C13: • Space is conditioned by zonal or forced-air, electric-resistance heat as the primary heating source. No other heating sources are eligible. | I13: • Meet BPA's efficiency specifications for both heating and cooling per the table below.
I14: • The installed VRF system is eligible even if it operates in tandem with a ventilation system that uses any fuel for heating ventilation air.
C36: Rebates and Savings | Q36: FALSE
C37: Make & Model | G37: Outdoor Unit Cooling Btu/h | H37: # of Outdoor Units | I37: Total Cooling Btu/h | J37: Rounded Total Tonnage | K37: kWh/yr Savings per Ton | L37: Rebate per Ton | M37: Estimated kWh/yr Savings | N37: =IF(Q36=TRUE,"Total Rebate with BONUS*","Total Rebate*") -> Total Rebate* | Q37: Peak kW Reduction (per Ton) | R37: Total Peak kW Reduction | S37: % PUD Winter Peak kW Reduction | T37: Total PUD Winter Peak kW Reduction
I38: =IF(G38="","",G38*H38) ->  | J38: =IF(I38="","",ROUND((I38/12000),0)) ->  | K38: =IF(J38="","",$R$52) ->  | L38: =IF(J38="","",VRFSRebate) ->  | M38: =IF(J38="","",K38*J38) ->  | N38: =IF(J38="","",L38*J38) ->  | Q38: 0.22 | R38: =IF(J38="","",J38*Q38) ->  | S38: 1 | T38: =IF(R38="","",R38*S38) -> 
I39: =IF(G39="","",G39*H39) ->  | J39: =IF(I39="","",ROUND((I39/12000),0)) ->  | K39: =IF(J39="","",$R$52) ->  | L39: =IF(J39="","",VRFSRebate) ->  | M39: =IF(J39="","",K39*J39) ->  | N39: =IF(J39="","",L39*J39) ->  | Q39: 0.22 | R39: =IF(J39="","",J39*Q39) ->  | S39: 1 | T39: =IF(R39="","",R39*S39) -> 
L40: =IF(J40="","",VRFSRebate) ->  | Q40: 0.22 | R40: =IF(J40="","",J40*Q40) ->  | S40: 1 | T40: =IF(R40="","",R40*S40) -> 
L41: =IF(J41="","",VRFSRebate) ->  | Q41: 0.22 | R41: =IF(J41="","",J41*Q41) ->  | S41: 1 | T41: =IF(R41="","",R41*S41) -> 
I42: Total: | J42: =IF(SUM(J38:J41)=0,"",SUM(J38:J41)) ->  | M42: =IF(SUM(M38:M41)=0,"",SUM(M38:M41)) ->  | N42: =IF(J42="","", IF(Cost=0,"Cost?",MIN(Cost,SUM(N38:N41)))) ->  | Q42: 0.22 | R42: =IF(J42="","",J42*Q42) ->  | S42: 1 | T42: =IF(R42="","",R42*S42) -> 
C43: Total Installed Cost*: | M43: Project Development Incentive: | N43: =IF(OR(J42="",Cost=0),"",MAX(50,PDI_Rate_VRF)) ->  | Q43: Total: | R43: =SUM(R38:R38) -> 0 | T43: =SUM(T38:T38) -> 0
N44: *Total Rebate is capped at approved project cost.
C46: Eligibility, Documentation Requirements & Process Flow | Q46: Base Rebate
C48: • For existing and new non-residential facilities located in the Snohomish PUD service territory. | Q48: =IFERROR(SUM(N38:N41)/WithBonusMeasures,0) -> 0
C49: • Complete and submit this Rebate Application, AHRI Certificate of new equipment, quote and W9 Form to eebiz@snopud.com.
C50: • PUD to verify and send Customer the Participation Agreement for signature. PUD pre-approval is required.
C51: • Installation may start upon the receipt of signed Participation Agreement back from Customer. | Q51: Measure Name | R51: kWh Saving/Unit | S51: kW Reduction (Per Ton) | T51: Rebate/Ton
C52: • PUD to verify installation upon completion and collect invoice, which must show installed cost and new equipment purchase date. | Q52: VRF Flow Systems | R52: 4222.33 | S52: 0.22 | T52: 1000
C53: • PUD to process the Rebates Payment and send check to Customer (or Alternate Payee).
E58: BPA's Heat Pump Specification - Air Source, Split and Packaged
E59: Equipment Cooling Capacity (Btu/h) | G59: Mode | H59: Sub-Category or Rating Condition | K59: Efficiency Requirement
E60: < 65,000 | G60: Cooling | H60: VRF Multi-split System | K60: 21 | L60: SEER
G61: Heating | H61: VRF Multi-split System | K61: 11 | L61: HSPF
E62: ≥ 65,000 and < 135,000 | G62: Cooling | H62: VRF Multi-split System (with or without heat recovery) | K62: 12 | L62: EER and
K63: 23 | L63: IEER
G64: Heating | H64: 47°F db/43°F wb Outdoor Air | K64: 3.7 | L64: COP
H65: 17°F db/15°F wb Outdoor Air | K65: 2.27 | L65: COP
E66: ≥ 135,000 and < 240,000 | G66: Cooling | H66: VRF Multi-split System (with or without heat recovery) | K66: 10.7 | L66: EER and
K67: 20.5 | L67: IEER
G68: Heating | H68: 47°F db/43°F wb Outdoor Air | K68: 3.5 | L68: COP
H69: 17°F db/15°F wb Outdoor Air | K69: 2.16 | L69: COP
E70: ≥ 240,000 | G70: Cooling | H70: VRF Multi-split System (with or without heat recovery) | K70: 9.8 | L70: EER and
K71: 18.9 | L71: IEER
G72: Heating | H72: 47°F db/43°F wb Outdoor Air | K72: 3.5 | L72: COP
H73: 17°F db/15°F wb Outdoor Air | K73: 2.16 | L73: COP

Sheet Connected Thermostats (hidden)
C3: =BannerText -> Energy Services ● eebiz@snopud.com ● www.snopud.com
C5: Rebate Application | L5: PUD Staff:
L6: =IF(AssignedStaff="","",AssignedStaff) -> 
C7: Connected Thermostats (Replacing non Web enabled T-stats) | K7: Project Name:
K8: =IF(ProjectName="","",ProjectName) -> 
C9: • | D9: =ConnectedTStatRebate -> 200
C11: Requirements and Specifications | I11: Pre-Installation Conditions
C12: • This measure is for retrofits only. | I12: • Heating fuel type of system to be controlled by new thermostat may be electric or gas; and
C13: • This measure is not eligible for lodging, 24/7 occupancy, or semi-conditioned spaces.
C14: • Connected thermostats are not eligible for an ARC payment. | I14: • The existing thermostat is not web-enabled
C15: • A building is eligible to receive payments for more than one thermostat.
C17: Pre-Installation Conditions
C18: • Heating fuel type of system to be controlled by new thermostat may be electric or gas; and
C19: • The existing thermostat is not web-enabled
C21: Post-Installation Conditions
C22: • The installed connected thermostat must be listed on the Connected Thermostat Qualified Products List (QPL)
C23: • The installed thermostat controls an existing HVAC supply fan serves a single zone. "Invisible zones" are permitted (e.g., separate rooftop units serving different portions of a large retail space).
C25: • Thermostat is connected to the web.
C26: • Temperature setback is used for unoccupied hours (heating and/or cooling, as applicable).
C27: • Fan schedule uses auto mode for unoccupied hours (e.g., during unoccupied hours or holidays, the fan will only run when there is a demand for heating or cooling).
C29: • Override duration set to three hours or less.
C30: • For heat pumps, auxiliary resistance heat lock-out is enabled with appropriate temperature set point.
C31: • In cases where two or more systems serve spaces that are not separated by physical barriers (e.g., "invisible zones"), simultaneous heating and cooling is eliminated (e.g. by having identical temperature set points and schedules with appropriate dead-bands, or through having network-coordinated controls).
C35: Rebates and Savings
C36: Location | E36: Heating Fuel Type | F36: Make & Model of New Thermostat (dropdown list) | I36: Quantity | J36: kWh/yr Savings per Unit | K36: Rebate per Unit | L36: Estimated kWh/yr Savings | M36: Total Rebate* | P36: Peak kW Reduction (per Unit) | Q36: Total Peak kW Reduction | R36: % PUD Winter Peak kW Reduction | S36: Total PUD Winter Peak kW Reduction
J37: =IF(I37="","",IF(E37="","Heating Fuel Type?",VLOOKUP(E37,ConnectedTstatLookup,2,FALSE))) ->  | K37: =IF(E37="","",ConnectedTStatRebate) ->  | L37: =IFERROR(IF(OR(E37="",I37=""),"",IF(F37="","Select Make & Model",J37*I37)),"") ->  | M37: =IF(E37="","",IF(OR(L37="Check Requirements",L37="Select Make & Model"),0,K37*I37)) ->  | P37: =IF(E37="Electric",0.56,IF(E37="Gas",0.05,"")) ->  | Q37: =IF(L37="","",I37*P37) ->  | R37: 0.25 | S37: =IF(Q37="","",Q37*R37) -> 
J38: =IF(I38="","",IF(E38="","Heating Fuel Type?",VLOOKUP(E38,ConnectedTstatLookup,2,FALSE))) ->  | K38: =IF(E38="","",ConnectedTStatRebate) ->  | L38: =IFERROR(IF(OR(E38="",I38=""),"",IF(F38="","Select Make & Model",J38*I38)),"") ->  | M38: =IF(E38="","",IF(OR(L38="Check Requirements",L38="Select Make & Model"),0,K38*I38)) ->  | P38: =IF(E38="Electric",0.56,IF(E38="Gas",0.05,"")) ->  | Q38: =IF(L38="","",I38*P38) ->  | R38: 0.25 | S38: =IF(Q38="","",Q38*R38) -> 
J39: =IF(I39="","",IF(E39="","Heating Fuel Type?",VLOOKUP(E39,ConnectedTstatLookup,2,FALSE))) ->  | K39: =IF(E39="","",ConnectedTStatRebate) ->  | P39: =IF(E39="Electric",0.56,IF(E39="Gas",0.05,"")) ->  | Q39: =IF(L39="","",I39*P39) ->  | R39: 0.25 | S39: =IF(Q39="","",Q39*R39) -> 
C40: Total Installed Cost*: | H40: Total: | I40: =IF(SUM(I37:I39)=0,"",SUM(I37:I39)) ->  | L40: =IF(SUM(L37:L39)=0,"",SUM(L37:L39)) ->  | M40: =IF(SUM(M37:M39)=0,"", IF(Cost=0,"Cost?",MIN(Cost,SUM(M37:M39)))) ->  | P40: Total: | Q40: =SUM(Q37:Q39) -> 0 | S40: =SUM(S37:S39) -> 0
L41: Project Development Incentive: | M41: =IF(OR(I40="",Cost=0),"",MAX(50,I40*PDI_Rate_Tstats)) -> 
M42: *Total Rebate is capped at approved project cost.
C44: Eligibility, Documentation Requirements & Process | R44: Connected Tstat Rebate | S44: 200
C46: • For existing and new non-residential facilities located in the Snohomish PUD service territory. | P46: BaseRebate
C47: • Complete and submit this Rebate Application and W9 Form to eebiz@snopud.com. | P47: =IFERROR(SUM(M37:M39)/WithBonusMeasures,0) -> 0
C48: • PUD to verify and send Customer the Participation Agreement for signature. PUD pre-approval is required.
C49: • Installation may start upon the receipt of signed Participation Agreement back from Customer. | P49: HeatingFuelType | Q49: kWh Savings/unit
C50: • PUD to verify installation upon completion and collect invoice, which must show installed cost and new equipment purchase date. | P50: Electric | Q50: 905.91
C51: • PUD to process the Rebates Payment and send check to Customer (or Alternate Payee). | P51: Gas | Q51: 280.65
W64: BPA Qualified Connected Thermostats (12/17)
W65: Carrier - 33CONNECTSTAT, with the fan set to ON during occupied, and AUTO during unoccupied
W66: Daikin - BRC1E73 when paired with intelligent Touch Manager (iTM)
W67: Ecobee - EMS Si
W68: Ecobee - 3
W69: Ecobee - 3 Lite
W70: Ecobee - 4
W71: Honeywell - WiFi 9000
W72: Honeywell - Prestige IAQ
W73: Honeywell - Vision Pro 8000: TH8320R1003 with Redlink Gateway
W74: Honeywell - Vision Pro 8000: TH8321WF1001
W75: Honeywell - LCBS Connect System with TS120 Wall Module, CVAHU Controller (PN: YCRL6438SR1000) and LCBS Connect Gateway (PN:LGW1000)
W76: Makad Energy - Robert Shaw 9801i2 thermostat connected to a Dreamwatts platform
W77: Pelican Wireless Systems - TS200 with Gateway
W78: Pelican Wireless Systems - TS200H with Gateway
W79: Pelican Wireless Systems - TS250 with Gateway
W80: Pelican Wireless Systems - TS250H with Gateway
W81: Profile Systems - P1900
W82: Proliphix - IMT550c/w
W83: Siemens - RDY2000BN when paired with an Apogee BAS
W84: Transformative Wave - CATALYST
W85: Unity Energy Services Group - T-32P thermostat connected to a UNITY Energy Management System
W86: Venstar - TS4900SCH
W87: Venstar - T8850 Colortouch
W88: Venstar - T8900 Colortouch
W89: Venstar - Explorer T4800 with wifi module (ACC-VWF1) and skyport app
W90: Venstar - Explorer T4900 with wifi module (ACC-VWF1) and skyport app
W91: Venstar - Explorer mini T2050

Sheet AHU VFD (hidden)
C3: =BannerText -> Energy Services ● eebiz@snopud.com ● www.snopud.com
C5: Rebate Application | M5: PUD Staff:
M6: =IF(AssignedStaff="","",AssignedStaff) -> 
C7: Variable Frequency Drives for Air Handling Unit Fan Motors | L7: Project Name:
L8: =IF(ProjectName="","",ProjectName) -> 
C9: • | D9: =VFDRebate -> 300
C11: Pre-Installation Conditions | J11: Post-Installation Conditions
C12: • This measure applies to retrofits only. | J12: • Retrofit adds a VFD to control the fan with variable-speed operation.
C13: • Building heating fuel type may be either electric or gas. | J13: • Any existing AHU throttling or bypass devices (e.g., inlet guide vanes dampers, etc.) must be removed or permanently disabled.
C14: • VFD must be installed on existing AHU single-speed fan.
C18: Rebates and Savings
C19: Unit ID | E19: Existing AHU Manufacturer & Model Number | G19: Fan HP | H19: VFD Manufacturer & Model Number | K19: Rebate per HP | L19: kWh/yr. Savings per HP | M19: Total kWh/yr Savings | N19: Total Rebate* | Q19: Peak kW Reduction (per HP) | R19: Total Peak kW Reduction | S19: % PUD Winter Peak kW Reduction | T19: Total PUD Winter Peak kW Reduction
K20: =IF(G20="","",VFDRebate) ->  | L20: =IF(K20="","",1500) ->  | M20: =IF(OR(G20="",L20=""),"",G20*L20) ->  | N20: =IF(OR(G20="",L20=""),"",G20*K20) ->  | Q20: 0.75 | R20: =IF(M20="","",G20*Q20) ->  | S20: 0.5 | T20: =IF(R20="","",R20*S20) -> 
K21: =IF(G21="","",VFDRebate) ->  | L21: =IF(K21="","",1500) ->  | M21: =IF(OR(G21="",L21=""),"",G21*L21) ->  | N21: =IF(OR(G21="",L21=""),"",G21*K21) ->  | Q21: 0.75 | R21: =IF(M21="","",G21*Q21) ->  | S21: 0.5 | T21: =IF(R21="","",R21*S21) -> 
K22: =IF(G22="","",VFDRebate) ->  | L22: =IF(K22="","",1500) ->  | M22: =IF(OR(G22="",L22=""),"",G22*L22) ->  | N22: =IF(OR(G22="",L22=""),"",G22*K22) ->  | Q22: 0.75 | R22: =IF(M22="","",G22*Q22) ->  | S22: 0.5 | T22: =IF(R22="","",R22*S22) -> 
K23: =IF(G23="","",VFDRebate) ->  | L23: =IF(K23="","",1500) ->  | M23: =IF(OR(G23="",L23=""),"",G23*L23) ->  | N23: =IF(OR(G23="",L23=""),"",G23*K23) ->  | Q23: 0.75 | R23: =IF(M23="","",G23*Q23) ->  | S23: 0.5 | T23: =IF(R23="","",R23*S23) -> 
K24: =IF(G24="","",VFDRebate) ->  | L24: =IF(K24="","",1500) ->  | M24: =IF(OR(G24="",L24=""),"",G24*L24) ->  | N24: =IF(OR(G24="",L24=""),"",G24*K24) ->  | Q24: 0.75 | R24: =IF(M24="","",G24*Q24) ->  | S24: 0.5 | T24: =IF(R24="","",R24*S24) -> 
C25: Total Installed Cost: | F25: Total: | G25: =IF(SUM(G20:G24)=0,"",SUM(G20:G24)) ->  | L25: Total: | M25: =IF(SUM(M20:M24)=0,"",SUM(M20:M24)) ->  | N25: =IF(SUM(N20:N24)=0,"", IF(Cost=0,"Cost?",MIN(Cost,SUM(N20:N24)))) ->  | Q25: Total: | R25: =SUM(R20:R24) -> 0 | T25: =SUM(T20:T24) -> 0
M26: Project Development Incentive: | N26: =IF(OR(G25="",Cost=0),"",MAX(50,G25*PDI_Rate_VFD)) -> 
N27: *Total Rebate is capped at approved project cost. | Q27: BaseIncentive
C28: Eligibility, Documentation Requirements & Process | Q28: =IFERROR(SUM(N20:N24)/WithBonusMeasures,0) -> 0
C30: • For existing and new non-residential facilities located in the Snohomish PUD service territory.
C31: • Complete and submit this Rebate Application and W9 Form to eebiz@snopud.com.
C32: • PUD to verify and send Customer the Participation Agreement for signature. PUD pre-approval is required.
C33: • Installation may start upon the receipt of signed Participation Agreement back from Customer.
C34: • PUD to verify installation upon completion and collect invoice, which must show installed cost and new equipment purchase date.
C35: • PUD to process the Rebates Payment and send check to Customer (or Alternate Payee).

Sheet Pump VFD (hidden)
C3: =BannerText -> Energy Services ● eebiz@snopud.com ● www.snopud.com
C5: Rebate Application | M5: PUD Staff:
M6: =IF(AssignedStaff="","",AssignedStaff) -> 
C7: Variable Frequency Drives for Pumps | L7: Project Name:
L8: =IF(ProjectName="","",ProjectName) -> 
C9: • | D9: =PumpVFDRebate -> 180
C11: Pre-Installation Conditions | J11: Post-Installation Conditions
C12: • Building/Facility heating fuel source may be either electric or gas | J12: • Retrofit adds a VFD to control the pump with variable-speed operation.
C13: • Existing VFD must be installed on a commercial or industrial single-speed pump that is between 3 and 100hp. | J13: • Any existing pump throttling (i.e., flow control valve, etc.) or bypass devices (i.e., 3-way valves, etc.) must be removed or permanently disabled.
C15: • The system can be either a constant or variable load.
C18: Rebates and Savings
C19: Pump Description, ID, & Model Number | G19: Pump HP | H19: VFD Manufacturer & Model Number | K19: Rebate per HP | L19: kWh/yr. Savings per HP | M19: Total kWh/yr Savings | N19: Total Rebate* | Q19: Peak kW Reduction (per HP) | R19: Total Peak kW Reduction | S19: % PUD Winter Peak kW Reduction | T19: Total PUD Winter Peak kW Reduction
K20: =IF(G20="","",PumpVFDRebate) ->  | L20: =IF(K20="","",760) ->  | M20: =IF(OR(G20="",L20=""),"",G20*L20) ->  | N20: =IF(OR(G20="",L20=""),"",G20*K20) ->  | Q20: 0.09 | R20: =IF(M20="","",G20*Q20) ->  | S20: 0.5 | T20: =IF(R20="","",R20*S20) -> 
K21: =IF(G21="","",PumpVFDRebate) ->  | L21: =IF(K21="","",760) ->  | M21: =IF(OR(G21="",L21=""),"",G21*L21) ->  | N21: =IF(OR(G21="",L21=""),"",G21*K21) ->  | Q21: =$Q$20 -> 0.09 | R21: =IF(M21="","",G21*Q21) ->  | S21: 0.5 | T21: =IF(R21="","",R21*S21) -> 
K22: =IF(G22="","",PumpVFDRebate) ->  | M22: =IF(OR(G22="",L22=""),"",G22*L22) ->  | N22: =IF(OR(G22="",L22=""),"",G22*K22) ->  | Q22: =$Q$20 -> 0.09 | R22: =IF(M22="","",G22*Q22) ->  | S22: 0.5 | T22: =IF(R22="","",R22*S22) -> 
K23: =IF(G23="","",PumpVFDRebate) ->  | M23: =IF(OR(G23="",L23=""),"",G23*L23) ->  | N23: =IF(OR(G23="",L23=""),"",G23*K23) ->  | Q23: 0.09 | R23: =IF(M23="","",G23*Q23) ->  | S23: 0.5 | T23: =IF(R23="","",R23*S23) -> 
K24: =IF(G24="","",PumpVFDRebate) ->  | M24: =IF(OR(G24="",L24=""),"",G24*L24) ->  | N24: =IF(OR(G24="",L24=""),"",G24*K24) ->  | Q24: 0.09 | R24: =IF(M24="","",G24*Q24) ->  | S24: 0.5 | T24: =IF(R24="","",R24*S24) -> 
C25: Total Installed Cost: | F25: Total: | G25: =IF(SUM(G20:G24)=0,"",SUM(G20:G24)) ->  | L25: Total: | M25: =IF(SUM(M20:M24)=0,"",SUM(M20:M24)) ->  | N25: =IF(SUM(N20:N24)=0,"", IF(Cost=0,"Cost?",MIN(Cost,SUM(N20:N24)))) ->  | Q25: Total: | R25: =SUM(R20:R24) -> 0 | T25: =SUM(T20:T24) -> 0
M26: Project Development Incentive: | N26: =IF(OR(G25="",Cost=0),"",MAX(50,G25*PDI_Rate_VFDPump)) -> 
N27: *Total Rebate is capped at approved project cost. | Q27: BaseIncentive
C28: Eligibility, Documentation Requirements & Process | Q28: =IFERROR(SUM(N20:N24)/WithBonusMeasures,0) -> 0
C30: • For existing and new non-residential facilities located in the Snohomish PUD service territory.
C31: • Complete and submit this Rebate Application and W9 Form to eebiz@snopud.com.
C32: • PUD to verify and send Customer the Participation Agreement for signature. PUD pre-approval is required.
C33: • Installation may start upon the receipt of signed Participation Agreement back from Customer.
C34: • PUD to verify installation upon completion and collect invoice, which must show installed cost and new equipment purchase date.
C35: • PUD to process the Rebates Payment and send check to Customer (or Alternate Payee).

Sheet ARC (hidden)
C3: =BannerText -> Energy Services ● eebiz@snopud.com ● www.snopud.com
C5: Rebate Application | M5: PUD Staff:
M6: =IF(AssignedStaff="","",AssignedStaff) -> 
C7: Advanced Rooftop Unit Control (ARC) | L7: Project Name:
L8: =IF(ProjectName="","",ProjectName) -> 
C9: • $250/Ton for ARC Retrofits • $150/Ton for ARC Lite Retrofits
C14: Pre-Conditions | I14: Post-Conditions
C16: Qualifying ARC retrofit applications have the following characteristics: | I16: Both ARC and ARC-Lite retrofits must add one of the following equipment options to the existing RTU:
C17: • Heating type is electric or gas.
C18: • Existing RTU has the following characteristics: | I18: • A VFD and controller for variable speed fan operation; or
C19: • A unitary system (split-systems are not eligible), | I19: • A multispeed motor and controller for multispeed fan operation
C20: • A constant-speed supply fan (RTUs with variable speed fans are not eligible), and | I20: The ARC Retrofit applications must also include a controller with both of the following capabilities:
C21: • Less than 20 years old and in good working order. | I21: • Digital, integrated economizer control; and
I22: • Web-enabled control, monitoring and alarms.
I23: The ARC and ARC-Lite products must be on the BPA ARC Qualified Product List.
C26: Rebates and Savings
C27: Unit ID | D27: Model # | F27: Pre-Insp. Complete? | G27: Rated Cooling Capacity (Btu/h) | H27: Heat Type | I27: Operating Hours per Year | J27: Proposed ARC Type | K27: Rounded Cooling Tonnage | L27: Avg. kWh/Ton/ Yr Savings | M27: Estimated kWh/Unit/ Yr Savings | N27: Rebates per Unit* | Q27: Total Peak kW Reduction | R27: % PUD Winter Peak kW Reduction | S27: Total PUD Winter Peak kW Reduction | U27: For Lookup Table | W27: PDI
K28: =IF(G28="","",ROUND(G28/12000,1)) ->  | L28: =IF(OR(H28="",I28="",K28="",J28=""),"",VLOOKUP(U28,ARCIncentiveTable,6,FALSE)) ->  | M28: =IF(OR(K28="",L28=""),"",K28*L28) ->  | N28: =IF(OR(G28="",J28=""),"", IF(F28="","Pre-Inspection?", K28*VLOOKUP(J28,ARCIncentives,2,FALSE))) ->  | Q28: =IFERROR(IF(J28="",0,VLOOKUP(U28,ARCIncentiveTable,9,FALSE)*K28),0) -> 0 | R28: =IF(I28="",0,IF(I28>4000,1,0.75)) -> 0 | S28: =IFERROR(IF(Q28=0,0,Q28*R28),0) -> 0 | U28: =H28&I28&J28 ->  | W28: =IFERROR(IF(OR(F28<>"Yes",J28=""),"",IF(J28="ARC-Lite",K28*PDI_Rate_ARC_Lite,K28*PDI_Rate_ARC_Full)),0) -> 
K29: =IF(G29="","",ROUND(G29/12000,1)) ->  | L29: =IF(OR(H29="",I29="",K29="",J29=""),"",VLOOKUP(U29,ARCIncentiveTable,6,FALSE)) ->  | M29: =IF(OR(K29="",L29=""),"",K29*L29) ->  | N29: =IF(OR(G29="",J29=""),"", IF(F29="","Pre-Inspection?", K29*VLOOKUP(J29,ARCIncentives,2,FALSE))) ->  | Q29: 0 | R29: 0 | S29: 0 | U29: =H29&I29&J29 ->  | W29: =IFERROR(IF(OR(F29<>"Yes",J29=""),"",IF(J29="ARC-Lite",K29*PDI_Rate_ARC_Lite,K29*PDI_Rate_ARC_Full)),0) -> 
L30: =IF(OR(H30="",I30="",K30="",J30=""),"",VLOOKUP(U30,ARCIncentiveTable,6,FALSE)) ->  | N30: =IF(OR(G30="",J30=""),"", IF(F30="","Pre-Inspection?", K30*VLOOKUP(J30,ARCIncentives,2,FALSE))) ->  | Q30: =IFERROR(IF(J30="",0,VLOOKUP(U30,ARCIncentiveTable,9,FALSE)*K30),0) -> 0 | R30: =IF(I30="",0,IF(I30>4000,1,0.75)) -> 0 | S30: =IFERROR(IF(Q30=0,0,Q30*R30),0) -> 0 | U30: =H30&I30&J30 ->  | W30: =IFERROR(IF(OR(F30<>"Yes",J30=""),"",IF(J30="ARC-Lite",K30*PDI_Rate_ARC_Lite,K30*PDI_Rate_ARC_Full)),0) -> 
L31: =IF(OR(H31="",I31="",K31="",J31=""),"",VLOOKUP(U31,ARCIncentiveTable,6,FALSE)) ->  | N31: =IF(OR(G31="",J31=""),"", IF(F31="","Pre-Inspection?", K31*VLOOKUP(J31,ARCIncentives,2,FALSE))) ->  | Q31: =IFERROR(IF(J31="",0,VLOOKUP(U31,ARCIncentiveTable,9,FALSE)*K31),0) -> 0 | R31: =IF(I31="",0,IF(I31>4000,1,0.75)) -> 0 | S31: =IFERROR(IF(Q31=0,0,Q31*R31),0) -> 0 | U31: =H31&I31&J31 ->  | W31: =IFERROR(IF(OR(F31<>"Yes",J31=""),"",IF(J31="ARC-Lite",K31*PDI_Rate_ARC_Lite,K31*PDI_Rate_ARC_Full)),0) -> 
L32: =IF(OR(H32="",I32="",K32="",J32=""),"",VLOOKUP(U32,ARCIncentiveTable,6,FALSE)) ->  | N32: =IF(OR(G32="",J32=""),"", IF(F32="","Pre-Inspection?", K32*VLOOKUP(J32,ARCIncentives,2,FALSE))) ->  | Q32: 0 | R32: 0 | S32: 0 | W32: =IFERROR(IF(OR(F32<>"Yes",J32=""),"",IF(J32="ARC-Lite",K32*PDI_Rate_ARC_Lite,K32*PDI_Rate_ARC_Full)),0) -> 
J33: =IF(COUNTIF(F28:F32,"No")>0,"! Pre-Inspection Required for each unit for Authorization !","") ->  | K33: =IF(SUM(K28:K32)=0,"",SUM(K28:K32)) ->  | M33: =IF(SUM(M28:M32)=0,"",SUM(M28:M32)) ->  | N33: =IF(SUM(N28:N32)=0,"", IF(Cost=0,"Cost?",MIN(Cost,SUM(N28:N32)))) ->  | Q33: =SUM(Q28:Q32) -> 0 | S33: =SUM(S28:S32) -> 0 | W33: =SUM(W17:W32) -> 0
M34: Project Development Incentive: | N34: =IF(Cost=0,"",MAX(50,W33)) -> 
N35: *Total Rebate is capped at approved project cost. | Q35: BaseIncentive
C36: Contractor Info, Proposed Controller & Project Cost | Q36: =IFERROR(SUM(N28:N32)/WithBonusMeasures,0) -> 0
C37: Proposed ARC Product Name | H37: Proposed ARC-Lite Product Name | M37: Project Cost*
C39: =Version -> Version July 2024 - Effective Date July 1st, 2024 | N39: * Cost should include equipment, labor, permit and tax.

Sheet ARC Tables (hidden)
B2: Advanced Rooftop Unit Control Retrofit | D2: Col 1 | E2: Col 2 | F2: Col 3 | G2: Col 4 | H2: Col 5 | I2: Col 6 | J2: Col 7 | K2: Col 8 | L2: Col 9
B3: Qualified Products List | D3: Incentive & Savings Table | H3: Rebates/Unit <5 tons | I3: kWh/ton/yr | J3: 2 Ton Avg/Unit | K3: $/kWh | L3: kW
B4: Updated: 8/16/21 | D4: Electric< 2,500ARC | E4: Advanced Rooftop Unit Control | F4: Electric Heat | G4: Less than 2500 occupied hours per year | H4: 1500 | I4: 619.5 | J4: =I4*2 -> 1239 | K4: =H4/J4 -> 1.210653753 | L4: 0.17
D5: Gas< 2,500ARC | E5: Advanced Rooftop Unit Control | F5: Gas Heat | G5: Less than 2500 occupied hours per year | H5: 1500 | I5: 467 | J5: 934 | K5: 1.605995717 | L5: 0.05
D6: Electric2,500 - 5,500ARC | E6: Advanced Rooftop Unit Control | F6: Electric Heat | G6: 2500 to 5500 occupied hours per year | H6: 1500 | I6: 866 | J6: 1732 | K6: 0.8660508083 | L6: 0.22
B7: ARC-Full | D7: Gas2,500 - 5,500ARC | E7: Advanced Rooftop Unit Control | F7: Gas Heat | G7: 2500 to 5500 occupied hours per year | H7: 1500 | I7: 714 | J7: 1428 | K7: 1.050420168 | L7: 0.1
B8: Bes-Tech Digi-RTU | D8: Electric> 5,500ARC | E8: Advanced Rooftop Unit Control | F8: Electric Heat | G8: greater than 5500 occupied hours per year | H8: 1500 | I8: 1162 | J8: 2324 | K8: 0.6454388985 | L8: 0.28
B9: Energit V1 or V2 Controller | D9: Gas> 5,500ARC | E9: Advanced Rooftop Unit Control | F9: Gas Heat | G9: greater than 5500 occupied hours per year | H9: 1500 | I9: 1010 | J9: 2020 | K9: 0.7425742574 | L9: 0.16
B10: Honeywell LCBS with Smart VFD and LGW1000 Gateway | D10: Electric< 2,500ARC-Lite | E10: Advanced Rooftop Unit Control-Lite | F10: Electric Heat | G10: Less than 2500 occupied hours per year | H10: 500 | I10: 134.5 | J10: 269 | K10: 1.858736059 | L10: 0.01
B11: Johnson Controls - Verasys System with Smart Building Hub and Constant Volume Controller | D11: Gas< 2,500ARC-Lite | E11: Advanced Rooftop Unit Control-Lite | F11: Gas Heat | G11: Less than 2500 occupied hours per year | H11: 500 | I11: 159.5 | J11: 319 | K11: 1.567398119 | L11: 0.03
B12: Pelican Wireless Systems - Pelican TS200 or TS250 Thermostat | D12: Electric2,500 - 5,500ARC-Lite | E12: Advanced Rooftop Unit Control-Lite | F12: Electric Heat | G12: 2500 to 5500 occupied hours per year | H12: 500 | I12: 358 | J12: 716 | K12: 0.6983240223 | L12: 0.03
B13: Pelican Wireless Systems - Pelican zone controller Z8 or Z24, or PEARL Economizer | D13: Gas2,500 - 5,500ARC-Lite | E13: Advanced Rooftop Unit Control-Lite | F13: Gas Heat | G13: 2500 to 5500 occupied hours per year | H13: 500 | I13: 426 | J13: 852 | K13: 0.5868544601 | L13: 0.08
B14: Pelican Wireless Systems - Pelican Extended Range Wireless Gateway | D14: Electric> 5,500ARC-Lite | E14: Advanced Rooftop Unit Control-Lite | F14: Electric Heat | G14: greater than 5500 occupied hours per year | H14: 500 | I14: 627 | J14: 1254 | K14: 0.3987240829 | L14: 0.05
B15: Transformative Wave CATALYST with eIQ | D15: Gas> 5,500ARC-Lite | E15: Advanced Rooftop Unit Control-Lite | F15: Gas Heat | G15: greater than 5500 occupied hours per year | H15: 500 | I15: 745 | J15: 1490 | K15: 0.3355704698 | L15: 0.14
B16: Unity Energy Solutions that includes USC Site Controller
B17: Unity Energy Solutions that includes SMT400 Thermostat or M-172 PLC Controller | G17: Rebate/Ton
B18: Unity Energy Solutions that includes Site Support Package Subscription | F18: ARC | G18: 250
B19: N/A | D19: Phase | F19: ARC-Lite | G19: 150
D20: Single
D21: 3-Phase
B22: ARC-Lite:
B23: Bes-Tech Digi-RTU | D23: YesNo
B24: Enerfit V1 or V2 Controller | D24: Yes
B25: Honeywell LCBS with Smart VFD | D25: No
B26: Johnson Controls - Verasys System with Smart Building Hub and Constant Volume Controller
B27: Lennox ARC with DCV | D27: Heat Type
B28: NexRev DrivePak | D28: Gas
B29: Pelican Solution that includes Pelican TS200 or TS250 Thermostat | D29: Electric
B30: Pelican Solution that includes Pelican PEARL Economizer | D30: None
B31: Pelican Solution that includes Extended Range Wireless Gateway
B32: Trane ARC with DCV | D32: Voltage
B33: Transformative Wave CATALYST Lite | D33: 208
B34: Unity Energy Solutions USC Site Controller | D34: 460
B35: Unity Energy Solutions SMT400 Thermostat or M-172 PLC Controller | D35: 575
D37: Electric Utilities | E37: Gas Utilities
D38: Puget Sound Energy | E38: Puget Sound Energy
D39: Seattle City Light | E39: None
D40: Snohomish PUD
D41: Tacoma Power
D43: Heat Type
D44: Heat Pump
D45: Electric
D46: Gas
D48: Supply Fan Control
D49: Step
D50: VSD
D52: Status
D53: On
D54: Off
D56: Control Type | E56: Control Type (Small Units)
D57: ARC | E57: Full ARC
D58: ARC-Lite | E58: ARC-Lite
D60: Operating Hours
D61: < 2,500
D62: 2,500 - 5,500
D63: > 5,500

Sheet ARC Pre-Inspection Form (hidden)
C3: =BannerText -> Energy Services ● eebiz@snopud.com ● www.snopud.com
C5: ADVANCED ROOFTOP UNIT CONTROL (ARC)
C6: ARC Pre-Inspection Form
E9: Facility Name: | F9: =IF(FacilityName="Facility Info","",FacilityName) -> 
E10: Facility Address: | F10: =_xlfn.SINGLE(FacAddressFull) -> 
C13: Unit Nameplate Data | P13: For Indoor Fan:
C14: Unit ID: | J14: Cooling Tonnage: | O14: Motor HP:
C15: Make: | J15: Heat Type: | O15: Motor FLA:
C16: Model: | O16: Voltage:
C17: Date of Mfg.: | O17: 3-Phase:
C19: Unit Operation and Settings Found
D20: Time: | N20: Air Filter Condition:
D21: OSA Temp: | N21: Coil Condition :
D22: Space Temp: | N22: Economizer Damper Linkage Condition:
D23: DAT Heating: | N23: Minimum Damper Position:
D24: DAT Cooling: | N24: Economizer Drive Motor Brand:
N25: Econo Drive Settings: A, B, C, or D:
N26: Economizer Operates Full Range:
N27: Existing VSD Model #:
C29: Notes-In addition to unit condition photos: economizer section, unit general condition, ect.
C36: Technician Name: | L36: Signature:
D37: Company: | N37: Date:
R39: =_xlfn.SINGLE(Version) -> Version July 2024 - Effective Date July 1st, 2024

Sheet ARC Start Up Form (hidden)
C3: =BannerText -> Energy Services ● eebiz@snopud.com ● www.snopud.com
C5: ADVANCED ROOFTOP UNIT CONTROL (ARC)
C6: ARC Start Up Form (Post ARC Installation)
C9: Facility Name: | D9: =IF(FacilityName="Facility Info","",FacilityName) -> 
C10: Facility Address: | D10: =FacAddressFull -> 
C14: Unit ID: | E14: Cooling Tonnage: | G14: Motor HP:
C15: Make: | E15: Heat Type: | G15: Motor FLA:
C16: Model: | E16: Heater Size: | G16: Voltage:
C18: Functional Testing
C19: Date: | G19: VSD Installed?
C20: Time: | G20: CO2 DCV Installed? (ARC-Full Only)
C21: OSA Temp: | G21: Code Minimum Ventilation Air Volume Met?
C23: Status | E23: OSA Damper % Open | F23: Fan % Speed | G23: Compressor On/Off | H23: Heat On/Off
C24: Off
C25: Ventilation (Fan Only) Mode
C26: Economizer Mode
C27: 1st Stage Cooling
C28: 2nd Stage Cooling
C29: 3rd Stage Cooling
C30: 1st Stage Heating
C31: 2nd Stage Heating
C33: Notes
C44: Installer Company: | D44: =IF(ContractorW9Name=0,"",ContractorW9Name) ->  | F44: Technician Name:
H45: =Version -> Version July 2024 - Effective Date July 1st, 2024

Sheet Compressed Air (hidden)
C3: =BannerText -> Energy Services ● eebiz@snopud.com ● www.snopud.com
C5: Rebate Application | L5: PUD Staff:
L6: =IF(AssignedStaff="","",AssignedStaff) -> 
C7: Compressors and Compressed Air Equipment | K7: Project Name:
K8: =IF(ProjectName="","",ProjectName) -> 
C10: Compressor Upgrades
C11: Existing Compressor | E11: Existing HP | F11: Proposed Compressor | H11: Proposed HP | I11: Hrs/Yr. | J11: kWh/Yr. Savings per HP | K11: Total kWh/Yr. Savings | L11: Rebate per HP | M11: Total Compressor Rebate | P11: Peak kW Reduction | Q11: PUD Winter Peak kW Reduction
J12: =IF(OR(C12="",E12="",F12="",H12="",I12=""),"",VLOOKUP(S12,CompressorSavingsTable,2,FALSE)) ->  | K12: =IF(J12="",0,IF(J12="Contact PUD",0,H12*J12)) -> 0 | L12: =IF(J12="","",IF(J12="Contact PUD",0,(VLOOKUP(S12,CompressorSavingsTable,6,FALSE)*1.5))) ->  | M12: =IF(L12="",0,H12*L12) -> 0 | P12: =IF(S12="",0,VLOOKUP(S12,CompressorSavingsTable,3,FALSE)*H12) -> 0 | Q12: =IF(S12="",0,VLOOKUP(S12,CompressorSavingsTable,5,FALSE)*H12) -> 0 | S12: =SUBSTITUTE(C12," ","")&SUBSTITUTE(F12," ","")&SUBSTITUTE(I12," ","") ->  | U12: =VLOOKUP(E12,CompressorRangeTable,2,FALSE) -> 
J13: =IF(OR(C13="",E13="",F13="",H13="",I13=""),"",IF((H13-E13)>15,"Check Compressor HP",VLOOKUP(S13,CompressorSavingsTable,2,FALSE))) ->  | K13: =IF(OR(J13="",J13="Check Compressor HP"),0,IF(J13="Contact PUD",0,H13*J13)) -> 0 | L13: =IF(K13=0,"",IF(J13="Contact PUD",0,(VLOOKUP(S13,CompressorSavingsTable,6,FALSE)))) ->  | M13: =IF(L13="",0,H13*L13) -> 0 | P13: =IF(S13="",0,VLOOKUP(S13,CompressorSavingsTable,3,FALSE)*H13) -> 0 | Q13: =IF(S13="",0,VLOOKUP(S13,CompressorSavingsTable,5,FALSE)*H13) -> 0 | S13: =SUBSTITUTE(C13," ","")&SUBSTITUTE(F13," ","")&SUBSTITUTE(I13," ","") ->  | U13: =VLOOKUP(E13,CompressorRangeTable,2,FALSE) -> 
C14: =IF(OR(C13="System Expansion",C13="New Construction"),"Inlet Modulation is baseline.","") ->  | E14: Contact PUD if the Existing or New Compressor Horsepower is not on the dropdown list or larger than 75 HP. | P14: =SUM(P12:P13) -> 0 | Q14: =SUM(Q12:Q13) -> 0
C16: Energy Efficient Dryers
C17: Existing Dryer | E17: Proposed Dryer | G17: Rated CFM of New Dryer | I17: Hrs/Yr. (from above) | J17: kWh/Yr Savings per CFM | K17: Total kWh/Yr Savings | L17: Rebate per CFM | M17: Total Dryer Rebate
I18: =IF(OR(C18="",I12=""),"",I12) ->  | J18: =IF(C18="","",VLOOKUP(S18,DryerSavingsTable,2,FALSE)) ->  | K18: =IF(L18="",0,G18*J18) -> 0 | L18: =IF(J18="","",(VLOOKUP(S18,DryerSavingsTable,3,FALSE)*1.5)) ->  | M18: =IF(L18="",0,G18*L18) -> 0 | S18: =SUBSTITUTE(C18," ","")&SUBSTITUTE(E18," ","")&SUBSTITUTE(I18," ","") -> 
I19: =IF(OR(C19="",I13=""),"",I13) ->  | J19: =IF(OR(C19="",E19="",G19="",I19=""),"",VLOOKUP(S19,DryerSavingsTable,2,FALSE)) ->  | K19: =IF(L19="",0,G19*J19) -> 0 | L19: =IF(J19="","",(VLOOKUP(S19,DryerSavingsTable,3,FALSE))) ->  | M19: =IF(L19="",0,G19*L19) -> 0 | S19: =SUBSTITUTE(C19," ","")&SUBSTITUTE(E19," ","")&SUBSTITUTE(I19," ","") -> 
C22: Additional Storage (Receiver)
C23: Compressed Air System Type | E23: Total System HP | F23: Existing Storage Tank Size (Gallons) | G23: Additional Storage Tank Size (Gallons) | H23: System Total SCFM | I23: Hrs/Yr. (from above) | J23: System Gallon / SCFM* | K23: System kWh/Yr. Savings | L23: Rebate per Gallon | M23: Total Storage Rebate ($6,000 Max)
I24: =IF(C24="","",I13) ->  | J24: =IF(H24="","",(F24+G24)/H24) ->  | K24: =IF(OR(C24="",J24="",I24=0),0,IF(AND(C24="Load Unload and Modulation with Unload Compressed Air System",J24<5),"Not eligible", IF(AND(C24="VSD Compressed Air System",J24<2),"Not eligible", VLOOKUP(S24,StorageSavingsTable,2,FALSE)))) -> 0 | L24: =IF(K24=0,"",IF(K24="Not eligible",0,(VLOOKUP(S24,StorageSavingsTable,3,FALSE)))) ->  | M24: =IF(L24="",0,MIN(G24*L24,6000)) -> 0 | S24: =SUBSTITUTE(C24," ","")&SUBSTITUTE(E24," ","") -> 
C25: *Required minimum total stoarage of 2+ Gallons per SCFM for VSD compressor systems, 5+ Gallons per SCFM for Load / Unload and Modulation w/Unload compressor systems.
C27: Zero-Loss Condensate Drains
C28: Existing Drain Type | E28: Proposed Drain Type | G28: Drain Orifice Size | H28: # of Drain | I28: kWh/Yr. Savings | J28: Rebate per Drain | K28: Total Drain Rebate
I29: =IF(G29="","",VLOOKUP(G29,ZeroLossDrainsSavingsTable,15,FALSE)*H29) ->  | J29: =IF(G29="","",(VLOOKUP(G29,ZeroLossDrainsSavingsTable,17,FALSE))) ->  | K29: =IF(J29="","",H29*J29) -> 
I30: =IF(G30="","",VLOOKUP(G30,ZeroLossDrainsSavingsTable,15,FALSE)*H30) ->  | J30: =IF(G30="","",(VLOOKUP(G30,ZeroLossDrainsSavingsTable,17,FALSE))) ->  | K30: =IF(J30="","",H30*J30) -> 
I31: =IF(G31="","",VLOOKUP(G31,ZeroLossDrainsSavingsTable,15,FALSE)*H31) ->  | J31: =IF(G31="","",(VLOOKUP(G31,ZeroLossDrainsSavingsTable,17,FALSE))) ->  | K31: =IF(J31="","",H31*J31) -> 
I32: =IF(G32="","",VLOOKUP(G32,ZeroLossDrainsSavingsTable,15,FALSE)*H32) ->  | J32: =IF(G32="","",(VLOOKUP(G32,ZeroLossDrainsSavingsTable,17,FALSE)*1.5)) ->  | K32: =IF(J32="","",H32*J32) -> 
I33: =SUM(I29:I32) -> 0 | K33: =SUM(K29:K32) -> 0
C35: Low Pressure-Drop Filters (High Performance Filters)
C36: Existing/Baseline Filter | E36: Proposed Filter | G36: System CFM for Active Compressors | H36: # of Filter | I36: Hrs/Yr. (from above) | J36: kWh/Yr. Savings per Filter | K36: kWh/Yr. Savings | L36: Rebate per Filter | M36: Total Filter Rebate
I37: =IF(H37="","",I13) ->  | J37: =IF(OR(C37="",G37="",E37="",H37=""),"",IF(I37="less than 4,000",VLOOKUP(G37,HPFiltersSavingsTable,5,TRUE), IF(I37="between 4,000 and 7,000",VLOOKUP(G37,HPFiltersSavingsTable,9,TRUE), IF(I37="greater than 7,000",VLOOKUP(G37,HPFiltersSavingsTable,13,TRUE),"")))) ->  | K37: =IF(J37="",0,H37*J37) -> 0 | L37: =IF(K37="","",IF(I37="less than 4,000",50*WithBonusMeasures, IF(I37="between 4,000 and 7,000",90*WithBonusMeasures, IF(I37="greater than 7,000",130*WithBonusMeasures,"")))) ->  | M37: =IF(L37="",0,H37*L37) -> 0
C39: System Pressure Reduction (Requires compressor and storage/receiver upgrades.)
C40: Compressed Air System Type | F40: Existing Pressure (PSIG) | G40: Proposed Pressure (PSIG) | H40: PSIG Reduction* | I40: Hrs/Yr. (from above) | J40: System Gallons /SCFM | K40: System kWh/Yr. Use | L40: kWh/Yr. Savings | M40: ="Rebate @ "&DOLLAR(PressureReductionRate)&"/kWh" -> Rebate @ $0.15/kWh | P40: Pressure Reduction Rate
H41: =IF(G41="","",F41-G41) ->  | I41: =IF(OR(I13="",J41=""),"",I13) ->  | J41: =IF(OR(H41="",J24=""),"",J24) ->  | K41: =IF(OR(C41="",I41=""),"", IF(I13="less than 4,000",(H13*0.746*0.5/0.8)*2250, IF(I13="between 4,000 and 7,000",(H13*0.746*0.5/0.8)*4500, IF(I13="greater than 7,000",(H13*0.746*0.5/0.8)*8400,"")))) ->  | L41: =IF(OR(C41="",H41="",I41=""),0,IF(AND(C41="Load Unload and Modulation with Unload Compressed Air System",OR(J41<5,H41<10)),0, IF(AND(C41="VSD Compressed Air System",J41<2),0, IF(C41="Load Unload and Modulation with Unload Compressed Air System",K41*0.008*H41, IF(C41="VSD Compressed Air System",K41*0.005*H41))))) -> 0 | M41: =IF(L41="","",L41*PressureReductionRate) -> 0 | P41: =DOLLAR(0.15*WithBonusMeasures,2) -> $0.15
C42: *The project requires Compressor and Air Receiver/Storage upgrades. It requires a minimum of 10 PSIG reduction for Load/Unload and Modulation compressor with system gallon per SCFM greater than 5. There is no minimum pressure reduction for VSD compressor but it requires system gallon per SCFM of 2 or greater.
C45: Project Cost | G45: Savings & Rebates | K45: Customer's Economic Analysis | Q45: BaseIncentive
C47: Installation Type: | E47: =IF(C13="System Expansion","System Expansion",IF(C13="New Construction","New Construction","Retrofits")) -> Retrofits | G47: kWh/Yr. Savings: | I47: =IF(I13="","",(K12+K13+K18+K19+K24+I33+K37+L41)) ->  | K47: Customer's Net Cost: | M47: =IF(OR(E50="",I48=""),"",E50-I48) ->  | Q47: =IFERROR(SUM(M12,M13,M18,M19,M24,K33,M37,M41)/WithBonusMeasures,0) -> 0
C48: Equipment Cost: | E48: [Enter Cost] | G48: Total Rebates: | I48: =IF(CAkWhSavings="","", IF(Cost="","Cost?",MIN(SUM(M12,M13,M18,M19,M24,K33,M37,M41),Cost))) ->  | K48: $/Yr. Savings @ 8 ¢/kWh: | M48: =IF(I47="","",I47*0.08) -> 
C49: Labor and Miscellaneous Cost: | G49: % Rebates as of Project Cost: | I49: =IF(ISERROR(I48/E50),"",(I48/E50)) ->  | K49: Customer Simple Payback: | M49: =IF(ISERROR(M47/M48),"",M47/M48) -> 
C50: =IF(OR(E47="System Expansion",E47="New Construction"),"Incremental Cost:","Total Cost:") -> Total Cost: | E50: =IF(OR(E48="",E48="[Enter Cost]"),"",IF(C50="Incremental Cost:",E48*0.25,SUM(E48:E49))) ->  | G50: Project Development Incentive: | I50: =IF(OR(I47="",Cost=""),"",MAX(50,I47*PDI_Rate_CA)) ->  | K50: Customer ROI: | M50: =IFERROR(1/M49,"") -> 
C52: =IF(OR(E47="System Expansion",E47="New Construction"),"Labor/Installation & Misc. Costs are for Retrofits only. Incremental Cost is 25% of Equipment Cost and is for System Expansion and New Construction only.","") ->  | M52: =Version -> Version July 2024 - Effective Date July 1st, 2024
S58: InstallationType | U58: Compressor HP | V58: Low Side HP | W58: High Side HP | X58: YesNo | Y58: CostType
S59: Retrofit | U59: 5 | V59: 0 | W59: 7.5 | X59: Yes | Y59: Equipment
S60: System Expansion | U60: 7.5 | V60: 5 | W60: 10 | X60: No | Y60: Incremental
S61: New Construction | U61: 10 | V61: 7.5 | W61: 15 | Y61: Total
U62: 15 | V62: 10 | W62: 20
U63: 20 | V63: 15 | W63: 25
U64: 25 | V64: 20 | W64: 30
U65: 30 | V65: 25 | W65: 40
U66: 40 | V66: 30 | W66: 50
U67: 50 | V67: 40 | W67: 60
U68: 60 | V68: 50 | W68: 75
U69: 75 | V69: 60 | W69: 100

Sheet CA - Process & Requirements (hidden)
C3: =BannerText -> Energy Services ● eebiz@snopud.com ● www.snopud.com
C5: Compressed Air Rebates
C7: Process & Requirements
C9: Eligibility: | I9: Process:
I22: Pre-Installation Requirements:
I28: Post-Installation Requirements:
N33: =Version -> Version July 2024 - Effective Date July 1st, 2024

Sheet CA Rebates (hidden)
C3: =BannerText -> Energy Services ● eebiz@snopud.com ● www.snopud.com
C5: REBATES for COMPRESSED AIR EQUIPMENT
C7: Compressors (≤ 75 HP) | D7: Existing / Baseline | E7: Proposed / New | F7: Hrs./Yr. Operation | G7: Rebate
D8: Inlet Modulation (Baseline for New Construction and New System) | E8: Variable Speed Drive (VSD) | F8: < 4,000 | G8: ='CA Tables'!G26*WithBonusMeasures -> 250
F9: ≥ 4,000 and < 7,000 | G9: ='CA Tables'!L26*WithBonusMeasures -> 350
F10: ≥ 7,000 | G10: ='CA Tables'!Q26*WithBonusMeasures -> 460
E11: Load / Unload with 0 PSIG Sump Pressure | F11: < 4,000 | G11: ='CA Tables'!G42*WithBonusMeasures -> 130
F12: ≥ 4,000 and < 7,000 | G12: ='CA Tables'!L42*WithBonusMeasures -> 190
F13: ≥ 7,000 | G13: ='CA Tables'!Q42*WithBonusMeasures -> 250
E14: Load / Unload with 40 PSIG Sump Pressure | F14: < 4,000 | G14: ='CA Tables'!G58*WithBonusMeasures -> 40
F15: ≥ 4,000 and < 7,000 | G15: ='CA Tables'!L58*WithBonusMeasures -> 60
F16: ≥ 7,000 | G16: ='CA Tables'!Q58*WithBonusMeasures -> 70
D17: Load / Unload with 40 PSIG Sump Pressure | E17: Variable Speed Drive (VSD) | F17: < 4,000 | G17: ='CA Tables'!G74*WithBonusMeasures -> 180
F18: ≥ 4,000 and < 7,000 | G18: ='CA Tables'!L74*WithBonusMeasures -> 250
F19: ≥ 7,000 | G19: ='CA Tables'!Q74*WithBonusMeasures -> 330
D20: Load / Unload with 0 PSIG Sump Pressure | E20: Variable Speed Drive (VSD) | F20: < 4,000 | G20: ='CA Tables'!G90*WithBonusMeasures -> 100
F21: ≥ 4,000 and < 7,000 | G21: ='CA Tables'!L90*WithBonusMeasures -> 140
F22: ≥ 7,000 | G22: ='CA Tables'!Q90*WithBonusMeasures -> 190
C24: Dryers | D24: Existing / Baseline | E24: Proposed / New | F24: Hrs./Yr. Operation | G24: Rebate
D25: Non-Cycling Refrigerated Air Dryer | E25: Cycling Refrigerated Air Dryer | F25: All Hours | G25: ='CA Tables'!P180*WithBonusMeasures -> 13
D26: Regenerated Style Desiccant Air Dryers | E26: Regenerated Style Desiccant Air Dryers w/ Dew Point Control | F26: < 4,000 | G26: ='CA Tables'!Q209*WithBonusMeasures -> 10
F27: ≥ 4,000 and < 7,000 | G27: ='CA Tables'!Q228*WithBonusMeasures -> 15
F28: ≥ 7,000 | G28: ='CA Tables'!Q247*WithBonusMeasures -> 20
C30: Receiver Storage | D30: Additional Air Receiver / Storage | F30: Hrs./Yr. Operation | G30: Rebate
D31: Load / Unload and Modulation w/ Unload Compressed Air System (To be eligible for incentives, the new system Gallon per SCFM should be 5 or greater.) | F31: All Hours | G31: =DOLLAR(7.5*WithBonusMeasures,2)&" per gallon up to $6,000" -> $7.50 per gallon up to $6,000
D34: VSD Compressed Air System (To be eligible for incentives, the new system Gallon per SCFM should be 2 or greater.) | F34: All Hours | G34: =DOLLAR(3*WithBonusMeasures,2)&" per gallon up to $6,000" -> $3.00 per gallon up to $6,000
C38: Condensate Drains | D38: Existing / Baseline | E38: Proposed / New | F38: Drain Orifice Size | G38: Rebate
D39: Standard Condensate Drains | E39: Zero-Loss Condensate Drains | F39: 1/32 | G39: =50*WithBonusMeasures -> 50
F40: 1/16 | G40: =100*WithBonusMeasures -> 100
F41: 1/8 | G41: =150*WithBonusMeasures -> 150
E42: Load / Unload with 0 PSIG Sump Pressure | F42: 3/16 | G42: =200*WithBonusMeasures -> 200
F43: 1/4 | G43: =250*WithBonusMeasures -> 250
F44: 3/8 | G44: =300*WithBonusMeasures -> 300
E45: Load / Unload with 40 PSIG Sump Pressure | F45: 1/2 | G45: =350*WithBonusMeasures -> 350
C47: Filters | D47: Existing / Baseline | E47: Proposed / New | F47: Hrs./Yr. Operation | G47: Rebate
D48: Standard Filters | E48: Low-Pressure Drop Filters (Less than 1PSID Pressure Drop) | F48: < 4,000 | G48: =50*WithBonusMeasures -> 50
F49: ≥ 4,000 and < 7,000 | G49: =90*WithBonusMeasures -> 90
F50: ≥ 7,000 | G50: =130*WithBonusMeasures -> 130
C52: Pressure Reduction | D52: System Pressure Reduction | E52: Proposed / New | F52: Hrs./Yr. Operation | G52: Rebate
D53: - Compressor and Air Receiver/Storage upgrades required. - Minimum 5+ Gallons per SCFM (total system) required for Load/Unload and Modulation compressor AND 10 PSIG system pressure reduction. - Minimum 2+ Gallons per SCFM (total system) required for VSD compressors (no minimum PSIG system pressure reduction required). | E53: Low-Pressure Drop Filters (Less than 1PSID Pressure Drop) | F53: All Hours | G53: =DOLLAR(0.15*WithBonusMeasures,2)&"/kWh Savings" -> $0.15/kWh Savings
F55: ≥ 4,000 and < 7,000 | G55: 90
F56: ≥ 7,000 | G56: 130
G57: =Version -> Version July 2024 - Effective Date July 1st, 2024

Sheet CA Tables (hidden)
B2: Savings Calculations for Air Compressors
B4: Operating Hours and Rebate Rates | S4: Compressor Savings Summary Table
B5: Shift | C5: Hrs/yr. per BPA | D5: Est. % Projects | E5: Weighted Hrs/yr. | F5: Rebate Rates | G5: Previous Rates | H5: % Change | S5: Existing Compressor | T5: Proposed Compressor | U5: Hours | V5: Average Hrs/Yr | W5: Compressor Savings List | X5: Savings/HP | Y5: Peak kW Reduction | Z5: % PUD Winter Peak kW Reduction | AA5: PUD Winter Peak kW Reduction | AB5: Rebate/HP
B6: 1 | C6: 2250 | D6: 0.5 | E6: =C6*D6 -> 1125 | F6: 0.4 | G6: 0.3 | H6: =(F6-G6)/G6 -> 0.3333333333 | S6: Inlet Modulation Compressor | T6: Variable Speed Drive Compressor | U6: less than 4,000 | V6: 2250 | W6: =SUBSTITUTE(S6," ","")&SUBSTITUTE(T6," ","")&SUBSTITUTE(U6," ","") -> InletModulationCompressorVariableSpeedDriveCompressorlessthan4,000 | X6: =F26 -> 617 | Y6: =X6/V6 -> 0.2742222222 | Z6: 0.25 | AA6: =Y6*Z6 -> 0.06855555556 | AB6: =G26*WithBonusMeasures -> 250
B7: 2 | C7: 4500 | D7: 0.35 | E7: =C7*D7 -> 1575 | F7: 0.28 | G7: 0.2 | H7: =(F7-G7)/G7 -> 0.4 | S7: Inlet Modulation Compressor | T7: Variable Speed Drive Compressor | U7: between 4,000 and 7,000 | V7: 4500 | W7: InletModulationCompressorVariableSpeedDriveCompressorbetween4,000and7,000 | X7: =K26 -> 1234 | Y7: 0.2742222222 | Z7: 0.75 | AA7: 0.2056666667 | AB7: =L26*WithBonusMeasures -> 350
B8: 3 | C8: 8400 | D8: 0.15 | E8: =C8*D8 -> 1260 | F8: 0.2 | G8: 0.15 | H8: =(F8-G8)/G8 -> 0.3333333333 | S8: Inlet Modulation Compressor | T8: Variable Speed Drive Compressor | U8: greater than 7,000 | V8: 8400 | W8: InletModulationCompressorVariableSpeedDriveCompressorgreaterthan7,000 | X8: =P26 -> 2304 | Y8: 0.2742857143 | Z8: 1 | AA8: 0.2742857143 | AB8: =Q26*WithBonusMeasures -> 460
C9: Weighted Average: | D9: =SUM(D6:D8) -> 1 | E9: =SUM(E6:E8) -> 3960 | F9: =D6*F6+D7*F7+D8*F8 -> 0.328 | G9: =G6*D6+G7*D7+G8*D8 -> 0.2425 | H9: =(F9-G9)/G9 -> 0.3525773196 | S9: Inlet Modulation Compressor | T9: Load/Unload Compressor with 0 PSIG Sump Pressure | U9: less than 4,000 | V9: 2250 | W9: InletModulationCompressorLoad/UnloadCompressorwith0PSIGSumpPressurelessthan4,000 | X9: =F42 -> 331 | Y9: 0.1471111111 | Z9: 0.25 | AA9: 0.03677777778 | AB9: =G42*WithBonusMeasures -> 130
E10: Current Incentive: | F10: 0.35 | G10: 0.25 | H10: =(F10-G10)/G10 -> 0.4 | S10: Inlet Modulation Compressor | T10: Load/Unload Compressor with 0 PSIG Sump Pressure | U10: between 4,000 and 7,000 | V10: 4500 | W10: InletModulationCompressorLoad/UnloadCompressorwith0PSIGSumpPressurebetween4,000and7,000 | X10: =K42 -> 662 | Y10: 0.1471111111 | Z10: 0.75 | AA10: 0.1103333333 | AB10: =L42*WithBonusMeasures -> 190
S11: Inlet Modulation Compressor | T11: Load/Unload Compressor with 0 PSIG Sump Pressure | U11: greater than 7,000 | V11: 8400 | W11: InletModulationCompressorLoad/UnloadCompressorwith0PSIGSumpPressuregreaterthan7,000 | X11: =P42 -> 1235 | Y11: 0.1470238095 | Z11: 1 | AA11: 0.1470238095 | AB11: =Q42*WithBonusMeasures -> 250
B12: HP | C12: Savings from Inlet Modulation to VSD (with 0 and 40 PSIG Sump Pressure) | S12: Inlet Modulation Compressor | T12: Load/Unload Compressor with 40 PSIG Sump Pressure | U12: less than 4,000 | V12: 2250 | W12: InletModulationCompressorLoad/UnloadCompressorwith40PSIGSumpPressurelessthan4,000 | X12: =F58 -> 99 | Y12: 0.044 | Z12: 0.25 | AA12: 0.011 | AB12: =G58*WithBonusMeasures -> 40
C13: =C6 -> 2250 | D13: Current Incentive | E13: Rebate | F13: Savings per HP | G13: Rebate per HP | H13: =C7 -> 4500 | I13: Current Incentive | J13: Rebate | K13: Savings per HP | L13: Rebate per HP | M13: =C8 -> 8400 | N13: Current Incentive | O13: Rebate | P13: Savings per HP | Q13: Rebate per HP | S13: Inlet Modulation Compressor | T13: Load/Unload Compressor with 40 PSIG Sump Pressure | U13: between 4,000 and 7,000 | V13: 4500 | W13: InletModulationCompressorLoad/UnloadCompressorwith40PSIGSumpPressurebetween4,000and7,000 | X13: =K58 -> 199 | Y13: 0.04422222222 | Z13: 0.75 | AA13: 0.03316666667 | AB13: =L58*WithBonusMeasures -> 60
B14: 5 | C14: 3198 | D14: =C14*$F$10 -> 1119.3 | E14: =C14*$F$6 -> 1279.2 | F14: =C14/B14 -> 639.6 | G14: =E14/B14 -> 255.84 | H14: 6395 | I14: =H14*$F$10 -> 2238.25 | J14: =H14*$F$7 -> 1790.6 | K14: =H14/B14 -> 1279 | L14: =J14/B14 -> 358.12 | M14: 11938 | N14: =M14*$F$10 -> 4178.3 | O14: =M14*$F$8 -> 2387.6 | P14: =M14/B14 -> 2387.6 | Q14: =O14/B14 -> 477.52 | S14: Inlet Modulation Compressor | T14: Load/Unload Compressor with 40 PSIG Sump Pressure | U14: greater than 7,000 | V14: 8400 | W14: InletModulationCompressorLoad/UnloadCompressorwith40PSIGSumpPressuregreaterthan7,000 | X14: =P58 -> 371 | Y14: 0.04416666667 | Z14: 1 | AA14: 0.04416666667 | AB14: =Q58*WithBonusMeasures -> 70
B15: 7.5 | C15: 4681 | D15: 1638.35 | E15: 1872.4 | F15: 624.1333333 | G15: =E15/B15 -> 249.6533333 | H15: 9363 | I15: 3277.05 | J15: 2621.64 | K15: 1248.4 | L15: 349.552 | M15: 17477 | N15: 6116.95 | O15: 3495.4 | P15: 2330.266667 | Q15: 466.0533333 | S15: Load Unload Compressor with 40 PSIG Sump Pressure | T15: Variable Speed Drive Compressor | U15: less than 4,000 | V15: 2250 | W15: LoadUnloadCompressorwith40PSIGSumpPressureVariableSpeedDriveCompressorlessthan4,000 | X15: =F74 -> 445 | Y15: 0.1977777778 | Z15: 0.25 | AA15: 0.04944444444 | AB15: =G74*WithBonusMeasures -> 180
B16: 10 | C16: 6242 | D16: 2184.7 | E16: 2496.8 | F16: 624.2 | G16: 249.68 | H16: 12484 | I16: 4369.4 | J16: 3495.52 | K16: 1248.4 | L16: 349.552 | M16: 23303 | N16: 8156.05 | O16: 4660.6 | P16: 2330.3 | Q16: 466.06 | S16: Load Unload Compressor with 40 PSIG Sump Pressure | T16: Variable Speed Drive Compressor | U16: between 4,000 and 7,000 | V16: 4500 | W16: LoadUnloadCompressorwith40PSIGSumpPressureVariableSpeedDriveCompressorbetween4,000and7,000 | X16: =K74 -> 891 | Y16: 0.198 | Z16: 0.75 | AA16: 0.1485 | AB16: =L74*WithBonusMeasures -> 250
B17: 15 | C17: 9292 | D17: 3252.2 | E17: 3716.8 | F17: 619.4666667 | G17: 247.7866667 | H17: 18583 | I17: 6504.05 | J17: 5203.24 | K17: 1238.866667 | L17: 346.8826667 | M17: 34689 | N17: 12141.15 | O17: 6937.8 | P17: 2312.6 | Q17: 462.52 | S17: Load Unload Compressor with 40 PSIG Sump Pressure | T17: Variable Speed Drive Compressor | U17: greater than 7,000 | V17: 8400 | W17: LoadUnloadCompressorwith40PSIGSumpPressureVariableSpeedDriveCompressorgreaterthan7,000 | X17: =P74 -> 1663 | Y17: 0.1979761905 | Z17: 1 | AA17: 0.1979761905 | AB17: =Q74*WithBonusMeasures -> 330
B18: 20 | C18: 12309 | D18: 4308.15 | E18: 4923.6 | F18: 615.45 | G18: 246.18 | H18: 24618 | I18: 8616.3 | J18: 6893.04 | K18: 1230.9 | L18: 344.652 | M18: 45954 | N18: 16083.9 | O18: 9190.8 | P18: 2297.7 | Q18: 459.54 | S18: Load Unload Compressor with 0 PSIG Sump Pressure | T18: Variable Speed Drive Compressor | U18: less than 4,000 | V18: 2250 | W18: LoadUnloadCompressorwith0PSIGSumpPressureVariableSpeedDriveCompressorlessthan4,000 | X18: =F90 -> 253 | Y18: 0.1124444444 | Z18: 0.25 | AA18: 0.02811111111 | AB18: =G90*WithBonusMeasures -> 100
B19: 25 | C19: 15389 | D19: 5386.15 | E19: 6155.6 | F19: 615.56 | G19: 246.224 | H19: 30777 | I19: 10771.95 | J19: 8617.56 | K19: 1231.08 | L19: 344.7024 | M19: 57451 | N19: 20107.85 | O19: 11490.2 | P19: 2298.04 | Q19: 459.608 | S19: Load Unload Compressor with 0 PSIG Sump Pressure | T19: Variable Speed Drive Compressor | U19: between 4,000 and 7,000 | V19: 4500 | W19: LoadUnloadCompressorwith0PSIGSumpPressureVariableSpeedDriveCompressorbetween4,000and7,000 | X19: =K90 -> 505 | Y19: 0.1122222222 | Z19: 0.75 | AA19: 0.08416666667 | AB19: =L90*WithBonusMeasures -> 140
B20: 30 | C20: 18466 | D20: 6463.1 | E20: 7386.4 | F20: 615.5333333 | G20: 246.2133333 | H20: 36933 | I20: 12926.55 | J20: 10341.24 | K20: 1231.1 | L20: 344.708 | M20: 68941 | N20: 24129.35 | O20: 13788.2 | P20: 2298.033333 | Q20: 459.6066667 | S20: Load Unload Compressor with 0 PSIG Sump Pressure | T20: Variable Speed Drive Compressor | U20: greater than 7,000 | V20: 8400 | W20: LoadUnloadCompressorwith0PSIGSumpPressureVariableSpeedDriveCompressorgreaterthan7,000 | X20: =P90 -> 943 | Y20: 0.1122619048 | Z20: 1 | AA20: 0.1122619048 | AB20: =Q90*WithBonusMeasures -> 190
B21: 40 | C21: 24491 | D21: 8571.85 | E21: 9796.4 | F21: 612.275 | G21: 244.91 | H21: 48982 | I21: 17143.7 | J21: 13714.96 | K21: 1224.55 | L21: 342.874 | M21: 91434 | N21: 32001.9 | O21: 18286.8 | P21: 2285.85 | Q21: 457.17 | S21: System Expansion | T21: Variable Speed Drive Compressor | U21: less than 4,000 | V21: 2250 | W21: SystemExpansionVariableSpeedDriveCompressorlessthan4,000 | X21: =X6 -> 617 | Y21: 0.2742222222 | Z21: 0.25 | AA21: 0.06855555556 | AB21: =AB6 -> 250 | AC21: Same as Inlet Modulation
B22: 50 | C22: 30484 | D22: 10669.4 | E22: 12193.6 | F22: 609.68 | G22: 243.872 | H22: 60969 | I22: 21339.15 | J22: 17071.32 | K22: 1219.38 | L22: 341.4264 | M22: 113808 | N22: 39832.8 | O22: 22761.6 | P22: 2276.16 | Q22: 455.232 | S22: System Expansion | T22: Variable Speed Drive Compressor | U22: between 4,000 and 7,000 | V22: 4500 | W22: SystemExpansionVariableSpeedDriveCompressorbetween4,000and7,000 | X22: 1234 | Y22: 0.2742222222 | Z22: 0.75 | AA22: 0.2056666667 | AB22: 350
B23: 60 | C23: 36389 | D23: 12736.15 | E23: 14555.6 | F23: 606.4833333 | G23: 242.5933333 | H23: 72777 | I23: 25471.95 | J23: 20377.56 | K23: 1212.95 | L23: 339.626 | M23: 135851 | N23: 47547.85 | O23: 27170.2 | P23: 2264.183333 | Q23: 452.8366667 | S23: System Expansion | T23: Variable Speed Drive Compressor | U23: greater than 7,000 | V23: 8400 | W23: SystemExpansionVariableSpeedDriveCompressorgreaterthan7,000 | X23: 2304 | Y23: 0.2742857143 | Z23: 1 | AA23: 0.2742857143 | AB23: 460
B24: 75 | C24: 45474 | D24: 15915.9 | E24: 18189.6 | F24: 606.32 | G24: 242.528 | H24: 90947 | I24: 31831.45 | J24: 25465.16 | K24: 1212.626667 | L24: 339.5354667 | M24: 169768 | N24: 59418.8 | O24: 33953.6 | P24: 2263.573333 | Q24: 452.7146667 | S24: System Expansion | T24: Load/Unload Compressor with 0 PSIG Sump Pressure | U24: less than 4,000 | V24: 2250 | W24: SystemExpansionLoad/UnloadCompressorwith0PSIGSumpPressurelessthan4,000 | X24: 331 | Y24: 0.1471111111 | Z24: 0.25 | AA24: 0.03677777778 | AB24: 130
C25: =AVERAGE(C14:C24) -> 18765 | D25: 6567.75 | E25: 7506 | F25: 617.154697 | G25: 246.8618788 | H25: 37529.81818 | I25: 13135.43636 | J25: 10508.34909 | K25: 1234.295758 | L25: 345.6028121 | M25: 70055.81818 | N25: 24519.53636 | O25: 14011.16364 | P25: 2304.027879 | Q25: 460.8055758 | S25: System Expansion | T25: Load/Unload Compressor with 0 PSIG Sump Pressure | U25: between 4,000 and 7,000 | V25: 4500 | W25: SystemExpansionLoad/UnloadCompressorwith0PSIGSumpPressurebetween4,000and7,000 | X25: 662 | Y25: 0.1471111111 | Z25: 0.75 | AA25: 0.1103333333 | AB25: 190
E26: Savings and Rebate per HP: | F26: =ROUND(AVERAGE(F14:F25),0) -> 617 | G26: =ROUND(G25,-1) -> 250 | J26: Savings and Rebate per HP: | K26: =ROUND(AVERAGE(K14:K25),0) -> 1234 | L26: =ROUND(L25,-1) -> 350 | O26: Savings and Rebate per HP: | P26: =ROUND(AVERAGE(P14:P25),0) -> 2304 | Q26: =ROUND(Q25,-1) -> 460 | S26: System Expansion | T26: Load/Unload Compressor with 0 PSIG Sump Pressure | U26: greater than 7,000 | V26: 8400 | W26: SystemExpansionLoad/UnloadCompressorwith0PSIGSumpPressuregreaterthan7,000 | X26: 1235 | Y26: 0.1470238095 | Z26: 1 | AA26: 0.1470238095 | AB26: 250
S27: System Expansion | T27: Load/Unload Compressor with 40 PSIG Sump Pressure | U27: less than 4,000 | V27: 2250 | W27: SystemExpansionLoad/UnloadCompressorwith40PSIGSumpPressurelessthan4,000 | X27: 99 | Y27: 0.044 | Z27: 0.25 | AA27: 0.011 | AB27: 40
B28: HP | C28: Savings from Inlet Modulation to Load/Unload (with 0 PSIG Sump Pressure) | S28: System Expansion | T28: Load/Unload Compressor with 40 PSIG Sump Pressure | U28: between 4,000 and 7,000 | V28: 4500 | W28: SystemExpansionLoad/UnloadCompressorwith40PSIGSumpPressurebetween4,000and7,000 | X28: 199 | Y28: 0.04422222222 | Z28: 0.75 | AA28: 0.03316666667 | AB28: 60
C29: =C6 -> 2250 | D29: Current Incentive | E29: Rebate | F29: Savings per HP | G29: Rebate per HP | H29: =C7 -> 4500 | I29: Current Incentive | J29: Rebate | K29: Savings per HP | L29: Rebate per HP | M29: =C8 -> 8400 | N29: Current Incentive | O29: Rebate | P29: Savings per HP | Q29: Rebate per HP | S29: System Expansion | T29: Load/Unload Compressor with 40 PSIG Sump Pressure | U29: greater than 7,000 | V29: 8400 | W29: SystemExpansionLoad/UnloadCompressorwith40PSIGSumpPressuregreaterthan7,000 | X29: 371 | Y29: 0.04416666667 | Z29: 1 | AA29: 0.04416666667 | AB29: 70
B30: 5 | C30: 2104 | D30: =C30*$F$10 -> 736.4 | E30: =C30*$F$6 -> 841.6 | F30: =C30/B30 -> 420.8 | G30: =E30/B30 -> 168.32 | H30: 4208 | I30: =H30*$F$10 -> 1472.8 | J30: =H30*$F$7 -> 1178.24 | K30: =H30/B30 -> 841.6 | L30: =J30/B30 -> 235.648 | M30: 7856 | N30: =M30*$F$10 -> 2749.6 | O30: =M30*$F$8 -> 1571.2 | P30: =M30/B30 -> 1571.2 | Q30: =O30/B30 -> 314.24 | S30: New Construction | T30: Variable Speed Drive Compressor | U30: less than 4,000 | V30: 2250 | W30: NewConstructionVariableSpeedDriveCompressorlessthan4,000 | X30: =X6 -> 617 | Y30: 0.2742222222 | Z30: 0.25 | AA30: 0.06855555556 | AB30: =AB6 -> 250
B31: 7.5 | C31: 2665 | D31: 932.75 | E31: 1066 | F31: 355.3333333 | G31: 142.1333333 | H31: 5331 | I31: 1865.85 | J31: 1492.68 | K31: 710.8 | L31: =J31/B31 -> 199.024 | M31: 9951 | N31: 3482.85 | O31: 1990.2 | P31: 1326.8 | Q31: 265.36 | S31: New Construction | T31: Variable Speed Drive Compressor | U31: between 4,000 and 7,000 | V31: 4500 | W31: NewConstructionVariableSpeedDriveCompressorbetween4,000and7,000 | X31: 1234 | Y31: 0.2742222222 | Z31: 0.75 | AA31: 0.2056666667 | AB31: 350
B32: 10 | C32: 3554 | D32: 1243.9 | E32: 1421.6 | F32: 355.4 | G32: 142.16 | H32: 7108 | I32: 2487.8 | J32: 1990.24 | K32: 710.8 | L32: 199.024 | M32: 13267 | N32: 4643.45 | O32: 2653.4 | P32: 1326.7 | Q32: 265.34 | S32: New Construction | T32: Variable Speed Drive Compressor | U32: greater than 7,000 | V32: 8400 | W32: NewConstructionVariableSpeedDriveCompressorgreaterthan7,000 | X32: 2304 | Y32: 0.2742857143 | Z32: 1 | AA32: 0.2742857143 | AB32: 460
B33: 15 | C33: 5290 | D33: 1851.5 | E33: 2116 | F33: 352.6666667 | G33: 141.0666667 | H33: 10581 | I33: 3703.35 | J33: 2962.68 | K33: 705.4 | L33: 197.512 | M33: 19750 | N33: 6912.5 | O33: 3950 | P33: 1316.666667 | Q33: 263.3333333 | S33: New Construction | T33: Load/Unload Compressor with 0 PSIG Sump Pressure | U33: less than 4,000 | V33: 2250 | W33: NewConstructionLoad/UnloadCompressorwith0PSIGSumpPressurelessthan4,000 | X33: 331 | Y33: 0.1471111111 | Z33: 0.25 | AA33: 0.03677777778 | AB33: 130
B34: 20 | C34: 5424 | D34: 1898.4 | E34: 2169.6 | F34: 271.2 | G34: 108.48 | H34: 10848 | I34: 3796.8 | J34: 3037.44 | K34: 542.4 | L34: 151.872 | M34: 20249 | N34: 7087.15 | O34: 4049.8 | P34: 1012.45 | Q34: 202.49 | S34: New Construction | T34: Load/Unload Compressor with 0 PSIG Sump Pressure | U34: between 4,000 and 7,000 | V34: 4500 | W34: NewConstructionLoad/UnloadCompressorwith0PSIGSumpPressurebetween4,000and7,000 | X34: 662 | Y34: 0.1471111111 | Z34: 0.75 | AA34: 0.1103333333 | AB34: 190
B35: 25 | C35: 8462 | D35: 2961.7 | E35: 3384.8 | F35: 338.48 | G35: 135.392 | H35: 16925 | I35: 5923.75 | J35: 4739 | K35: 677 | L35: 189.56 | M35: 31593 | N35: 11057.55 | O35: 6318.6 | P35: 1263.72 | Q35: 252.744 | S35: New Construction | T35: Load/Unload Compressor with 0 PSIG Sump Pressure | U35: greater than 7,000 | V35: 8400 | W35: NewConstructionLoad/UnloadCompressorwith0PSIGSumpPressuregreaterthan7,000 | X35: 1235 | Y35: 0.1470238095 | Z35: 1 | AA35: 0.1470238095 | AB35: 250
B36: 30 | C36: 10155 | D36: 3554.25 | E36: 4062 | F36: 338.5 | G36: 135.4 | H36: 20310 | I36: 7108.5 | J36: 5686.8 | K36: 677 | L36: 189.56 | M36: 37912 | N36: 13269.2 | O36: 7582.4 | P36: 1263.733333 | Q36: 252.7466667 | S36: New Construction | T36: Load/Unload Compressor with 40 PSIG Sump Pressure | U36: less than 4,000 | V36: 2250 | W36: NewConstructionLoad/UnloadCompressorwith40PSIGSumpPressurelessthan4,000 | X36: 99 | Y36: 0.044 | Z36: 0.25 | AA36: 0.011 | AB36: 40
B37: 40 | C37: 10843 | D37: 3795.05 | E37: 4337.2 | F37: 271.075 | G37: 108.43 | H37: 21687 | I37: 7590.45 | J37: 6072.36 | K37: 542.175 | L37: 151.809 | M37: 40482 | N37: 14168.7 | O37: 8096.4 | P37: 1012.05 | Q37: 202.41 | S37: New Construction | T37: Load/Unload Compressor with 40 PSIG Sump Pressure | U37: between 4,000 and 7,000 | V37: 4500 | W37: NewConstructionLoad/UnloadCompressorwith40PSIGSumpPressurebetween4,000and7,000 | X37: 199 | Y37: 0.04422222222 | Z37: 0.75 | AA37: 0.03316666667 | AB37: 60
B38: 50 | C38: 16764 | D38: 5867.4 | E38: 6705.6 | F38: 335.28 | G38: 134.112 | H38: 33527 | I38: 11734.45 | J38: 9387.56 | K38: 670.54 | L38: 187.7512 | M38: 62584 | N38: 21904.4 | O38: 12516.8 | P38: 1251.68 | Q38: 250.336 | S38: New Construction | T38: Load/Unload Compressor with 40 PSIG Sump Pressure | U38: greater than 7,000 | V38: 8400 | W38: NewConstructionLoad/UnloadCompressorwith40PSIGSumpPressuregreaterthan7,000 | X38: 371 | Y38: 0.04416666667 | Z38: 1 | AA38: 0.04416666667 | AB38: 70
B39: 60 | C39: 20011 | D39: 7003.85 | E39: 8004.4 | F39: 333.5166667 | G39: 133.4066667 | H39: 40021 | I39: 14007.35 | J39: 11205.88 | K39: 667.0166667 | L39: 186.7646667 | M39: 74706 | N39: 26147.1 | O39: 14941.2 | P39: 1245.1 | Q39: 249.02
B40: 75 | C40: 20054 | D40: 7018.9 | E40: 8021.6 | F40: 267.3866667 | G40: 106.9546667 | H40: 40109 | I40: 14038.15 | J40: 11230.52 | K40: 534.7866667 | L40: 149.7402667 | M40: 74870 | N40: 26204.5 | O40: 14974 | P40: 998.2666667 | Q40: 199.6533333
C41: =AVERAGE(C30:C40) -> 9575.090909 | D41: 3351.281818 | E41: 3830.036364 | F41: 330.8762121 | G41: 132.3504848 | H41: 19150.45455 | I41: 6702.659091 | J41: 5362.127273 | K41: 661.7743939 | L41: 185.2968303 | M41: 35747.27273 | N41: 12511.54545 | O41: 7149.454545 | P41: 1235.306061 | Q41: 247.0612121 | S41: Compressor HP | U41: Hours
E42: Savings and Rebate per HP: | F42: =ROUND(AVERAGE(F30:F41),0) -> 331 | G42: =ROUND(G41,-1) -> 130 | J42: Savings and Rebate per HP: | K42: =ROUND(AVERAGE(K30:K41),0) -> 662 | L42: =ROUND(L41,-1) -> 190 | O42: Savings and Rebate per HP: | P42: =ROUND(AVERAGE(P30:P41),0) -> 1235 | Q42: =ROUND(Q41,-1) -> 250 | S42: 5 | T42: CFiveHP | U42: less than 4,000
S43: 7.5 | T43: CSevenHalfHP | U43: between 4,000 and 7,000
B44: HP | C44: Savings from Inlet Modulation to Load/Unload (with 40 PSIG Sump Pressure) | S44: 10 | T44: CTenHP | U44: greater than 7,000
C45: =C6 -> 2250 | D45: Current Incentive | E45: Rebate | F45: Savings per HP | G45: Rebate per HP | H45: =C7 -> 4500 | I45: Current Incentive | J45: Rebate | K45: Savings per HP | L45: Rebate per HP | M45: =C8 -> 8400 | N45: Current Incentive | O45: Rebate | P45: Savings per HP | Q45: Rebate per HP | S45: 15 | T45: CFifteenHP
B46: 5 | C46: 908 | D46: =C46*$F$10 -> 317.8 | E46: =C46*$F$6 -> 363.2 | F46: =C46/B46 -> 181.6 | G46: =E46/B46 -> 72.64 | H46: 1815 | I46: =H46*$F$10 -> 635.25 | J46: =H46*$F$7 -> 508.2 | K46: =H46/B46 -> 363 | L46: =J46/B46 -> 101.64 | M46: 3389 | N46: =M46*$F$10 -> 1186.15 | O46: =M46*$F$8 -> 677.8 | P46: =M46/B46 -> 677.8 | Q46: =O46/B46 -> 135.56 | S46: 20 | T46: CTwentyHP
B47: 7.5 | C47: 914 | D47: 319.9 | E47: 365.6 | F47: 121.8666667 | G47: 48.74666667 | H47: 1827 | I47: 639.45 | J47: 511.56 | K47: 243.6 | L47: 68.208 | M47: 3411 | N47: 1193.85 | O47: 682.2 | P47: 454.8 | Q47: 90.96 | S47: 25 | T47: CTwentyFiveHP
B48: 10 | C48: 1218 | D48: 426.3 | E48: 487.2 | F48: 121.8 | G48: 48.72 | H48: 2436 | I48: 852.6 | J48: 682.08 | K48: 243.6 | L48: 68.208 | M48: 4548 | N48: 1591.8 | O48: 909.6 | P48: 454.8 | Q48: 90.96 | S48: 30 | T48: CThirtyHP
B49: 15 | C49: 1813 | D49: 634.55 | E49: 725.2 | F49: 120.8666667 | G49: 48.34666667 | H49: 3627 | I49: 1269.45 | J49: 1015.56 | K49: 241.8 | L49: 67.704 | M49: 6770 | N49: 2369.5 | O49: 1354 | P49: 451.3333333 | Q49: 90.26666667 | S49: 40 | T49: CFortyHP
B50: 20 | C50: 780 | D50: 273 | E50: 312 | F50: 39 | G50: 15.6 | H50: 1559 | I50: 545.65 | J50: 436.52 | K50: 77.95 | L50: 21.826 | M50: 2940 | N50: 1029 | O50: 588 | P50: 147 | Q50: 29.4 | S50: 50 | T50: CFiftyHP
B51: 25 | C51: 2694 | D51: 942.9 | E51: 1077.6 | F51: 107.76 | G51: 43.104 | H51: 5388 | I51: 1885.8 | J51: 1508.64 | K51: 215.52 | L51: 60.3456 | M51: 10058 | N51: 3520.3 | O51: 2011.6 | P51: 402.32 | Q51: 80.464 | S51: 60 | T51: CSixtyHP
B52: 30 | C52: 3233 | D52: 1131.55 | E52: 1293.2 | F52: 107.7666667 | G52: 43.10666667 | H52: 6466 | I52: 2263.1 | J52: 1810.48 | K52: 215.5333333 | L52: 60.34933333 | M52: 12070 | N52: 4224.5 | O52: 2414 | P52: 402.3333333 | Q52: 80.46666667 | S52: 75 | T52: CSeventyFiveHP
B53: 40 | C53: 1618 | D53: 566.3 | E53: 647.2 | F53: 40.45 | G53: 16.18 | H53: 3236 | I53: 1132.6 | J53: 906.08 | K53: 80.9 | L53: 22.652 | M53: 6040 | N53: 2114 | O53: 1208 | P53: 151 | Q53: 30.2
B54: 50 | C54: 5337 | D54: 1867.95 | E54: 2134.8 | F54: 106.74 | G54: 42.696 | H54: 10674 | I54: 3735.9 | J54: 2988.72 | K54: 213.48 | L54: 59.7744 | M54: 19925 | N54: 6973.75 | O54: 3985 | P54: 398.5 | Q54: 79.7 | S54: Compressors
B55: 60 | C55: 6371 | D55: 2229.85 | E55: 2548.4 | F55: 106.1833333 | G55: 42.47333333 | H55: 12742 | I55: 4459.7 | J55: 3567.76 | K55: 212.3666667 | L55: 59.46266667 | M55: 23785 | N55: 8324.75 | O55: 4757 | P55: 396.4166667 | Q55: 79.28333333 | S55: Baseline | T55: Proposed
B56: 75 | C56: 2992 | D56: 1047.2 | E56: 1196.8 | F56: 39.89333333 | G56: 15.95733333 | H56: 5984 | I56: 2094.4 | J56: 1675.52 | K56: 79.78666667 | L56: 22.34026667 | M56: 11170 | N56: 3909.5 | O56: 2234 | P56: 148.9333333 | Q56: 29.78666667 | S56: Inlet Modulation Compressor | T56: Variable Speed Drive Compressor
C57: =AVERAGE(C46:C56) -> 2534.363636 | D57: 887.0272727 | E57: 1013.745455 | F57: 99.44787879 | G57: 39.77915152 | H57: 5068.545455 | I57: 1773.990909 | J57: 1419.192727 | K57: 198.8669697 | L57: 55.68275152 | M57: 9464.181818 | N57: 3312.463636 | O57: 1892.836364 | P57: 371.3851515 | Q57: 74.2770303 | S57: Load Unload Compressor with 40 PSIG Sump Pressure | T57: Load/Unload Compressor with 0 PSIG Sump Pressure
E58: Savings and Rebate per HP: | F58: =ROUND(AVERAGE(F46:F57),0) -> 99 | G58: =ROUND(G57,-1) -> 40 | J58: Savings and Rebate per HP: | K58: =ROUND(AVERAGE(K46:K57),0) -> 199 | L58: =ROUND(L57,-1) -> 60 | O58: Savings and Rebate per HP: | P58: =ROUND(AVERAGE(P46:P57),0) -> 371 | Q58: =ROUND(Q57,-1) -> 70 | S58: Load Unload Compressor with 0 PSIG Sump Pressure | T58: Load/Unload Compressor with 40 PSIG Sump Pressure
S59: System Expansion | T59: Variable Speed Drive Compressor
B60: HP | C60: Savings from Load/Unload with 40 PSIG Sump Pressure to VSD | S60: New Construction | T60: Variable Speed Drive Compressor
C61: =C6 -> 2250 | D61: Current Incentive | E61: Rebate | F61: Savings per HP | G61: Rebate per HP | H61: =C7 -> 4500 | I61: Current Incentive | J61: Rebate | K61: Savings per HP | L61: Rebate per HP | M61: =C8 -> 8400 | N61: Current Incentive | O61: Rebate | P61: Savings per HP | Q61: Rebate per HP | T61: Variable Speed Drive Compressor
B62: 5 | C62: 1925 | D62: =C62*$F$10 -> 673.75 | E62: =C62*$F$6 -> 770 | F62: =C62/B62 -> 385 | G62: =E62/B62 -> 154 | H62: 3851 | I62: =H62*$F$10 -> 1347.85 | J62: =H62*$F$7 -> 1078.28 | K62: =H62/B62 -> 770.2 | L62: =J62/B62 -> 215.656 | M62: 7188 | N62: =M62*$F$10 -> 2515.8 | O62: =M62*$F$8 -> 1437.6 | P62: =M62/B62 -> 1437.6 | Q62: =O62/B62 -> 287.52 | T62: Load/Unload Compressor with 0 PSIG Sump Pressure
B63: 7.5 | C63: 3234 | D63: 1131.9 | E63: 1293.6 | F63: 431.2 | G63: 172.48 | H63: 6468 | I63: 2263.8 | J63: 1811.04 | K63: 862.4 | L63: 241.472 | M63: 12074 | N63: 4225.9 | O63: 2414.8 | P63: 1609.866667 | Q63: 321.9733333 | T63: Load/Unload Compressor with 40 PSIG Sump Pressure
B64: 10 | C64: 4312 | D64: 1509.2 | E64: 1724.8 | F64: 431.2 | G64: 172.48 | H64: 8624 | I64: 3018.4 | J64: 2414.72 | K64: 862.4 | L64: 241.472 | M64: 16099 | N64: 5634.65 | O64: 3219.8 | P64: 1609.9 | Q64: 321.98 | T64: Variable Speed Drive Compressor
B65: 15 | C65: 6419 | D65: 2246.65 | E65: 2567.6 | F65: 427.9333333 | G65: 171.1733333 | H65: 12839 | I65: 4493.65 | J65: 3594.92 | K65: 855.9333333 | L65: 239.6613333 | M65: 23965 | N65: 8387.75 | O65: 4793 | P65: 1597.666667 | Q65: 319.5333333 | T65: Load/Unload Compressor with 0 PSIG Sump Pressure
B66: 20 | C66: 9596 | D66: 3358.6 | E66: 3838.4 | F66: 479.8 | G66: 191.92 | H66: 19191 | I66: 6716.85 | J66: 5373.48 | K66: 959.55 | L66: 268.674 | M66: 35824 | N66: 12538.4 | O66: 7164.8 | P66: 1791.2 | Q66: 358.24 | T66: Load/Unload Compressor with 40 PSIG Sump Pressure
B67: 25 | C67: 10952 | D67: 3833.2 | E67: 4380.8 | F67: 438.08 | G67: 175.232 | H67: 21904 | I67: 7666.4 | J67: 6133.12 | K67: 876.16 | L67: 245.3248 | M67: 40888 | N67: 14310.8 | O67: 8177.6 | P67: 1635.52 | Q67: 327.104
B68: 30 | C68: 13142 | D68: 4599.7 | E68: 5256.8 | F68: 438.0666667 | G68: 175.2266667 | H68: 26285 | I68: 9199.75 | J68: 7359.8 | K68: 876.1666667 | L68: 245.3266667 | M68: 49065 | N68: 17172.75 | O68: 9813 | P68: 1635.5 | Q68: 327.1
B69: 40 | C69: 20177 | D69: 7061.95 | E69: 8070.8 | F69: 504.425 | G69: 201.77 | H69: 40354 | I69: 14123.9 | J69: 11299.12 | K69: 1008.85 | L69: 282.478 | M69: 75328 | N69: 26364.8 | O69: 15065.6 | P69: 1883.2 | Q69: 376.64
B70: 50 | C70: 21720 | D70: 7602 | E70: 8688 | F70: 434.4 | G70: 173.76 | H70: 43440 | I70: 15204 | J70: 12163.2 | K70: 868.8 | L70: 243.264 | M70: 81087 | N70: 28380.45 | O70: 16217.4 | P70: 1621.74 | Q70: 324.348
B71: 60 | C71: 25897 | D71: 9063.95 | E71: 10358.8 | F71: 431.6166667 | G71: 172.6466667 | H71: 51795 | I71: 18128.25 | J71: 14502.6 | K71: 863.25 | L71: 241.71 | M71: 96684 | N71: 33839.4 | O71: 19336.8 | P71: 1611.4 | Q71: 322.28
B72: 75 | C72: 37353 | D72: 13073.55 | E72: 14941.2 | F72: 498.04 | G72: 199.216 | H72: 74706 | I72: 26147.1 | J72: 20917.68 | K72: 996.08 | L72: 278.9024 | M72: 139450 | N72: 48807.5 | O72: 27890 | P72: 1859.333333 | Q72: 371.8666667
C73: =AVERAGE(C62:C72) -> 14066.09091 | D73: 4923.131818 | E73: 5626.436364 | F73: 445.4328788 | G73: 178.1731515 | H73: 28132.45455 | I73: 9846.359091 | J73: 7877.087273 | K73: 890.89 | L73: 249.4492 | M73: 52513.81818 | N73: 18379.83636 | O73: 10502.76364 | P73: 1662.993333 | Q73: 332.5986667
E74: Savings and Rebate per HP: | F74: =ROUND(AVERAGE(F62:F73),0) -> 445 | G74: =ROUND(G73,-1) -> 180 | J74: Savings and Rebate per HP: | K74: =ROUND(AVERAGE(K62:K73),0) -> 891 | L74: =ROUND(L73,-1) -> 250 | O74: Savings and Rebate per HP: | P74: =ROUND(AVERAGE(P62:P73),0) -> 1663 | Q74: =ROUND(Q73,-1) -> 330
B76: HP | C76: Savings from Load/Unload with 0 PSIG Sump Pressure to VSD
C77: =C6 -> 2250 | D77: Current Incentive | E77: Rebate | F77: Savings per HP | G77: Rebate per HP | H77: =C7 -> 4500 | I77: Current Incentive | J77: Rebate | K77: Savings per HP | L77: Rebate per HP | M77: =C8 -> 8400 | N77: Current Incentive | O77: Rebate | P77: Savings per HP | Q77: Rebate per HP
B78: 5 | C78: 928 | D78: =C78*$F$10 -> 324.8 | E78: =C78*$F$6 -> 371.2 | F78: =C78/B78 -> 185.6 | G78: =E78/B78 -> 74.24 | H78: 1857 | I78: =H78*$F$10 -> 649.95 | J78: =H78*$F$7 -> 519.96 | K78: =H78/B78 -> 371.4 | L78: =J78/B78 -> 103.992 | M78: 3466 | N78: =M78*$F$10 -> 1213.1 | O78: =M78*$F$8 -> 693.2 | P78: =M78/B78 -> 693.2 | Q78: =O78/B78 -> 138.64
B79: 7.5 | C79: 1774 | D79: 620.9 | E79: 709.6 | F79: 236.5333333 | G79: 94.61333333 | H79: 3549 | I79: 1242.15 | J79: 993.72 | K79: 473.2 | L79: 132.496 | M79: 6624 | N79: 2318.4 | O79: 1324.8 | P79: 883.2 | Q79: 176.64
B80: 10 | C80: 2366 | D80: 828.1 | E80: 946.4 | F80: 236.6 | G80: 94.64 | H80: 4732 | I80: 1656.2 | J80: 1324.96 | K80: 473.2 | L80: 132.496 | M80: 8832 | N80: 3091.2 | O80: 1766.4 | P80: 883.2 | Q80: 176.64
B81: 15 | C81: 3522 | D81: 1232.7 | E81: 1408.8 | F81: 234.8 | G81: 93.92 | H81: 7044 | I81: 2465.4 | J81: 1972.32 | K81: 469.6 | L81: 131.488 | M81: 13148 | N81: 4601.8 | O81: 2629.6 | P81: 876.5333333 | Q81: 175.3066667
B82: 20 | C82: 5757 | D82: 2014.95 | E82: 2302.8 | F82: 287.85 | G82: 115.14 | H82: 11515 | I82: 4030.25 | J82: 3224.2 | K82: 575.75 | L82: 161.21 | M82: 21494 | N82: 7522.9 | O82: 4298.8 | P82: 1074.7 | Q82: 214.94
B83: 25 | C83: 6137 | D83: 2147.95 | E83: 2454.8 | F83: 245.48 | G83: 98.192 | H83: 12274 | I83: 4295.9 | J83: 3436.72 | K83: 490.96 | L83: 137.4688 | M83: 22912 | N83: 8019.2 | O83: 4582.4 | P83: 916.48 | Q83: 183.296
B84: 30 | C84: 7365 | D84: 2577.75 | E84: 2946 | F84: 245.5 | G84: 98.2 | H84: 14729 | I84: 5155.15 | J84: 4124.12 | K84: 490.9666667 | L84: 137.4706667 | M84: 27495 | N84: 9623.25 | O84: 5499 | P84: 916.5 | Q84: 183.3
B85: 40 | C85: 12514 | D85: 4379.9 | E85: 5005.6 | F85: 312.85 | G85: 125.14 | H85: 25029 | I85: 8760.15 | J85: 7008.12 | K85: 625.725 | L85: 175.203 | M85: 46720 | N85: 16352 | O85: 9344 | P85: 1168 | Q85: 233.6
B86: 50 | C86: 12125 | D86: 4243.75 | E86: 4850 | F86: 242.5 | G86: 97 | H86: 24251 | I86: 8487.85 | J86: 6790.28 | K86: 485.02 | L86: 135.8056 | M86: 45268 | N86: 15843.8 | O86: 9053.6 | P86: 905.36 | Q86: 181.072
B87: 60 | C87: 14512 | D87: 5079.2 | E87: 5804.8 | F87: 241.8666667 | G87: 96.74666667 | H87: 29025 | I87: 10158.75 | J87: 8127 | K87: 483.75 | L87: 135.45 | M87: 54179 | N87: 18962.65 | O87: 10835.8 | P87: 902.9833333 | Q87: 180.5966667
B88: 75 | C88: 23097 | D88: 8083.95 | E88: 9238.8 | F88: 307.96 | G88: 123.184 | H88: 46194 | I88: 16167.9 | J88: 12934.32 | K88: 615.92 | L88: 172.4576 | M88: 86228 | N88: 30179.8 | O88: 17245.6 | P88: 1149.706667 | Q88: 229.9413333
C89: =AVERAGE(C78:C88) -> 8190.636364 | D89: 2866.722727 | E89: 3276.254545 | F89: 252.5036364 | G89: 101.0014545 | H89: 16381.72727 | I89: 5733.604545 | J89: 4586.883636 | K89: 505.044697 | L89: 141.4125152 | M89: 30578.72727 | N89: 10702.55455 | O89: 6115.745455 | P89: 942.7148485 | Q89: 188.5429697
E90: Savings and Rebate per HP: | F90: =ROUND(AVERAGE(F78:F89),0) -> 253 | G90: =ROUND(G89,-1) -> 100 | J90: Savings and Rebate per HP: | K90: =ROUND(AVERAGE(K78:K89),0) -> 505 | L90: =ROUND(L89,-1) -> 140 | O90: Savings and Rebate per HP: | P90: =ROUND(AVERAGE(P78:P89),0) -> 943 | Q90: =ROUND(Q89,-1) -> 190
B93: Note: | C93: For VSD, sump pressure is non-factor. Same savings.
C94: Compressors with 40 PSIG sump pressure: Atlas Copco, Ingersoll Rand (IR), Sullair, Kaeser. They represent 50% of market.
C95: Compressors with 0 PSIG sump pressure: Quincy Northwest, Gardner Denver and Paletek. They represent 50% of market.
B98: Savings Calculations for Refrigerated Air Dryers
B99: Cycling vs. Non-Cycling
B101: Operating Hours and Rebate Rates
B102: Shift | C102: Hrs/yr. per BPA | D102: Est. % Business | E102: Weighted Hrs/yr. | F102: Rebate Rates | G102: Previous Rates | H102: % Change | J102: Assumptions
B103: 1 | C103: 2250 | D103: 0.5 | E103: =C103*D103 -> 1125 | F103: 0.3 | G103: 0.22 | H103: =(F103-G103)/G103 -> 0.3636363636 | J103: 0.8 | K103: Average design safety factor.
B104: 2 | C104: 4500 | D104: 0.35 | E104: =C104*D104 -> 1575 | F104: 0.35 | G104: 0.25 | H104: =(F104-G104)/G104 -> 0.4 | J104: =2/3 -> 0.6666666667 | K104: Estimated percent non-cycling dryers operate during non-production hours. They should be left ON per spec but estimated 1/3 of them are turned OFF.
B105: 3 | C105: 8400 | D105: 0.15 | E105: =C105*D105 -> 1260 | F105: 0.4 | G105: 0.3 | H105: =(F105-G105)/G105 -> 0.3333333333 | J105: 0.5 | K105: Estimated average cycle ON time for cycling dryers.
C106: Weighted Avg.: | D106: =SUM(D103:D105) -> 1 | E106: =SUM(E103:E105) -> 3960 | F106: =F103*D103+F104*D104+F105*D105 -> 0.3325 | G106: =D103*G103+D104*G104+D105*G105 -> 0.2425 | H106: =(F106-G106)/G106 -> 0.3711340206 | J106: 0.1 | K106: Estimated average cycle ON time during OFF hours. They should stay cycled OFF but due to leak loss.
E108: Current Incentive Rate: | F108: 0.35 | G108: 0.25 | H108: =(F108-G108)/G108 -> 0.4
B110: 1-SHIFT
C112: Refrigerated Non-Cycling Air Dryers | H112: Refrigerated Cycling Air Dryers | M112: kWh/yr. Savings | N112: Current Custom Incentive | O112: Proposed Rebate Amount | S112: Cost Info
B113: Rated SCFM | C113: Full Load kW | D113: Average kW1 | E113: kWh/yr. During Production Hours2 | F113: kWh/yr. During OFF Hours3 | G113: Average Annual kWh/yr. | H113: Full Load kW | I113: Average kW | J113: kWh/yr. During Production Hrs.4 | K113: kWh/yr. During OFF Hrs.5 | L113: Annual kWh/yr. @ 8760 Hrs/yr. | O113: kWh/yr. Savings per SCFM | P113: Rebate per SCFM | Q113: Rebate per Unit | R113: ∆ Incentive | S113: Incremental Equipment Cost | T113: % Incentive over Cost
B114: 35 | C114: 0.4 | D114: =C114*$J$103 -> 0.32 | E114: =D114*$C$103 -> 720 | F114: =C114*(8760-$C$103)*$J$104 -> 1736 | G114: =E114+F114 -> 2456 | H114: 0.4 | I114: =H114*$J$103 -> 0.32 | J114: =I114*$C$103*$J$105 -> 360 | K114: =I114*(8760-$C$103)*$J$106 -> 208.32 | L114: =J114+K114 -> 568.32 | M114: =G114-L114 -> 1887.68 | N114: =M114*$F$108 -> 660.688 | O114: =M114/B114 -> 53.93371429 | P114: =O114*$F$103 -> 16.18011429 | Q114: =B114*P114 -> 566.304 | R114: =Q114-N114 -> -94.384 | S114: 2327 | T114: =Q114/S114 -> 0.243362269 | X114: Cycling Dryers
B115: 50 | C115: 0.56 | D115: 0.448 | E115: 1008 | F115: 2430.4 | G115: 3438.4 | H115: 0.56 | I115: 0.448 | J115: 504 | K115: 291.648 | L115: 795.648 | M115: 2642.752 | N115: 924.9632 | O115: 52.85504 | P115: 15.856512 | Q115: 792.8256 | R115: -132.1376 | S115: 2892 | T115: 0.2741443983 | X115: Existing | Y115: Proposed | Z115: Hours | AA115: Dryers Summary List | AB115: Savings per CFM | AC115: Rebates per CFM
B116: 75 | C116: 0.67 | D116: 0.536 | E116: 1206 | F116: 2907.8 | G116: 4113.8 | H116: 0.78 | I116: 0.624 | J116: 702 | K116: 406.224 | L116: 1108.224 | M116: 3005.576 | N116: 1051.9516 | O116: 40.07434667 | P116: 12.022304 | Q116: 901.6728 | R116: -150.2788 | S116: 6197 | T116: 0.1455015007 | X116: NonCycling Refrigerated Air Dryer | Y116: Cycling Refrigerated Air Dryer | Z116: less than 4,000 | AA116: =SUBSTITUTE(X116," ","")&SUBSTITUTE(Y116," ","")&SUBSTITUTE(Z116," ","") -> NonCyclingRefrigeratedAirDryerCyclingRefrigeratedAirDryerlessthan4,000 | AB116: =O180 -> 38 | AC116: =P180*WithBonusMeasures -> 13 | AD116: one rate
B117: 100 | C117: 1.03 | D117: 0.824 | E117: 1854 | F117: 4470.2 | G117: 6324.2 | H117: 0.96 | I117: 0.768 | J117: 864 | K117: 499.968 | L117: 1363.968 | M117: 4960.232 | N117: 1736.0812 | O117: 49.60232 | P117: 14.880696 | Q117: 1488.0696 | R117: -248.0116 | S117: 3637 | T117: 0.4091475392 | U117: Common size | X117: NonCycling Refrigerated Air Dryer | Y117: Cycling Refrigerated Air Dryer | Z117: between 4,000 and 7,000 | AA117: NonCyclingRefrigeratedAirDryerCyclingRefrigeratedAirDryerbetween4,000and7,000 | AB117: =AB116 -> 38 | AC117: =AC116 -> 13
B118: 125 | C118: 1.27 | D118: 1.016 | E118: 2286 | F118: 5511.8 | G118: 7797.8 | H118: 1.35 | I118: 1.08 | J118: 1215 | K118: 703.08 | L118: 1918.08 | M118: 5879.72 | N118: 2057.902 | O118: 47.03776 | P118: 14.111328 | Q118: 1763.916 | R118: -293.986 | S118: 4071 | T118: 0.4332881356 | X118: NonCycling Refrigerated Air Dryer | Y118: Cycling Refrigerated Air Dryer | Z118: greater than 7,000 | AA118: NonCyclingRefrigeratedAirDryerCyclingRefrigeratedAirDryergreaterthan7,000 | AB118: =AB116 -> 38 | AC118: =AC117 -> 13
B119: 150 | C119: 1.27 | D119: 1.016 | E119: 2286 | F119: 5511.8 | G119: 7797.8 | H119: 1.29 | I119: 1.032 | J119: 1161 | K119: 671.832 | L119: 1832.832 | M119: 5964.968 | N119: 2087.7388 | O119: 39.76645333 | P119: 11.929936 | Q119: 1789.4904 | R119: -298.2484 | S119: 5039 | T119: 0.355128081 | X119: Regenerative Style Desiccant Air Dryer | Y119: Regenerative Style Desiccant Air Dryer with Dew Point Control | Z119: less than 4,000 | AA119: RegenerativeStyleDesiccantAirDryerRegenerativeStyleDesiccantAirDryerwithDewPointControllessthan4,000 | AB119: ='CA Tables'!L209 -> 29 | AC119: ='CA Tables'!Q209*WithBonusMeasures -> 10
B120: 200 | C120: 1.7 | D120: 1.36 | E120: 3060 | F120: 7378 | G120: 10438 | H120: 1.66 | I120: 1.328 | J120: 1494 | K120: 864.528 | L120: 2358.528 | M120: 8079.472 | N120: 2827.8152 | O120: 40.39736 | P120: 12.119208 | Q120: 2423.8416 | R120: -403.9736 | S120: 7272 | T120: 0.3333115512 | X120: Regenerative Style Desiccant Air Dryer | Y120: Regenerative Style Desiccant Air Dryer with Dew Point Control | Z120: between 4,000 and 7,000 | AA120: RegenerativeStyleDesiccantAirDryerRegenerativeStyleDesiccantAirDryerwithDewPointControlbetween4,000and7,000 | AB120: ='CA Tables'!L228 -> 58 | AC120: ='CA Tables'!Q228*WithBonusMeasures -> 15
B121: 250 | C121: 1.6 | D121: 1.28 | E121: 2880 | F121: 6944 | G121: 9824 | H121: 2.01 | I121: 1.608 | J121: 1809 | K121: 1046.808 | L121: 2855.808 | M121: 6968.192 | N121: 2438.8672 | O121: 27.872768 | P121: 8.3618304 | Q121: 2090.4576 | R121: -348.4096 | S121: 8000 | T121: 0.2613072 | U121: estimated cost for this size | X121: Regenerative Style Desiccant Air Dryer | Y121: Regenerative Style Desiccant Air Dryer with Dew Point Control | Z121: greater than 7,000 | AA121: RegenerativeStyleDesiccantAirDryerRegenerativeStyleDesiccantAirDryerwithDewPointControlgreaterthan7,000 | AB121: ='CA Tables'!L247 -> 109 | AC121: ='CA Tables'!Q247*WithBonusMeasures -> 20
B122: 300 | C122: 2.11 | D122: 1.688 | E122: 3798 | F122: 9157.4 | G122: 12955.4 | H122: 2.54 | I122: 2.032 | J122: 2286 | K122: 1322.832 | L122: 3608.832 | M122: 9346.568 | N122: 3271.2988 | O122: 31.15522667 | P122: 9.346568 | Q122: 2803.9704 | R122: -467.3284 | S122: 8580 | T122: 0.3268030769
B123: 400 | C123: 3.48 | D123: 2.784 | E123: 6264 | F123: 15103.2 | G123: 21367.2 | H123: 3.24 | I123: 2.592 | J123: 2916 | K123: 1687.392 | L123: 4603.392 | M123: 16763.808 | N123: 5867.3328 | O123: 41.90952 | P123: 12.572856 | Q123: 5029.1424 | R123: -838.1904 | S123: 9960 | T123: 0.5049339759
B124: 500 | C124: 3.59 | D124: 2.872 | E124: 6462 | F124: 15580.6 | G124: 22042.6 | H124: 4.52 | I124: 3.616 | J124: 4068 | K124: 2354.016 | L124: 6422.016 | M124: 15620.584 | N124: 5467.2044 | O124: 31.241168 | P124: 9.3723504 | Q124: 4686.1752 | R124: -781.0292 | S124: 11838 | T124: 0.3958586923 | X124: DryerList
B125: 600 | C125: 4.5 | D125: 3.6 | E125: 8100 | F125: 19530 | G125: 27630 | H125: 4.82 | I125: 3.856 | J125: 4338 | K125: 2510.256 | L125: 6848.256 | M125: 20781.744 | N125: 7273.6104 | O125: 34.63624 | P125: 10.390872 | Q125: 6234.5232 | R125: -1039.0872 | S125: 13089 | T125: 0.476317763 | X125: Non Cycling Refrigerated Air Dryer
M126: Average kWh/yr.-SCFM: | N126: =AVERAGE(N114:N125) -> 2972.121133 | O126: =AVERAGE(O114:O125) -> 40.87349308 | P126: =AVERAGE(P114:P125) -> 12.26204792 | R126: =AVERAGE(R114:R125) -> -424.5887333 | T126: =AVERAGE(T114:T125) -> 0.3465920153 | X126: Regenerative Style Desiccant Air Dryer
B128: 2-SHIFT
C130: Refrigerated Non-Cycling Air Dryers | H130: Refrigerated Cycling Air Dryers | M130: kWh/yr. Savings | N130: Current Custom Incentive | O130: Proposed Rebate Amount | S130: Cost Info
B131: Rated SCFM | C131: Full Load kW | D131: Average kW1 | E131: kWh/yr. During Production Hours2 | F131: kWh/yr. During OFF Hours3 | G131: Average Annual kWh/yr. | H131: Full Load kW | I131: Average kW | J131: kWh/yr. During Production Hrs.4 | K131: kWh/yr. During OFF Hrs.5 | L131: Annual kWh/yr. @ 8760 Hrs/yr. | O131: kWh/yr. Savings per SCFM | P131: Rebate per SCFM | Q131: Rebate per Unit | R131: ∆ Incentive | S131: Incremental Equipment Cost | T131: % Incentive over Cost
B132: 35 | C132: 0.4 | D132: =C132*$J$103 -> 0.32 | E132: =D132*$C$104 -> 1440 | F132: =C132*(8760-$C$104)*$J$104 -> 1136 | G132: =E132+F132 -> 2576 | H132: 0.4 | I132: =H132*$J$103 -> 0.32 | J132: =I132*$C$104*$J$105 -> 720 | K132: =I132*(8760-$C$104)*$J$106 -> 136.32 | L132: =J132+K132 -> 856.32 | M132: =G132-L132 -> 1719.68 | N132: =M132*$F$108 -> 601.888 | O132: =M132/B132 -> 49.13371429 | P132: =O132*$F$104 -> 17.1968 | Q132: =B132*P132 -> 601.888 | R132: =Q132-N132 -> 0 | S132: 2327 | T132: =Q132/S132 -> 0.258654061
B133: 50 | C133: 0.56 | D133: 0.448 | E133: 2016 | F133: 1590.4 | G133: 3606.4 | H133: 0.56 | I133: 0.448 | J133: 1008 | K133: 190.848 | L133: 1198.848 | M133: 2407.552 | N133: 842.6432 | O133: 48.15104 | P133: 16.852864 | Q133: 842.6432 | R133: 0 | S133: 2892 | T133: 0.2913704011
B134: 75 | C134: 0.67 | D134: 0.536 | E134: 2412 | F134: 1902.8 | G134: 4314.8 | H134: 0.78 | I134: 0.624 | J134: 1404 | K134: 265.824 | L134: 1669.824 | M134: 2644.976 | N134: 925.7416 | O134: 35.26634667 | P134: 12.34322133 | Q134: 925.7416 | R134: 0 | S134: 6197 | T134: 0.1493854446
B135: 100 | C135: 1.03 | D135: 0.824 | E135: 3708 | F135: 2925.2 | G135: 6633.2 | H135: 0.96 | I135: 0.768 | J135: 1728 | K135: 327.168 | L135: 2055.168 | M135: 4578.032 | N135: 1602.3112 | O135: 45.78032 | P135: 16.023112 | Q135: 1602.3112 | R135: 0 | S135: 3637 | T135: 0.4405584823 | U135: Common size
B136: 125 | C136: 1.27 | D136: 1.016 | E136: 4572 | F136: 3606.8 | G136: 8178.8 | H136: 1.35 | I136: 1.08 | J136: 2430 | K136: 460.08 | L136: 2890.08 | M136: 5288.72 | N136: 1851.052 | O136: 42.30976 | P136: 14.808416 | Q136: 1851.052 | R136: 0 | S136: 4071 | T136: 0.4546922132
B137: 150 | C137: 1.27 | D137: 1.016 | E137: 4572 | F137: 3606.8 | G137: 8178.8 | H137: 1.29 | I137: 1.032 | J137: 2322 | K137: 439.632 | L137: 2761.632 | M137: 5417.168 | N137: 1896.0088 | O137: 36.11445333 | P137: 12.64005867 | Q137: 1896.0088 | R137: 0 | S137: 5039 | T137: 0.3762668783
B138: 200 | C138: 1.7 | D138: 1.36 | E138: 6120 | F138: 4828 | G138: 10948 | H138: 1.66 | I138: 1.328 | J138: 2988 | K138: 565.728 | L138: 3553.728 | M138: 7394.272 | N138: 2587.9952 | O138: 36.97136 | P138: 12.939976 | Q138: 2587.9952 | R138: 0 | S138: 7272 | T138: 0.3558849285
B139: 250 | C139: 1.6 | D139: 1.28 | E139: 5760 | F139: 4544 | G139: 10304 | H139: 2.01 | I139: 1.608 | J139: 3618 | K139: 685.008 | L139: 4303.008 | M139: 6000.992 | N139: 2100.3472 | O139: 24.003968 | P139: 8.4013888 | Q139: 2100.3472 | R139: 0 | S139: 8000 | T139: 0.2625434 | U139: estimated cost for this size
B140: 300 | C140: 2.11 | D140: 1.688 | E140: 7596 | F140: 5992.4 | G140: 13588.4 | H140: 2.54 | I140: 2.032 | J140: 4572 | K140: 865.632 | L140: 5437.632 | M140: 8150.768 | N140: 2852.7688 | O140: 27.16922667 | P140: 9.509229333 | Q140: 2852.7688 | R140: 0 | S140: 8580 | T140: 0.3324905361
B141: 400 | C141: 3.48 | D141: 2.784 | E141: 12528 | F141: 9883.2 | G141: 22411.2 | H141: 3.24 | I141: 2.592 | J141: 5832 | K141: 1104.192 | L141: 6936.192 | M141: 15475.008 | N141: 5416.2528 | O141: 38.68752 | P141: 13.540632 | Q141: 5416.2528 | R141: 0 | S141: 9960 | T141: 0.5438004819
B142: 500 | C142: 3.59 | D142: 2.872 | E142: 12924 | F142: 10195.6 | G142: 23119.6 | H142: 4.52 | I142: 3.616 | J142: 8136 | K142: 1540.416 | L142: 9676.416 | M142: 13443.184 | N142: 4705.1144 | O142: 26.886368 | P142: 9.4102288 | Q142: 4705.1144 | R142: 0 | S142: 11838 | T142: 0.3974585572
B143: 600 | C143: 4.5 | D143: 3.6 | E143: 16200 | F143: 12780 | G143: 28980 | H143: 4.82 | I143: 3.856 | J143: 8676 | K143: 1642.656 | L143: 10318.656 | M143: 18661.344 | N143: 6531.4704 | O143: 31.10224 | P143: 10.885784 | Q143: 6531.4704 | R143: 0 | S143: 13089 | T143: 0.4990045382
M144: Average kWh/yr.-SCFM: | N144: =AVERAGE(N132:N143) -> 2659.466133 | O144: =AVERAGE(O132:O143) -> 36.79802641 | P144: =AVERAGE(P132:P143) -> 12.87930924 | R144: =AVERAGE(R132:R143) -> 0 | T144: =AVERAGE(T132:T143) -> 0.3635091602
B146: 3-SHIFT
C148: Refrigerated Non-Cycling Air Dryers | H148: Refrigerated Cycling Air Dryers | M148: kWh/yr. Savings | N148: Current Custom Incentive | O148: Proposed Rebate Amount | S148: Cost Info
B149: Rated SCFM | C149: Full Load kW | D149: Average kW1 | E149: kWh/yr. During Production Hours2 | F149: kWh/yr. During OFF Hours3 | G149: Average Annual kWh/yr. | H149: Full Load kW | I149: Average kW | J149: kWh/yr. During Production Hrs.4 | K149: kWh/yr. During OFF Hrs.5 | L149: Annual kWh/yr. @ 8760 Hrs/yr. | O149: kWh/yr. Savings per SCFM | P149: Rebate per SCFM | Q149: Rebate per Unit | R149: ∆ Incentive | S149: Incremental Equipment Cost | T149: % Incentive over Cost
B150: 35 | C150: 0.4 | D150: =C150*$J$103 -> 0.32 | E150: =D150*$C$105 -> 2688 | F150: =C150*(8760-$C$105)*$J$104 -> 96 | G150: =E150+F150 -> 2784 | H150: 0.4 | I150: =H150*$J$103 -> 0.32 | J150: =I150*$C$105*$J$105 -> 1344 | K150: =I150*(8760-$C$105)*$J$106 -> 11.52 | L150: =J150+K150 -> 1355.52 | M150: =G150-L150 -> 1428.48 | N150: =M150*$F$108 -> 499.968 | O150: =M150/B150 -> 40.81371429 | P150: =O150*$F$105 -> 16.32548571 | Q150: =B150*P150 -> 571.392 | R150: =Q150-N150 -> 71.424 | S150: 2327 | T150: =Q150/S150 -> 0.2455487752
B151: 50 | C151: 0.56 | D151: 0.448 | E151: 3763.2 | F151: 134.4 | G151: 3897.6 | H151: 0.56 | I151: 0.448 | J151: 1881.6 | K151: 16.128 | L151: 1897.728 | M151: 1999.872 | N151: 699.9552 | O151: 39.99744 | P151: 15.998976 | Q151: 799.9488 | R151: 99.9936 | S151: 2892 | T151: 0.2766074689
B152: 75 | C152: 0.67 | D152: 0.536 | E152: 4502.4 | F152: 160.8 | G152: 4663.2 | H152: 0.78 | I152: 0.624 | J152: 2620.8 | K152: 22.464 | L152: 2643.264 | M152: 2019.936 | N152: 706.9776 | O152: 26.93248 | P152: 10.772992 | Q152: 807.9744 | R152: 100.9968 | S152: 6197 | T152: 0.1303815395
B153: 100 | C153: 1.03 | D153: 0.824 | E153: 6921.6 | F153: 247.2 | G153: 7168.8 | H153: 0.96 | I153: 0.768 | J153: 3225.6 | K153: 27.648 | L153: 3253.248 | M153: 3915.552 | N153: 1370.4432 | O153: 39.15552 | P153: 15.662208 | Q153: 1566.2208 | R153: 195.7776 | S153: 3637 | T153: 0.4306353588 | U153: Common size
B154: 125 | C154: 1.27 | D154: 1.016 | E154: 8534.4 | F154: 304.8 | G154: 8839.2 | H154: 1.35 | I154: 1.08 | J154: 4536 | K154: 38.88 | L154: 4574.88 | M154: 4264.32 | N154: 1492.512 | O154: 34.11456 | P154: 13.645824 | Q154: 1705.728 | R154: 213.216 | S154: 4071 | T154: 0.4189948416
B155: 150 | C155: 1.27 | D155: 1.016 | E155: 8534.4 | F155: 304.8 | G155: 8839.2 | H155: 1.29 | I155: 1.032 | J155: 4334.4 | K155: 37.152 | L155: 4371.552 | M155: 4467.648 | N155: 1563.6768 | O155: 29.78432 | P155: 11.913728 | Q155: 1787.0592 | R155: 223.3824 | S155: 5039 | T155: 0.3546456043
B156: 200 | C156: 1.7 | D156: 1.36 | E156: 11424 | F156: 408 | G156: 11832 | H156: 1.66 | I156: 1.328 | J156: 5577.6 | K156: 47.808 | L156: 5625.408 | M156: 6206.592 | N156: 2172.3072 | O156: 31.03296 | P156: 12.413184 | Q156: 2482.6368 | R156: 310.3296 | S156: 7272 | T156: 0.3413966997
B157: 250 | C157: 1.6 | D157: 1.28 | E157: 10752 | F157: 384 | G157: 11136 | H157: 2.01 | I157: 1.608 | J157: 6753.6 | K157: 57.888 | L157: 6811.488 | M157: 4324.512 | N157: 1513.5792 | O157: 17.298048 | P157: 6.9192192 | Q157: 1729.8048 | R157: 216.2256 | S157: 8000 | T157: 0.2162256 | U157: estimated cost for this size
B158: 300 | C158: 2.11 | D158: 1.688 | E158: 14179.2 | F158: 506.4 | G158: 14685.6 | H158: 2.54 | I158: 2.032 | J158: 8534.4 | K158: 73.152 | L158: 8607.552 | M158: 6078.048 | N158: 2127.3168 | O158: 20.26016 | P158: 8.104064 | Q158: 2431.2192 | R158: 303.9024 | S158: 8580 | T158: 0.2833588811
B159: 400 | C159: 3.48 | D159: 2.784 | E159: 23385.6 | F159: 835.2 | G159: 24220.8 | H159: 3.24 | I159: 2.592 | J159: 10886.4 | K159: 93.312 | L159: 10979.712 | M159: 13241.088 | N159: 4634.3808 | O159: 33.10272 | P159: 13.241088 | Q159: 5296.4352 | R159: 662.0544 | S159: 9960 | T159: 0.5317706024
B160: 500 | C160: 3.59 | D160: 2.872 | E160: 24124.8 | F160: 861.6 | G160: 24986.4 | H160: 4.52 | I160: 3.616 | J160: 15187.2 | K160: 130.176 | L160: 15317.376 | M160: 9669.024 | N160: 3384.1584 | O160: 19.338048 | P160: 7.7352192 | Q160: 3867.6096 | R160: 483.4512 | S160: 11838 | T160: 0.326711404
B161: 600 | C161: 4.5 | D161: 3.6 | E161: 30240 | F161: 1080 | G161: 31320 | H161: 4.82 | I161: 3.856 | J161: 16195.2 | K161: 138.816 | L161: 16334.016 | M161: 14985.984 | N161: 5245.0944 | O161: 24.97664 | P161: 9.990656 | Q161: 5994.3936 | R161: 749.2992 | S161: 13089 | T161: 0.4579718542
M162: Average kWh/yr.-SCFM: | N162: =AVERAGE(N150:N161) -> 2117.5308 | O162: =AVERAGE(O150:O161) -> 29.73388419 | P162: =AVERAGE(P150:P161) -> 11.89355368 | R162: =AVERAGE(R150:R161) -> 302.5044 | T162: =AVERAGE(T150:T161) -> 0.3345207191
B164: COMBINED
B165: col. 1 | C165: col. 2 | D165: col. 3 | E165: col. 4 | F165: col. 5 | G165: col. 6 | H165: col. 7 | I165: col. 8 | J165: col. 9 | K165: col. 10 | L165: col. 11 | M165: col. 12
C166: Refrigerated Non-Cycling Air Dryers | H166: Refrigerated Cycling Air Dryers | M166: kWh/yr. Savings | N166: Current Custom Incentive (30¢/kWh) | O166: Proposed Rebate Amount | S166: Cost Info
B167: Rated SCFM | C167: Full Load kW | D167: Average kW1 | E167: kWh/yr. During Production Hours2 | F167: kWh/yr. During OFF Hours3 | G167: Average Annual kWh/yr. | H167: Full Load kW | I167: Average kW | J167: kWh/yr. During Production Hrs.4 | K167: kWh/yr. During OFF Hrs.5 | L167: Annual kWh/yr. @ 8760 Hrs/yr. | O167: kWh/yr. Savings per SCFM | P167: Rebate per SCFM | Q167: Rebate per Unit | R167: ∆ Incentive | S167: Incremental Equipment Cost | T167: % Incentive over Cost
B168: 35 | C168: 0.4 | D168: =C168*$J$103 -> 0.32 | E168: =D168*$E$106 -> 1267.2 | F168: =C168*(8760-$E$106)*$J$104 -> 1280 | G168: =E168+F168 -> 2547.2 | H168: 0.4 | I168: =H168*$J$103 -> 0.32 | J168: =I168*$E$106*$J$105 -> 633.6 | K168: =I168*(8760-$E$106)*$J$106 -> 153.6 | L168: =J168+K168 -> 787.2 | M168: =G168-L168 -> 1760 | N168: =M168*$F$108 -> 616 | O168: =M168/B168 -> 50.28571429 | P168: =O168*$F$106 -> 16.72 | Q168: =B168*P168 -> 585.2 | R168: =Q168-N168 -> -30.8 | S168: 2327 | T168: =Q168/S168 -> 0.2514825956
B169: 50 | C169: 0.56 | D169: 0.448 | E169: 1774.08 | F169: 1792 | G169: 3566.08 | H169: 0.56 | I169: 0.448 | J169: 887.04 | K169: 215.04 | L169: 1102.08 | M169: 2464 | N169: 862.4 | O169: 49.28 | P169: 16.3856 | Q169: 819.28 | R169: -43.12 | S169: 2892 | T169: 0.2832918396
B170: 75 | C170: 0.67 | D170: 0.536 | E170: 2122.56 | F170: 2144 | G170: 4266.56 | H170: 0.78 | I170: 0.624 | J170: 1235.52 | K170: 299.52 | L170: 1535.04 | M170: 2731.52 | N170: 956.032 | O170: 36.42026667 | P170: 12.10973867 | Q170: 908.2304 | R170: -47.8016 | S170: 6197 | T170: 0.1465596902
B171: 100 | C171: 1.03 | D171: 0.824 | E171: 3263.04 | F171: 3296 | G171: 6559.04 | H171: 0.96 | I171: 0.768 | J171: 1520.64 | K171: 368.64 | L171: 1889.28 | M171: 4669.76 | N171: 1634.416 | O171: 46.6976 | P171: 15.526952 | Q171: 1552.6952 | R171: -81.7208 | S171: 3637 | T171: 0.4269164696 | U171: Common size
B172: 125 | C172: 1.27 | D172: 1.016 | E172: 4023.36 | F172: 4064 | G172: 8087.36 | H172: 1.35 | I172: 1.08 | J172: 2138.4 | K172: 518.4 | L172: 2656.8 | M172: 5430.56 | N172: 1900.696 | O172: 43.44448 | P172: 14.4452896 | Q172: 1805.6612 | R172: -95.0348 | S172: 4071 | T172: 0.443542422
B173: 150 | C173: 1.27 | D173: 1.016 | E173: 4023.36 | F173: 4064 | G173: 8087.36 | H173: 1.29 | I173: 1.032 | J173: 2043.36 | K173: 495.36 | L173: 2538.72 | M173: 5548.64 | N173: 1942.024 | O173: 36.99093333 | P173: 12.29948533 | Q173: 1844.9228 | R173: -97.1012 | S173: 5039 | T173: 0.3661287557
B174: 200 | C174: 1.7 | D174: 1.36 | E174: 5385.6 | F174: 5440 | G174: 10825.6 | H174: 1.66 | I174: 1.328 | J174: 2629.44 | K174: 637.44 | L174: 3266.88 | M174: 7558.72 | N174: 2645.552 | O174: 37.7936 | P174: 12.566372 | Q174: 2513.2744 | R174: -132.2776 | S174: 7272 | T174: 0.345609791
B175: 250 | C175: 1.6 | D175: 1.28 | E175: 5068.8 | F175: 5120 | G175: 10188.8 | H175: 2.01 | I175: 1.608 | J175: 3183.84 | K175: 771.84 | L175: 3955.68 | M175: 6233.12 | N175: 2181.592 | O175: 24.93248 | P175: 8.2900496 | Q175: 2072.5124 | R175: -109.0796 | S175: 8000 | T175: 0.25906405 | U175: estimated cost for this size
B176: 300 | C176: 2.11 | D176: 1.688 | E176: 6684.48 | F176: 6752 | G176: 13436.48 | H176: 2.54 | I176: 2.032 | J176: 4023.36 | K176: 975.36 | L176: 4998.72 | M176: 8437.76 | N176: 2953.216 | O176: 28.12586667 | P176: 9.351850667 | Q176: 2805.5552 | R176: -147.6608 | S176: 8580 | T176: 0.3269877855
B177: 400 | C177: 3.48 | D177: 2.784 | E177: 11024.64 | F177: 11136 | G177: 22160.64 | H177: 3.24 | I177: 2.592 | J177: 5132.16 | K177: 1244.16 | L177: 6376.32 | M177: 15784.32 | N177: 5524.512 | O177: 39.4608 | P177: 13.120716 | Q177: 5248.2864 | R177: -276.2256 | S177: 9960 | T177: 0.5269363855
B178: 500 | C178: 3.59 | D178: 2.872 | E178: 11373.12 | F178: 11488 | G178: 22861.12 | H178: 4.52 | I178: 3.616 | J178: 7159.68 | K178: 1735.68 | L178: 8895.36 | M178: 13965.76 | N178: 4888.016 | O178: 27.93152 | P178: 9.2872304 | Q178: 4643.6152 | R178: -244.4008 | S178: 11838 | T178: 0.3922634905
B179: 600 | C179: 4.5 | D179: 3.6 | E179: 14256 | F179: 14400 | G179: 28656 | H179: 4.82 | I179: 3.856 | J179: 7634.88 | K179: 1850.88 | L179: 9485.76 | M179: 19170.24 | N179: 6709.584 | O179: 31.9504 | P179: 10.623508 | Q179: 6374.1048 | R179: -335.4792 | S179: 13089 | T179: 0.4869818015
N180: Average kWh/yr.-SCFM: | O180: =ROUND(AVERAGE(O168:O179),0) -> 38 | P180: =ROUND(AVERAGE(P168:P179),0) -> 13 | R180: =AVERAGE(R168:R179) -> -136.7251667 | T180: =AVERAGE(T168:T179) -> 0.3546470897
B183: Savings Calculations for Desiccant Dryers with Dew Point Control Upgrade
B185: Operating Hours and Rebate Rates
B186: Shift | C186: Hrs/yr. per BPA | D186: Est. % Business | E186: Weighted Hrs/yr. | F186: Rebate Rates | G186: Previous Version | H186: % Change
B187: 1 | C187: 2250 | D187: 0.5 | E187: =C187*D187 -> 1125 | F187: 0.38 | G187: 0.26 | H187: =(F187-G187)/G187 -> 0.4615384615
B188: 2 | C188: 4500 | D188: 0.35 | E188: =C188*D188 -> 1575 | F188: 0.3 | G188: 0.2 | H188: =(F188-G188)/G188 -> 0.5
B189: 3 | C189: 8400 | D189: 0.15 | E189: =C189*D189 -> 1260 | F189: 0.25 | G189: 0.15 | H189: =(F189-G189)/G189 -> 0.6666666667
C190: Avg. Hrs/yr.: | D190: =SUM(D187:D189) -> 1 | E190: =SUM(E187:E189) -> 3960 | F190: =F187*D187+F188*D188+F189*D189 -> 0.3325 | G190: =D187*G187+D188*G188+D189*G189 -> 0.2225 | H190: =(F190-G190)/G190 -> 0.4943820225 | K190: Incremental Cost Cap: | L190: 1
B192: 1-SHIFT
C193: Baseline for New Construction | H193: Upgrade for New Construction, or Retrofit & Replacement
B194: SCFM Rating | C194: Regenerative Style Desiccant Air Dryers | H194: Same Dryer, kWh Savings Per Year with Dew Point Control
C195: Normal Purge Rate | D195: kW Equivalent (CFM / kW)* | E195: Dew Point Control Purge Rate | F195: kW Equivalent (CFM / kW) | G195: Delta kW | H195: 1 Shift Hrs/Year | I195: Current Incentive | J195: rebate for replacement (1/2 for upgrade) | K195: % Change | L195: Savings per SCFM | M195: Standard Equipment Cost | N195: Upgraded Equipment Cost | O195: Incremental Cost | P195: % Incentive over Cost | Q195: Rebate per SCFM | R195: % Rebate | S195: Rebate per Unit
C196: 0.14 | D196: 5.4 | E196: 0.07 | F196: 5.4 | H196: =C187 -> 2250 | I196: 0.25 | J196: =F187 -> 0.38 | K196: =J196/I196-1 -> 0.52
B197: 35 | C197: =B197*$C$196 -> 4.9 | D197: =C197/$D$196 -> 0.9074074074 | E197: =B197*$E$196 -> 2.45 | F197: =E197/$F$196 -> 0.4537037037 | G197: =D197-F197 -> 0.4537037037 | H197: =G197*$H$196 -> 1020.833333 | I197: =H197*$I$196 -> 255.2083333 | J197: =H197*$J$196 -> 387.9166667 | K197: 0.52 | L197: =H197/B197 -> 29.16666667 | M197: 3650 | N197: 7023 | O197: =N197-M197 -> 3373 | P197: =J197/O197 -> 0.1150064236 | Q197: =MIN(J197/B197,$L$190*O197/B197) -> 11.08333333 | R197: =Q197*B197/O197 -> 0.1150064236 | S197: =Q197*B197 -> 387.9166667
B198: 50 | C198: 7 | D198: 1.296296296 | E198: 3.5 | F198: 0.6481481481 | G198: 0.6481481481 | H198: 1458.333333 | I198: 364.5833333 | J198: 554.1666667 | K198: 0.52 | L198: 29.16666667 | M198: 4694 | N198: 8066 | O198: 3372 | P198: 0.1643436141 | Q198: 11.08333333 | R198: 0.1643436141 | S198: 554.1666667
B199: 75 | C199: 10.5 | D199: 1.944444444 | E199: 5.25 | F199: 0.9722222222 | G199: 0.9722222222 | H199: 2187.5 | I199: 546.875 | J199: 831.25 | K199: 0.52 | L199: 29.16666667 | M199: 5956 | N199: 9329 | O199: 3373 | P199: 0.2464423362 | Q199: 11.08333333 | R199: 0.2464423362 | S199: 831.25
B200: 100 | C200: 14 | D200: 2.592592593 | E200: 7 | F200: 1.296296296 | G200: 1.296296296 | H200: 2916.666667 | I200: 729.1666667 | J200: 1108.333333 | K200: 0.52 | L200: 29.16666667 | M200: 7111 | N200: 11181 | O200: 4070 | P200: 0.2723177723 | Q200: 11.08333333 | R200: 0.2723177723 | S200: 1108.333333
B201: 125 | C201: 17.5 | D201: 3.240740741 | E201: 8.75 | F201: 1.62037037 | G201: 1.62037037 | H201: 3645.833333 | I201: 911.4583333 | J201: 1385.416667 | K201: 0.52 | L201: 29.16666667 | M201: 7543 | N201: 11613 | O201: 4070 | P201: 0.3403972154 | Q201: 11.08333333 | R201: 0.3403972154 | S201: 1385.416667
B202: 150 | C202: 21 | D202: 3.888888889 | E202: 10.5 | F202: 1.944444444 | G202: 1.944444444 | H202: 4375 | I202: 1093.75 | J202: 1662.5 | K202: 0.52 | L202: 29.16666667 | M202: 8404 | N202: 12474 | O202: 4070 | P202: 0.4084766585 | Q202: 11.08333333 | R202: 0.4084766585 | S202: 1662.5
B203: 200 | C203: 28 | D203: 5.185185185 | E203: 14 | F203: 2.592592593 | G203: 2.592592593 | H203: 5833.333333 | I203: 1458.333333 | J203: 2216.666667 | K203: 0.52 | L203: 29.16666667 | M203: 9277 | N203: 13347 | O203: 4070 | P203: 0.5446355446 | Q203: 11.08333333 | R203: 0.5446355446 | S203: 2216.666667
B204: 250 | C204: 35 | D204: 6.481481481 | E204: 17.5 | F204: 3.240740741 | G204: 3.240740741 | H204: 7291.666667 | I204: 1822.916667 | J204: 2770.833333 | K204: 0.52 | L204: 29.16666667 | M204: 9839 | N204: 13909 | O204: 4070 | P204: 0.6807944308 | Q204: 11.08333333 | R204: 0.6807944308 | S204: 2770.833333
B205: 300 | C205: 42 | D205: 7.777777778 | E205: 21 | F205: 3.888888889 | G205: 3.888888889 | H205: 8750 | I205: 2187.5 | J205: 3325 | K205: 0.52 | L205: 29.16666667 | M205: 10813 | N205: 14883 | O205: 4070 | P205: 0.816953317 | Q205: 11.08333333 | R205: 0.816953317 | S205: 3325
B206: 400 | C206: 56 | D206: 10.37037037 | E206: 28 | F206: 5.185185185 | G206: 5.185185185 | H206: 11666.66667 | I206: 2916.666667 | J206: 4433.333333 | K206: 0.52 | L206: 29.16666667 | M206: 13512 | N206: 17582 | O206: 4070 | P206: 1.089271089 | Q206: 10.175 | R206: 1 | S206: 4070
B207: 500 | C207: 70 | D207: 12.96296296 | E207: 35 | F207: 6.481481481 | G207: 6.481481481 | H207: 14583.33333 | I207: 3645.833333 | J207: 5541.666667 | K207: 0.52 | L207: 29.16666667 | M207: 14676 | N207: 18746 | O207: 4070 | P207: 1.361588862 | Q207: 8.14 | R207: 1 | S207: 4070
B208: 600 | C208: 84 | D208: 15.55555556 | E208: 42 | F208: 7.777777778 | G208: 7.777777778 | H208: 17500 | I208: 4375 | J208: 6650 | K208: 0.52 | L208: 29.16666667 | M208: 16491 | N208: 20561 | O208: 4070 | P208: 1.633906634 | Q208: 6.783333333 | R208: 1 | S208: 4070
B209: * Use common industry compressor performance rate of 4 CFM per HP, which equates to 5.4 CFM per kW. | L209: =ROUND(AVERAGE(L197:L208),0) -> 29 | P209: =AVERAGE(P197:P208) -> 0.6395111581 | Q209: =ROUND(AVERAGE(Q197:Q208),0) -> 10 | R209: =AVERAGE(R197:R208) -> 0.5491139427
B211: 2-SHIFT
C212: Baseline for New Construction | H212: Upgrade for New Construction, or Retrofit & Replacement
B213: SCFM Rating | C213: Regenerative Style Desiccant Air Dryers | H213: Same Dryer, kWh Savings Per Year with Dew Point Control
C214: Normal Purge Rate | D214: kW Equivalent (CFM / kW)* | E214: Dew Point Control Purge Rate | F214: kW Equivalent (CFM / kW) | G214: Delta kW | H214: 2 Shift Hrs/Year | I214: Current Incentive | J214: rebate for replacement (1/2 for upgrade) | K214: % Change | L214: Savings per SCFM | M214: Standard Equipment Cost | N214: Upgraded Equipment Cost | O214: Incremental Cost | P214: % Incentive over Cost | Q214: Rebate per SCFM | R214: % Rebate | S214: Rebate per Unit
C215: 0.14 | D215: 5.4 | E215: 0.07 | F215: 5.4 | H215: =C188 -> 4500 | I215: 0.25 | J215: =F188 -> 0.3 | K215: =J215/I215-1 -> 0.2
B216: 35 | C216: =B216*$C$196 -> 4.9 | D216: =C216/$D$196 -> 0.9074074074 | E216: =B216*$E$196 -> 2.45 | F216: =E216/$F$196 -> 0.4537037037 | G216: =D216-F216 -> 0.4537037037 | H216: =G216*$H$215 -> 2041.666667 | I216: =H216*$I$196 -> 510.4166667 | J216: =H216*$J$215 -> 612.5 | K216: 0.2 | L216: =H216/B216 -> 58.33333333 | M216: 3650 | N216: 7023 | O216: =N216-M216 -> 3373 | P216: =J216/O216 -> 0.1815890898 | Q216: =MIN(J216/B216,$L$190*O216/B216) -> 17.5 | R216: =Q216*B216/O216 -> 0.1815890898 | S216: =Q216*B216 -> 612.5
B217: 50 | C217: 7 | D217: 1.296296296 | E217: 3.5 | F217: 0.6481481481 | G217: 0.6481481481 | H217: 2916.666667 | I217: 729.1666667 | J217: 875 | K217: 0.2 | L217: 58.33333333 | M217: 4694 | N217: 8066 | O217: 3372 | P217: 0.259489917 | Q217: 17.5 | R217: 0.259489917 | S217: 875
B218: 75 | C218: 10.5 | D218: 1.944444444 | E218: 5.25 | F218: 0.9722222222 | G218: 0.9722222222 | H218: 4375 | I218: 1093.75 | J218: 1312.5 | K218: 0.2 | L218: 58.33333333 | M218: 5956 | N218: 9329 | O218: 3373 | P218: 0.3891194782 | Q218: 17.5 | R218: 0.3891194782 | S218: 1312.5
B219: 100 | C219: 14 | D219: 2.592592593 | E219: 7 | F219: 1.296296296 | G219: 1.296296296 | H219: 5833.333333 | I219: 1458.333333 | J219: 1750 | K219: 0.2 | L219: 58.33333333 | M219: 7111 | N219: 11181 | O219: 4070 | P219: 0.42997543 | Q219: 17.5 | R219: 0.42997543 | S219: 1750
B220: 125 | C220: 17.5 | D220: 3.240740741 | E220: 8.75 | F220: 1.62037037 | G220: 1.62037037 | H220: 7291.666667 | I220: 1822.916667 | J220: 2187.5 | K220: 0.2 | L220: 58.33333333 | M220: 7543 | N220: 11613 | O220: 4070 | P220: 0.5374692875 | Q220: 17.5 | R220: 0.5374692875 | S220: 2187.5
B221: 150 | C221: 21 | D221: 3.888888889 | E221: 10.5 | F221: 1.944444444 | G221: 1.944444444 | H221: 8750 | I221: 2187.5 | J221: 2625 | K221: 0.2 | L221: 58.33333333 | M221: 8404 | N221: 12474 | O221: 4070 | P221: 0.644963145 | Q221: 17.5 | R221: 0.644963145 | S221: 2625
... 113 more rows

Sheet Windows (hidden)
C3: =BannerText -> Energy Services ● eebiz@snopud.com ● www.snopud.com
C5: Rebate Application | M5: PUD Staff:
M6: =IF(AssignedStaff="","",AssignedStaff) -> 
C7: Windows in Commercial & Industrial Facilities | L7: Project Name:
L8: =IF(ProjectName="","",ProjectName) -> 
C9: • | D9: =WithBonusMeasures*9 -> 9
C11: Pre-Installation Conditions | J11: Post-Installation Conditions
C12: • | D12: This measure applies to retrofits only. | J12: • The weighted average of replacement windows must have a National Fenestration Rating Council (NFRC) ratings.
C13: • Electrically heated: Air Source Heat Pump, Electric Zonal or Forced Air Furnace (FAF). | D13: Electrically heated: Air Source Heat Pump, Electric Zonal or Forced Air Furnace).
C14: • Pre-existing windows and patio doors must be: (1) single-pane with/without storms, any frame type (e.g., metal, wood or vinyl) or (2) double-pane, metal frame only. | D14: Pre-existing windows and patio doors must be: (1) single-pane with/without storms, any frame type (e.g., metal, wood or vinyl) or (2) double-pane, metal frame only.
C17: Rebates and Savings | Q17: FALSE
C18: Space Heat Type | E18: Retrofit Type (Existing to Proposed/New) | H18: SqFt/ Window | I18: No. of Windows | J18: Total Glazing SqFt | K18: kWh Savings per SqFt per Year | L18: Rebate per SqFt | M18: Total kWh Savings per Year | N18: =IF(Q17=TRUE,"Total Rebate with BONUS*","Total Rebate*") -> Total Rebate* | Q18: For Lookup Table | R18: Peak kW Reduction (per SqFt) | S18: Total Peak kW Reduction | T18: % PUD Winter Peak kW Reduction | U18: Total PUD Winter Peak kW Reduction
J19: =IF(I19="","",H19*I19) ->  | K19: =IF(OR(C19="",E19="",J19=""),"",VLOOKUP(Q19,WindowTable,4,FALSE)) ->  | L19: =IF(K19="","",VLOOKUP(Q19,WindowTable,3,FALSE)) ->  | M19: =IF(K19="","",IF(K19="Check Requirements",0,J19*K19)) ->  | N19: =IF(K19="","",IF(K19="Check Requirements",0,J19*L19)) ->  | Q19: =C19 -> 0 | R19: =IF(M19="","",VLOOKUP(Q19,WindowTable,6,FALSE)) ->  | S19: =IFERROR(J19*R19,"") ->  | T19: =IF(M19="","",VLOOKUP(Q19,WindowTable,7,FALSE)) ->  | U19: =IF(S19="","",S19*T19) -> 
J20: =IF(I20="","",H20*I20) ->  | K20: =IF(OR(C20="",E20="",J20=""),"",VLOOKUP(Q20,WindowTable,4,FALSE)) ->  | L20: =IF(K20="","",VLOOKUP(Q20,WindowTable,3,FALSE)) ->  | M20: =IF(K20="","",IF(K20="Check Requirements",0,J20*K20)) ->  | N20: =IF(K20="","",IF(K20="Check Requirements",0,J20*L20)) ->  | Q20: =C20 -> 0 | R20: =IF(M20="","",VLOOKUP(Q20,WindowTable,6,FALSE)) ->  | S20: =IFERROR(J20*R20,"") ->  | T20: =IF(M20="","",VLOOKUP(Q20,WindowTable,7,FALSE)) ->  | U20: =IF(S20="","",S20*T20) -> 
J21: =IF(I21="","",H21*I21) ->  | K21: =IF(OR(C21="",E21="",J21=""),"",VLOOKUP(Q21,WindowTable,4,FALSE)) ->  | L21: =IF(K21="","",VLOOKUP(Q21,WindowTable,3,FALSE)) ->  | M21: =IF(K21="","",IF(K21="Check Requirements",0,J21*K21)) ->  | Q21: 0 | R21: =IF(M21="","",VLOOKUP(Q21,WindowTable,6,FALSE)) ->  | S21: =IFERROR(J21*R21,"") ->  | T21: =IF(M21="","",VLOOKUP(Q21,WindowTable,7,FALSE)) ->  | U21: =IF(S21="","",S21*T21) -> 
C22: Total Installed Cost: | H22: Total: | I22: =IF(SUM(I19:I21)=0,"",SUM(I19:I21)) ->  | J22: =IF(SUM(J19:J21)=0,"",SUM(J19:J21)) ->  | L22: Total: | M22: =IF(SUM(M19:M21)=0,"",SUM(M19:M21)) ->  | N22: =IF(SUM(N19:N21)=0,"", IF(Cost=0,"Cost?",MIN(Cost,SUM(N19:N21)))) ->  | R22: Total: | S22: =SUM(S19:S21) -> 0 | U22: =SUM(U19:U21) -> 0
M23: Project Development Incentive: | N23: =IF(OR(Cost=0,J22=""),"",MAX(50,J22*PDI_Rate_Windows)) ->  | Q23: BaseIncentive
N24: *Total Rebate is capped at approved project cost. | Q24: =IFERROR(SUM(N19:N21)/WithBonusMeasures,0) -> 0
C25: Eligibility, Documentation Requirements & Process | U25: col 1 | V25: col 2 | W25: col 3 | X25: col 4 | Y25: col 5 | Z25: col 6
C26: • For existing and new non-residential facilities located in the Snohomish PUD service territory. | Q26: Retrofit Type | R26: UES Status | S26: Heat Type | T26: BPA Rebate/SqFt | U26: PUD Rebate/SqFt | V26: kWh/yr-SqFt | W26: $/kWh | X26: Peak kW | Y26: % PUD Winter Peak | Z26: Note
C27: • Complete and submit this Rebate Application, new equipment spec sheets, quote and W9 Form to eebiz@snopud.com. | Q27: Single Pane to U ≤ 0.30 | R27: BPA Qualified | S27: Air Source Heat Pump | T27: 9 | U27: =WithBonusMeasures*9 -> 9 | V27: 22.14 | W27: =U27/V27 -> 0.406504065 | X27: 0.01 | Y27: 1
C28: • PUD to verify and send Customer the Participation Agreement for signature. PUD pre-approval is required. | Q28: Single Pane w/ Storm to U ≤ 0.30 | R28: BPA Qualified | S28: Electric Zonal or Forced Air Furnace | T28: 9 | U28: 9 | V28: 23.5 | W28: =U28/V28 -> 0.3829787234 | X28: 0.02 | Y28: 1
C29: • Installation may start upon the receipt of signed Participation Agreement back from Customer. | Q29: Double Pane metal framed to ≤ 0.30 | R29: BPA Qualified | S29: Electric Furnace | T29: 9 | U29: 9 | V29: 23.5 | W29: =U29/V29 -> 0.3829787234 | X29: 0.02 | Y29: 1 | Z29: Added June '23 for BPA reporting requirements
C30: • PUD to verify installation upon completion and collect invoice, which must show installed cost and new equipment purchase date. | R30: BPA Qualified | S30: Zonal (Baseboard, Wall Unit) | T30: 9 | U30: 9 | V30: 23.5 | W30: 0.3829787234 | X30: 0.02 | Y30: 1 | Z30: Added June '23 for BPA reporting requirements
C31: • PUD to process the Rebates Payment and send check to Customer (or Alternate Payee). | R31: BPA Qualified | S31: Ductless Heat Pump | T31: 9 | U31: 9 | V31: 22.14 | W31: 0.406504065 | X31: 0.01 | Y31: 1 | Z31: Added June '23 for BPA reporting requirements
R32: BPA Qualified | S32: Heat Pump with Electric Furnace | T32: 9 | U32: 9 | V32: 22.14 | W32: 0.406504065 | X32: 0.01 | Y32: 1 | Z32: Added June '23 for BPA reporting requirements

Sheet Secondary Windows (hidden)
C3: =BannerText -> Energy Services ● eebiz@snopud.com ● www.snopud.com
C5: Rebate Application | M5: PUD Staff:
M6: =IF(AssignedStaff="","",AssignedStaff) -> 
C7: Secondary Windows | L7: Project Name:
L8: =IF(ProjectName="","",ProjectName) -> 
C9: • | D9: ='Rebates Overview'!G42 -> 3
C11: Pre-Installation Conditions | J11: Post-Installation Conditions
C12: • Commercial building with single pane, clear glass, low-performance windows. | J12: • Have one or more low-E coatings resulting in an overall solar heat gain coefficient (SHGC Overall) of 0.55 or less.
C13: • The building’s primary heat source must be electric (e.g., zonal, VAV with electric reheat, or heat pump).
J14: • Have a center-of-glass U-factor (UCOG) less than or equal to 0.20.
C17: Rebates and Savings | Q17: FALSE
C18: Space Heat Type | E18: Secondary Window Description & ID | H18: SqFt/ Window | I18: No. of Windows | J18: Total Glazing SqFt | K18: kWh Savings per SqFt per Year | L18: Rebate per SqFt | M18: Total kWh Savings per Year | N18: =IF(Q17=TRUE,"Total Rebate with BONUS*","Total Rebate*") -> Total Rebate* | Q18: For Lookup Table | R18: Peak kW Reduction (per SqFt) | S18: Total Peak kW Reduction | T18: % PUD Winter Peak kW Reduction | U18: Total PUD Winter Peak kW Reduction
J19: =IF(I19="","",H19*I19) ->  | K19: =IF(OR(C19="",E19="",J19=""),"",VLOOKUP(Q19,SecondaryWindowTable,4,FALSE)) ->  | L19: =IF(K19="","",VLOOKUP(Q19,SecondaryWindowTable,3,FALSE)) ->  | M19: =IF(K19="","",IF(K19="Check Requirements",0,J19*K19)) ->  | N19: =IF(K19="","",IF(K19="Check Requirements",0,J19*L19)) ->  | Q19: =C19 -> 0 | R19: =IF(M19="","",VLOOKUP(Q19,WindowTable,6,FALSE)) ->  | S19: =IFERROR(J19*R19,"") ->  | T19: =IF(M19="","",VLOOKUP(Q19,WindowTable,7,FALSE)) ->  | U19: =IF(S19="","",S19*T19) -> 
J20: =IF(I20="","",H20*I20) ->  | K20: =IF(OR(C20="",E20="",J20=""),"",VLOOKUP(Q20,SecondaryWindowTable,4,FALSE)) ->  | L20: =IF(K20="","",VLOOKUP(Q20,SecondaryWindowTable,3,FALSE)) ->  | M20: =IF(K20="","",IF(K20="Check Requirements",0,J20*K20)) ->  | N20: =IF(K20="","",IF(K20="Check Requirements",0,J20*L20)) ->  | Q20: =C20 -> 0 | R20: =IF(M20="","",VLOOKUP(Q20,WindowTable,6,FALSE)) ->  | S20: =IFERROR(J20*R20,"") ->  | T20: =IF(M20="","",VLOOKUP(Q20,WindowTable,7,FALSE)) ->  | U20: =IF(S20="","",S20*T20) -> 
J21: =IF(I21="","",H21*I21) ->  | K21: =IF(OR(C21="",E21="",J21=""),"",VLOOKUP(Q21,SecondaryWindowTable,4,FALSE)) ->  | L21: =IF(K21="","",VLOOKUP(Q21,SecondaryWindowTable,3,FALSE)) ->  | M21: =IF(K21="","",IF(K21="Check Requirements",0,J21*K21)) ->  | Q21: 0 | R21: =IF(M21="","",VLOOKUP(Q21,WindowTable,6,FALSE)) ->  | S21: =IFERROR(J21*R21,"") ->  | T21: =IF(M21="","",VLOOKUP(Q21,WindowTable,7,FALSE)) ->  | U21: =IF(S21="","",S21*T21) -> 
C22: Total Installed Cost: | H22: Total: | I22: =IF(SUM(I19:I21)=0,"",SUM(I19:I21)) ->  | J22: =IF(SUM(J19:J21)=0,"",SUM(J19:J21)) ->  | L22: Total: | M22: =IF(SUM(M19:M21)=0,"",SUM(M19:M21)) ->  | N22: =IF(SUM(N19:N21)=0,"", IF(Cost=0,"Cost?",MIN(Cost,SUM(N19:N21)))) ->  | R22: Total: | S22: =SUM(S19:S21) -> 0 | U22: =SUM(U19:U21) -> 0
M23: Project Development Incentive: | N23: =IF(OR(Cost=0,J22=""),"",MAX(50,J22*PDI_Rate_SWindow)) ->  | Q23: BaseIncentive
N24: *Total Rebate is capped at approved project cost. | Q24: =IFERROR(SUM(N19:N21)/WithBonusMeasures,0) -> 0
C25: Eligibility, Documentation Requirements & Process | S25: col 1 | T25: col 2 | U25: col 3 | V25: col 4 | W25: col 5 | X25: col 6 | Y25: col 7
C26: • For existing and new non-residential facilities located in the Snohomish PUD service territory. | Q26: Retrofit Type | R26: UES Status | S26: Heat Type | T26: BPA Rebate/SqFt | U26: PUD Rebate/SqFt | V26: kWh/yr-SqFt | W26: $/kWh | X26: Peak kW | Y26: % PUD Winter Peak | Z26: Note
C27: • Complete and submit this Rebate Application, new equipment spec sheets, quote and W9 Form to eebiz@snopud.com. | R27: BPA Qualified | S27: Air Source Heat Pump | T27: 3 | U27: 3 | V27: 7.47 | W27: =U27/V27 -> 0.4016064257 | X27: 0 | Y27: 1
C28: • PUD to verify and send Customer the Participation Agreement for signature. PUD pre-approval is required. | R28: BPA Qualified | S28: Electric Zonal or Forced Air Furnace | T28: 3 | U28: 3 | V28: 8.89 | W28: =U28/V28 -> 0.3374578178 | X28: 0 | Y28: 1 | Z28: Added Feb 2024
C29: • Installation may start upon the receipt of signed Participation Agreement back from Customer.
C30: • PUD to verify installation upon completion and collect invoice, which must show installed cost and new equipment purchase date.
C31: • PUD to process the Rebates Payment and send check to Customer (or Alternate Payee).

Sheet Windows L Rise MF (hidden)
C3: =BannerText -> Energy Services ● eebiz@snopud.com ● www.snopud.com
C5: Rebate Application | M5: PUD Staff:
M6: =IF(AssignedStaff="","",AssignedStaff) -> 
C7: Windows in Low-Rise Multifamily Facilities | L7: Project Name:
L8: =IF(ProjectName="","",ProjectName) -> 
C9: • $9 & $13.50 per SqFt | D9: ='Rebates Overview'!G39 -> $6.00 to $9.00 per SqFt of Window
C11: Pre-Installation Conditions | J11: Post-Installation Conditions
C12: • | D12: This measure applies to retrofits only. | J12: • Installation must meet PUD Weatherization Specs
C13: • | D13: Low-rise (3 stories and less) and electrically heated. | J13: • Reminder: Ensure Safety Glass requirements are met (Spec 102.530-535)
C14: • | D14: 5 or more attached dwellings, whether owned or rented, including individual condos. Customer must be the owner in order to participate in the program.
C16: • | D16: Townhouses are NOT eligible for this Program. However, townhouses that share walls but do not vertically overlap, and buildings with 4 or fewer attached dwellings, may be eligible for rebates through the PUD’s single family Heating and Weatherization programs.
C19: • | D19: Pre-existing windows and patio doors must be: (1) single-pane with/without storms, any frame type (e.g., metal, wood or vinyl) or (2) double-pane, metal frame only.
C22: Rebates and Savings
C23: Space Heat Type | E23: Retrofit Type (Existing to Proposed/New) | H23: SqFt/ Window | I23: No. of Windows | J23: Total Glazing SqFt | K23: kWh Savings/ SqFt/Year | L23: Rebate per SqFt | M23: Total kWh Savings per Year | N23: =IF(Q22=TRUE,"Total Rebate with BONUS*","Total Rebate*") -> Total Rebate* | Q23: For Lookup Table | R23: Peak kW Reduction (per SqFt) | S23: Total Peak kW Reduction | T23: % PUD Winter Peak kW Reduction | U23: Total PUD Winter Peak kW Reduction
J24: =IF(I24="","",H24*I24) ->  | K24: =IF(OR(Q24="",J24=""),"",VLOOKUP(Q24,WindowTableMF,4,FALSE)) ->  | L24: =IF(K24="","",VLOOKUP(Q24,WindowTableMF,3,FALSE)) ->  | M24: =IF(K24="","",IF(K24="Check Requirements",0,J24*K24)) ->  | N24: =IF(K24="","",IF(K24="Check Requirements",0,J24*L24)) ->  | Q24: =IF(OR(C24="",E24=""),"",E24) ->  | R24: =IF(M24="","",VLOOKUP(Q24,WindowTableMF,6,FALSE)) ->  | S24: =IFERROR(J24*R24,"") ->  | T24: =IF(M24="","",VLOOKUP(Q24,WindowTableMF,7,FALSE)) ->  | U24: =IF(S24="","",S24*T24) -> 
J25: =IF(I25="","",H25*I25) ->  | K25: =IF(OR(Q25="",J25=""),"",VLOOKUP(Q25,WindowTableMF,4,FALSE)) ->  | L25: =IF(K25="","",VLOOKUP(Q25,WindowTableMF,3,FALSE)) ->  | M25: =IF(K25="","",IF(K25="Check Requirements",0,J25*K25)) ->  | N25: =IF(K25="","",IF(K25="Check Requirements",0,J25*L25)) ->  | Q25: =IF(OR(C25="",E25=""),"",E25) ->  | R25: =IF(M25="","",VLOOKUP(Q25,WindowTableMF,6,FALSE)) ->  | S25: =IFERROR(J25*R25,"") ->  | T25: =IF(M25="","",VLOOKUP(Q25,WindowTableMF,7,FALSE)) ->  | U25: =IF(S25="","",S25*T25) -> 
J26: =IF(I26="","",H26*I26) ->  | K26: =IF(OR(Q26="",J26=""),"",VLOOKUP(Q26,WindowTableMF,4,FALSE)) ->  | L26: =IF(K26="","",VLOOKUP(Q26,WindowTableMF,3,FALSE)) ->  | R26: =IF(M26="","",VLOOKUP(Q26,WindowTableMF,6,FALSE)) ->  | S26: =IFERROR(J26*R26,"") ->  | T26: =IF(M26="","",VLOOKUP(Q26,WindowTableMF,7,FALSE)) ->  | U26: =IF(S26="","",S26*T26) -> 
C27: Total Installed Cost: | H27: Total: | I27: =IF(SUM(I24:I26)=0,"",SUM(I24:I26)) ->  | J27: =IF(SUM(J24:J26)=0,"",SUM(J24:J26)) ->  | L27: Total: | M27: =IF(SUM(M24:M26)=0,"",SUM(M24:M26)) ->  | N27: =IF(SUM(N24:N26)=0,"", IF(Cost=0,"Cost?",MIN(Cost,SUM(N24:N26)))) ->  | R27: Total: | S27: =SUM(S24:S26) -> 0 | U27: =SUM(U24:U26) -> 0
M28: Project Development Incentive: | N28: =IF(OR(Cost=0,J27=""),"",MAX(50,J27*PDI_Rate_Windows_LRMF)) ->  | Q28: BaseIncentive
N29: *Total Rebate is capped at approved project cost. | Q29: =IFERROR(SUM(N24:N26)/WithBonusMeasures,0) -> 0
C30: Eligibility, Documentation Requirements & Process | Q30: col 1 | R30: col 2 | S30: col 3 | T30: col 4 | U30: col 5 | V30: col 6 | W30: col 7
C31: • For existing facilities located in the Snohomish PUD service territory. | Q31: Retrofit Type | R31: BPA Rebate/SqFt | S31: PUD Rebate/SqFt | T31: kWh/yr-SqFt | U31: $/kWh | V31: Peak kW | W31: % PUD Winter Peak | X31: UES Status | Y31: Note
C32: • Complete and submit this Rebate Workbook and quote to eebiz@snopud.com. We will request W9s if needed. | Q32: Double Pane Base to U ≤ 0.22 | R32: 16 | S32: =WithBonusMeasures*9 -> 9 | T32: 15.48 | U32: =S32/T32 -> 0.5813953488 | V32: 0.01 | W32: 1 | X32: RTF Approved | Y32: PUD pay less but still 40% plus higher than the previous year.
C33: • PUD to verify and send Customer the Participation Agreement for signature. PUD pre-approval is required. | Q33: Double Pane Base to U ≤ 0.30 | R33: 12 | S33: =WithBonusMeasures*6 -> 6 | T33: 12.86 | U33: 0.466562986 | V33: 0.01 | W33: 1 | X33: RTF Approved | Y33: PUD pay less but still 40% plus higher than the previous year.
C34: • Installation may start upon the receipt of signed Participation Agreement back from Customer. | Q34: Single Pane Base to U ≤ 0.22 | R34: 16 | S34: =WithBonusMeasures*9 -> 9 | T34: 26.5 | U34: 0.3396226415 | V34: 0.01 | W34: 1 | X34: RTF Approved | Y34: PUD pay less but still 40% plus higher than the previous year.
C35: • PUD to verify installation upon completion and collect invoice and packing slips. Invoice must show installed cost and equipment purchase date. | Q35: Single Pane Base to U ≤ 0.30 | R35: 12 | S35: =WithBonusMeasures*6 -> 6 | T35: 23.87 | U35: 0.2513615417 | V35: 0.01 | W35: 1 | X35: RTF Approved | Y35: PUD pay less but still 40% plus higher than the previous year.
C36: • PUD to process the Rebates Payment and send check to Customer (or Alternate Payee). | Q36: Low-E Storm to Double Pane Metal | R36: 2 | S36: 2 | T36: 8.83 | U36: 0.2265005663 | V36: 0 | W36: 1 | X36: RTF Approved | Y36: PUD decided not to offer.
Q37: Low-E Storm to Single Pane Metal | R37: 2 | S37: 2 | T37: 17.55 | U37: 0.113960114 | V37: 0.01 | W37: 1 | X37: RTF Approved | Y37: PUD decided not to offer.
Q38: Low-E Storm to Single Pane Wood | R38: 2 | S38: 2 | T38: 13.78 | U38: 0.145137881 | V38: 0.01 | W38: 1 | X38: RTF Approved | Y38: PUD decided not to offer.

Sheet Windows M&H Rise MF (hidden)
C3: =BannerText -> Energy Services ● eebiz@snopud.com ● www.snopud.com
C5: Rebate Application | M5: PUD Staff:
M6: =IF(AssignedStaff="","",AssignedStaff) -> 
C7: Windows in Mid- and High-Rise Multifamily Facilities | L7: Project Name:
L8: =IF(ProjectName="","",ProjectName) -> 
C9: • | D9: =DOLLAR(6*WithBonusMeasures,2)&" per SqFt of Window" -> $6.00 per SqFt of Window
C11: Pre-Installation Conditions
C12: • | D12: This measure applies to retrofits only.
C13: • | D13: Mid- and high-rise (4 stories and higher) multifamily buildings, 5 or more attached dwellings, whether owned or rented, including individual condos. Customer must be the owner in order to participate in the program.
C15: • | D15: Electrically heated: Air Source Heat Pump, Electric Zonal or Forced Air Furnace,
C16: • | D16: Townhouses are NOT eligible for this Program. However, townhouses that share walls but do not vertically overlap, and buildings with 4 or fewer attached dwellings, may be eligible for rebates through the PUD’s single family Heating and Weatherization programs.
C18: • | D18: Pre-existing windows must be: (1) single-pane with/without storms, any frame type (e.g., metal, wood or vinyl) or (2) double-pane, metal frame only.
C20: Rebates and Savings | Q20: FALSE
C21: Space Heat Type | E21: Retrofit Type (Existing to Proposed/New) | H21: SqFt/ Window | I21: No. of Windows | J21: Total Glazing SqFt | K21: kWh Savings/ SqFt/Year | L21: Rebate per SqFt | M21: Total kWh Savings per Year | N21: =IF(Q20=TRUE,"Total Rebate with BONUS*","Total Rebate*") -> Total Rebate* | Q21: For Lookup Table | R21: Peak kW Reduction (per SqFt) | S21: Total Peak kW Reduction | T21: % PUD Winter Peak kW Reduction | U21: Total PUD Winter Peak kW Reduction
J22: =IF(I22="","",H22*I22) ->  | K22: =IF(OR(C22="",J22=""),"",VLOOKUP(Q22,WindowTableMF,4,FALSE)) ->  | L22: =IF(OR(C22="",J22=""),"",VLOOKUP(Q22,WindowTableMF,3,FALSE)) ->  | M22: =IF(K22="","",IF(K22="Check Requirements",0,J22*K22)) ->  | N22: =IF(L22="","",IF(K22="Check Requirements",0,J22*L22)) ->  | Q22: =IF(C22="","",C22) ->  | R22: =IF(Q22="","",VLOOKUP(Q22,WindowTableMF,6,FALSE)) ->  | S22: =IFERROR(J22*R22,"") ->  | T22: =IF(M22="","",VLOOKUP(Q22,WindowTableMF,7,FALSE)) ->  | U22: =IF(S22="","",S22*T22) -> 
J23: =IF(I23="","",H23*I23) ->  | K23: =IF(OR(C23="",J23=""),"",VLOOKUP(Q23,WindowTableMF,4,FALSE)) ->  | L23: =IF(OR(C23="",J23=""),"",VLOOKUP(Q23,WindowTableMF,3,FALSE)) ->  | M23: =IF(K23="","",IF(K23="Check Requirements",0,J23*K23)) ->  | N23: =IF(L23="","",IF(K23="Check Requirements",0,J23*L23)) ->  | Q23: =IF(C23="","",C23) ->  | R23: =IF(Q23="","",VLOOKUP(Q23,WindowTableMF,6,FALSE)) ->  | S23: =IFERROR(J23*R23,"") ->  | T23: =IF(M23="","",VLOOKUP(Q23,WindowTableMF,7,FALSE)) ->  | U23: =IF(S23="","",S23*T23) -> 
J24: =IF(I24="","",H24*I24) ->  | K24: =IF(OR(C24="",J24=""),"",VLOOKUP(Q24,WindowTableMF,4,FALSE)) ->  | L24: =IF(OR(C24="",J24=""),"",VLOOKUP(Q24,WindowTableMF,3,FALSE)) ->  | M24: =IF(K24="","",IF(K24="Check Requirements",0,J24*K24)) ->  | N24: =IF(L24="","",IF(K24="Check Requirements",0,J24*L24)) ->  | R24: =IF(Q24="","",VLOOKUP(Q24,WindowTableMF,6,FALSE)) ->  | T24: =IF(M24="","",VLOOKUP(Q24,WindowTableMF,7,FALSE)) -> 
C25: Total Installed Cost: | H25: Total: | I25: =IF(SUM(I22:I24)=0,"",SUM(I22:I24)) ->  | J25: =IF(SUM(J22:J24)=0,"",SUM(J22:J24)) ->  | L25: Total: | M25: =IF(SUM(M22:M24)=0,"",SUM(M22:M24)) ->  | N25: =IF(SUM(N22:N24)=0,"", IF(Cost=0,"Cost?",MIN(Cost,SUM(N22:N24)))) ->  | R25: Total: | S25: =SUM(S22:S24) -> 0 | U25: =SUM(U22:U24) -> 0
M26: Project Development Incentive: | N26: =IF(OR(Cost=0,J25=""),"",MAX(50,J25*PDI_Rate_Windows_HRMF)) ->  | Q26: BaseIncentive
N27: *Total Rebate is capped at approved project cost. | Q27: =IFERROR(SUM(N22:N24)/WithBonusMeasures,0) -> 0
C28: Eligibility, Documentation Requirements & Process | R28: col 1 | S28: col 2 | T28: col 3 | U28: col 4 | V28: col 5 | W28: col 6 | X28: col 7
C29: • For existing facilities located in the Snohomish PUD service territory. | Q29: Retrofit Type | R29: Heat Type | S29: BPA Rebate/SqFt | T29: PUD Rebate/SqFt | U29: kWh/yr-SqFt | V29: $/kWh | W29: Peak kW | X29: % PUD Winter Peak | Y29: UES Status | Z29: Note
C30: • Complete and submit this Rebate Workbook and quote to eebiz@snopud.com. We will request W9s if needed. | Q30: Single Pane to U ≤ 0.30 | R30: Air Source Heat Pump | S30: 6 | T30: =WithBonusMeasures*6 -> 6 | U30: 18.16 | V30: =T30/U30 -> 0.3303964758 | W30: 0.01 | X30: 1 | Y30: BPA Qualified
C31: • PUD to verify and send Customer the Participation Agreement for signature. PUD pre-approval is required. | Q31: Single Pane w/ Storm to U ≤ 0.30 | R31: Electric Zonal or Forced Air Furnace | S31: 6 | T31: 6 | U31: 18.16 | V31: 0.3303964758 | W31: 0.02 | X31: 1 | Y31: BPA Qualified
C32: • Installation may start upon the receipt of signed Participation Agreement back from Customer. | Q32: Double Pane metal framed to ≤ 0.30 | R32: Electric Furnace | S32: 6 | T32: 6 | U32: 18.16 | V32: 0.3303964758 | W32: 0.02 | X32: 1 | Y32: BPA Qualified
C33: • PUD to verify installation upon completion and collect invoice and packing slips. Invoice must show installed cost and equipment purchase date. | R33: Zonal (Baseboard, Wall Unit) | S33: 6 | T33: 6 | U33: 18.16 | V33: 0.3303964758 | W33: 0.02 | X33: 1 | Y33: BPA Qualified
C34: • PUD to process the Rebates Payment and send check to Customer (or Alternate Payee). | R34: Ductless Heat Pump | S34: 6 | T34: 6 | U34: 18.16 | V34: =T34/U34 -> 0.3303964758 | W34: 0.01 | X34: 1 | Y34: BPA Qualified
R35: Heat Pump with Electric Furnace | S35: 6 | T35: 6 | U35: 18.16 | V35: 0.3303964758 | W35: 0.01 | X35: 1 | Y35: BPA Qualified

Sheet Insulation (hidden)
C3: =BannerText -> Energy Services ● eebiz@snopud.com ● www.snopud.com
C5: Rebate Application | L5: PUD Staff:
L6: =IF(AssignedStaff="","",AssignedStaff) -> 
C7: Insulation for Commercial & Industrial | K7: Project Name:
K8: =IF(ProjectName="","",ProjectName) -> 
C9: • | D9: ='Rebates Overview'!G43 -> $0.50 to $2.50 per SqFt of Insulation
C11: The baseline used to calculate energy efficiency savings for commercial insulation (precondition wall, roof and attic levels) is assumed to have very little insulation value (defined as R-0 to R-5). Attic insulation is defined by insulation that is installed in the attic crawl space, typically on a horizontal surface. Roof insulation is defined by insulation that is installed in direct contact with the building’s roof, typically a flat or slightly pitched surface.
C13: Pre-Installation Conditions | I13: Post-Installation Conditions
C14: • This measure applies to retrofits only. | I14: • Installation of insulation in floor or crawl spaces is not eligible.
C15: • Commercial facility.
C16: • Electrically heated: Heat Pump, Electric Zonal or Forced Air Furnace.
C17: • The existing insulation value is between R-0 and R5.
D19: Occupancy Type:
C21: Rebates and Savings
C22: Heat Type | F22: Insulation Type (Wall, Attic, Floor or Roof) | G22: Insulation Value (Existing to Proposed/New) | I22: Square Footage of Insulation | J22: kWh Savings per SqFt per Year | K22: Rebate per SqFt | L22: Total kWh Savings per Year | M22: =IF(P21=TRUE,"Total Rebate with BONUS*","Total Rebate*") -> Total Rebate* | P22: Proposed Insulation | Q22: Peak kW Reduction (per SqFt) | R22: Total Peak kW Reduction | S22: % PUD Winter Peak kW Reduction | T22: Total PUD Winter Peak kW Reduction
J23: =IF(OR(C23="",F23="",G23="",$D$20=""),"", VLOOKUP(P23,InsulationTable,4,FALSE)) ->  | K23: =IFERROR(IF(OR(C23="",F23="",G23=""),"", VLOOKUP(P23,InsulationTable,3,FALSE))*WithBonusMeasures,"") ->  | L23: =IF(J23="","",I23*J23) ->  | M23: =IF(AND(C23<>"",F23<>"",G23<>"",$D$20=""),"Occ Type?", IF(L23="","", I23*K23)) ->  | P23: =IF(C23="","",$D$20&IF(ISNUMBER(FIND("Heat Pump",C23,1)),"Heat Pump","Electric")&F23&G23) ->  | Q23: =IF(L23="","",VLOOKUP(P23,InsulationTable,6,FALSE)) ->  | R23: =IF(Q23="","",J23*Q23) ->  | S23: =IF(OR(F23="",C23=""),"",VLOOKUP(P23,InsulationTable,7,FALSE)) ->  | T23: =IF(R23="","",R23*S23) -> 
J24: =IF(OR(C24="",F24="",G24="",$D$20=""),"", VLOOKUP(P24,InsulationTable,4,FALSE)) ->  | K24: =IFERROR(IF(OR(C24="",F24="",G24=""),"", VLOOKUP(P24,InsulationTable,3,FALSE))*WithBonusMeasures,"") ->  | L24: =IF(J24="","",I24*J24) ->  | M24: =IF(AND(C24<>"",F24<>"",G24<>"",$D$20=""),"Occ Type?", IF(L24="","", I24*K24)) ->  | P24: =IF(C24="","",$D$20&IF(ISNUMBER(FIND("Heat Pump",C24,1)),"Heat Pump","Electric")&F24&G24) ->  | Q24: =IF(L24="","",VLOOKUP(P24,InsulationTable,6,FALSE)) ->  | R24: =IF(Q24="","",J24*Q24) ->  | S24: =IF(OR(F24="",C24=""),"",VLOOKUP(P24,InsulationTable,7,FALSE)) ->  | T24: =IF(R24="","",R24*S24) -> 
J25: =IF(OR(C25="",F25="",G25="",$D$20=""),"", VLOOKUP(P25,InsulationTable,4,FALSE)) ->  | K25: =IFERROR(IF(OR(C25="",F25="",G25=""),"", VLOOKUP(P25,InsulationTable,3,FALSE))*WithBonusMeasures,"") ->  | L25: =IF(J25="","",I25*J25) ->  | M25: =IF(AND(C25<>"",F25<>"",G25<>"",$D$20=""),"Occ Type?", IF(L25="","", I25*K25)) ->  | Q25: =IF(L25="","",VLOOKUP(P25,InsulationTable,6,FALSE)) ->  | R25: =IF(Q25="","",J25*Q25) ->  | S25: =IF(OR(F25="",C25=""),"",VLOOKUP(P25,InsulationTable,7,FALSE)) ->  | T25: =IF(R25="","",R25*S25) -> 
C26: Total Installed Cost: | H26: Total: | I26: =IF(SUM(I23:I25)=0,"",SUM(I23:I25)) ->  | K26: Total: | L26: =IF(SUM(L23:L25)=0,"",SUM(L23:L25)) ->  | M26: =IF(SUM(M23:M25)=0,"", IF(Cost=0,"Cost?",MIN(Cost,SUM(M23:M25)))) ->  | Q26: Total: | R26: =SUM(R23:R25) -> 0 | T26: =SUM(T23:T25) -> 0
L27: Project Development Incentive: | M27: =IF(OR(I26="",Cost=0),"",MAX(50,I26*PDI_Rate_Insulation)) ->  | P27: BaseIncentive
M28: *Total Rebate is capped at approved project cost. | P28: =IFERROR(SUM(M23:M25)/WithBonusMeasures,0) -> 0
C29: Eligibility, Documentation Requirements & Process
C30: • For existing and new non-residential facilities located in the Snohomish PUD service territory.
C31: • Complete and submit this Rebate Application, new equipment spec sheets, quote and W9 Form to eebiz@snopud.com.
C32: • PUD to verify and send Customer the Participation Agreement for signature. PUD pre-approval is required.
C33: • Installation may start upon the receipt of signed Participation Agreement back from Customer.
C34: • PUD to verify installation upon completion and collect invoice, which must show installed cost and new equipment purchase date.
C35: • PUD to process the Rebates Payment and send check to Customer (or Alternate Payee).
Q48: OccupancyType | R48: Space HeatingType | S48: Insulation Type | T48: InsulationUValue
Q49: Multifamily Low Rise | R49: Any Electric Heat | S49: Attic | T49: R-0 to R-38
Q50: Multifamily Mid and High Rise | R50: Air Source Heat Pump | S50: Floor | T50: R-0 to R-49
Q51: Small Office less than 5000 sqft | R51: Electric Zonal or FAF | S51: Wall | T51: R-0 to R-19
Q52: Medium Office 5000 to 50000 sqft | R52: Electric | S52: Roof | T52: R-0 to R-30
Q53: Medium Retail 5000 to 50000 sqft | R53: Heat Pump | S53: Attic or Roof | T53: R-0 to R-11
Q54: Large Retail 50000 to 100000 sqft | S54: Wall | T54: =IF(D20="Multifamily Low Rise","","R-0 to R-19") -> R-0 to R-19
Q55: Lodging | S55: Roof
Q56: Restaurant | T56: R-0 to R-19
Q57: School K to 12 | T57: R-0 to R-30
Q58: Hospital | T58: R-0 to R-49
Q59: Warehouse
Q60: Other
U62: col 1 | V62: col 2 | W62: col 3 | X62: col 4 | Y62: col 5 | Z62: col 6 | AA62: col 7
P63: Occupancy Type | Q63: Heat Type | R63: Insulation Type | S63: Insulation Value | T63: RTF UES Status | U63: For Table (InsulationTable) | V63: BPA Rebates/SqFt | W63: PUD Rebate/SqFt | X63: kWh/yr-SqFt | Y63: $/kWh | Z63: Peak kW | AA63: % PUD Winter Peak | AB63: Note
P64: Hospital | Q64: Electric | R64: Attic or Roof | S64: R-0 to R-19 | T64: BPA Qualified | U64: =P64&Q64&R64&S64 -> HospitalElectricAttic or RoofR-0 to R-19 | V64: 1.35 | W64: 1.5 | X64: 7.161296525 | Y64: =W64/X64 -> 0.209459278 | Z64: 0 | AA64: 1
P65: Hospital | Q65: Electric | R65: Attic or Roof | S65: R-0 to R-30 | T65: BPA Qualified | U65: HospitalElectricAttic or RoofR-0 to R-30 | V65: 1.4 | W65: 1.75 | X65: 7.360407106 | Y65: 0.2377585879 | Z65: 0 | AA65: 1
P66: Hospital | Q66: Electric | R66: Attic or Roof | S66: R-0 to R-49 | T66: BPA Qualified | U66: HospitalElectricAttic or RoofR-0 to R-49 | V66: 1.5 | W66: 2 | X66: 7.320003242 | Y66: 0.2732239227 | Z66: 0 | AA66: 1
P67: Hospital | Q67: Heat Pump | R67: Attic or Roof | S67: R-0 to R-19 | T67: BPA Qualified | U67: HospitalHeat PumpAttic or RoofR-0 to R-19 | V67: 1.35 | W67: 1 | X67: 5.510802786 | Y67: 0.181461765 | Z67: 0 | AA67: 1
P68: Hospital | Q68: Heat Pump | R68: Attic or Roof | S68: R-0 to R-30 | T68: BPA Qualified | U68: HospitalHeat PumpAttic or RoofR-0 to R-30 | V68: 1.4 | W68: 1.25 | X68: 5.518650558 | Y68: 0.2265046476 | Z68: 0 | AA68: 1
P69: Hospital | Q69: Heat Pump | R69: Attic or Roof | S69: R-0 to R-49 | T69: BPA Qualified | U69: HospitalHeat PumpAttic or RoofR-0 to R-49 | V69: 1.5 | W69: 1.5 | X69: 5.268310208 | Y69: 0.2847212751 | Z69: 0 | AA69: 1
P70: Hospital | Q70: Electric | R70: Wall | S70: R-0 to R-11 | T70: BPA Qualified | U70: HospitalElectricWallR-0 to R-11 | V70: 0.75 | W70: 1.5 | X70: 4.124775355 | Y70: 0.3636561681 | Z70: 0 | AA70: 1
P71: Hospital | Q71: Electric | R71: Wall | S71: R-0 to R-19 | T71: BPA Qualified | U71: HospitalElectricWallR-0 to R-19 | V71: 1 | W71: 2 | X71: 5.357689244 | Y71: 0.3732952601 | Z71: 0 | AA71: 1
P72: Hospital | Q72: Heat Pump | R72: Wall | S72: R-0 to R-11 | T72: BPA Qualified | U72: HospitalHeat PumpWallR-0 to R-11 | V72: 0.75 | W72: 1 | X72: 4.249381051 | Y72: 0.2353283897 | Z72: 0 | AA72: 1
P73: Hospital | Q73: Heat Pump | R73: Wall | S73: R-0 to R-19 | T73: BPA Qualified | U73: HospitalHeat PumpWallR-0 to R-19 | V73: 1 | W73: 1.5 | X73: 4.583751384 | Y73: 0.3272428791 | Z73: 0 | AA73: 1
P74: Large Retail 50000 to 100000 sqft | Q74: Electric | R74: Attic or Roof | S74: R-0 to R-19 | T74: BPA Qualified | U74: Large Retail 50000 to 100000 sqftElectricAttic or RoofR-0 to R-19 | V74: 1.35 | W74: 1.25 | X74: 5.540136879 | Y74: 0.2256261943 | Z74: 0 | AA74: 1
P75: Large Retail 50000 to 100000 sqft | Q75: Electric | R75: Attic or Roof | S75: R-0 to R-30 | T75: BPA Qualified | U75: Large Retail 50000 to 100000 sqftElectricAttic or RoofR-0 to R-30 | V75: 1.4 | W75: 1.5 | X75: 5.745050585 | Y75: 0.2610943068 | Z75: 0 | AA75: 1
P76: Large Retail 50000 to 100000 sqft | Q76: Electric | R76: Attic or Roof | S76: R-0 to R-49 | T76: BPA Qualified | U76: Large Retail 50000 to 100000 sqftElectricAttic or RoofR-0 to R-49 | V76: 1.5 | W76: 1.75 | X76: 5.79223487 | Y76: 0.3021286324 | Z76: 0 | AA76: 1
P77: Large Retail 50000 to 100000 sqft | Q77: Heat Pump | R77: Attic or Roof | S77: R-0 to R-19 | T77: BPA Qualified | U77: Large Retail 50000 to 100000 sqftHeat PumpAttic or RoofR-0 to R-19 | V77: 1.35 | W77: 1 | X77: 4.259086519 | Y77: 0.234792131 | Z77: 0 | AA77: 1
P78: Large Retail 50000 to 100000 sqft | Q78: Heat Pump | R78: Attic or Roof | S78: R-0 to R-30 | T78: BPA Qualified | U78: Large Retail 50000 to 100000 sqftHeat PumpAttic or RoofR-0 to R-30 | V78: 1.4 | W78: 1.25 | X78: 4.316881382 | Y78: 0.2895608865 | Z78: 0 | AA78: 1
P79: Large Retail 50000 to 100000 sqft | Q79: Heat Pump | R79: Attic or Roof | S79: R-0 to R-49 | T79: BPA Qualified | U79: Large Retail 50000 to 100000 sqftHeat PumpAttic or RoofR-0 to R-49 | V79: 1.5 | W79: 1.5 | X79: 4.177324988 | Y79: 0.3590814706 | Z79: 0 | AA79: 1
P80: Large Retail 50000 to 100000 sqft | Q80: Electric | R80: Wall | S80: R-0 to R-11 | T80: BPA Qualified | U80: Large Retail 50000 to 100000 sqftElectricWallR-0 to R-11 | V80: 0.75 | W80: 0.75 | X80: 1.031193839 | Y80: 0.7273123362 | Z80: 0 | AA80: 1
P81: Large Retail 50000 to 100000 sqft | Q81: Electric | R81: Wall | S81: R-0 to R-19 | T81: BPA Qualified | U81: Large Retail 50000 to 100000 sqftElectricWallR-0 to R-19 | V81: 1 | W81: 1 | X81: 1.879189511 | Y81: 0.5321443069 | Z81: 0 | AA81: 1
P82: Large Retail 50000 to 100000 sqft | Q82: Heat Pump | R82: Wall | S82: R-0 to R-11 | T82: BPA Qualified | U82: Large Retail 50000 to 100000 sqftHeat PumpWallR-0 to R-11 | V82: 0.75 | W82: 0.5 | X82: 1.062345263 | Y82: 0.4706567795 | Z82: 0 | AA82: 1
P83: Large Retail 50000 to 100000 sqft | Q83: Heat Pump | R83: Wall | S83: R-0 to R-19 | T83: BPA Qualified | U83: Large Retail 50000 to 100000 sqftHeat PumpWallR-0 to R-19 | V83: 1 | W83: 0.75 | X83: 1.604954966 | Y83: 0.4673028314 | Z83: 0 | AA83: 1
P84: Lodging | Q84: Electric | R84: Attic or Roof | S84: R-0 to R-19 | T84: BPA Qualified | U84: LodgingElectricAttic or RoofR-0 to R-19 | V84: 1.35 | W84: 2 | X84: 9.473211152 | Y84: 0.2111216533 | Z84: 0 | AA84: 1
P85: Lodging | Q85: Electric | R85: Attic or Roof | S85: R-0 to R-30 | T85: BPA Qualified | U85: LodgingElectricAttic or RoofR-0 to R-30 | V85: 1.4 | W85: 2.25 | X85: 9.649999393 | Y85: 0.2331606364 | Z85: 0 | AA85: 1
P86: Lodging | Q86: Electric | R86: Attic or Roof | S86: R-0 to R-49 | T86: BPA Qualified | U86: LodgingElectricAttic or RoofR-0 to R-49 | V86: 1.5 | W86: 2.5 | X86: 9.458878963 | Y86: 0.2643019337 | Z86: 0 | AA86: 1
P87: Lodging | Q87: Heat Pump | R87: Attic or Roof | S87: R-0 to R-19 | T87: BPA Qualified | U87: LodgingHeat PumpAttic or RoofR-0 to R-19 | V87: 1.35 | W87: 1.25 | X87: 7.282712826 | Y87: 0.1716393369 | Z87: 0 | AA87: 1
P88: Lodging | Q88: Heat Pump | R88: Attic or Roof | S88: R-0 to R-30 | T88: BPA Qualified | U88: LodgingHeat PumpAttic or RoofR-0 to R-30 | V88: 1.4 | W88: 1.5 | X88: 7.24224056 | Y88: 0.2071182236 | Z88: 0 | AA88: 1
P89: Lodging | Q89: Heat Pump | R89: Attic or Roof | S89: R-0 to R-49 | T89: BPA Qualified | U89: LodgingHeat PumpAttic or RoofR-0 to R-49 | V89: 1.5 | W89: 1.75 | X89: 6.818657626 | Y89: 0.2566487564 | Z89: 0 | AA89: 1
P90: Lodging | Q90: Electric | R90: Wall | S90: R-0 to R-11 | T90: BPA Qualified | U90: LodgingElectricWallR-0 to R-11 | V90: 0.75 | W90: 0.75 | X90: 1.153163003 | Y90: 0.6503850699 | Z90: 0 | AA90: 1
P91: Lodging | Q91: Electric | R91: Wall | S91: R-0 to R-19 | T91: BPA Qualified | U91: LodgingElectricWallR-0 to R-19 | V91: 1 | W91: 1 | X91: 1.419387822 | Y91: 0.7045290824 | Z91: 0 | AA91: 1
P92: Lodging | Q92: Heat Pump | R92: Wall | S92: R-0 to R-11 | T92: BPA Qualified | U92: LodgingHeat PumpWallR-0 to R-11 | V92: 0.75 | W92: 0.5 | X92: 1.199422071 | Y92: 0.4168674333 | Z92: 0 | AA92: 1
P93: Lodging | Q93: Heat Pump | R93: Wall | S93: R-0 to R-19 | T93: BPA Qualified | U93: LodgingHeat PumpWallR-0 to R-19 | V93: 1 | W93: 0.75 | X93: 1.219765774 | Y93: 0.6148721465 | Z93: 0 | AA93: 1
P94: Medium Office 5000 to 50000 sqft | Q94: Electric | R94: Attic or Roof | S94: R-0 to R-19 | T94: BPA Qualified | U94: Medium Office 5000 to 50000 sqftElectricAttic or RoofR-0 to R-19 | V94: 1.35 | W94: 1 | X94: 1.691644848 | Y94: 0.5911406291 | Z94: 0 | AA94: 1
P95: Medium Office 5000 to 50000 sqft | Q95: Electric | R95: Attic or Roof | S95: R-0 to R-30 | T95: BPA Qualified | U95: Medium Office 5000 to 50000 sqftElectricAttic or RoofR-0 to R-30 | V95: 1.4 | W95: 1.25 | X95: 1.783915463 | Y95: 0.7007058496 | Z95: 0 | AA95: 1
P96: Medium Office 5000 to 50000 sqft | Q96: Electric | R96: Attic or Roof | S96: R-0 to R-49 | T96: BPA Qualified | U96: =P96&Q96&R96&S96 -> Medium Office 5000 to 50000 sqftElectricAttic or RoofR-0 to R-49 | V96: 1.5 | W96: 1.5 | X96: 1.859891931 | Y96: =W96/X96 -> 0.8064984718 | Z96: 0 | AA96: 1
P97: Medium Office 5000 to 50000 sqft | Q97: Heat Pump | R97: Attic or Roof | S97: R-0 to R-19 | T97: BPA Qualified | U97: Medium Office 5000 to 50000 sqftHeat PumpAttic or RoofR-0 to R-19 | V97: 1.35 | W97: 0.75 | X97: 1.300484433 | Y97: 0.5767081718 | Z97: 0 | AA97: 1
P98: Medium Office 5000 to 50000 sqft | Q98: Heat Pump | R98: Attic or Roof | S98: R-0 to R-30 | T98: BPA Qualified | U98: Medium Office 5000 to 50000 sqftHeat PumpAttic or RoofR-0 to R-30 | V98: 1.4 | W98: 1 | X98: 1.344083947 | Y98: 0.7440011484 | Z98: 0 | AA98: 1
P99: Medium Office 5000 to 50000 sqft | Q99: Heat Pump | R99: Attic or Roof | S99: R-0 to R-49 | T99: BPA Qualified | U99: Medium Office 5000 to 50000 sqftHeat PumpAttic or RoofR-0 to R-49 | V99: 1.5 | W99: 1.25 | X99: 1.335021388 | Y99: 0.9363145874 | Z99: 0 | AA99: 1
P100: Medium Office 5000 to 50000 sqft | Q100: Electric | R100: Wall | S100: R-0 to R-11 | T100: BPA Qualified | U100: Medium Office 5000 to 50000 sqftElectricWallR-0 to R-11 | V100: 0.75 | W100: 0.75 | X100: 0.8205198287 | Y100: 0.9140546928 | Z100: 0 | AA100: 1
P101: Medium Office 5000 to 50000 sqft | Q101: Electric | R101: Wall | S101: R-0 to R-19 | T101: BPA Qualified | U101: Medium Office 5000 to 50000 sqftElectricWallR-0 to R-19 | V101: 1 | W101: 1 | X101: 1.049547333 | Y101: 0.9527917115 | Z101: 0 | AA101: 1
P102: Medium Office 5000 to 50000 sqft | Q102: Heat Pump | R102: Wall | S102: R-0 to R-11 | T102: BPA Qualified | U102: Medium Office 5000 to 50000 sqftHeat PumpWallR-0 to R-11 | V102: 0.75 | W102: 0.5 | X102: 0.8395954495 | Y102: 0.5955249046 | Z102: 0 | AA102: 1
P103: Medium Office 5000 to 50000 sqft | Q103: Heat Pump | R103: Wall | S103: R-0 to R-19 | T103: BPA Qualified | U103: Medium Office 5000 to 50000 sqftHeat PumpWallR-0 to R-19 | V103: 1 | W103: 0.75 | X103: 0.8987747811 | Y103: 0.8344693417 | Z103: 0 | AA103: 1
P104: Medium Retail 5000 to 50000 sqft | Q104: Electric | R104: Attic or Roof | S104: R-0 to R-19 | T104: BPA Qualified | U104: Medium Retail 5000 to 50000 sqftElectricAttic or RoofR-0 to R-19 | V104: 1.35 | W104: 1.25 | X104: 5.046740465 | Y104: 0.2476846211 | Z104: 0 | AA104: 1
P105: Medium Retail 5000 to 50000 sqft | Q105: Electric | R105: Attic or Roof | S105: R-0 to R-30 | T105: BPA Qualified | U105: Medium Retail 5000 to 50000 sqftElectricAttic or RoofR-0 to R-30 | V105: 1.4 | W105: 1.5 | X105: 5.239373761 | Y105: 0.2862937573 | Z105: 0 | AA105: 1
P106: Medium Retail 5000 to 50000 sqft | Q106: Electric | R106: Attic or Roof | S106: R-0 to R-49 | T106: BPA Qualified | U106: Medium Retail 5000 to 50000 sqftElectricAttic or RoofR-0 to R-49 | V106: 1.5 | W106: 2 | X106: 5.300692003 | Y106: 0.3773092266 | Z106: 0 | AA106: 1
P107: Medium Retail 5000 to 50000 sqft | Q107: Heat Pump | R107: Attic or Roof | S107: R-0 to R-19 | T107: BPA Qualified | U107: Medium Retail 5000 to 50000 sqftHeat PumpAttic or RoofR-0 to R-19 | V107: 1.35 | W107: 1 | X107: 3.885197244 | Y107: 0.2573871897 | Z107: 0 | AA107: 1
P108: Medium Retail 5000 to 50000 sqft | Q108: Heat Pump | R108: Attic or Roof | S108: R-0 to R-30 | T108: BPA Qualified | U108: Medium Retail 5000 to 50000 sqftHeat PumpAttic or RoofR-0 to R-30 | V108: 1.4 | W108: 1.25 | X108: 3.937375326 | Y108: 0.3174703696 | Z108: 0 | AA108: 1
P109: Medium Retail 5000 to 50000 sqft | Q109: Heat Pump | R109: Attic or Roof | S109: R-0 to R-49 | T109: BPA Qualified | U109: Medium Retail 5000 to 50000 sqftHeat PumpAttic or RoofR-0 to R-49 | V109: 1.5 | W109: 1.5 | X109: 3.818448271 | Y109: 0.3928297292 | Z109: 0 | AA109: 1
P110: Medium Retail 5000 to 50000 sqft | Q110: Electric | R110: Wall | S110: R-0 to R-11 | T110: BPA Qualified | U110: Medium Retail 5000 to 50000 sqftElectricWallR-0 to R-11 | V110: 0.75 | W110: 0.75 | X110: 1.042281945 | Y110: 0.719574971 | Z110: 0 | AA110: 1
P111: Medium Retail 5000 to 50000 sqft | Q111: Electric | R111: Wall | S111: R-0 to R-19 | T111: BPA Qualified | U111: Medium Retail 5000 to 50000 sqftElectricWallR-0 to R-19 | V111: 1 | W111: 1 | X111: 1.339422311 | Y111: 0.7465905202 | Z111: 0 | AA111: 1
P112: Medium Retail 5000 to 50000 sqft | Q112: Heat Pump | R112: Wall | S112: R-0 to R-11 | T112: BPA Qualified | U112: Medium Retail 5000 to 50000 sqftHeat PumpWallR-0 to R-11 | V112: 0.75 | W112: 0.5 | X112: 1.079479864 | Y112: 0.4631860369 | Z112: 0 | AA112: 1
P113: Medium Retail 5000 to 50000 sqft | Q113: Heat Pump | R113: Wall | S113: R-0 to R-19 | T113: BPA Qualified | U113: Medium Retail 5000 to 50000 sqftHeat PumpWallR-0 to R-19 | V113: 1 | W113: 0.75 | X113: 1.142727936 | Y113: 0.6563242014 | Z113: 0 | AA113: 1
P114: Other | Q114: Electric | R114: Attic or Roof | S114: R-0 to R-19 | T114: BPA Qualified | U114: OtherElectricAttic or RoofR-0 to R-19 | V114: 1.35 | W114: 1.25 | X114: 5.652913202 | Y114: 0.2211249236 | Z114: 0 | AA114: 1
P115: Other | Q115: Electric | R115: Attic or Roof | S115: R-0 to R-30 | T115: BPA Qualified | U115: OtherElectricAttic or RoofR-0 to R-30 | V115: 1.4 | W115: 1.5 | X115: 5.843376634 | Y115: 0.256700893 | Z115: 0 | AA115: 1
P116: Other | Q116: Electric | R116: Attic or Roof | S116: R-0 to R-49 | T116: BPA Qualified | U116: OtherElectricAttic or RoofR-0 to R-49 | V116: 1.5 | W116: 2 | X116: 5.858659582 | Y116: 0.3413750145 | Z116: 0 | AA116: 1
P117: Other | Q117: Heat Pump | R117: Attic or Roof | S117: R-0 to R-19 | T117: BPA Qualified | U117: OtherHeat PumpAttic or RoofR-0 to R-19 | V117: 1.35 | W117: 1 | X117: 4.356622851 | Y117: 0.2295355908 | Z117: 0 | AA117: 1
P118: Other | Q118: Heat Pump | R118: Attic or Roof | S118: R-0 to R-30 | T118: BPA Qualified | U118: OtherHeat PumpAttic or RoofR-0 to R-30 | V118: 1.4 | W118: 1.25 | X118: 4.395945144 | Y118: 0.2843529569 | Z118: 0 | AA118: 1
P119: Other | Q119: Heat Pump | R119: Attic or Roof | S119: R-0 to R-49 | T119: BPA Qualified | U119: OtherHeat PumpAttic or RoofR-0 to R-49 | V119: 1.5 | W119: 1.5 | X119: 4.220390194 | Y119: 0.355417374 | Z119: 0 | AA119: 1
P120: Other | Q120: Electric | R120: Wall | S120: R-0 to R-11 | T120: BPA Qualified | U120: OtherElectricWallR-0 to R-11 | V120: 0.75 | W120: 0.75 | X120: 2.173268736 | Y120: 0.345102282 | Z120: 0 | AA120: 1
P121: Other | Q121: Electric | R121: Wall | S121: R-0 to R-19 | T121: BPA Qualified | U121: OtherElectricWallR-0 to R-19 | V121: 1 | W121: 1 | X121: 2.648857556 | Y121: 0.3775212442 | Z121: 0 | AA121: 1
P122: Other | Q122: Heat Pump | R122: Wall | S122: R-0 to R-11 | T122: BPA Qualified | U122: OtherHeat PumpWallR-0 to R-11 | V122: 0.75 | W122: 0.5 | X122: 2.244632732 | Y122: 0.2227535903 | Z122: 0 | AA122: 1
P123: Other | Q123: Heat Pump | R123: Wall | S123: R-0 to R-19 | T123: BPA Qualified | U123: OtherHeat PumpWallR-0 to R-19 | V123: 1 | W123: 0.75 | X123: 2.272616232 | Y123: 0.3300161239 | Z123: 0 | AA123: 1
P124: Restaurant | Q124: Electric | R124: Attic or Roof | S124: R-0 to R-19 | T124: BPA Qualified | U124: RestaurantElectricAttic or RoofR-0 to R-19 | V124: 1.35 | W124: 1.25 | X124: 4.045850596 | Y124: 0.308958517 | Z124: 0 | AA124: 1
P125: Restaurant | Q125: Electric | R125: Attic or Roof | S125: R-0 to R-30 | T125: BPA Qualified | U125: RestaurantElectricAttic or RoofR-0 to R-30 | V125: 1.4 | W125: 1.5 | X125: 4.270159848 | Y125: 0.3512749062 | Z125: 0 | AA125: 1
P126: Restaurant | Q126: Electric | R126: Attic or Roof | S126: R-0 to R-49 | T126: BPA Qualified | U126: RestaurantElectricAttic or RoofR-0 to R-49 | V126: 1.5 | W126: 2 | X126: 4.410600865 | Y126: 0.4534529561 | Z126: 0 | AA126: 1
P127: Restaurant | Q127: Heat Pump | R127: Attic or Roof | S127: R-0 to R-19 | T127: BPA Qualified | U127: RestaurantHeat PumpAttic or RoofR-0 to R-19 | V127: 1.35 | W127: 1 | X127: 3.104906584 | Y127: 0.3220708813 | Z127: 0 | AA127: 1
P128: Restaurant | Q128: Heat Pump | R128: Attic or Roof | S128: R-0 to R-30 | T128: BPA Qualified | U128: =P128&Q128&R128&S128 -> RestaurantHeat PumpAttic or RoofR-0 to R-30 | V128: 1.4 | W128: 1.25 | X128: 3.194175968 | Y128: =W128/X128 -> 0.3913372377 | Z128: 0 | AA128: 1
P129: Restaurant | Q129: Heat Pump | R129: Attic or Roof | S129: R-0 to R-49 | T129: BPA Qualified | U129: RestaurantHeat PumpAttic or RoofR-0 to R-49 | V129: 1.5 | W129: 1.5 | X129: 3.17247018 | Y129: 0.4728176831 | Z129: 0 | AA129: 1
P130: Restaurant | Q130: Electric | R130: Wall | S130: R-0 to R-11 | T130: BPA Qualified | U130: RestaurantElectricWallR-0 to R-11 | V130: 0.75 | W130: 0.75 | X130: 0.7096387708 | Y130: 1.056875739 | Z130: 0 | AA130: 1
P131: Restaurant | Q131: Electric | R131: Wall | S131: R-0 to R-19 | T131: BPA Qualified | U131: RestaurantElectricWallR-0 to R-19 | V131: 1 | W131: 1 | X131: 0.9295990667 | Y131: 1.075732577 | Z131: 0 | AA131: 1
P132: Restaurant | Q132: Heat Pump | R132: Wall | S132: R-0 to R-11 | T132: BPA Qualified | U132: RestaurantHeat PumpWallR-0 to R-11 | V132: 0.75 | W132: 0.5 | X132: 0.7367878434 | Y132: 0.678621403 | Z132: 0 | AA132: 1
P133: Restaurant | Q133: Heat Pump | R133: Wall | S133: R-0 to R-19 | T133: BPA Qualified | U133: RestaurantHeat PumpWallR-0 to R-19 | V133: 1 | W133: 0.75 | X133: 0.7960576633 | Y133: 0.9421428052 | Z133: 0 | AA133: 1
P134: School K to 12 | Q134: Electric | R134: Attic or Roof | S134: R-0 to R-19 | T134: BPA Qualified | U134: School K to 12ElectricAttic or RoofR-0 to R-19 | V134: 1.35 | W134: 1.25 | X134: 7.75 | Y134: 0.1612903226 | Z134: 0 | AA134: 1
P135: School K to 12 | Q135: Electric | R135: Attic or Roof | S135: R-0 to R-30 | T135: BPA Qualified | U135: School K to 12ElectricAttic or RoofR-0 to R-30 | V135: 1.4 | W135: 1.5 | X135: 8.54 | Y135: 0.1756440281 | Z135: 0 | AA135: 1
P136: School K to 12 | Q136: Electric | R136: Attic or Roof | S136: R-0 to R-49 | T136: BPA Qualified | U136: School K to 12ElectricAttic or RoofR-0 to R-49 | V136: 1.5 | W136: 2 | X136: 8.21 | Y136: 0.2436053593 | Z136: 0 | AA136: 1
P137: School K to 12 | Q137: Heat Pump | R137: Attic or Roof | S137: R-0 to R-19 | T137: BPA Qualified | U137: School K to 12Heat PumpAttic or RoofR-0 to R-19 | V137: 1.35 | W137: 1 | X137: 5.98 | Y137: 0.1672240803 | Z137: 0 | AA137: 1
P138: School K to 12 | Q138: Heat Pump | R138: Attic or Roof | S138: R-0 to R-30 | T138: BPA Qualified | U138: School K to 12Heat PumpAttic or RoofR-0 to R-30 | V138: 1.4 | W138: 1.25 | X138: 6.58 | Y138: 0.1899696049 | Z138: 0 | AA138: 1
P139: School K to 12 | Q139: Heat Pump | R139: Attic or Roof | S139: R-0 to R-49 | T139: BPA Qualified | U139: School K to 12Heat PumpAttic or RoofR-0 to R-49 | V139: 1.5 | W139: 1.5 | X139: 6.33 | Y139: 0.2369668246 | Z139: 0 | AA139: 1
P140: School K to 12 | Q140: Electric | R140: Wall | S140: R-0 to R-11 | T140: BPA Qualified | U140: School K to 12ElectricWallR-0 to R-11 | V140: 0.75 | W140: 0.75 | X140: 4.08 | Y140: 0.1838235294 | Z140: 0 | AA140: 1
P141: School K to 12 | Q141: Electric | R141: Wall | S141: R-0 to R-19 | T141: BPA Qualified | U141: School K to 12ElectricWallR-0 to R-19 | V141: 1 | W141: 1 | X141: 4.58 | Y141: 0.2183406114 | Z141: 0 | AA141: 1
P142: School K to 12 | Q142: Heat Pump | R142: Wall | S142: R-0 to R-11 | T142: BPA Qualified | U142: School K to 12Heat PumpWallR-0 to R-11 | V142: 0.75 | W142: 0.5 | X142: 3.14 | Y142: 0.1592356688 | Z142: 0 | AA142: 1
P143: School K to 12 | Q143: Heat Pump | R143: Wall | S143: R-0 to R-19 | T143: BPA Qualified | U143: School K to 12Heat PumpWallR-0 to R-19 | V143: 1 | W143: 0.75 | X143: 3.53 | Y143: 0.2124645892 | Z143: 0 | AA143: 1
P144: Small Office less than 5000 sqft | Q144: Electric | R144: Attic or Roof | S144: R-0 to R-19 | T144: BPA Qualified | U144: Small Office less than 5000 sqftElectricAttic or RoofR-0 to R-19 | V144: 1.35 | W144: 1.25 | X144: 4.285500283 | Y144: 0.2916812315 | Z144: 0 | AA144: 1
P145: Small Office less than 5000 sqft | Q145: Electric | R145: Attic or Roof | S145: R-0 to R-30 | T145: BPA Qualified | U145: Small Office less than 5000 sqftElectricAttic or RoofR-0 to R-30 | V145: 1.4 | W145: 1.5 | X145: 4.438718789 | Y145: 0.3379353528 | Z145: 0 | AA145: 1
P146: Small Office less than 5000 sqft | Q146: Electric | R146: Attic or Roof | S146: R-0 to R-49 | T146: BPA Qualified | U146: Small Office less than 5000 sqftElectricAttic or RoofR-0 to R-49 | V146: 1.5 | W146: 2 | X146: 4.463740634 | Y146: 0.4480547066 | Z146: 0 | AA146: 1
P147: Small Office less than 5000 sqft | Q147: Heat Pump | R147: Attic or Roof | S147: R-0 to R-19 | T147: BPA Qualified | U147: Small Office less than 5000 sqftHeat PumpAttic or RoofR-0 to R-19 | V147: 1.35 | W147: 1 | X147: 3.283723194 | Y147: 0.304532368 | Z147: 0 | AA147: 1
P148: Small Office less than 5000 sqft | Q148: Heat Pump | R148: Attic or Roof | S148: R-0 to R-30 | T148: BPA Qualified | U148: Small Office less than 5000 sqftHeat PumpAttic or RoofR-0 to R-30 | V148: 1.4 | W148: 1.25 | X148: 3.320677986 | Y148: 0.3764291525 | Z148: 0 | AA148: 1
P149: Small Office less than 5000 sqft | Q149: Heat Pump | R149: Attic or Roof | S149: R-0 to R-49 | T149: BPA Qualified | U149: Small Office less than 5000 sqftHeat PumpAttic or RoofR-0 to R-49 | V149: 1.5 | W149: 1.5 | X149: 3.215535386 | Y149: 0.4664853034 | Z149: 0 | AA149: 1
P150: Small Office less than 5000 sqft | Q150: Electric | R150: Wall | S150: R-0 to R-11 | T150: BPA Qualified | U150: Small Office less than 5000 sqftElectricWallR-0 to R-11 | V150: 0.75 | W150: 0.75 | X150: 1.075546262 | Y150: 0.6973200749 | Z150: 0 | AA150: 1
P151: Small Office less than 5000 sqft | Q151: Electric | R151: Wall | S151: R-0 to R-19 | T151: BPA Qualified | U151: Small Office less than 5000 sqftElectricWallR-0 to R-19 | V151: 1 | W151: 1 | X151: 1.349418 | Y151: 0.74106022 | Z151: 0 | AA151: 1
P152: Small Office less than 5000 sqft | Q152: Heat Pump | R152: Wall | S152: R-0 to R-11 | T152: BPA Qualified | U152: Small Office less than 5000 sqftHeat PumpWallR-0 to R-11 | V152: 0.75 | W152: 0.5 | X152: 1.113749066 | Y152: 0.4489341589 | Z152: 0 | AA152: 1
P153: Small Office less than 5000 sqft | Q153: Heat Pump | R153: Wall | S153: R-0 to R-19 | T153: BPA Qualified | U153: Small Office less than 5000 sqftHeat PumpWallR-0 to R-19 | V153: 1 | W153: 0.75 | X153: 1.155567576 | Y153: 0.6490317102 | Z153: 0 | AA153: 1
P154: Warehouse | Q154: Electric | R154: Attic or Roof | S154: R-0 to R-19 | T154: BPA Qualified | U154: WarehouseElectricAttic or RoofR-0 to R-19 | V154: 1.35 | W154: 1.25 | X154: 1.74803301 | Y154: 0.7150894707 | Z154: 0 | AA154: 1
P155: Warehouse | Q155: Electric | R155: Attic or Roof | S155: R-0 to R-30 | T155: BPA Qualified | U155: WarehouseElectricAttic or RoofR-0 to R-30 | V155: 1.4 | W155: 1.5 | X155: 1.797962041 | Y155: 0.8342779022 | Z155: 0 | AA155: 1
P156: Warehouse | Q156: Electric | R156: Attic or Roof | S156: R-0 to R-49 | T156: BPA Qualified | U156: WarehouseElectricAttic or RoofR-0 to R-49 | V156: 1.5 | W156: 2 | X156: 1.780182277 | Y156: 1.123480458 | Z156: 0 | AA156: 1
P157: Warehouse | Q157: Heat Pump | R157: Attic or Roof | S157: R-0 to R-19 | T157: BPA Qualified | U157: WarehouseHeat PumpAttic or RoofR-0 to R-19 | V157: 1.35 | W157: 1 | X157: 1.349252599 | Y157: 0.7411510642 | Z157: 0 | AA157: 1
P158: Warehouse | Q158: Heat Pump | R158: Attic or Roof | S158: R-0 to R-30 | T158: BPA Qualified | U158: WarehouseHeat PumpAttic or RoofR-0 to R-30 | V158: 1.4 | W158: 1.25 | X158: 1.344083947 | Y158: 0.9300014356 | Z158: 0 | AA158: 1
P159: Warehouse | Q159: Heat Pump | R159: Attic or Roof | S159: R-0 to R-49 | T159: BPA Qualified | U159: WarehouseHeat PumpAttic or RoofR-0 to R-49 | V159: 1.5 | W159: 1.5 | X159: 1.277601113 | Y159: 1.17407537 | Z159: 0 | AA159: 1
P160: Warehouse | Q160: Electric | R160: Wall | S160: R-0 to R-11 | T160: BPA Qualified | U160: WarehouseElectricWallR-0 to R-11 | V160: 0.75 | W160: 0.75 | X160: 7.151828237 | Y160: =W160/X160 -> 0.1048682903 | Z160: 0 | AA160: 1
P161: Warehouse | Q161: Electric | R161: Wall | S161: R-0 to R-19 | T161: BPA Qualified | U161: WarehouseElectricWallR-0 to R-19 | V161: 1 | W161: 1 | X161: 6.966995156 | Y161: =W161/X161 -> 0.143533902 | Z161: 0 | AA161: 1
P162: Warehouse | Q162: Heat Pump | R162: Wall | S162: R-0 to R-11 | T162: BPA Qualified | U162: WarehouseHeat PumpWallR-0 to R-11 | V162: 0.75 | W162: 0.5 | X162: 7.367878434 | Y162: =W162/X162 -> 0.0678621403 | Z162: 0 | AA162: 1
P163: Warehouse | Q163: Heat Pump | R163: Wall | S163: R-0 to R-19 | T163: BPA Qualified | U163: WarehouseHeat PumpWallR-0 to R-19 | V163: 1 | W163: 0.75 | X163: 5.957592835 | Y163: =W163/X163 -> 0.1258897714 | Z163: 0 | AA163: 1
V164: Min | W164: =MIN(W64:W163) -> 0.5
V165: Max | W165: =MAX(W64:W163) -> 2.5

Sheet Insulation L Rise MF (hidden)
C3: =BannerText -> Energy Services ● eebiz@snopud.com ● www.snopud.com
C5: Rebate Application | L5: PUD Staff:
L6: =IF(AssignedStaff="","",AssignedStaff) -> 
C7: Insulation for Low-Rise Multifamily | K7: Project Name:
K8: =IF(ProjectName="","",ProjectName) -> 
C9: • | D9: ='Rebates Overview'!G43 -> $0.50 to $2.50 per SqFt of Insulation
C11: Occupancy Type | G11: Customer Contact | I11: Customer Email | L11: Customer Phone
C12: Low Rise Multifamily
C14: Pre-Installation Conditions | I14: Post-Installation Conditions
C15: • This measure applies to retrofits only. | I15: • Installation must meet PUD Weatherization Specs
C16: • Low-rise (3 stories and less) and electrically heated.
C17: • 5 or more attached dwellings, whether owned or rented, including individual condos. Customer must be the owner in order to participate in the program.
C19: • Townhouses are NOT eligible for this Program. However, townhouses that share walls but do not vertically overlap, and buildings with 4 or fewer attached dwellings, may be eligible for rebates through the PUD’s single family Heating and Weatherization programs.
C21: Rebates and Savings | P21: FALSE
C22: Heat Type | F22: Insulation Type (Wall, Attic, Floor or Roof) | G22: Insulation Value (Existing to Proposed/New) | I22: Square Footage of Insulation | J22: kWh Savings per SqFt per Year | K22: Rebate per SqFt | L22: Total kWh Savings per Year | M22: =IF(P21=TRUE,"Total Rebate with BONUS*","Total Rebate*") -> Total Rebate* | P22: Proposed Insulation | Q22: Peak kW Reduction (per SqFt) | R22: Total Peak kW Reduction | S22: % PUD Winter Peak kW Reduction | T22: Total PUD Winter Peak kW Reduction
J23: =IF(OR(C23="",F23="",G23=""),"",VLOOKUP(P23,InsulationTable,4,FALSE)) ->  | K23: =IF(OR(C23="",F23="",G23=""),"",ROUND(VLOOKUP(P23,InsulationTable,3,FALSE),2)*WithBonusMeasures) ->  | L23: =IF(J23="","",I23*J23) ->  | M23: =IF(L23="","",I23*K23) ->  | P23: =IF(C23="","",$C$12&"Any Electric Heat"&F23&G23) ->  | Q23: =IF(L23="","",VLOOKUP(P23,InsulationTable,6,FALSE)) ->  | R23: =IF(Q23="","",J23*Q23) ->  | S23: =IF(OR(F23="",C23=""),"",VLOOKUP(P23,InsulationTable,7,FALSE)) ->  | T23: =IF(R23="","",R23*S23) -> 
J24: =IF(OR(C24="",F24="",G24=""),"",VLOOKUP(P24,InsulationTable,4,FALSE)) ->  | K24: =IF(OR(C24="",F24="",G24=""),"",ROUND(VLOOKUP(P24,InsulationTable,3,FALSE),2)*WithBonusMeasures) ->  | L24: =IF(J24="","",I24*J24) ->  | M24: =IF(L24="","",I24*K24) ->  | P24: =IF(C24="","",$C$12&"Any Electric Heat"&F24&G24) ->  | Q24: =IF(L24="","",VLOOKUP(P24,InsulationTable,6,FALSE)) ->  | R24: =IF(Q24="","",J24*Q24) ->  | S24: =IF(OR(F24="",C24=""),"",VLOOKUP(P24,InsulationTable,7,FALSE)) ->  | T24: =IF(R24="","",R24*S24) -> 
J25: =IF(OR(C25="",F25="",G25=""),"",VLOOKUP(P25,InsulationTable,4,FALSE)) ->  | K25: =IF(OR(C25="",F25="",G25=""),"",ROUND(VLOOKUP(P25,InsulationTable,3,FALSE),2)*WithBonusMeasures) ->  | L25: =IF(J25="","",I25*J25) ->  | M25: =IF(L25="","",I25*K25) ->  | Q25: =IF(L25="","",VLOOKUP(P25,InsulationTable,6,FALSE)) ->  | R25: =IF(Q25="","",J25*Q25) ->  | S25: =IF(OR(F25="",C25=""),"",VLOOKUP(P25,InsulationTable,7,FALSE)) ->  | T25: =IF(R25="","",R25*S25) -> 
C26: Total Installed Cost: | H26: Total: | I26: =IF(SUM(I23:I25)=0,"",SUM(I23:I25)) ->  | K26: Total: | L26: =IF(SUM(L23:L25)=0,"",SUM(L23:L25)) ->  | M26: =IF(SUM(M23:M25)=0,"", IF(Cost=0,"Cost?",MIN(Cost,SUM(M23:M25)))) ->  | Q26: Total: | R26: =SUM(R23:R25) -> 0 | T26: =SUM(T23:T25) -> 0
L27: Project Development Incentive: | M27: =IF(OR(Cost=0,I26=""),"",MAX(50,I26*PDI_Rate_Insulation_LRMF)) ->  | P27: BaseRebate
M28: *Total Rebate is capped at approved project cost. | P28: =IFERROR(SUM(M23:M25)/WithBonusMeasures,0) -> 0
C29: Eligibility, Documentation Requirements & Process
C30: • For existing facilities located in the Snohomish PUD service territory.
C31: • Complete and submit this Rebate Workbook and quote to eebiz@snopud.com. We will request W9s if needed.
C32: • PUD to verify and send Customer the Participation Agreement for signature. PUD pre-approval is required.
C33: • Installation may start upon the receipt of signed Participation Agreement back from Customer.
C34: • PUD to verify installation upon completion and collect invoice and coverage chart. Invoice must show installed cost and new equipment purchase date. Coverage chart is the chart from a bag of loose fill insulation describing the size of area, depth, weight, and R-Value that the material will provide.
C35: • PUD to process the Rebates Payment and send check to Customer (or Alternate Payee).
Q48: OccupancyType | R48: Space HeatingType | S48: Insulation Type | T48: InsulationUValue
Q49: Low Rise Multifamily | R49: Any Electric Heat | S49: Attic | T49: ≤ R-11 to R-38
Q50: Mid and High Rise Multifamily | R50: Air Source Heat Pump | S50: Floor | T50: ≤ R-11 to R-49
Q51: Small Office less than 5000 sqft | R51: Electric Zonal or FAF | S51: Wall | T51: ≤ R-11 to R-19
Q52: Medium Office 5000 to 50000 sqft | R52: Electric | S52: Roof | T52: ≤ R-11 to R-30
Q53: Medium Retail 5000 to 50000 sqft | R53: Heat Pump | S53: Attic or Roof | T53: R-0 to R-11 | U53: Low Rise only
Q54: Large Retail 50000 to 100000 sqft | S54: Wall | T54: R-0 to R-19
Q55: Lodging | S55: Roof | T55: ≤ R-5 to R-49
Q56: Restaurant | T56: ≤ R-5 to R-19
Q57: School K to 12 | T57: ≤ R-5 to R-49
Q58: Hospital
Q59: Warehouse
Q60: Other
U62: col 1 | V62: col 2 | W62: col 3 | X62: col 4 | Y62: col 5 | Z62: col 6 | AA62: col 7
P63: Occupancy Type | Q63: Heat Type | R63: Insulation Type | S63: Insulation Value | T63: RTF UES Status | U63: For Table (InsulationTable) | V63: BPA Rebates/SqFt | W63: PUD Rebate/SqFt | X63: kWh/yr-SqFt | Y63: $/kWh | Z63: Peak kW | AA63: % PUD Winter Peak | AB63: Note
P64: Low Rise Multifamily | Q64: Any Electric Heat | R64: Attic | S64: ≤ R-5 to R-19 | T64: RTF Approved | U64: =P64&Q64&R64&S64 -> Low Rise MultifamilyAny Electric HeatAttic≤ R-5 to R-19 | V64: 0.9 | W64: 1 | X64: 0.69 | Y64: =W64/X64 -> 1.449275362 | Z64: 0 | AA64: 1 | AB64: PUD decided to drop this measure.
P65: Low Rise Multifamily | Q65: Any Electric Heat | R65: Attic | S65: ≤ R-11 to R-38 | T65: RTF Approved | U65: Low Rise MultifamilyAny Electric HeatAttic≤ R-11 to R-38 | V65: 1.2 | W65: 0.5 | X65: 0.91 | Y65: 0.5494505495 | Z65: 0 | AA65: 1 | AB65: PUD decided to reduce rebate level.
P66: Low Rise Multifamily | Q66: Any Electric Heat | R66: Attic | S66: ≤ R-11 to R-49 | T66: RTF Approved | U66: Low Rise MultifamilyAny Electric HeatAttic≤ R-11 to R-49 | V66: 1.35 | W66: 0.75 | X66: 0.95 | Y66: 0.7894736842 | Z66: 0 | AA66: 1 | AB66: PUD decided to reduce rebate level.
P67: Low Rise Multifamily | Q67: Any Electric Heat | R67: Attic | S67: R-19 to R-38 | T67: RTF Approved | U67: Low Rise MultifamilyAny Electric HeatAtticR-19 to R-38 | V67: 0.3 | W67: 0.5 | X67: 0.24 | Y67: 2.083333333 | Z67: 0 | AA67: 1 | AB67: PUD decided to drop this measure.
P68: Low Rise Multifamily | Q68: Any Electric Heat | R68: Attic | S68: R-19 to R-49 | T68: RTF Approved | U68: Low Rise MultifamilyAny Electric HeatAtticR-19 to R-49 | V68: 0.3 | W68: 0.5 | X68: 0.29 | Y68: 1.724137931 | Z68: 0 | AA68: 1 | AB68: PUD decided to drop this measure.
P69: Low Rise Multifamily | Q69: Any Electric Heat | R69: Attic | S69: R-38 to R-49 | T69: RTF Approved | U69: Low Rise MultifamilyAny Electric HeatAtticR-38 to R-49 | V69: 0.09 | W69: 0.1 | X69: 0.05 | Y69: 2 | Z69: 0 | AA69: 1 | AB69: PUD decided to drop this measure.
P70: Low Rise Multifamily | Q70: Any Electric Heat | R70: Floor | S70: ≤ R-11 to R-19 | T70: RTF Approved | U70: Low Rise MultifamilyAny Electric HeatFloor≤ R-11 to R-19 | V70: 1.11 | W70: 0.5 | X70: 1.01 | Y70: 0.495049505 | Z70: 0 | AA70: 1 | AB70: PUD decided to reduce rebate level.
P71: Low Rise Multifamily | Q71: Any Electric Heat | R71: Floor | S71: ≤ R-11 to R-30 | T71: RTF Approved | U71: Low Rise MultifamilyAny Electric HeatFloor≤ R-11 to R-30 | V71: 1.29 | W71: 0.75 | X71: 1.35 | Y71: 0.5555555556 | Z71: 0 | AA71: 1 | AB71: PUD decided to reduce rebate level.
P72: Low Rise Multifamily | Q72: Any Electric Heat | R72: Floor | S72: R-19 to R-30 | T72: RTF Approved | U72: Low Rise MultifamilyAny Electric HeatFloorR-19 to R-30 | V72: 0.21 | W72: 0.5 | X72: 0.39 | Y72: 1.282051282 | Z72: 0 | AA72: 1 | AB72: PUD decided to drop this measure.
P73: Low Rise Multifamily | Q73: Any Electric Heat | R73: Wall | S73: R-0 to R-11 | T73: RTF Approved | U73: Low Rise MultifamilyAny Electric HeatWallR-0 to R-11 | V73: 2 | W73: 0.75 | X73: 2.05 | Y73: 0.3658536585 | Z73: 0 | AA73: 1 | AB73: PUD decided to reduce rebate level.

Sheet Insulation M&H Rise MF (hidden)
C3: =BannerText -> Energy Services ● eebiz@snopud.com ● www.snopud.com
C5: Rebate Application | L5: PUD Staff:
L6: =IF(AssignedStaff="","",AssignedStaff) -> 
C7: Insulation for Mid and High Rise Multifamily | K7: Project Name:
K8: =IF(ProjectName="","",ProjectName) -> 
C9: • | D9: ='Rebates Overview'!G43 -> $0.50 to $2.50 per SqFt of Insulation
C11: Occupancy Type | G11: Customer Contact | I11: Customer Email | L11: Customer Phone
C12: Mid and High Rise Multifamily
C14: Pre-Installation Conditions | K14: Post-Installation Conditions
C15: • This measure applies to retrofits only. | K15: • Installation of insulation in floor or crawl spaces is not eligible.
C16: • Mid- and high-rise (4 stories and higher) multifamily buildings, 5 or more attached dwellings, whether owned or rented, including individual condos. Customer must be the owner in order to participate in the program
C18: • Electrically heated: Air Source Heat Pump, Electric Zonal or Forced Air Furnace (FAF),
C19: • Townhouses are NOT eligible for this Program. However, townhouses that share walls but do not vertically overlap, and buildings with 4 or fewer attached dwellings, may be eligible for rebates through the PUD’s single family Heating and Weatherization programs.
C21: Rebates and Savings | P21: FALSE
C22: Heat Type | F22: Insulation Type (Wall, Attic, Floor or Roof) | G22: Insulation Value (Existing to Proposed/New) | I22: Square Footage of Insulation | J22: kWh Savings per SqFt per Year | K22: Rebate per SqFt | L22: Total kWh Savings per Year | M22: =IF(P21=TRUE,"Total Rebate with BONUS*","Total Rebate*") -> Total Rebate* | P22: Proposed Insulation | Q22: Peak kW Reduction (per SqFt) | R22: Total Peak kW Reduction | S22: % PUD Winter Peak kW Reduction | T22: Total PUD Winter Peak kW Reduction
J23: =IF(OR(C23="",F23="",G23=""),"", VLOOKUP(P23,InsulationTable,4,FALSE)) ->  | K23: =IF(OR(C23="",F23="",G23=""),"", ROUND(VLOOKUP(P23,InsulationTable,3,FALSE),2)*WithBonusMeasures) ->  | L23: =IF(J23="","",I23*J23) ->  | M23: =IF(L23="","",I23*K23) ->  | P23: =IF(C23="","",$C$12&C23&F23&G23) ->  | Q23: =IF(L23="","",VLOOKUP(P23,InsulationTable,6,FALSE)) ->  | R23: =IF(Q23="","",J23*Q23) ->  | S23: =IF(OR(F23="",C23=""),"",VLOOKUP(P23,InsulationTable,7,FALSE)) ->  | T23: =IF(R23="","",R23*S23) -> 
J24: =IF(OR(C24="",F24="",G24=""),"", VLOOKUP(P24,InsulationTable,4,FALSE)) ->  | K24: =IF(OR(C24="",F24="",G24=""),"", ROUND(VLOOKUP(P24,InsulationTable,3,FALSE),2)*WithBonusMeasures) ->  | L24: =IF(J24="","",I24*J24) ->  | M24: =IF(L24="","",I24*K24) ->  | P24: =IF(C24="","",$C$12&C24&F24&G24) ->  | Q24: =IF(L24="","",VLOOKUP(P24,InsulationTable,6,FALSE)) ->  | R24: =IF(Q24="","",J24*Q24) ->  | S24: =IF(OR(F24="",C24=""),"",VLOOKUP(P24,InsulationTable,7,FALSE)) ->  | T24: =IF(R24="","",R24*S24) -> 
J25: =IF(OR(C25="",F25="",G25=""),"", VLOOKUP(P25,InsulationTable,4,FALSE)) ->  | K25: =IF(OR(C25="",F25="",G25=""),"", ROUND(VLOOKUP(P25,InsulationTable,3,FALSE),2)*WithBonusMeasures) ->  | L25: =IF(J25="","",I25*J25) ->  | M25: =IF(L25="","",I25*K25) ->  | Q25: =IF(L25="","",VLOOKUP(P25,InsulationTable,6,FALSE)) ->  | R25: =IF(Q25="","",J25*Q25) ->  | S25: =IF(OR(F25="",C25=""),"",VLOOKUP(P25,InsulationTable,7,FALSE)) ->  | T25: =IF(R25="","",R25*S25) -> 
C26: Total Installed Cost: | H26: Total: | I26: =IF(SUM(I23:I25)=0,"",SUM(I23:I25)) ->  | K26: Total: | L26: =IF(SUM(L23:L25)=0,"",SUM(L23:L25)) ->  | M26: =IF(SUM(M23:M25)=0,"",MIN(Cost,SUM(M23:M25))) ->  | Q26: Total: | R26: =SUM(R23:R25) -> 0 | T26: =SUM(T23:T25) -> 0
L27: Project Development Incentive: | M27: =IF(I26="","",MAX(50,I26*PDI_Rate_Insultation_HRMF)) ->  | P27: BaseRebate
M28: *Total Rebate is capped at approved project cost. | P28: =IFERROR(SUM(M23:M25)/WithBonusMeasures,0) -> 0
C29: Eligibility, Documentation Requirements & Process
C30: • For existing facilities located in the Snohomish PUD service territory.
C31: • Complete and submit this Rebate Workbook and quote to eebiz@snopud.com. We will request W9s if needed.
C32: • PUD to verify and send Customer the Participation Agreement for signature. PUD pre-approval is required.
C33: • Installation may start upon the receipt of signed Participation Agreement back from Customer.
C34: • PUD to verify installation upon completion and collect invoice and coverage chart. Invoice must show installed cost and new equipment purchase date. Coverage chart is the chart from a bag of loose fill insulation describing the size of area, depth, weight, and R-Value that the material will provide.
C35: • PUD to process the Rebates Payment and send check to Customer (or Alternate Payee). | Q35: OccupancyType | R35: Space HeatingType | S35: Insulation Type | T35: InsulationUValue
Q36: Low Rise Multifamily | R36: Any Electric Heat | S36: Attic | T36: ≤ R-11 to R-38
Q37: Mid and High Rise Multifamily | R37: Air Source Heat Pump | S37: Floor | T37: ≤ R-11 to R-49
Q38: Small Office less than 5000 sqft | R38: Electric Zonal or FAF | S38: Wall | T38: ≤ R-11 to R-19
Q39: Medium Office 5000 to 50000 sqft | R39: Electric | S39: Roof | T39: ≤ R-11 to R-30
Q40: Medium Retail 5000 to 50000 sqft | R40: Heat Pump | S40: Attic or Roof | T40: R-0 to R-11 | U40: Low Rise only
Q41: Large Retail 50000 to 100000 sqft | S41: Wall | T41: R-0 to R-19
Q42: Lodging | S42: Roof | T42: ≤ R-5 to R-49
Q43: Restaurant | T43: ≤ R-5 to R-19
Q44: School K to 12 | T44: ≤ R-5 to R-49
Q45: Hospital
Q46: Warehouse
Q47: Other
U48: col 1 | V48: col 2 | W48: col 3 | X48: col 4 | Y48: col 5 | Z48: col 6 | AA48: col 7
P49: Occupancy Type | Q49: Heat Type | R49: Insulation Type | S49: Insulation Value | T49: RTF UES Status | U49: For Table (InsulationTable) | V49: BPA Rebates/SqFt | W49: PUD Rebate/SqFt | X49: kWh/yr-SqFt | Y49: $/kWh | Z49: Peak kW | AA49: % PUD Winter Peak | AB49: Note
P50: Mid and High Rise Multifamily | Q50: Air Source Heat Pump | R50: Roof | S50: ≤ R-5 to R-19 | T50: BPA Qualified | U50: =P50&Q50&R50&S50 -> Mid and High Rise MultifamilyAir Source Heat PumpRoof≤ R-5 to R-19 | V50: 1.2 | W50: 1.5 | X50: 0.6796919592 | Y50: =W50/X50 -> 2.206882073 | Z50: 0 | AA50: 1
P51: Mid and High Rise Multifamily | Q51: Air Source Heat Pump | R51: Roof | S51: ≤ R-5 to R-49 | T51: BPA Qualified | U51: Mid and High Rise MultifamilyAir Source Heat PumpRoof≤ R-5 to R-49 | V51: 1.8 | W51: 2 | X51: 0.9629226123 | Y51: 2.077010109 | Z51: 0 | AA51: 1
P52: Mid and High Rise Multifamily | Q52: Electric Zonal or FAF | R52: Roof | S52: ≤ R-5 to R-19 | T52: BPA Qualified | U52: Mid and High Rise MultifamilyElectric Zonal or FAFRoof≤ R-5 to R-19 | V52: 1.2 | W52: 1.5 | X52: 0.6796919592 | Y52: 2.206882073 | Z52: 0 | AA52: 1
P53: Mid and High Rise Multifamily | Q53: Electric Zonal or FAF | R53: Roof | S53: ≤ R-5 to R-49 | T53: BPA Qualified | U53: Mid and High Rise MultifamilyElectric Zonal or FAFRoof≤ R-5 to R-49 | V53: 1.8 | W53: 2 | X53: 0.9629226123 | Y53: 2.077010109 | Z53: 0 | AA53: 1
P54: Mid and High Rise Multifamily | Q54: Air Source Heat Pump | R54: Wall | S54: R-0 to R-11 | T54: BPA Qualified | U54: Mid and High Rise MultifamilyAir Source Heat PumpWallR-0 to R-11 | V54: 0.75 | W54: 0.75 | X54: 1.97 | Y54: 0.3807106599 | Z54: 0 | AA54: 1 | AB54: PUD decided to reduce rebate level.
P55: Mid and High Rise Multifamily | Q55: Air Source Heat Pump | R55: Wall | S55: R-0 to R-19 | T55: BPA Qualified | U55: Mid and High Rise MultifamilyAir Source Heat PumpWallR-0 to R-19 | V55: 1.2 | W55: 0.75 | X55: 3.04 | Y55: 0.2467105263 | Z55: 0 | AA55: 1 | AB55: PUD decided to reduce rebate level.
P56: Mid and High Rise Multifamily | Q56: Electric Zonal or FAF | R56: Wall | S56: R-0 to R-11 | T56: BPA Qualified | U56: Mid and High Rise MultifamilyElectric Zonal or FAFWallR-0 to R-11 | V56: 0.75 | W56: 0.75 | X56: 1.97 | Y56: 0.3807106599 | Z56: 0 | AA56: 1 | AB56: PUD decided to reduce rebate level.
P57: Mid and High Rise Multifamily | Q57: Electric Zonal or FAF | R57: Wall | S57: R-0 to R-19 | T57: BPA Qualified | U57: Mid and High Rise MultifamilyElectric Zonal or FAFWallR-0 to R-19 | V57: 1.2 | W57: 0.75 | X57: 3.04 | Y57: 0.2467105263 | Z57: 0 | AA57: 1 | AB57: PUD decided to reduce rebate level.

Sheet ECM (hidden)
C3: =BannerText -> Energy Services ● eebiz@snopud.com ● www.snopud.com
C5: Rebate Application | L5: PUD Staff:
L6: =IF(AssignedStaff="","",AssignedStaff) -> 
C7: ECM or PMSM for Walk-In or Display Case Evaporator Fan Motor | K7: Project Name:
K8: =IF(ProjectName="","",ProjectName) -> 
C9: • | D9: ='Rebates Overview'!G54 -> $55.00 per motor (display cases) $140.00 per motor (walk-in)
C11: Pre-Installation Conditions | I11: Post-Installation Conditions
C12: • These measures apply to retrofits only. | I12: • Replace a shaded pole evaporator fan motor with an electronically commutated motors (ECM) or Permanent Magnetic Synchronous Motors (PMSM)
C13: • For walk-in coolers and freezers: Motors must have fans that are 10 inches in diameter or larger.
C15: • For refrigerated display cases: All fan sizes are eligible.
C16: • Shaded pole evaporator motor in a refrigerated display case, walk-in cooler or freezer
C18: Rebates and Savings
C19: Refrigeration Measure Type | H19: Quantity | I19: Unit | J19: Annual kWh Savings/Unit | K19: Rebate per Unit | L19: kWh Savings per Year | M19: Total Rebate* | P19: Peak kW Reduction (per SqFt) | Q19: Total Peak kW Reduction | R19: % PUD Winter Peak kW Reduction | S19: Total PUD Winter Peak kW Reduction
C20: ECM or PMSM on Display Case | I20: =IF(H20="","","Motor") ->  | J20: =IF(H20="","",W45) ->  | K20: =IF(H20="","",55*WithBonusMeasures) ->  | L20: =IF(H20="","",H20*J20) ->  | M20: =IF(H20="","",H20*K20) ->  | P20: =X45 -> 0.08 | Q20: =IF(L20="","",H20*P20) ->  | R20: 1 | S20: =IF(Q20="","",Q20*R20) ->  | U20: =C20&F20 -> ECM or PMSM on Display Case
C21: ECM or PMSM on Walk-In Cooler or Freezer, ≤ 23 Watts | I21: =IF(H21="","","Motor") ->  | J21: =IF(H21="","",W43) ->  | K21: =IF(H21="","",140*WithBonusMeasures) ->  | L21: =IF(H21="","",H21*J21) ->  | M21: =IF(H21="","",H21*K21) ->  | P21: =X43 -> 0.08 | Q21: =IF(L21="","",H21*P21) ->  | R21: 1 | S21: =IF(Q21="","",Q21*R21) ->  | U21: =C21&F21 -> ECM or PMSM on Walk-In Cooler or Freezer, ≤ 23 Watts
C22: ECM or PMSM on Walk-In Cooler or Freezer, > 23 Watts | I22: =IF(H22="","","Motor") ->  | J22: =IF(H22="","",W44) ->  | K22: =IF(H22="","",140*WithBonusMeasures) ->  | L22: =IF(H22="","",H22*J22) ->  | M22: =IF(H22="","",H22*K22) ->  | P22: =X44 -> 0.18 | Q22: =IF(L22="","",H22*P22) ->  | R22: 1 | S22: =IF(Q22="","",Q22*R22) ->  | U22: =C22&F22 -> ECM or PMSM on Walk-In Cooler or Freezer, > 23 Watts
C23: Total Installed Cost: | G23: Total: | H23: =IF(SUM(H20:H22)=0,"",SUM(H20:H22)) ->  | K23: Total: | L23: =IF(SUM(L20:L22)=0,"",SUM(L20:L22)) ->  | M23: =IF(SUM(M20:M22)=0,"", IF(Cost=0,"Cost?",MIN(Cost,SUM(M20:M22)))) ->  | P23: Total: | Q23: =SUM(Q20:Q22) -> 0 | S23: =SUM(S20:S22) -> 0
L24: Project Development Incentive: | M24: =IF(OR(Cost=0,H23=""),"",MAX(50,H23*PDI_Rate_ECM)) -> 
M25: *Total Rebate is capped at approved project cost. | P25: BaseRebate
C26: Eligibility, Documentation Requirements & Process | P26: =IFERROR(SUM(M20:M22)/WithBonusMeasures,0) -> 0
C27: • For existing and new non-residential facilities located in the Snohomish PUD service territory.
C28: • Complete and submit this Rebate Application, new equipment spec sheets, quote and W9 Form to eebiz@snopud.com.
C29: • PUD to verify and send Customer the Participation Agreement for signature. PUD pre-approval is required.
C30: • Installation may start upon the receipt of signed Participation Agreement back from Customer.
C31: • PUD to verify installation upon completion and collect invoice, which must show installed cost and new equipment purchase date.
C32: • PUD to process the Rebates Payment and send check to Customer (or Alternate Payee).
Q42: Refrigeration Type | R42: Refrigeration Type | S42: Refrigeration Measure | T42: For Table | U42: Unit | V42: Rebate | W42: kWh/yr | X42: Peak kW | Y42: % PUD Winter Peak
Q43: Evaporator Fan Motors | R43: Evaporator Fan Motors | S43: Shaded Pole Evaporator Motor ≤ 23 Watt for Walk-in replaced with ECM | T43: =R43&S43 -> Evaporator Fan MotorsShaded Pole Evaporator Motor ≤ 23 Watt for Walk-in replaced with ECM | U43: Motor | V43: 140 | W43: 608.25 | X43: 0.08 | Y43: 1
Q44: Strip Curtains | R44: Evaporator Fan Motors | S44: Shaded Pole Evaporator Motor > 23 Watt for Walk-in replaced with ECM | T44: =R44&S44 -> Evaporator Fan MotorsShaded Pole Evaporator Motor > 23 Watt for Walk-in replaced with ECM | U44: Motor | V44: 140 | W44: 1369.08 | X44: 0.18 | Y44: 1
R45: Evaporator Fan Motors | S45: Shaded Pole Evaporator Motor for Display Case replaced with ECM | T45: Evaporator Fan MotorsShaded Pole Evaporator Motor for Display Case replaced with ECM | U45: Motor | V45: 55 | W45: 596.84 | X45: 0.08 | Y45: 1
R46: Strip Curtains | S46: For Cooler in Grocery Store | T46: Strip CurtainsFor Cooler in Grocery Store | U46: Door SqFt | V46: 9 | W46: 80 | X46: 0.01 | Y46: 1
R47: Strip Curtains | S47: For Freezer in Grocery Store | T47: Strip CurtainsFor Freezer in Grocery Store | U47: Door SqFt | V47: 9 | W47: 340 | X47: 0.04 | Y47: 1
R48: Strip Curtains | S48: For Freezer in Convenience Store | T48: Strip CurtainsFor Freezer in Convenience Store | U48: Door SqFt | V48: 9 | W48: 20 | X48: 0 | Y48: 1
R49: Strip Curtains | S49: For Freezer in Restaurant | T49: Strip CurtainsFor Freezer in Restaurant | U49: Door SqFt | V49: 9 | W49: 100 | X49: 0.01 | Y49: 1

Sheet ASH Controls (hidden)
C3: =BannerText -> Energy Services ● eebiz@snopud.com ● www.snopud.com
C5: Rebate Application | L5: PUD Staff:
L6: =IF(AssignedStaff="","",AssignedStaff) -> 
C7: Anti-Sweat Heater (ASH) Controls | K7: Project Name:
K8: =IF(ProjectName="","",ProjectName) -> 
C9: • | D9: ='Rebates Overview'!G55 -> 40
C11: Anti-sweat heater (ASH) controls reduce the energy consumption of antisweat heaters on reach-in doors. This measure applies to cooler and freezer reach-in glass door cases in a commercial building. This measure only applies to technologies that reduce energy consumption of anti-sweat heaters based on sensing humidity. It does not apply to doors equipped with low/no anti-sweat heat.
C13: Pre-Installation Conditions | I13: Post-Installation Conditions
C14: • These measures apply to retrofits and new construction. | I14: • Cooler Case: Installation of a controller with settings that reduce the ASH run time by at least 50%. Includes any heating element in a door rail, glass and/or frame; or
C15: • Cooler Case: Any uncontrolled ASH that uses greater than 0.20 amps/ft. of case (door rail, glass and/or frame heating element combined); or
C17: • Freezer Case: Any uncontrolled ASH that uses greater than 0.39 amps/ft. of case (door rail, glass and/or frame heating element combined). | I17: • Freezer Case: Installation of a controller that reduces the ASH run time by at least 50%. Includes any heating element in a door rail, glass and/or frame.
C21: Rebates and Savings
C22: Refrigeration Measure Type | G22: Number of Cases | H22: Linear Feet per Case | I22: Total Linear Feet | J22: kWh Savings per LnFt per Year | K22: Rebate per LnFt | L22: Total kWh Savings per Year | M22: Total Rebate* | P22: Peak kW Reduction (per SqFt) | Q22: Total Peak kW Reduction | R22: % PUD Winter Peak kW Reduction | S22: Total PUD Winter Peak kW Reduction
I23: =IF(G23="","",G23*H23) ->  | J23: =IF(C23="","",VLOOKUP(C23,ASHControlTable,3,FALSE)) ->  | K23: =IF(J23="","",ASHCRebate) ->  | L23: =IF(I23="","",I23*J23) ->  | M23: =IF(I23="","",I23*K23) ->  | P23: =IF(L23="","",VLOOKUP(C23,ASHControlTable,4,FALSE)) ->  | Q23: =IF(L23="","",H23*P23) ->  | R23: 1 | S23: =IF(Q23="","",Q23*R23) -> 
I24: =IF(G24="","",G24*H24) ->  | J24: =IF(C24="","",VLOOKUP(C24,ASHControlTable,3,FALSE)) ->  | K24: =IF(J24="","",ASHCRebate) ->  | L24: =IF(I24="","",I24*J24) ->  | M24: =IF(I24="","",I24*K24) ->  | P24: =IF(L24="","",VLOOKUP(C24,ASHControlTable,4,FALSE)) ->  | Q24: =IF(L24="","",H24*P24) ->  | R24: 1 | S24: =IF(Q24="","",Q24*R24) -> 
I25: =IF(G25="","",G25*H25) ->  | J25: =IF(C25="","",VLOOKUP(C25,ASHControlTable,3,FALSE)) ->  | K25: =IF(J25="","",ASHCRebate) ->  | M25: =IF(I25="","",I25*K25) ->  | P25: =IF(L25="","",VLOOKUP(C25,ASHControlTable,4,FALSE)) ->  | Q25: =IF(L25="","",H25*P25) ->  | R25: 1 | S25: =IF(Q25="","",Q25*R25) -> 
C26: Total Installed Cost: | F26: Total: | G26: =IF(SUM(G23:G25)=0,"",SUM(G23:G25)) ->  | H26: =IF(SUM(H23:H25)=0,"",SUM(H23:H25)) ->  | I26: =IF(SUM(I23:I25)=0,"",SUM(I23:I25)) ->  | K26: Total: | L26: =IF(SUM(L23:L25)=0,"",SUM(L23:L25)) ->  | M26: =IF(SUM(M23:M25)=0,"", IF(Cost=0,"Cost?",MIN(Cost,SUM(M23:M25)))) ->  | P26: Total: | Q26: =SUM(Q23:Q25) -> 0 | S26: =SUM(S23:S25) -> 0
